{"text_format":"1","workbook":"xlsx","n_sheets":3,"sheets":["WEEKPLANNING","Overzicht UITZENDBURO","Validatie"],"not_rendered":{"charts":0,"images":0,"macros":1,"external_links":0,"defined_names":5,"comments":0,"pivot_tables":0},"unopened":[],"bounds":{"document_bytes":16777216,"sheet_cells":100000,"rows_first":2000,"rows_last":500,"rows_between":2000,"halvings":0,"cell_chars":16384,"cell_head_chars":4096},"cells_cut":0,"cells_raw":0,"read":"whole","date_system":"1900"}

{"sheet":"WEEKPLANNING","index":0,"n_rows":35,"n_cols":24,"rows_kept":35,"cut":false,"hidden":false,"merged":[[2,21,2,23],[2,3,2,5],[2,6,2,8],[2,9,2,11],[2,12,2,14],[2,15,2,17],[2,18,2,20]]}
[null,null,null,null,null,"Planning"]
["Jaar","WEEK",null,{"$f":"D3","v":43829},{"$f":"D2","v":43829},{"$f":"D2","v":43829},{"$f":"G3","v":43830},{"$f":"G2","v":43830},{"$f":"G2","v":43830},{"$f":"J3","v":43831},{"$f":"J2","v":43831},{"$f":"J2","v":43831},{"$f":"M3","v":43832},{"$f":"M2","v":43832},{"$f":"M2","v":43832},{"$f":"P3","v":43833},{"$f":"P2","v":43833},{"$f":"P2","v":43833},{"$f":"S3","v":43834},{"$f":"S2","v":43834},{"$f":"S2","v":43834},{"$f":"V3","v":43835},{"$f":"V2","v":43835},{"$f":"V2","v":43835}]
[2020,1,null,{"$f":"DATE($A$3,1,4)-WEEKDAY(DATE($A$3,1,4),2)+1+(($B$3-1)*7)","v":"2019-12-30"},null,null,{"$f":"D3+1","v":"2019-12-31"},null,null,{"$f":"G3+1","v":"2020-01-01"},null,null,{"$f":"J3+1","v":"2020-01-02"},null,null,{"$f":"M3+1","v":"2020-01-03"},null,null,{"$f":"P3+1","v":"2020-01-04"},null,null,{"$f":"S3+1","v":"2020-01-05"}]
["Afdeling","Verlof","FTE","Vroeg","Laat","Nacht","Vroeg","Laat","Nacht","Vroeg","Laat","Nacht","Vroeg","Laat","Nacht","Vroeg","Laat","Nacht","Vroeg","Laat","Nacht","Vroeg","Laat","Nacht"]
["AF","Flore",1,{"$f":"IFERROR(INDEX('Overzicht UITZENDBURO'!$Q$6:$Q$150,SMALL(IF('Overzicht UITZENDBURO'!$P$6:$P$150=$A5,IF('Overzicht UITZENDBURO'!$L$6:$L$150=D$2,IF('Overzicht UITZENDBURO'!$O$6:$O$150=D$4,IF('Overzicht UITZENDBURO'!$R$6:$R$150=\"\",ROW('Overzicht UITZENDBURO'!$R$6:$R$150)-ROW($R$6)+1)))),$C5)),\"\")","v":"Klaas"},{"$f":"IFERROR(INDEX('Overzicht UITZENDBURO'!$Q$6:$Q$150,SMALL(IF('Overzicht UITZENDBURO'!$P$6:$P$150=$A5,IF('Overzicht UITZENDBURO'!$L$6:$L$150=E$2,IF('Overzicht UITZENDBURO'!$O$6:$O$150=E$4,IF('Overzicht UITZENDBURO'!$R$6:$R$150=\"\",ROW('Overzicht UITZENDBURO'!$R$6:$R$150)-ROW($R$6)+1)))),$C5)),\"\")","v":"Klaas"},{"$f":"IFERROR(INDEX('Overzicht UITZENDBURO'!$Q$6:$Q$150,SMALL(IF('Overzicht UITZENDBURO'!$P$6:$P$150=$A5,IF('Overzicht UITZENDBURO'!$L$6:$L$150=F$2,IF('Overzicht UITZENDBURO'!$O$6:$O$150=F$4,IF('Overzicht UITZENDBURO'!$R$6:$R$150=\"\",ROW('Overzicht UITZENDBURO'!$R$6:$R$150)-ROW($R$6)+1)))),$C5)),\"\")","v":""},{"$f":"IFERROR(INDEX('Overzicht UITZENDBURO'!$Q$6:$Q$150,SMALL(IF('Overzicht UITZENDBURO'!$P$6:$P$150=$A5,IF('Overzicht UITZENDBURO'!$L$6:$L$150=G$2,IF('Overzicht UITZENDBURO'!$O$6:$O$150=G$4,IF('Overzicht UITZENDBURO'!$R$6:$R$150=\"\",ROW('Overzicht UITZENDBURO'!$R$6:$R$150)-ROW($R$6)+1)))),$C5)),\"\")","v":"Peter"},{"$f":"IFERROR(INDEX('Overzicht UITZENDBURO'!$Q$6:$Q$150,SMALL(IF('Overzicht UITZENDBURO'!$P$6:$P$150=$A5,IF('Overzicht UITZENDBURO'!$L$6:$L$150=H$2,IF('Overzicht UITZENDBURO'!$O$6:$O$150=H$4,IF('Overzicht UITZENDBURO'!$R$6:$R$150=\"\",ROW('Overzicht UITZENDBURO'!$R$6:$R$150)-ROW($R$6)+1)))),$C5)),\"\")","v":""},{"$f":"IFERROR(INDEX('Overzicht UITZENDBURO'!$Q$6:$Q$150,SMALL(IF('Overzicht UITZENDBURO'!$P$6:$P$150=$A5,IF('Overzicht UITZENDBURO'!$L$6:$L$150=I$2,IF('Overzicht UITZENDBURO'!$O$6:$O$150=I$4,IF('Overzicht UITZENDBURO'!$R$6:$R$150=\"\",ROW('Overzicht UITZENDBURO'!$R$6:$R$150)-ROW($R$6)+1)))),$C5)),\"\")","v":""},{"$f":"IFERROR(INDEX('Overzicht UITZENDBURO'!$Q$6:$Q$150,SMALL(IF('Overzicht UITZENDBURO'!$P$6:$P$150=$A5,IF('Overzicht UITZENDBURO'!$L$6:$L$150=J$2,IF('Overzicht UITZENDBURO'!$O$6:$O$150=J$4,IF('Overzicht UITZENDBURO'!$R$6:$R$150=\"\",ROW('Overzicht UITZENDBURO'!$R$6:$R$150)-ROW($R$6)+1)))),$C5)),\"\")","v":"Jos"},{"$f":"IFERROR(INDEX('Overzicht UITZENDBURO'!$Q$6:$Q$150,SMALL(IF('Overzicht UITZENDBURO'!$P$6:$P$150=$A5,IF('Overzicht UITZENDBURO'!$L$6:$L$150=K$2,IF('Overzicht UITZENDBURO'!$O$6:$O$150=K$4,IF('Overzicht UITZENDBURO'!$R$6:$R$150=\"\",ROW('Overzicht UITZENDBURO'!$R$6:$R$150)-ROW($R$6)+1)))),$C5)),\"\")","v":""},{"$f":"IFERROR(INDEX('Overzicht UITZENDBURO'!$Q$6:$Q$150,SMALL(IF('Overzicht UITZENDBURO'!$P$6:$P$150=$A5,IF('Overzicht UITZENDBURO'!$L$6:$L$150=L$2,IF('Overzicht UITZENDBURO'!$O$6:$O$150=L$4,IF('Overzicht UITZENDBURO'!$R$6:$R$150=\"\",ROW('Overzicht UITZENDBURO'!$R$6:$R$150)-ROW($R$6)+1)))),$C5)),\"\")","v":""},{"$f":"IFERROR(INDEX('Overzicht UITZENDBURO'!$Q$6:$Q$150,SMALL(IF('Overzicht UITZENDBURO'!$P$6:$P$150=$A5,IF('Overzicht UITZENDBURO'!$L$6:$L$150=M$2,IF('Overzicht UITZENDBURO'!$O$6:$O$150=M$4,IF('Overzicht UITZENDBURO'!$R$6:$R$150=\"\",ROW('Overzicht UITZENDBURO'!$R$6:$R$150)-ROW($R$6)+1)))),$C5)),\"\")","v":"Ida"},{"$f":"IFERROR(INDEX('Overzicht UITZENDBURO'!$Q$6:$Q$150,SMALL(IF('Overzicht UITZENDBURO'!$P$6:$P$150=$A5,IF('Overzicht UITZENDBURO'!$L$6:$L$150=N$2,IF('Overzicht UITZENDBURO'!$O$6:$O$150=N$4,IF('Overzicht UITZENDBURO'!$R$6:$R$150=\"\",ROW('Overzicht UITZENDBURO'!$R$6:$R$150)-ROW($R$6)+1)))),$C5)),\"\")","v":""},{"$f":"IFERROR(INDEX('Overzicht UITZENDBURO'!$Q$6:$Q$150,SMALL(IF('Overzicht UITZENDBURO'!$P$6:$P$150=$A5,IF('Overzicht UITZENDBURO'!$L$6:$L$150=O$2,IF('Overzicht UITZENDBURO'!$O$6:$O$150=O$4,IF('Overzicht UITZENDBURO'!$R$6:$R$150=\"\",ROW('Overzicht UITZENDBURO'!$R$6:$R$150)-ROW($R$6)+1)))),$C5)),\"\")","v":""},{"$f":"IFERROR(INDEX('Overzicht UITZENDBURO'!$Q$6:$Q$150,SMALL(IF('Overzicht UITZENDBURO'!$P$6:$P$150=$A5,IF('Overzicht UITZENDBURO'!$L$6:$L$150=P$2,IF('Overzicht UITZENDBURO'!$O$6:$O$150=P$4,IF('Overzicht UITZENDBURO'!$R$6:$R$150=\"\",ROW('Overzicht UITZENDBURO'!$R$6:$R$150)-ROW($R$6)+1)))),$C5)),\"\")","v":""},{"$f":"IFERROR(INDEX('Overzicht UITZENDBURO'!$Q$6:$Q$150,SMALL(IF('Overzicht UITZENDBURO'!$P$6:$P$150=$A5,IF('Overzicht UITZENDBURO'!$L$6:$L$150=Q$2,IF('Overzicht UITZENDBURO'!$O$6:$O$150=Q$4,IF('Overzicht UITZENDBURO'!$R$6:$R$150=\"\",ROW('Overzicht UITZENDBURO'!$R$6:$R$150)-ROW($R$6)+1)))),$C5)),\"\")","v":""},{"$f":"IFERROR(INDEX('Overzicht UITZENDBURO'!$Q$6:$Q$150,SMALL(IF('Overzicht UITZENDBURO'!$P$6:$P$150=$A5,IF('Overzicht UITZENDBURO'!$L$6:$L$150=R$2,IF('Overzicht UITZENDBURO'!$O$6:$O$150=R$4,IF('Overzicht UITZENDBURO'!$R$6:$R$150=\"\",ROW('Overzicht UITZENDBURO'!$R$6:$R$150)-ROW($R$6)+1)))),$C5)),\"\")","v":""},{"$f":"IFERROR(INDEX('Overzicht UITZENDBURO'!$Q$6:$Q$150,SMALL(IF('Overzicht UITZENDBURO'!$P$6:$P$150=$A5,IF('Overzicht UITZENDBURO'!$L$6:$L$150=S$2,IF('Overzicht UITZENDBURO'!$O$6:$O$150=S$4,IF('Overzicht UITZENDBURO'!$R$6:$R$150=\"\",ROW('Overzicht UITZENDBURO'!$R$6:$R$150)-ROW($R$6)+1)))),$C5)),\"\")","v":""},{"$f":"IFERROR(INDEX('Overzicht UITZENDBURO'!$Q$6:$Q$150,SMALL(IF('Overzicht UITZENDBURO'!$P$6:$P$150=$A5,IF('Overzicht UITZENDBURO'!$L$6:$L$150=T$2,IF('Overzicht UITZENDBURO'!$O$6:$O$150=T$4,IF('Overzicht UITZENDBURO'!$R$6:$R$150=\"\",ROW('Overzicht UITZENDBURO'!$R$6:$R$150)-ROW($R$6)+1)))),$C5)),\"\")","v":""},{"$f":"IFERROR(INDEX('Overzicht UITZENDBURO'!$Q$6:$Q$150,SMALL(IF('Overzicht UITZENDBURO'!$P$6:$P$150=$A5,IF('Overzicht UITZENDBURO'!$L$6:$L$150=U$2,IF('Overzicht UITZENDBURO'!$O$6:$O$150=U$4,IF('Overzicht UITZENDBURO'!$R$6:$R$150=\"\",ROW('Overzicht UITZENDBURO'!$R$6:$R$150)-ROW($R$6)+1)))),$C5)),\"\")","v":""},{"$f":"IFERROR(INDEX('Overzicht UITZENDBURO'!$Q$6:$Q$150,SMALL(IF('Overzicht UITZENDBURO'!$P$6:$P$150=$A5,IF('Overzicht UITZENDBURO'!$L$6:$L$150=V$2,IF('Overzicht UITZENDBURO'!$O$6:$O$150=V$4,IF('Overzicht UITZENDBURO'!$R$6:$R$150=\"\",ROW('Overzicht UITZENDBURO'!$R$6:$R$150)-ROW($R$6)+1)))),$C5)),\"\")","v":""},{"$f":"IFERROR(INDEX('Overzicht UITZENDBURO'!$Q$6:$Q$150,SMALL(IF('Overzicht UITZENDBURO'!$P$6:$P$150=$A5,IF('Overzicht UITZENDBURO'!$L$6:$L$150=W$2,IF('Overzicht UITZENDBURO'!$O$6:$O$150=W$4,IF('Overzicht UITZENDBURO'!$R$6:$R$150=\"\",ROW('Overzicht UITZENDBURO'!$R$6:$R$150)-ROW($R$6)+1)))),$C5)),\"\")","v":""},{"$f":"IFERROR(INDEX('Overzicht UITZENDBURO'!$Q$6:$Q$150,SMALL(IF('Overzicht UITZENDBURO'!$P$6:$P$150=$A5,IF('Overzicht UITZENDBURO'!$L$6:$L$150=X$2,IF('Overzicht UITZENDBURO'!$O$6:$O$150=X$4,IF('Overzicht UITZENDBURO'!$R$6:$R$150=\"\",ROW('Overzicht UITZENDBURO'!$R$6:$R$150)-ROW($R$6)+1)))),$C5)),\"\")","v":""}]
["AF",null,2,{"$f":"IFERROR(INDEX('Overzicht UITZENDBURO'!$Q$6:$Q$150,SMALL(IF('Overzicht UITZENDBURO'!$P$6:$P$150=$A6,IF('Overzicht UITZENDBURO'!$L$6:$L$150=D$2,IF('Overzicht UITZENDBURO'!$O$6:$O$150=D$4,IF('Overzicht UITZENDBURO'!$R$6:$R$150=\"\",ROW('Overzicht UITZENDBURO'!$R$6:$R$150)-ROW($R$6)+1)))),$C6)),\"\")","v":""},{"$f":"IFERROR(INDEX('Overzicht UITZENDBURO'!$Q$6:$Q$150,SMALL(IF('Overzicht UITZENDBURO'!$P$6:$P$150=$A6,IF('Overzicht UITZENDBURO'!$L$6:$L$150=E$2,IF('Overzicht UITZENDBURO'!$O$6:$O$150=E$4,IF('Overzicht UITZENDBURO'!$R$6:$R$150=\"\",ROW('Overzicht UITZENDBURO'!$R$6:$R$150)-ROW($R$6)+1)))),$C6)),\"\")","v":""},{"$f":"IFERROR(INDEX('Overzicht UITZENDBURO'!$Q$6:$Q$150,SMALL(IF('Overzicht UITZENDBURO'!$P$6:$P$150=$A6,IF('Overzicht UITZENDBURO'!$L$6:$L$150=F$2,IF('Overzicht UITZENDBURO'!$O$6:$O$150=F$4,IF('Overzicht UITZENDBURO'!$R$6:$R$150=\"\",ROW('Overzicht UITZENDBURO'!$R$6:$R$150)-ROW($R$6)+1)))),$C6)),\"\")","v":""},{"$f":"IFERROR(INDEX('Overzicht UITZENDBURO'!$Q$6:$Q$150,SMALL(IF('Overzicht UITZENDBURO'!$P$6:$P$150=$A6,IF('Overzicht UITZENDBURO'!$L$6:$L$150=G$2,IF('Overzicht UITZENDBURO'!$O$6:$O$150=G$4,IF('Overzicht UITZENDBURO'!$R$6:$R$150=\"\",ROW('Overzicht UITZENDBURO'!$R$6:$R$150)-ROW($R$6)+1)))),$C6)),\"\")","v":""},{"$f":"IFERROR(INDEX('Overzicht UITZENDBURO'!$Q$6:$Q$150,SMALL(IF('Overzicht UITZENDBURO'!$P$6:$P$150=$A6,IF('Overzicht UITZENDBURO'!$L$6:$L$150=H$2,IF('Overzicht UITZENDBURO'!$O$6:$O$150=H$4,IF('Overzicht UITZENDBURO'!$R$6:$R$150=\"\",ROW('Overzicht UITZENDBURO'!$R$6:$R$150)-ROW($R$6)+1)))),$C6)),\"\")","v":""},{"$f":"IFERROR(INDEX('Overzicht UITZENDBURO'!$Q$6:$Q$150,SMALL(IF('Overzicht UITZENDBURO'!$P$6:$P$150=$A6,IF('Overzicht UITZENDBURO'!$L$6:$L$150=I$2,IF('Overzicht UITZENDBURO'!$O$6:$O$150=I$4,IF('Overzicht UITZENDBURO'!$R$6:$R$150=\"\",ROW('Overzicht UITZENDBURO'!$R$6:$R$150)-ROW($R$6)+1)))),$C6)),\"\")","v":""},{"$f":"IFERROR(INDEX('Overzicht UITZENDBURO'!$Q$6:$Q$150,SMALL(IF('Overzicht UITZENDBURO'!$P$6:$P$150=$A6,IF('Overzicht UITZENDBURO'!$L$6:$L$150=J$2,IF('Overzicht UITZENDBURO'!$O$6:$O$150=J$4,IF('Overzicht UITZENDBURO'!$R$6:$R$150=\"\",ROW('Overzicht UITZENDBURO'!$R$6:$R$150)-ROW($R$6)+1)))),$C6)),\"\")","v":""},{"$f":"IFERROR(INDEX('Overzicht UITZENDBURO'!$Q$6:$Q$150,SMALL(IF('Overzicht UITZENDBURO'!$P$6:$P$150=$A6,IF('Overzicht UITZENDBURO'!$L$6:$L$150=K$2,IF('Overzicht UITZENDBURO'!$O$6:$O$150=K$4,IF('Overzicht UITZENDBURO'!$R$6:$R$150=\"\",ROW('Overzicht UITZENDBURO'!$R$6:$R$150)-ROW($R$6)+1)))),$C6)),\"\")","v":""},{"$f":"IFERROR(INDEX('Overzicht UITZENDBURO'!$Q$6:$Q$150,SMALL(IF('Overzicht UITZENDBURO'!$P$6:$P$150=$A6,IF('Overzicht UITZENDBURO'!$L$6:$L$150=L$2,IF('Overzicht UITZENDBURO'!$O$6:$O$150=L$4,IF('Overzicht UITZENDBURO'!$R$6:$R$150=\"\",ROW('Overzicht UITZENDBURO'!$R$6:$R$150)-ROW($R$6)+1)))),$C6)),\"\")","v":""},{"$f":"IFERROR(INDEX('Overzicht UITZENDBURO'!$Q$6:$Q$150,SMALL(IF('Overzicht UITZENDBURO'!$P$6:$P$150=$A6,IF('Overzicht UITZENDBURO'!$L$6:$L$150=M$2,IF('Overzicht UITZENDBURO'!$O$6:$O$150=M$4,IF('Overzicht UITZENDBURO'!$R$6:$R$150=\"\",ROW('Overzicht UITZENDBURO'!$R$6:$R$150)-ROW($R$6)+1)))),$C6)),\"\")","v":"Fons"},{"$f":"IFERROR(INDEX('Overzicht UITZENDBURO'!$Q$6:$Q$150,SMALL(IF('Overzicht UITZENDBURO'!$P$6:$P$150=$A6,IF('Overzicht UITZENDBURO'!$L$6:$L$150=N$2,IF('Overzicht UITZENDBURO'!$O$6:$O$150=N$4,IF('Overzicht UITZENDBURO'!$R$6:$R$150=\"\",ROW('Overzicht UITZENDBURO'!$R$6:$R$150)-ROW($R$6)+1)))),$C6)),\"\")","v":""},{"$f":"IFERROR(INDEX('Overzicht UITZENDBURO'!$Q$6:$Q$150,SMALL(IF('Overzicht UITZENDBURO'!$P$6:$P$150=$A6,IF('Overzicht UITZENDBURO'!$L$6:$L$150=O$2,IF('Overzicht UITZENDBURO'!$O$6:$O$150=O$4,IF('Overzicht UITZENDBURO'!$R$6:$R$150=\"\",ROW('Overzicht UITZENDBURO'!$R$6:$R$150)-ROW($R$6)+1)))),$C6)),\"\")","v":""},{"$f":"IFERROR(INDEX('Overzicht UITZENDBURO'!$Q$6:$Q$150,SMALL(IF('Overzicht UITZENDBURO'!$P$6:$P$150=$A6,IF('Overzicht UITZENDBURO'!$L$6:$L$150=P$2,IF('Overzicht UITZENDBURO'!$O$6:$O$150=P$4,IF('Overzicht UITZENDBURO'!$R$6:$R$150=\"\",ROW('Overzicht UITZENDBURO'!$R$6:$R$150)-ROW($R$6)+1)))),$C6)),\"\")","v":""},{"$f":"IFERROR(INDEX('Overzicht UITZENDBURO'!$Q$6:$Q$150,SMALL(IF('Overzicht UITZENDBURO'!$P$6:$P$150=$A6,IF('Overzicht UITZENDBURO'!$L$6:$L$150=Q$2,IF('Overzicht UITZENDBURO'!$O$6:$O$150=Q$4,IF('Overzicht UITZENDBURO'!$R$6:$R$150=\"\",ROW('Overzicht UITZENDBURO'!$R$6:$R$150)-ROW($R$6)+1)))),$C6)),\"\")","v":""},{"$f":"IFERROR(INDEX('Overzicht UITZENDBURO'!$Q$6:$Q$150,SMALL(IF('Overzicht UITZENDBURO'!$P$6:$P$150=$A6,IF('Overzicht UITZENDBURO'!$L$6:$L$150=R$2,IF('Overzicht UITZENDBURO'!$O$6:$O$150=R$4,IF('Overzicht UITZENDBURO'!$R$6:$R$150=\"\",ROW('Overzicht UITZENDBURO'!$R$6:$R$150)-ROW($R$6)+1)))),$C6)),\"\")","v":""},{"$f":"IFERROR(INDEX('Overzicht UITZENDBURO'!$Q$6:$Q$150,SMALL(IF('Overzicht UITZENDBURO'!$P$6:$P$150=$A6,IF('Overzicht UITZENDBURO'!$L$6:$L$150=S$2,IF('Overzicht UITZENDBURO'!$O$6:$O$150=S$4,IF('Overzicht UITZENDBURO'!$R$6:$R$150=\"\",ROW('Overzicht UITZENDBURO'!$R$6:$R$150)-ROW($R$6)+1)))),$C6)),\"\")","v":""},{"$f":"IFERROR(INDEX('Overzicht UITZENDBURO'!$Q$6:$Q$150,SMALL(IF('Overzicht UITZENDBURO'!$P$6:$P$150=$A6,IF('Overzicht UITZENDBURO'!$L$6:$L$150=T$2,IF('Overzicht UITZENDBURO'!$O$6:$O$150=T$4,IF('Overzicht UITZENDBURO'!$R$6:$R$150=\"\",ROW('Overzicht UITZENDBURO'!$R$6:$R$150)-ROW($R$6)+1)))),$C6)),\"\")","v":""},{"$f":"IFERROR(INDEX('Overzicht UITZENDBURO'!$Q$6:$Q$150,SMALL(IF('Overzicht UITZENDBURO'!$P$6:$P$150=$A6,IF('Overzicht UITZENDBURO'!$L$6:$L$150=U$2,IF('Overzicht UITZENDBURO'!$O$6:$O$150=U$4,IF('Overzicht UITZENDBURO'!$R$6:$R$150=\"\",ROW('Overzicht UITZENDBURO'!$R$6:$R$150)-ROW($R$6)+1)))),$C6)),\"\")","v":""},{"$f":"IFERROR(INDEX('Overzicht UITZENDBURO'!$Q$6:$Q$150,SMALL(IF('Overzicht UITZENDBURO'!$P$6:$P$150=$A6,IF('Overzicht UITZENDBURO'!$L$6:$L$150=V$2,IF('Overzicht UITZENDBURO'!$O$6:$O$150=V$4,IF('Overzicht UITZENDBURO'!$R$6:$R$150=\"\",ROW('Overzicht UITZENDBURO'!$R$6:$R$150)-ROW($R$6)+1)))),$C6)),\"\")","v":""},{"$f":"IFERROR(INDEX('Overzicht UITZENDBURO'!$Q$6:$Q$150,SMALL(IF('Overzicht UITZENDBURO'!$P$6:$P$150=$A6,IF('Overzicht UITZENDBURO'!$L$6:$L$150=W$2,IF('Overzicht UITZENDBURO'!$O$6:$O$150=W$4,IF('Overzicht UITZENDBURO'!$R$6:$R$150=\"\",ROW('Overzicht UITZENDBURO'!$R$6:$R$150)-ROW($R$6)+1)))),$C6)),\"\")","v":""},{"$f":"IFERROR(INDEX('Overzicht UITZENDBURO'!$Q$6:$Q$150,SMALL(IF('Overzicht UITZENDBURO'!$P$6:$P$150=$A6,IF('Overzicht UITZENDBURO'!$L$6:$L$150=X$2,IF('Overzicht UITZENDBURO'!$O$6:$O$150=X$4,IF('Overzicht UITZENDBURO'!$R$6:$R$150=\"\",ROW('Overzicht UITZENDBURO'!$R$6:$R$150)-ROW($R$6)+1)))),$C6)),\"\")","v":""}]
["AF",null,3,{"$f":"IFERROR(INDEX('Overzicht UITZENDBURO'!$Q$6:$Q$150,SMALL(IF('Overzicht UITZENDBURO'!$P$6:$P$150=$A7,IF('Overzicht UITZENDBURO'!$L$6:$L$150=D$2,IF('Overzicht UITZENDBURO'!$O$6:$O$150=D$4,IF('Overzicht UITZENDBURO'!$R$6:$R$150=\"\",ROW('Overzicht UITZENDBURO'!$R$6:$R$150)-ROW($R$6)+1)))),$C7)),\"\")","v":""},{"$f":"IFERROR(INDEX('Overzicht UITZENDBURO'!$Q$6:$Q$150,SMALL(IF('Overzicht UITZENDBURO'!$P$6:$P$150=$A7,IF('Overzicht UITZENDBURO'!$L$6:$L$150=E$2,IF('Overzicht UITZENDBURO'!$O$6:$O$150=E$4,IF('Overzicht UITZENDBURO'!$R$6:$R$150=\"\",ROW('Overzicht UITZENDBURO'!$R$6:$R$150)-ROW($R$6)+1)))),$C7)),\"\")","v":""},{"$f":"IFERROR(INDEX('Overzicht UITZENDBURO'!$Q$6:$Q$150,SMALL(IF('Overzicht UITZENDBURO'!$P$6:$P$150=$A7,IF('Overzicht UITZENDBURO'!$L$6:$L$150=F$2,IF('Overzicht UITZENDBURO'!$O$6:$O$150=F$4,IF('Overzicht UITZENDBURO'!$R$6:$R$150=\"\",ROW('Overzicht UITZENDBURO'!$R$6:$R$150)-ROW($R$6)+1)))),$C7)),\"\")","v":""},{"$f":"IFERROR(INDEX('Overzicht UITZENDBURO'!$Q$6:$Q$150,SMALL(IF('Overzicht UITZENDBURO'!$P$6:$P$150=$A7,IF('Overzicht UITZENDBURO'!$L$6:$L$150=G$2,IF('Overzicht UITZENDBURO'!$O$6:$O$150=G$4,IF('Overzicht UITZENDBURO'!$R$6:$R$150=\"\",ROW('Overzicht UITZENDBURO'!$R$6:$R$150)-ROW($R$6)+1)))),$C7)),\"\")","v":""},{"$f":"IFERROR(INDEX('Overzicht UITZENDBURO'!$Q$6:$Q$150,SMALL(IF('Overzicht UITZENDBURO'!$P$6:$P$150=$A7,IF('Overzicht UITZENDBURO'!$L$6:$L$150=H$2,IF('Overzicht UITZENDBURO'!$O$6:$O$150=H$4,IF('Overzicht UITZENDBURO'!$R$6:$R$150=\"\",ROW('Overzicht UITZENDBURO'!$R$6:$R$150)-ROW($R$6)+1)))),$C7)),\"\")","v":""},{"$f":"IFERROR(INDEX('Overzicht UITZENDBURO'!$Q$6:$Q$150,SMALL(IF('Overzicht UITZENDBURO'!$P$6:$P$150=$A7,IF('Overzicht UITZENDBURO'!$L$6:$L$150=I$2,IF('Overzicht UITZENDBURO'!$O$6:$O$150=I$4,IF('Overzicht UITZENDBURO'!$R$6:$R$150=\"\",ROW('Overzicht UITZENDBURO'!$R$6:$R$150)-ROW($R$6)+1)))),$C7)),\"\")","v":""},{"$f":"IFERROR(INDEX('Overzicht UITZENDBURO'!$Q$6:$Q$150,SMALL(IF('Overzicht UITZENDBURO'!$P$6:$P$150=$A7,IF('Overzicht UITZENDBURO'!$L$6:$L$150=J$2,IF('Overzicht UITZENDBURO'!$O$6:$O$150=J$4,IF('Overzicht UITZENDBURO'!$R$6:$R$150=\"\",ROW('Overzicht UITZENDBURO'!$R$6:$R$150)-ROW($R$6)+1)))),$C7)),\"\")","v":""},{"$f":"IFERROR(INDEX('Overzicht UITZENDBURO'!$Q$6:$Q$150,SMALL(IF('Overzicht UITZENDBURO'!$P$6:$P$150=$A7,IF('Overzicht UITZENDBURO'!$L$6:$L$150=K$2,IF('Overzicht UITZENDBURO'!$O$6:$O$150=K$4,IF('Overzicht UITZENDBURO'!$R$6:$R$150=\"\",ROW('Overzicht UITZENDBURO'!$R$6:$R$150)-ROW($R$6)+1)))),$C7)),\"\")","v":""},{"$f":"IFERROR(INDEX('Overzicht UITZENDBURO'!$Q$6:$Q$150,SMALL(IF('Overzicht UITZENDBURO'!$P$6:$P$150=$A7,IF('Overzicht UITZENDBURO'!$L$6:$L$150=L$2,IF('Overzicht UITZENDBURO'!$O$6:$O$150=L$4,IF('Overzicht UITZENDBURO'!$R$6:$R$150=\"\",ROW('Overzicht UITZENDBURO'!$R$6:$R$150)-ROW($R$6)+1)))),$C7)),\"\")","v":""},{"$f":"IFERROR(INDEX('Overzicht UITZENDBURO'!$Q$6:$Q$150,SMALL(IF('Overzicht UITZENDBURO'!$P$6:$P$150=$A7,IF('Overzicht UITZENDBURO'!$L$6:$L$150=M$2,IF('Overzicht UITZENDBURO'!$O$6:$O$150=M$4,IF('Overzicht UITZENDBURO'!$R$6:$R$150=\"\",ROW('Overzicht UITZENDBURO'!$R$6:$R$150)-ROW($R$6)+1)))),$C7)),\"\")","v":""},{"$f":"IFERROR(INDEX('Overzicht UITZENDBURO'!$Q$6:$Q$150,SMALL(IF('Overzicht UITZENDBURO'!$P$6:$P$150=$A7,IF('Overzicht UITZENDBURO'!$L$6:$L$150=N$2,IF('Overzicht UITZENDBURO'!$O$6:$O$150=N$4,IF('Overzicht UITZENDBURO'!$R$6:$R$150=\"\",ROW('Overzicht UITZENDBURO'!$R$6:$R$150)-ROW($R$6)+1)))),$C7)),\"\")","v":""},{"$f":"IFERROR(INDEX('Overzicht UITZENDBURO'!$Q$6:$Q$150,SMALL(IF('Overzicht UITZENDBURO'!$P$6:$P$150=$A7,IF('Overzicht UITZENDBURO'!$L$6:$L$150=O$2,IF('Overzicht UITZENDBURO'!$O$6:$O$150=O$4,IF('Overzicht UITZENDBURO'!$R$6:$R$150=\"\",ROW('Overzicht UITZENDBURO'!$R$6:$R$150)-ROW($R$6)+1)))),$C7)),\"\")","v":""},{"$f":"IFERROR(INDEX('Overzicht UITZENDBURO'!$Q$6:$Q$150,SMALL(IF('Overzicht UITZENDBURO'!$P$6:$P$150=$A7,IF('Overzicht UITZENDBURO'!$L$6:$L$150=P$2,IF('Overzicht UITZENDBURO'!$O$6:$O$150=P$4,IF('Overzicht UITZENDBURO'!$R$6:$R$150=\"\",ROW('Overzicht UITZENDBURO'!$R$6:$R$150)-ROW($R$6)+1)))),$C7)),\"\")","v":""},{"$f":"IFERROR(INDEX('Overzicht UITZENDBURO'!$Q$6:$Q$150,SMALL(IF('Overzicht UITZENDBURO'!$P$6:$P$150=$A7,IF('Overzicht UITZENDBURO'!$L$6:$L$150=Q$2,IF('Overzicht UITZENDBURO'!$O$6:$O$150=Q$4,IF('Overzicht UITZENDBURO'!$R$6:$R$150=\"\",ROW('Overzicht UITZENDBURO'!$R$6:$R$150)-ROW($R$6)+1)))),$C7)),\"\")","v":""},{"$f":"IFERROR(INDEX('Overzicht UITZENDBURO'!$Q$6:$Q$150,SMALL(IF('Overzicht UITZENDBURO'!$P$6:$P$150=$A7,IF('Overzicht UITZENDBURO'!$L$6:$L$150=R$2,IF('Overzicht UITZENDBURO'!$O$6:$O$150=R$4,IF('Overzicht UITZENDBURO'!$R$6:$R$150=\"\",ROW('Overzicht UITZENDBURO'!$R$6:$R$150)-ROW($R$6)+1)))),$C7)),\"\")","v":""},{"$f":"IFERROR(INDEX('Overzicht UITZENDBURO'!$Q$6:$Q$150,SMALL(IF('Overzicht UITZENDBURO'!$P$6:$P$150=$A7,IF('Overzicht UITZENDBURO'!$L$6:$L$150=S$2,IF('Overzicht UITZENDBURO'!$O$6:$O$150=S$4,IF('Overzicht UITZENDBURO'!$R$6:$R$150=\"\",ROW('Overzicht UITZENDBURO'!$R$6:$R$150)-ROW($R$6)+1)))),$C7)),\"\")","v":""},{"$f":"IFERROR(INDEX('Overzicht UITZENDBURO'!$Q$6:$Q$150,SMALL(IF('Overzicht UITZENDBURO'!$P$6:$P$150=$A7,IF('Overzicht UITZENDBURO'!$L$6:$L$150=T$2,IF('Overzicht UITZENDBURO'!$O$6:$O$150=T$4,IF('Overzicht UITZENDBURO'!$R$6:$R$150=\"\",ROW('Overzicht UITZENDBURO'!$R$6:$R$150)-ROW($R$6)+1)))),$C7)),\"\")","v":""},{"$f":"IFERROR(INDEX('Overzicht UITZENDBURO'!$Q$6:$Q$150,SMALL(IF('Overzicht UITZENDBURO'!$P$6:$P$150=$A7,IF('Overzicht UITZENDBURO'!$L$6:$L$150=U$2,IF('Overzicht UITZENDBURO'!$O$6:$O$150=U$4,IF('Overzicht UITZENDBURO'!$R$6:$R$150=\"\",ROW('Overzicht UITZENDBURO'!$R$6:$R$150)-ROW($R$6)+1)))),$C7)),\"\")","v":""},{"$f":"IFERROR(INDEX('Overzicht UITZENDBURO'!$Q$6:$Q$150,SMALL(IF('Overzicht UITZENDBURO'!$P$6:$P$150=$A7,IF('Overzicht UITZENDBURO'!$L$6:$L$150=V$2,IF('Overzicht UITZENDBURO'!$O$6:$O$150=V$4,IF('Overzicht UITZENDBURO'!$R$6:$R$150=\"\",ROW('Overzicht UITZENDBURO'!$R$6:$R$150)-ROW($R$6)+1)))),$C7)),\"\")","v":""},{"$f":"IFERROR(INDEX('Overzicht UITZENDBURO'!$Q$6:$Q$150,SMALL(IF('Overzicht UITZENDBURO'!$P$6:$P$150=$A7,IF('Overzicht UITZENDBURO'!$L$6:$L$150=W$2,IF('Overzicht UITZENDBURO'!$O$6:$O$150=W$4,IF('Overzicht UITZENDBURO'!$R$6:$R$150=\"\",ROW('Overzicht UITZENDBURO'!$R$6:$R$150)-ROW($R$6)+1)))),$C7)),\"\")","v":""},{"$f":"IFERROR(INDEX('Overzicht UITZENDBURO'!$Q$6:$Q$150,SMALL(IF('Overzicht UITZENDBURO'!$P$6:$P$150=$A7,IF('Overzicht UITZENDBURO'!$L$6:$L$150=X$2,IF('Overzicht UITZENDBURO'!$O$6:$O$150=X$4,IF('Overzicht UITZENDBURO'!$R$6:$R$150=\"\",ROW('Overzicht UITZENDBURO'!$R$6:$R$150)-ROW($R$6)+1)))),$C7)),\"\")","v":""}]
["AF",null,4,{"$f":"IFERROR(INDEX('Overzicht UITZENDBURO'!$Q$6:$Q$150,SMALL(IF('Overzicht UITZENDBURO'!$P$6:$P$150=$A8,IF('Overzicht UITZENDBURO'!$L$6:$L$150=D$2,IF('Overzicht UITZENDBURO'!$O$6:$O$150=D$4,IF('Overzicht UITZENDBURO'!$R$6:$R$150=\"\",ROW('Overzicht UITZENDBURO'!$R$6:$R$150)-ROW($R$6)+1)))),$C8)),\"\")","v":""},{"$f":"IFERROR(INDEX('Overzicht UITZENDBURO'!$Q$6:$Q$150,SMALL(IF('Overzicht UITZENDBURO'!$P$6:$P$150=$A8,IF('Overzicht UITZENDBURO'!$L$6:$L$150=E$2,IF('Overzicht UITZENDBURO'!$O$6:$O$150=E$4,IF('Overzicht UITZENDBURO'!$R$6:$R$150=\"\",ROW('Overzicht UITZENDBURO'!$R$6:$R$150)-ROW($R$6)+1)))),$C8)),\"\")","v":""},{"$f":"IFERROR(INDEX('Overzicht UITZENDBURO'!$Q$6:$Q$150,SMALL(IF('Overzicht UITZENDBURO'!$P$6:$P$150=$A8,IF('Overzicht UITZENDBURO'!$L$6:$L$150=F$2,IF('Overzicht UITZENDBURO'!$O$6:$O$150=F$4,IF('Overzicht UITZENDBURO'!$R$6:$R$150=\"\",ROW('Overzicht UITZENDBURO'!$R$6:$R$150)-ROW($R$6)+1)))),$C8)),\"\")","v":""},{"$f":"IFERROR(INDEX('Overzicht UITZENDBURO'!$Q$6:$Q$150,SMALL(IF('Overzicht UITZENDBURO'!$P$6:$P$150=$A8,IF('Overzicht UITZENDBURO'!$L$6:$L$150=G$2,IF('Overzicht UITZENDBURO'!$O$6:$O$150=G$4,IF('Overzicht UITZENDBURO'!$R$6:$R$150=\"\",ROW('Overzicht UITZENDBURO'!$R$6:$R$150)-ROW($R$6)+1)))),$C8)),\"\")","v":""},{"$f":"IFERROR(INDEX('Overzicht UITZENDBURO'!$Q$6:$Q$150,SMALL(IF('Overzicht UITZENDBURO'!$P$6:$P$150=$A8,IF('Overzicht UITZENDBURO'!$L$6:$L$150=H$2,IF('Overzicht UITZENDBURO'!$O$6:$O$150=H$4,IF('Overzicht UITZENDBURO'!$R$6:$R$150=\"\",ROW('Overzicht UITZENDBURO'!$R$6:$R$150)-ROW($R$6)+1)))),$C8)),\"\")","v":""},{"$f":"IFERROR(INDEX('Overzicht UITZENDBURO'!$Q$6:$Q$150,SMALL(IF('Overzicht UITZENDBURO'!$P$6:$P$150=$A8,IF('Overzicht UITZENDBURO'!$L$6:$L$150=I$2,IF('Overzicht UITZENDBURO'!$O$6:$O$150=I$4,IF('Overzicht UITZENDBURO'!$R$6:$R$150=\"\",ROW('Overzicht UITZENDBURO'!$R$6:$R$150)-ROW($R$6)+1)))),$C8)),\"\")","v":""},{"$f":"IFERROR(INDEX('Overzicht UITZENDBURO'!$Q$6:$Q$150,SMALL(IF('Overzicht UITZENDBURO'!$P$6:$P$150=$A8,IF('Overzicht UITZENDBURO'!$L$6:$L$150=J$2,IF('Overzicht UITZENDBURO'!$O$6:$O$150=J$4,IF('Overzicht UITZENDBURO'!$R$6:$R$150=\"\",ROW('Overzicht UITZENDBURO'!$R$6:$R$150)-ROW($R$6)+1)))),$C8)),\"\")","v":""},{"$f":"IFERROR(INDEX('Overzicht UITZENDBURO'!$Q$6:$Q$150,SMALL(IF('Overzicht UITZENDBURO'!$P$6:$P$150=$A8,IF('Overzicht UITZENDBURO'!$L$6:$L$150=K$2,IF('Overzicht UITZENDBURO'!$O$6:$O$150=K$4,IF('Overzicht UITZENDBURO'!$R$6:$R$150=\"\",ROW('Overzicht UITZENDBURO'!$R$6:$R$150)-ROW($R$6)+1)))),$C8)),\"\")","v":""},{"$f":"IFERROR(INDEX('Overzicht UITZENDBURO'!$Q$6:$Q$150,SMALL(IF('Overzicht UITZENDBURO'!$P$6:$P$150=$A8,IF('Overzicht UITZENDBURO'!$L$6:$L$150=L$2,IF('Overzicht UITZENDBURO'!$O$6:$O$150=L$4,IF('Overzicht UITZENDBURO'!$R$6:$R$150=\"\",ROW('Overzicht UITZENDBURO'!$R$6:$R$150)-ROW($R$6)+1)))),$C8)),\"\")","v":""},{"$f":"IFERROR(INDEX('Overzicht UITZENDBURO'!$Q$6:$Q$150,SMALL(IF('Overzicht UITZENDBURO'!$P$6:$P$150=$A8,IF('Overzicht UITZENDBURO'!$L$6:$L$150=M$2,IF('Overzicht UITZENDBURO'!$O$6:$O$150=M$4,IF('Overzicht UITZENDBURO'!$R$6:$R$150=\"\",ROW('Overzicht UITZENDBURO'!$R$6:$R$150)-ROW($R$6)+1)))),$C8)),\"\")","v":""},{"$f":"IFERROR(INDEX('Overzicht UITZENDBURO'!$Q$6:$Q$150,SMALL(IF('Overzicht UITZENDBURO'!$P$6:$P$150=$A8,IF('Overzicht UITZENDBURO'!$L$6:$L$150=N$2,IF('Overzicht UITZENDBURO'!$O$6:$O$150=N$4,IF('Overzicht UITZENDBURO'!$R$6:$R$150=\"\",ROW('Overzicht UITZENDBURO'!$R$6:$R$150)-ROW($R$6)+1)))),$C8)),\"\")","v":""},{"$f":"IFERROR(INDEX('Overzicht UITZENDBURO'!$Q$6:$Q$150,SMALL(IF('Overzicht UITZENDBURO'!$P$6:$P$150=$A8,IF('Overzicht UITZENDBURO'!$L$6:$L$150=O$2,IF('Overzicht UITZENDBURO'!$O$6:$O$150=O$4,IF('Overzicht UITZENDBURO'!$R$6:$R$150=\"\",ROW('Overzicht UITZENDBURO'!$R$6:$R$150)-ROW($R$6)+1)))),$C8)),\"\")","v":""},{"$f":"IFERROR(INDEX('Overzicht UITZENDBURO'!$Q$6:$Q$150,SMALL(IF('Overzicht UITZENDBURO'!$P$6:$P$150=$A8,IF('Overzicht UITZENDBURO'!$L$6:$L$150=P$2,IF('Overzicht UITZENDBURO'!$O$6:$O$150=P$4,IF('Overzicht UITZENDBURO'!$R$6:$R$150=\"\",ROW('Overzicht UITZENDBURO'!$R$6:$R$150)-ROW($R$6)+1)))),$C8)),\"\")","v":""},{"$f":"IFERROR(INDEX('Overzicht UITZENDBURO'!$Q$6:$Q$150,SMALL(IF('Overzicht UITZENDBURO'!$P$6:$P$150=$A8,IF('Overzicht UITZENDBURO'!$L$6:$L$150=Q$2,IF('Overzicht UITZENDBURO'!$O$6:$O$150=Q$4,IF('Overzicht UITZENDBURO'!$R$6:$R$150=\"\",ROW('Overzicht UITZENDBURO'!$R$6:$R$150)-ROW($R$6)+1)))),$C8)),\"\")","v":""},{"$f":"IFERROR(INDEX('Overzicht UITZENDBURO'!$Q$6:$Q$150,SMALL(IF('Overzicht UITZENDBURO'!$P$6:$P$150=$A8,IF('Overzicht UITZENDBURO'!$L$6:$L$150=R$2,IF('Overzicht UITZENDBURO'!$O$6:$O$150=R$4,IF('Overzicht UITZENDBURO'!$R$6:$R$150=\"\",ROW('Overzicht UITZENDBURO'!$R$6:$R$150)-ROW($R$6)+1)))),$C8)),\"\")","v":""},{"$f":"IFERROR(INDEX('Overzicht UITZENDBURO'!$Q$6:$Q$150,SMALL(IF('Overzicht UITZENDBURO'!$P$6:$P$150=$A8,IF('Overzicht UITZENDBURO'!$L$6:$L$150=S$2,IF('Overzicht UITZENDBURO'!$O$6:$O$150=S$4,IF('Overzicht UITZENDBURO'!$R$6:$R$150=\"\",ROW('Overzicht UITZENDBURO'!$R$6:$R$150)-ROW($R$6)+1)))),$C8)),\"\")","v":""},{"$f":"IFERROR(INDEX('Overzicht UITZENDBURO'!$Q$6:$Q$150,SMALL(IF('Overzicht UITZENDBURO'!$P$6:$P$150=$A8,IF('Overzicht UITZENDBURO'!$L$6:$L$150=T$2,IF('Overzicht UITZENDBURO'!$O$6:$O$150=T$4,IF('Overzicht UITZENDBURO'!$R$6:$R$150=\"\",ROW('Overzicht UITZENDBURO'!$R$6:$R$150)-ROW($R$6)+1)))),$C8)),\"\")","v":""},{"$f":"IFERROR(INDEX('Overzicht UITZENDBURO'!$Q$6:$Q$150,SMALL(IF('Overzicht UITZENDBURO'!$P$6:$P$150=$A8,IF('Overzicht UITZENDBURO'!$L$6:$L$150=U$2,IF('Overzicht UITZENDBURO'!$O$6:$O$150=U$4,IF('Overzicht UITZENDBURO'!$R$6:$R$150=\"\",ROW('Overzicht UITZENDBURO'!$R$6:$R$150)-ROW($R$6)+1)))),$C8)),\"\")","v":""},{"$f":"IFERROR(INDEX('Overzicht UITZENDBURO'!$Q$6:$Q$150,SMALL(IF('Overzicht UITZENDBURO'!$P$6:$P$150=$A8,IF('Overzicht UITZENDBURO'!$L$6:$L$150=V$2,IF('Overzicht UITZENDBURO'!$O$6:$O$150=V$4,IF('Overzicht UITZENDBURO'!$R$6:$R$150=\"\",ROW('Overzicht UITZENDBURO'!$R$6:$R$150)-ROW($R$6)+1)))),$C8)),\"\")","v":""},{"$f":"IFERROR(INDEX('Overzicht UITZENDBURO'!$Q$6:$Q$150,SMALL(IF('Overzicht UITZENDBURO'!$P$6:$P$150=$A8,IF('Overzicht UITZENDBURO'!$L$6:$L$150=W$2,IF('Overzicht UITZENDBURO'!$O$6:$O$150=W$4,IF('Overzicht UITZENDBURO'!$R$6:$R$150=\"\",ROW('Overzicht UITZENDBURO'!$R$6:$R$150)-ROW($R$6)+1)))),$C8)),\"\")","v":""},{"$f":"IFERROR(INDEX('Overzicht UITZENDBURO'!$Q$6:$Q$150,SMALL(IF('Overzicht UITZENDBURO'!$P$6:$P$150=$A8,IF('Overzicht UITZENDBURO'!$L$6:$L$150=X$2,IF('Overzicht UITZENDBURO'!$O$6:$O$150=X$4,IF('Overzicht UITZENDBURO'!$R$6:$R$150=\"\",ROW('Overzicht UITZENDBURO'!$R$6:$R$150)-ROW($R$6)+1)))),$C8)),\"\")","v":""}]
["AF",null,5,{"$f":"IFERROR(INDEX('Overzicht UITZENDBURO'!$Q$6:$Q$150,SMALL(IF('Overzicht UITZENDBURO'!$P$6:$P$150=$A9,IF('Overzicht UITZENDBURO'!$L$6:$L$150=D$2,IF('Overzicht UITZENDBURO'!$O$6:$O$150=D$4,IF('Overzicht UITZENDBURO'!$R$6:$R$150=\"\",ROW('Overzicht UITZENDBURO'!$R$6:$R$150)-ROW($R$6)+1)))),$C9)),\"\")","v":""},{"$f":"IFERROR(INDEX('Overzicht UITZENDBURO'!$Q$6:$Q$150,SMALL(IF('Overzicht UITZENDBURO'!$P$6:$P$150=$A9,IF('Overzicht UITZENDBURO'!$L$6:$L$150=E$2,IF('Overzicht UITZENDBURO'!$O$6:$O$150=E$4,IF('Overzicht UITZENDBURO'!$R$6:$R$150=\"\",ROW('Overzicht UITZENDBURO'!$R$6:$R$150)-ROW($R$6)+1)))),$C9)),\"\")","v":""},{"$f":"IFERROR(INDEX('Overzicht UITZENDBURO'!$Q$6:$Q$150,SMALL(IF('Overzicht UITZENDBURO'!$P$6:$P$150=$A9,IF('Overzicht UITZENDBURO'!$L$6:$L$150=F$2,IF('Overzicht UITZENDBURO'!$O$6:$O$150=F$4,IF('Overzicht UITZENDBURO'!$R$6:$R$150=\"\",ROW('Overzicht UITZENDBURO'!$R$6:$R$150)-ROW($R$6)+1)))),$C9)),\"\")","v":""},{"$f":"IFERROR(INDEX('Overzicht UITZENDBURO'!$Q$6:$Q$150,SMALL(IF('Overzicht UITZENDBURO'!$P$6:$P$150=$A9,IF('Overzicht UITZENDBURO'!$L$6:$L$150=G$2,IF('Overzicht UITZENDBURO'!$O$6:$O$150=G$4,IF('Overzicht UITZENDBURO'!$R$6:$R$150=\"\",ROW('Overzicht UITZENDBURO'!$R$6:$R$150)-ROW($R$6)+1)))),$C9)),\"\")","v":""},{"$f":"IFERROR(INDEX('Overzicht UITZENDBURO'!$Q$6:$Q$150,SMALL(IF('Overzicht UITZENDBURO'!$P$6:$P$150=$A9,IF('Overzicht UITZENDBURO'!$L$6:$L$150=H$2,IF('Overzicht UITZENDBURO'!$O$6:$O$150=H$4,IF('Overzicht UITZENDBURO'!$R$6:$R$150=\"\",ROW('Overzicht UITZENDBURO'!$R$6:$R$150)-ROW($R$6)+1)))),$C9)),\"\")","v":""},{"$f":"IFERROR(INDEX('Overzicht UITZENDBURO'!$Q$6:$Q$150,SMALL(IF('Overzicht UITZENDBURO'!$P$6:$P$150=$A9,IF('Overzicht UITZENDBURO'!$L$6:$L$150=I$2,IF('Overzicht UITZENDBURO'!$O$6:$O$150=I$4,IF('Overzicht UITZENDBURO'!$R$6:$R$150=\"\",ROW('Overzicht UITZENDBURO'!$R$6:$R$150)-ROW($R$6)+1)))),$C9)),\"\")","v":""},{"$f":"IFERROR(INDEX('Overzicht UITZENDBURO'!$Q$6:$Q$150,SMALL(IF('Overzicht UITZENDBURO'!$P$6:$P$150=$A9,IF('Overzicht UITZENDBURO'!$L$6:$L$150=J$2,IF('Overzicht UITZENDBURO'!$O$6:$O$150=J$4,IF('Overzicht UITZENDBURO'!$R$6:$R$150=\"\",ROW('Overzicht UITZENDBURO'!$R$6:$R$150)-ROW($R$6)+1)))),$C9)),\"\")","v":""},{"$f":"IFERROR(INDEX('Overzicht UITZENDBURO'!$Q$6:$Q$150,SMALL(IF('Overzicht UITZENDBURO'!$P$6:$P$150=$A9,IF('Overzicht UITZENDBURO'!$L$6:$L$150=K$2,IF('Overzicht UITZENDBURO'!$O$6:$O$150=K$4,IF('Overzicht UITZENDBURO'!$R$6:$R$150=\"\",ROW('Overzicht UITZENDBURO'!$R$6:$R$150)-ROW($R$6)+1)))),$C9)),\"\")","v":""},{"$f":"IFERROR(INDEX('Overzicht UITZENDBURO'!$Q$6:$Q$150,SMALL(IF('Overzicht UITZENDBURO'!$P$6:$P$150=$A9,IF('Overzicht UITZENDBURO'!$L$6:$L$150=L$2,IF('Overzicht UITZENDBURO'!$O$6:$O$150=L$4,IF('Overzicht UITZENDBURO'!$R$6:$R$150=\"\",ROW('Overzicht UITZENDBURO'!$R$6:$R$150)-ROW($R$6)+1)))),$C9)),\"\")","v":""},{"$f":"IFERROR(INDEX('Overzicht UITZENDBURO'!$Q$6:$Q$150,SMALL(IF('Overzicht UITZENDBURO'!$P$6:$P$150=$A9,IF('Overzicht UITZENDBURO'!$L$6:$L$150=M$2,IF('Overzicht UITZENDBURO'!$O$6:$O$150=M$4,IF('Overzicht UITZENDBURO'!$R$6:$R$150=\"\",ROW('Overzicht UITZENDBURO'!$R$6:$R$150)-ROW($R$6)+1)))),$C9)),\"\")","v":""},{"$f":"IFERROR(INDEX('Overzicht UITZENDBURO'!$Q$6:$Q$150,SMALL(IF('Overzicht UITZENDBURO'!$P$6:$P$150=$A9,IF('Overzicht UITZENDBURO'!$L$6:$L$150=N$2,IF('Overzicht UITZENDBURO'!$O$6:$O$150=N$4,IF('Overzicht UITZENDBURO'!$R$6:$R$150=\"\",ROW('Overzicht UITZENDBURO'!$R$6:$R$150)-ROW($R$6)+1)))),$C9)),\"\")","v":""},{"$f":"IFERROR(INDEX('Overzicht UITZENDBURO'!$Q$6:$Q$150,SMALL(IF('Overzicht UITZENDBURO'!$P$6:$P$150=$A9,IF('Overzicht UITZENDBURO'!$L$6:$L$150=O$2,IF('Overzicht UITZENDBURO'!$O$6:$O$150=O$4,IF('Overzicht UITZENDBURO'!$R$6:$R$150=\"\",ROW('Overzicht UITZENDBURO'!$R$6:$R$150)-ROW($R$6)+1)))),$C9)),\"\")","v":""},{"$f":"IFERROR(INDEX('Overzicht UITZENDBURO'!$Q$6:$Q$150,SMALL(IF('Overzicht UITZENDBURO'!$P$6:$P$150=$A9,IF('Overzicht UITZENDBURO'!$L$6:$L$150=P$2,IF('Overzicht UITZENDBURO'!$O$6:$O$150=P$4,IF('Overzicht UITZENDBURO'!$R$6:$R$150=\"\",ROW('Overzicht UITZENDBURO'!$R$6:$R$150)-ROW($R$6)+1)))),$C9)),\"\")","v":""},{"$f":"IFERROR(INDEX('Overzicht UITZENDBURO'!$Q$6:$Q$150,SMALL(IF('Overzicht UITZENDBURO'!$P$6:$P$150=$A9,IF('Overzicht UITZENDBURO'!$L$6:$L$150=Q$2,IF('Overzicht UITZENDBURO'!$O$6:$O$150=Q$4,IF('Overzicht UITZENDBURO'!$R$6:$R$150=\"\",ROW('Overzicht UITZENDBURO'!$R$6:$R$150)-ROW($R$6)+1)))),$C9)),\"\")","v":""},{"$f":"IFERROR(INDEX('Overzicht UITZENDBURO'!$Q$6:$Q$150,SMALL(IF('Overzicht UITZENDBURO'!$P$6:$P$150=$A9,IF('Overzicht UITZENDBURO'!$L$6:$L$150=R$2,IF('Overzicht UITZENDBURO'!$O$6:$O$150=R$4,IF('Overzicht UITZENDBURO'!$R$6:$R$150=\"\",ROW('Overzicht UITZENDBURO'!$R$6:$R$150)-ROW($R$6)+1)))),$C9)),\"\")","v":""},{"$f":"IFERROR(INDEX('Overzicht UITZENDBURO'!$Q$6:$Q$150,SMALL(IF('Overzicht UITZENDBURO'!$P$6:$P$150=$A9,IF('Overzicht UITZENDBURO'!$L$6:$L$150=S$2,IF('Overzicht UITZENDBURO'!$O$6:$O$150=S$4,IF('Overzicht UITZENDBURO'!$R$6:$R$150=\"\",ROW('Overzicht UITZENDBURO'!$R$6:$R$150)-ROW($R$6)+1)))),$C9)),\"\")","v":""},{"$f":"IFERROR(INDEX('Overzicht UITZENDBURO'!$Q$6:$Q$150,SMALL(IF('Overzicht UITZENDBURO'!$P$6:$P$150=$A9,IF('Overzicht UITZENDBURO'!$L$6:$L$150=T$2,IF('Overzicht UITZENDBURO'!$O$6:$O$150=T$4,IF('Overzicht UITZENDBURO'!$R$6:$R$150=\"\",ROW('Overzicht UITZENDBURO'!$R$6:$R$150)-ROW($R$6)+1)))),$C9)),\"\")","v":""},{"$f":"IFERROR(INDEX('Overzicht UITZENDBURO'!$Q$6:$Q$150,SMALL(IF('Overzicht UITZENDBURO'!$P$6:$P$150=$A9,IF('Overzicht UITZENDBURO'!$L$6:$L$150=U$2,IF('Overzicht UITZENDBURO'!$O$6:$O$150=U$4,IF('Overzicht UITZENDBURO'!$R$6:$R$150=\"\",ROW('Overzicht UITZENDBURO'!$R$6:$R$150)-ROW($R$6)+1)))),$C9)),\"\")","v":""},{"$f":"IFERROR(INDEX('Overzicht UITZENDBURO'!$Q$6:$Q$150,SMALL(IF('Overzicht UITZENDBURO'!$P$6:$P$150=$A9,IF('Overzicht UITZENDBURO'!$L$6:$L$150=V$2,IF('Overzicht UITZENDBURO'!$O$6:$O$150=V$4,IF('Overzicht UITZENDBURO'!$R$6:$R$150=\"\",ROW('Overzicht UITZENDBURO'!$R$6:$R$150)-ROW($R$6)+1)))),$C9)),\"\")","v":""},{"$f":"IFERROR(INDEX('Overzicht UITZENDBURO'!$Q$6:$Q$150,SMALL(IF('Overzicht UITZENDBURO'!$P$6:$P$150=$A9,IF('Overzicht UITZENDBURO'!$L$6:$L$150=W$2,IF('Overzicht UITZENDBURO'!$O$6:$O$150=W$4,IF('Overzicht UITZENDBURO'!$R$6:$R$150=\"\",ROW('Overzicht UITZENDBURO'!$R$6:$R$150)-ROW($R$6)+1)))),$C9)),\"\")","v":""},{"$f":"IFERROR(INDEX('Overzicht UITZENDBURO'!$Q$6:$Q$150,SMALL(IF('Overzicht UITZENDBURO'!$P$6:$P$150=$A9,IF('Overzicht UITZENDBURO'!$L$6:$L$150=X$2,IF('Overzicht UITZENDBURO'!$O$6:$O$150=X$4,IF('Overzicht UITZENDBURO'!$R$6:$R$150=\"\",ROW('Overzicht UITZENDBURO'!$R$6:$R$150)-ROW($R$6)+1)))),$C9)),\"\")","v":""}]
["AF",null,6,{"$f":"IFERROR(INDEX('Overzicht UITZENDBURO'!$Q$6:$Q$150,SMALL(IF('Overzicht UITZENDBURO'!$P$6:$P$150=$A10,IF('Overzicht UITZENDBURO'!$L$6:$L$150=D$2,IF('Overzicht UITZENDBURO'!$O$6:$O$150=D$4,IF('Overzicht UITZENDBURO'!$R$6:$R$150=\"\",ROW('Overzicht UITZENDBURO'!$R$6:$R$150)-ROW($R$6)+1)))),$C10)),\"\")","v":""},{"$f":"IFERROR(INDEX('Overzicht UITZENDBURO'!$Q$6:$Q$150,SMALL(IF('Overzicht UITZENDBURO'!$P$6:$P$150=$A10,IF('Overzicht UITZENDBURO'!$L$6:$L$150=E$2,IF('Overzicht UITZENDBURO'!$O$6:$O$150=E$4,IF('Overzicht UITZENDBURO'!$R$6:$R$150=\"\",ROW('Overzicht UITZENDBURO'!$R$6:$R$150)-ROW($R$6)+1)))),$C10)),\"\")","v":""},{"$f":"IFERROR(INDEX('Overzicht UITZENDBURO'!$Q$6:$Q$150,SMALL(IF('Overzicht UITZENDBURO'!$P$6:$P$150=$A10,IF('Overzicht UITZENDBURO'!$L$6:$L$150=F$2,IF('Overzicht UITZENDBURO'!$O$6:$O$150=F$4,IF('Overzicht UITZENDBURO'!$R$6:$R$150=\"\",ROW('Overzicht UITZENDBURO'!$R$6:$R$150)-ROW($R$6)+1)))),$C10)),\"\")","v":""},{"$f":"IFERROR(INDEX('Overzicht UITZENDBURO'!$Q$6:$Q$150,SMALL(IF('Overzicht UITZENDBURO'!$P$6:$P$150=$A10,IF('Overzicht UITZENDBURO'!$L$6:$L$150=G$2,IF('Overzicht UITZENDBURO'!$O$6:$O$150=G$4,IF('Overzicht UITZENDBURO'!$R$6:$R$150=\"\",ROW('Overzicht UITZENDBURO'!$R$6:$R$150)-ROW($R$6)+1)))),$C10)),\"\")","v":""},{"$f":"IFERROR(INDEX('Overzicht UITZENDBURO'!$Q$6:$Q$150,SMALL(IF('Overzicht UITZENDBURO'!$P$6:$P$150=$A10,IF('Overzicht UITZENDBURO'!$L$6:$L$150=H$2,IF('Overzicht UITZENDBURO'!$O$6:$O$150=H$4,IF('Overzicht UITZENDBURO'!$R$6:$R$150=\"\",ROW('Overzicht UITZENDBURO'!$R$6:$R$150)-ROW($R$6)+1)))),$C10)),\"\")","v":""},{"$f":"IFERROR(INDEX('Overzicht UITZENDBURO'!$Q$6:$Q$150,SMALL(IF('Overzicht UITZENDBURO'!$P$6:$P$150=$A10,IF('Overzicht UITZENDBURO'!$L$6:$L$150=I$2,IF('Overzicht UITZENDBURO'!$O$6:$O$150=I$4,IF('Overzicht UITZENDBURO'!$R$6:$R$150=\"\",ROW('Overzicht UITZENDBURO'!$R$6:$R$150)-ROW($R$6)+1)))),$C10)),\"\")","v":""},{"$f":"IFERROR(INDEX('Overzicht UITZENDBURO'!$Q$6:$Q$150,SMALL(IF('Overzicht UITZENDBURO'!$P$6:$P$150=$A10,IF('Overzicht UITZENDBURO'!$L$6:$L$150=J$2,IF('Overzicht UITZENDBURO'!$O$6:$O$150=J$4,IF('Overzicht UITZENDBURO'!$R$6:$R$150=\"\",ROW('Overzicht UITZENDBURO'!$R$6:$R$150)-ROW($R$6)+1)))),$C10)),\"\")","v":""},{"$f":"IFERROR(INDEX('Overzicht UITZENDBURO'!$Q$6:$Q$150,SMALL(IF('Overzicht UITZENDBURO'!$P$6:$P$150=$A10,IF('Overzicht UITZENDBURO'!$L$6:$L$150=K$2,IF('Overzicht UITZENDBURO'!$O$6:$O$150=K$4,IF('Overzicht UITZENDBURO'!$R$6:$R$150=\"\",ROW('Overzicht UITZENDBURO'!$R$6:$R$150)-ROW($R$6)+1)))),$C10)),\"\")","v":""},{"$f":"IFERROR(INDEX('Overzicht UITZENDBURO'!$Q$6:$Q$150,SMALL(IF('Overzicht UITZENDBURO'!$P$6:$P$150=$A10,IF('Overzicht UITZENDBURO'!$L$6:$L$150=L$2,IF('Overzicht UITZENDBURO'!$O$6:$O$150=L$4,IF('Overzicht UITZENDBURO'!$R$6:$R$150=\"\",ROW('Overzicht UITZENDBURO'!$R$6:$R$150)-ROW($R$6)+1)))),$C10)),\"\")","v":""},{"$f":"IFERROR(INDEX('Overzicht UITZENDBURO'!$Q$6:$Q$150,SMALL(IF('Overzicht UITZENDBURO'!$P$6:$P$150=$A10,IF('Overzicht UITZENDBURO'!$L$6:$L$150=M$2,IF('Overzicht UITZENDBURO'!$O$6:$O$150=M$4,IF('Overzicht UITZENDBURO'!$R$6:$R$150=\"\",ROW('Overzicht UITZENDBURO'!$R$6:$R$150)-ROW($R$6)+1)))),$C10)),\"\")","v":""},{"$f":"IFERROR(INDEX('Overzicht UITZENDBURO'!$Q$6:$Q$150,SMALL(IF('Overzicht UITZENDBURO'!$P$6:$P$150=$A10,IF('Overzicht UITZENDBURO'!$L$6:$L$150=N$2,IF('Overzicht UITZENDBURO'!$O$6:$O$150=N$4,IF('Overzicht UITZENDBURO'!$R$6:$R$150=\"\",ROW('Overzicht UITZENDBURO'!$R$6:$R$150)-ROW($R$6)+1)))),$C10)),\"\")","v":""},{"$f":"IFERROR(INDEX('Overzicht UITZENDBURO'!$Q$6:$Q$150,SMALL(IF('Overzicht UITZENDBURO'!$P$6:$P$150=$A10,IF('Overzicht UITZENDBURO'!$L$6:$L$150=O$2,IF('Overzicht UITZENDBURO'!$O$6:$O$150=O$4,IF('Overzicht UITZENDBURO'!$R$6:$R$150=\"\",ROW('Overzicht UITZENDBURO'!$R$6:$R$150)-ROW($R$6)+1)))),$C10)),\"\")","v":""},{"$f":"IFERROR(INDEX('Overzicht UITZENDBURO'!$Q$6:$Q$150,SMALL(IF('Overzicht UITZENDBURO'!$P$6:$P$150=$A10,IF('Overzicht UITZENDBURO'!$L$6:$L$150=P$2,IF('Overzicht UITZENDBURO'!$O$6:$O$150=P$4,IF('Overzicht UITZENDBURO'!$R$6:$R$150=\"\",ROW('Overzicht UITZENDBURO'!$R$6:$R$150)-ROW($R$6)+1)))),$C10)),\"\")","v":""},{"$f":"IFERROR(INDEX('Overzicht UITZENDBURO'!$Q$6:$Q$150,SMALL(IF('Overzicht UITZENDBURO'!$P$6:$P$150=$A10,IF('Overzicht UITZENDBURO'!$L$6:$L$150=Q$2,IF('Overzicht UITZENDBURO'!$O$6:$O$150=Q$4,IF('Overzicht UITZENDBURO'!$R$6:$R$150=\"\",ROW('Overzicht UITZENDBURO'!$R$6:$R$150)-ROW($R$6)+1)))),$C10)),\"\")","v":""},{"$f":"IFERROR(INDEX('Overzicht UITZENDBURO'!$Q$6:$Q$150,SMALL(IF('Overzicht UITZENDBURO'!$P$6:$P$150=$A10,IF('Overzicht UITZENDBURO'!$L$6:$L$150=R$2,IF('Overzicht UITZENDBURO'!$O$6:$O$150=R$4,IF('Overzicht UITZENDBURO'!$R$6:$R$150=\"\",ROW('Overzicht UITZENDBURO'!$R$6:$R$150)-ROW($R$6)+1)))),$C10)),\"\")","v":""},{"$f":"IFERROR(INDEX('Overzicht UITZENDBURO'!$Q$6:$Q$150,SMALL(IF('Overzicht UITZENDBURO'!$P$6:$P$150=$A10,IF('Overzicht UITZENDBURO'!$L$6:$L$150=S$2,IF('Overzicht UITZENDBURO'!$O$6:$O$150=S$4,IF('Overzicht UITZENDBURO'!$R$6:$R$150=\"\",ROW('Overzicht UITZENDBURO'!$R$6:$R$150)-ROW($R$6)+1)))),$C10)),\"\")","v":""},{"$f":"IFERROR(INDEX('Overzicht UITZENDBURO'!$Q$6:$Q$150,SMALL(IF('Overzicht UITZENDBURO'!$P$6:$P$150=$A10,IF('Overzicht UITZENDBURO'!$L$6:$L$150=T$2,IF('Overzicht UITZENDBURO'!$O$6:$O$150=T$4,IF('Overzicht UITZENDBURO'!$R$6:$R$150=\"\",ROW('Overzicht UITZENDBURO'!$R$6:$R$150)-ROW($R$6)+1)))),$C10)),\"\")","v":""},{"$f":"IFERROR(INDEX('Overzicht UITZENDBURO'!$Q$6:$Q$150,SMALL(IF('Overzicht UITZENDBURO'!$P$6:$P$150=$A10,IF('Overzicht UITZENDBURO'!$L$6:$L$150=U$2,IF('Overzicht UITZENDBURO'!$O$6:$O$150=U$4,IF('Overzicht UITZENDBURO'!$R$6:$R$150=\"\",ROW('Overzicht UITZENDBURO'!$R$6:$R$150)-ROW($R$6)+1)))),$C10)),\"\")","v":""},{"$f":"IFERROR(INDEX('Overzicht UITZENDBURO'!$Q$6:$Q$150,SMALL(IF('Overzicht UITZENDBURO'!$P$6:$P$150=$A10,IF('Overzicht UITZENDBURO'!$L$6:$L$150=V$2,IF('Overzicht UITZENDBURO'!$O$6:$O$150=V$4,IF('Overzicht UITZENDBURO'!$R$6:$R$150=\"\",ROW('Overzicht UITZENDBURO'!$R$6:$R$150)-ROW($R$6)+1)))),$C10)),\"\")","v":""},{"$f":"IFERROR(INDEX('Overzicht UITZENDBURO'!$Q$6:$Q$150,SMALL(IF('Overzicht UITZENDBURO'!$P$6:$P$150=$A10,IF('Overzicht UITZENDBURO'!$L$6:$L$150=W$2,IF('Overzicht UITZENDBURO'!$O$6:$O$150=W$4,IF('Overzicht UITZENDBURO'!$R$6:$R$150=\"\",ROW('Overzicht UITZENDBURO'!$R$6:$R$150)-ROW($R$6)+1)))),$C10)),\"\")","v":""},{"$f":"IFERROR(INDEX('Overzicht UITZENDBURO'!$Q$6:$Q$150,SMALL(IF('Overzicht UITZENDBURO'!$P$6:$P$150=$A10,IF('Overzicht UITZENDBURO'!$L$6:$L$150=X$2,IF('Overzicht UITZENDBURO'!$O$6:$O$150=X$4,IF('Overzicht UITZENDBURO'!$R$6:$R$150=\"\",ROW('Overzicht UITZENDBURO'!$R$6:$R$150)-ROW($R$6)+1)))),$C10)),\"\")","v":""}]
["AF",null,7,{"$f":"IFERROR(INDEX('Overzicht UITZENDBURO'!$Q$6:$Q$150,SMALL(IF('Overzicht UITZENDBURO'!$P$6:$P$150=$A11,IF('Overzicht UITZENDBURO'!$L$6:$L$150=D$2,IF('Overzicht UITZENDBURO'!$O$6:$O$150=D$4,IF('Overzicht UITZENDBURO'!$R$6:$R$150=\"\",ROW('Overzicht UITZENDBURO'!$R$6:$R$150)-ROW($R$6)+1)))),$C11)),\"\")","v":""},{"$f":"IFERROR(INDEX('Overzicht UITZENDBURO'!$Q$6:$Q$150,SMALL(IF('Overzicht UITZENDBURO'!$P$6:$P$150=$A11,IF('Overzicht UITZENDBURO'!$L$6:$L$150=E$2,IF('Overzicht UITZENDBURO'!$O$6:$O$150=E$4,IF('Overzicht UITZENDBURO'!$R$6:$R$150=\"\",ROW('Overzicht UITZENDBURO'!$R$6:$R$150)-ROW($R$6)+1)))),$C11)),\"\")","v":""},{"$f":"IFERROR(INDEX('Overzicht UITZENDBURO'!$Q$6:$Q$150,SMALL(IF('Overzicht UITZENDBURO'!$P$6:$P$150=$A11,IF('Overzicht UITZENDBURO'!$L$6:$L$150=F$2,IF('Overzicht UITZENDBURO'!$O$6:$O$150=F$4,IF('Overzicht UITZENDBURO'!$R$6:$R$150=\"\",ROW('Overzicht UITZENDBURO'!$R$6:$R$150)-ROW($R$6)+1)))),$C11)),\"\")","v":""},{"$f":"IFERROR(INDEX('Overzicht UITZENDBURO'!$Q$6:$Q$150,SMALL(IF('Overzicht UITZENDBURO'!$P$6:$P$150=$A11,IF('Overzicht UITZENDBURO'!$L$6:$L$150=G$2,IF('Overzicht UITZENDBURO'!$O$6:$O$150=G$4,IF('Overzicht UITZENDBURO'!$R$6:$R$150=\"\",ROW('Overzicht UITZENDBURO'!$R$6:$R$150)-ROW($R$6)+1)))),$C11)),\"\")","v":""},{"$f":"IFERROR(INDEX('Overzicht UITZENDBURO'!$Q$6:$Q$150,SMALL(IF('Overzicht UITZENDBURO'!$P$6:$P$150=$A11,IF('Overzicht UITZENDBURO'!$L$6:$L$150=H$2,IF('Overzicht UITZENDBURO'!$O$6:$O$150=H$4,IF('Overzicht UITZENDBURO'!$R$6:$R$150=\"\",ROW('Overzicht UITZENDBURO'!$R$6:$R$150)-ROW($R$6)+1)))),$C11)),\"\")","v":""},{"$f":"IFERROR(INDEX('Overzicht UITZENDBURO'!$Q$6:$Q$150,SMALL(IF('Overzicht UITZENDBURO'!$P$6:$P$150=$A11,IF('Overzicht UITZENDBURO'!$L$6:$L$150=I$2,IF('Overzicht UITZENDBURO'!$O$6:$O$150=I$4,IF('Overzicht UITZENDBURO'!$R$6:$R$150=\"\",ROW('Overzicht UITZENDBURO'!$R$6:$R$150)-ROW($R$6)+1)))),$C11)),\"\")","v":""},{"$f":"IFERROR(INDEX('Overzicht UITZENDBURO'!$Q$6:$Q$150,SMALL(IF('Overzicht UITZENDBURO'!$P$6:$P$150=$A11,IF('Overzicht UITZENDBURO'!$L$6:$L$150=J$2,IF('Overzicht UITZENDBURO'!$O$6:$O$150=J$4,IF('Overzicht UITZENDBURO'!$R$6:$R$150=\"\",ROW('Overzicht UITZENDBURO'!$R$6:$R$150)-ROW($R$6)+1)))),$C11)),\"\")","v":""},{"$f":"IFERROR(INDEX('Overzicht UITZENDBURO'!$Q$6:$Q$150,SMALL(IF('Overzicht UITZENDBURO'!$P$6:$P$150=$A11,IF('Overzicht UITZENDBURO'!$L$6:$L$150=K$2,IF('Overzicht UITZENDBURO'!$O$6:$O$150=K$4,IF('Overzicht UITZENDBURO'!$R$6:$R$150=\"\",ROW('Overzicht UITZENDBURO'!$R$6:$R$150)-ROW($R$6)+1)))),$C11)),\"\")","v":""},{"$f":"IFERROR(INDEX('Overzicht UITZENDBURO'!$Q$6:$Q$150,SMALL(IF('Overzicht UITZENDBURO'!$P$6:$P$150=$A11,IF('Overzicht UITZENDBURO'!$L$6:$L$150=L$2,IF('Overzicht UITZENDBURO'!$O$6:$O$150=L$4,IF('Overzicht UITZENDBURO'!$R$6:$R$150=\"\",ROW('Overzicht UITZENDBURO'!$R$6:$R$150)-ROW($R$6)+1)))),$C11)),\"\")","v":""},{"$f":"IFERROR(INDEX('Overzicht UITZENDBURO'!$Q$6:$Q$150,SMALL(IF('Overzicht UITZENDBURO'!$P$6:$P$150=$A11,IF('Overzicht UITZENDBURO'!$L$6:$L$150=M$2,IF('Overzicht UITZENDBURO'!$O$6:$O$150=M$4,IF('Overzicht UITZENDBURO'!$R$6:$R$150=\"\",ROW('Overzicht UITZENDBURO'!$R$6:$R$150)-ROW($R$6)+1)))),$C11)),\"\")","v":""},{"$f":"IFERROR(INDEX('Overzicht UITZENDBURO'!$Q$6:$Q$150,SMALL(IF('Overzicht UITZENDBURO'!$P$6:$P$150=$A11,IF('Overzicht UITZENDBURO'!$L$6:$L$150=N$2,IF('Overzicht UITZENDBURO'!$O$6:$O$150=N$4,IF('Overzicht UITZENDBURO'!$R$6:$R$150=\"\",ROW('Overzicht UITZENDBURO'!$R$6:$R$150)-ROW($R$6)+1)))),$C11)),\"\")","v":""},{"$f":"IFERROR(INDEX('Overzicht UITZENDBURO'!$Q$6:$Q$150,SMALL(IF('Overzicht UITZENDBURO'!$P$6:$P$150=$A11,IF('Overzicht UITZENDBURO'!$L$6:$L$150=O$2,IF('Overzicht UITZENDBURO'!$O$6:$O$150=O$4,IF('Overzicht UITZENDBURO'!$R$6:$R$150=\"\",ROW('Overzicht UITZENDBURO'!$R$6:$R$150)-ROW($R$6)+1)))),$C11)),\"\")","v":""},{"$f":"IFERROR(INDEX('Overzicht UITZENDBURO'!$Q$6:$Q$150,SMALL(IF('Overzicht UITZENDBURO'!$P$6:$P$150=$A11,IF('Overzicht UITZENDBURO'!$L$6:$L$150=P$2,IF('Overzicht UITZENDBURO'!$O$6:$O$150=P$4,IF('Overzicht UITZENDBURO'!$R$6:$R$150=\"\",ROW('Overzicht UITZENDBURO'!$R$6:$R$150)-ROW($R$6)+1)))),$C11)),\"\")","v":""},{"$f":"IFERROR(INDEX('Overzicht UITZENDBURO'!$Q$6:$Q$150,SMALL(IF('Overzicht UITZENDBURO'!$P$6:$P$150=$A11,IF('Overzicht UITZENDBURO'!$L$6:$L$150=Q$2,IF('Overzicht UITZENDBURO'!$O$6:$O$150=Q$4,IF('Overzicht UITZENDBURO'!$R$6:$R$150=\"\",ROW('Overzicht UITZENDBURO'!$R$6:$R$150)-ROW($R$6)+1)))),$C11)),\"\")","v":""},{"$f":"IFERROR(INDEX('Overzicht UITZENDBURO'!$Q$6:$Q$150,SMALL(IF('Overzicht UITZENDBURO'!$P$6:$P$150=$A11,IF('Overzicht UITZENDBURO'!$L$6:$L$150=R$2,IF('Overzicht UITZENDBURO'!$O$6:$O$150=R$4,IF('Overzicht UITZENDBURO'!$R$6:$R$150=\"\",ROW('Overzicht UITZENDBURO'!$R$6:$R$150)-ROW($R$6)+1)))),$C11)),\"\")","v":""},{"$f":"IFERROR(INDEX('Overzicht UITZENDBURO'!$Q$6:$Q$150,SMALL(IF('Overzicht UITZENDBURO'!$P$6:$P$150=$A11,IF('Overzicht UITZENDBURO'!$L$6:$L$150=S$2,IF('Overzicht UITZENDBURO'!$O$6:$O$150=S$4,IF('Overzicht UITZENDBURO'!$R$6:$R$150=\"\",ROW('Overzicht UITZENDBURO'!$R$6:$R$150)-ROW($R$6)+1)))),$C11)),\"\")","v":""},{"$f":"IFERROR(INDEX('Overzicht UITZENDBURO'!$Q$6:$Q$150,SMALL(IF('Overzicht UITZENDBURO'!$P$6:$P$150=$A11,IF('Overzicht UITZENDBURO'!$L$6:$L$150=T$2,IF('Overzicht UITZENDBURO'!$O$6:$O$150=T$4,IF('Overzicht UITZENDBURO'!$R$6:$R$150=\"\",ROW('Overzicht UITZENDBURO'!$R$6:$R$150)-ROW($R$6)+1)))),$C11)),\"\")","v":""},{"$f":"IFERROR(INDEX('Overzicht UITZENDBURO'!$Q$6:$Q$150,SMALL(IF('Overzicht UITZENDBURO'!$P$6:$P$150=$A11,IF('Overzicht UITZENDBURO'!$L$6:$L$150=U$2,IF('Overzicht UITZENDBURO'!$O$6:$O$150=U$4,IF('Overzicht UITZENDBURO'!$R$6:$R$150=\"\",ROW('Overzicht UITZENDBURO'!$R$6:$R$150)-ROW($R$6)+1)))),$C11)),\"\")","v":""},{"$f":"IFERROR(INDEX('Overzicht UITZENDBURO'!$Q$6:$Q$150,SMALL(IF('Overzicht UITZENDBURO'!$P$6:$P$150=$A11,IF('Overzicht UITZENDBURO'!$L$6:$L$150=V$2,IF('Overzicht UITZENDBURO'!$O$6:$O$150=V$4,IF('Overzicht UITZENDBURO'!$R$6:$R$150=\"\",ROW('Overzicht UITZENDBURO'!$R$6:$R$150)-ROW($R$6)+1)))),$C11)),\"\")","v":""},{"$f":"IFERROR(INDEX('Overzicht UITZENDBURO'!$Q$6:$Q$150,SMALL(IF('Overzicht UITZENDBURO'!$P$6:$P$150=$A11,IF('Overzicht UITZENDBURO'!$L$6:$L$150=W$2,IF('Overzicht UITZENDBURO'!$O$6:$O$150=W$4,IF('Overzicht UITZENDBURO'!$R$6:$R$150=\"\",ROW('Overzicht UITZENDBURO'!$R$6:$R$150)-ROW($R$6)+1)))),$C11)),\"\")","v":""},{"$f":"IFERROR(INDEX('Overzicht UITZENDBURO'!$Q$6:$Q$150,SMALL(IF('Overzicht UITZENDBURO'!$P$6:$P$150=$A11,IF('Overzicht UITZENDBURO'!$L$6:$L$150=X$2,IF('Overzicht UITZENDBURO'!$O$6:$O$150=X$4,IF('Overzicht UITZENDBURO'!$R$6:$R$150=\"\",ROW('Overzicht UITZENDBURO'!$R$6:$R$150)-ROW($R$6)+1)))),$C11)),\"\")","v":""}]
["AF",null,8,{"$f":"IFERROR(INDEX('Overzicht UITZENDBURO'!$Q$6:$Q$150,SMALL(IF('Overzicht UITZENDBURO'!$P$6:$P$150=$A12,IF('Overzicht UITZENDBURO'!$L$6:$L$150=D$2,IF('Overzicht UITZENDBURO'!$O$6:$O$150=D$4,IF('Overzicht UITZENDBURO'!$R$6:$R$150=\"\",ROW('Overzicht UITZENDBURO'!$R$6:$R$150)-ROW($R$6)+1)))),$C12)),\"\")","v":""},{"$f":"IFERROR(INDEX('Overzicht UITZENDBURO'!$Q$6:$Q$150,SMALL(IF('Overzicht UITZENDBURO'!$P$6:$P$150=$A12,IF('Overzicht UITZENDBURO'!$L$6:$L$150=E$2,IF('Overzicht UITZENDBURO'!$O$6:$O$150=E$4,IF('Overzicht UITZENDBURO'!$R$6:$R$150=\"\",ROW('Overzicht UITZENDBURO'!$R$6:$R$150)-ROW($R$6)+1)))),$C12)),\"\")","v":""},{"$f":"IFERROR(INDEX('Overzicht UITZENDBURO'!$Q$6:$Q$150,SMALL(IF('Overzicht UITZENDBURO'!$P$6:$P$150=$A12,IF('Overzicht UITZENDBURO'!$L$6:$L$150=F$2,IF('Overzicht UITZENDBURO'!$O$6:$O$150=F$4,IF('Overzicht UITZENDBURO'!$R$6:$R$150=\"\",ROW('Overzicht UITZENDBURO'!$R$6:$R$150)-ROW($R$6)+1)))),$C12)),\"\")","v":""},{"$f":"IFERROR(INDEX('Overzicht UITZENDBURO'!$Q$6:$Q$150,SMALL(IF('Overzicht UITZENDBURO'!$P$6:$P$150=$A12,IF('Overzicht UITZENDBURO'!$L$6:$L$150=G$2,IF('Overzicht UITZENDBURO'!$O$6:$O$150=G$4,IF('Overzicht UITZENDBURO'!$R$6:$R$150=\"\",ROW('Overzicht UITZENDBURO'!$R$6:$R$150)-ROW($R$6)+1)))),$C12)),\"\")","v":""},{"$f":"IFERROR(INDEX('Overzicht UITZENDBURO'!$Q$6:$Q$150,SMALL(IF('Overzicht UITZENDBURO'!$P$6:$P$150=$A12,IF('Overzicht UITZENDBURO'!$L$6:$L$150=H$2,IF('Overzicht UITZENDBURO'!$O$6:$O$150=H$4,IF('Overzicht UITZENDBURO'!$R$6:$R$150=\"\",ROW('Overzicht UITZENDBURO'!$R$6:$R$150)-ROW($R$6)+1)))),$C12)),\"\")","v":""},{"$f":"IFERROR(INDEX('Overzicht UITZENDBURO'!$Q$6:$Q$150,SMALL(IF('Overzicht UITZENDBURO'!$P$6:$P$150=$A12,IF('Overzicht UITZENDBURO'!$L$6:$L$150=I$2,IF('Overzicht UITZENDBURO'!$O$6:$O$150=I$4,IF('Overzicht UITZENDBURO'!$R$6:$R$150=\"\",ROW('Overzicht UITZENDBURO'!$R$6:$R$150)-ROW($R$6)+1)))),$C12)),\"\")","v":""},{"$f":"IFERROR(INDEX('Overzicht UITZENDBURO'!$Q$6:$Q$150,SMALL(IF('Overzicht UITZENDBURO'!$P$6:$P$150=$A12,IF('Overzicht UITZENDBURO'!$L$6:$L$150=J$2,IF('Overzicht UITZENDBURO'!$O$6:$O$150=J$4,IF('Overzicht UITZENDBURO'!$R$6:$R$150=\"\",ROW('Overzicht UITZENDBURO'!$R$6:$R$150)-ROW($R$6)+1)))),$C12)),\"\")","v":""},{"$f":"IFERROR(INDEX('Overzicht UITZENDBURO'!$Q$6:$Q$150,SMALL(IF('Overzicht UITZENDBURO'!$P$6:$P$150=$A12,IF('Overzicht UITZENDBURO'!$L$6:$L$150=K$2,IF('Overzicht UITZENDBURO'!$O$6:$O$150=K$4,IF('Overzicht UITZENDBURO'!$R$6:$R$150=\"\",ROW('Overzicht UITZENDBURO'!$R$6:$R$150)-ROW($R$6)+1)))),$C12)),\"\")","v":""},{"$f":"IFERROR(INDEX('Overzicht UITZENDBURO'!$Q$6:$Q$150,SMALL(IF('Overzicht UITZENDBURO'!$P$6:$P$150=$A12,IF('Overzicht UITZENDBURO'!$L$6:$L$150=L$2,IF('Overzicht UITZENDBURO'!$O$6:$O$150=L$4,IF('Overzicht UITZENDBURO'!$R$6:$R$150=\"\",ROW('Overzicht UITZENDBURO'!$R$6:$R$150)-ROW($R$6)+1)))),$C12)),\"\")","v":""},{"$f":"IFERROR(INDEX('Overzicht UITZENDBURO'!$Q$6:$Q$150,SMALL(IF('Overzicht UITZENDBURO'!$P$6:$P$150=$A12,IF('Overzicht UITZENDBURO'!$L$6:$L$150=M$2,IF('Overzicht UITZENDBURO'!$O$6:$O$150=M$4,IF('Overzicht UITZENDBURO'!$R$6:$R$150=\"\",ROW('Overzicht UITZENDBURO'!$R$6:$R$150)-ROW($R$6)+1)))),$C12)),\"\")","v":""},{"$f":"IFERROR(INDEX('Overzicht UITZENDBURO'!$Q$6:$Q$150,SMALL(IF('Overzicht UITZENDBURO'!$P$6:$P$150=$A12,IF('Overzicht UITZENDBURO'!$L$6:$L$150=N$2,IF('Overzicht UITZENDBURO'!$O$6:$O$150=N$4,IF('Overzicht UITZENDBURO'!$R$6:$R$150=\"\",ROW('Overzicht UITZENDBURO'!$R$6:$R$150)-ROW($R$6)+1)))),$C12)),\"\")","v":""},{"$f":"IFERROR(INDEX('Overzicht UITZENDBURO'!$Q$6:$Q$150,SMALL(IF('Overzicht UITZENDBURO'!$P$6:$P$150=$A12,IF('Overzicht UITZENDBURO'!$L$6:$L$150=O$2,IF('Overzicht UITZENDBURO'!$O$6:$O$150=O$4,IF('Overzicht UITZENDBURO'!$R$6:$R$150=\"\",ROW('Overzicht UITZENDBURO'!$R$6:$R$150)-ROW($R$6)+1)))),$C12)),\"\")","v":""},{"$f":"IFERROR(INDEX('Overzicht UITZENDBURO'!$Q$6:$Q$150,SMALL(IF('Overzicht UITZENDBURO'!$P$6:$P$150=$A12,IF('Overzicht UITZENDBURO'!$L$6:$L$150=P$2,IF('Overzicht UITZENDBURO'!$O$6:$O$150=P$4,IF('Overzicht UITZENDBURO'!$R$6:$R$150=\"\",ROW('Overzicht UITZENDBURO'!$R$6:$R$150)-ROW($R$6)+1)))),$C12)),\"\")","v":""},{"$f":"IFERROR(INDEX('Overzicht UITZENDBURO'!$Q$6:$Q$150,SMALL(IF('Overzicht UITZENDBURO'!$P$6:$P$150=$A12,IF('Overzicht UITZENDBURO'!$L$6:$L$150=Q$2,IF('Overzicht UITZENDBURO'!$O$6:$O$150=Q$4,IF('Overzicht UITZENDBURO'!$R$6:$R$150=\"\",ROW('Overzicht UITZENDBURO'!$R$6:$R$150)-ROW($R$6)+1)))),$C12)),\"\")","v":""},{"$f":"IFERROR(INDEX('Overzicht UITZENDBURO'!$Q$6:$Q$150,SMALL(IF('Overzicht UITZENDBURO'!$P$6:$P$150=$A12,IF('Overzicht UITZENDBURO'!$L$6:$L$150=R$2,IF('Overzicht UITZENDBURO'!$O$6:$O$150=R$4,IF('Overzicht UITZENDBURO'!$R$6:$R$150=\"\",ROW('Overzicht UITZENDBURO'!$R$6:$R$150)-ROW($R$6)+1)))),$C12)),\"\")","v":""},{"$f":"IFERROR(INDEX('Overzicht UITZENDBURO'!$Q$6:$Q$150,SMALL(IF('Overzicht UITZENDBURO'!$P$6:$P$150=$A12,IF('Overzicht UITZENDBURO'!$L$6:$L$150=S$2,IF('Overzicht UITZENDBURO'!$O$6:$O$150=S$4,IF('Overzicht UITZENDBURO'!$R$6:$R$150=\"\",ROW('Overzicht UITZENDBURO'!$R$6:$R$150)-ROW($R$6)+1)))),$C12)),\"\")","v":""},{"$f":"IFERROR(INDEX('Overzicht UITZENDBURO'!$Q$6:$Q$150,SMALL(IF('Overzicht UITZENDBURO'!$P$6:$P$150=$A12,IF('Overzicht UITZENDBURO'!$L$6:$L$150=T$2,IF('Overzicht UITZENDBURO'!$O$6:$O$150=T$4,IF('Overzicht UITZENDBURO'!$R$6:$R$150=\"\",ROW('Overzicht UITZENDBURO'!$R$6:$R$150)-ROW($R$6)+1)))),$C12)),\"\")","v":""},{"$f":"IFERROR(INDEX('Overzicht UITZENDBURO'!$Q$6:$Q$150,SMALL(IF('Overzicht UITZENDBURO'!$P$6:$P$150=$A12,IF('Overzicht UITZENDBURO'!$L$6:$L$150=U$2,IF('Overzicht UITZENDBURO'!$O$6:$O$150=U$4,IF('Overzicht UITZENDBURO'!$R$6:$R$150=\"\",ROW('Overzicht UITZENDBURO'!$R$6:$R$150)-ROW($R$6)+1)))),$C12)),\"\")","v":""},{"$f":"IFERROR(INDEX('Overzicht UITZENDBURO'!$Q$6:$Q$150,SMALL(IF('Overzicht UITZENDBURO'!$P$6:$P$150=$A12,IF('Overzicht UITZENDBURO'!$L$6:$L$150=V$2,IF('Overzicht UITZENDBURO'!$O$6:$O$150=V$4,IF('Overzicht UITZENDBURO'!$R$6:$R$150=\"\",ROW('Overzicht UITZENDBURO'!$R$6:$R$150)-ROW($R$6)+1)))),$C12)),\"\")","v":""},{"$f":"IFERROR(INDEX('Overzicht UITZENDBURO'!$Q$6:$Q$150,SMALL(IF('Overzicht UITZENDBURO'!$P$6:$P$150=$A12,IF('Overzicht UITZENDBURO'!$L$6:$L$150=W$2,IF('Overzicht UITZENDBURO'!$O$6:$O$150=W$4,IF('Overzicht UITZENDBURO'!$R$6:$R$150=\"\",ROW('Overzicht UITZENDBURO'!$R$6:$R$150)-ROW($R$6)+1)))),$C12)),\"\")","v":""},{"$f":"IFERROR(INDEX('Overzicht UITZENDBURO'!$Q$6:$Q$150,SMALL(IF('Overzicht UITZENDBURO'!$P$6:$P$150=$A12,IF('Overzicht UITZENDBURO'!$L$6:$L$150=X$2,IF('Overzicht UITZENDBURO'!$O$6:$O$150=X$4,IF('Overzicht UITZENDBURO'!$R$6:$R$150=\"\",ROW('Overzicht UITZENDBURO'!$R$6:$R$150)-ROW($R$6)+1)))),$C12)),\"\")","v":""}]
["SCHM",null,1,{"$f":"IFERROR(INDEX('Overzicht UITZENDBURO'!$Q$6:$Q$150,SMALL(IF('Overzicht UITZENDBURO'!$P$6:$P$150=$A13,IF('Overzicht UITZENDBURO'!$L$6:$L$150=D$2,IF('Overzicht UITZENDBURO'!$O$6:$O$150=D$4,IF('Overzicht UITZENDBURO'!$R$6:$R$150=\"\",ROW('Overzicht UITZENDBURO'!$R$6:$R$150)-ROW($R$6)+1)))),$C13)),\"\")","v":""},{"$f":"IFERROR(INDEX('Overzicht UITZENDBURO'!$Q$6:$Q$150,SMALL(IF('Overzicht UITZENDBURO'!$P$6:$P$150=$A13,IF('Overzicht UITZENDBURO'!$L$6:$L$150=E$2,IF('Overzicht UITZENDBURO'!$O$6:$O$150=E$4,IF('Overzicht UITZENDBURO'!$R$6:$R$150=\"\",ROW('Overzicht UITZENDBURO'!$R$6:$R$150)-ROW($R$6)+1)))),$C13)),\"\")","v":""},{"$f":"IFERROR(INDEX('Overzicht UITZENDBURO'!$Q$6:$Q$150,SMALL(IF('Overzicht UITZENDBURO'!$P$6:$P$150=$A13,IF('Overzicht UITZENDBURO'!$L$6:$L$150=F$2,IF('Overzicht UITZENDBURO'!$O$6:$O$150=F$4,IF('Overzicht UITZENDBURO'!$R$6:$R$150=\"\",ROW('Overzicht UITZENDBURO'!$R$6:$R$150)-ROW($R$6)+1)))),$C13)),\"\")","v":""},{"$f":"IFERROR(INDEX('Overzicht UITZENDBURO'!$Q$6:$Q$150,SMALL(IF('Overzicht UITZENDBURO'!$P$6:$P$150=$A13,IF('Overzicht UITZENDBURO'!$L$6:$L$150=G$2,IF('Overzicht UITZENDBURO'!$O$6:$O$150=G$4,IF('Overzicht UITZENDBURO'!$R$6:$R$150=\"\",ROW('Overzicht UITZENDBURO'!$R$6:$R$150)-ROW($R$6)+1)))),$C13)),\"\")","v":""},{"$f":"IFERROR(INDEX('Overzicht UITZENDBURO'!$Q$6:$Q$150,SMALL(IF('Overzicht UITZENDBURO'!$P$6:$P$150=$A13,IF('Overzicht UITZENDBURO'!$L$6:$L$150=H$2,IF('Overzicht UITZENDBURO'!$O$6:$O$150=H$4,IF('Overzicht UITZENDBURO'!$R$6:$R$150=\"\",ROW('Overzicht UITZENDBURO'!$R$6:$R$150)-ROW($R$6)+1)))),$C13)),\"\")","v":""},{"$f":"IFERROR(INDEX('Overzicht UITZENDBURO'!$Q$6:$Q$150,SMALL(IF('Overzicht UITZENDBURO'!$P$6:$P$150=$A13,IF('Overzicht UITZENDBURO'!$L$6:$L$150=I$2,IF('Overzicht UITZENDBURO'!$O$6:$O$150=I$4,IF('Overzicht UITZENDBURO'!$R$6:$R$150=\"\",ROW('Overzicht UITZENDBURO'!$R$6:$R$150)-ROW($R$6)+1)))),$C13)),\"\")","v":"Willemein"},{"$f":"IFERROR(INDEX('Overzicht UITZENDBURO'!$Q$6:$Q$150,SMALL(IF('Overzicht UITZENDBURO'!$P$6:$P$150=$A13,IF('Overzicht UITZENDBURO'!$L$6:$L$150=J$2,IF('Overzicht UITZENDBURO'!$O$6:$O$150=J$4,IF('Overzicht UITZENDBURO'!$R$6:$R$150=\"\",ROW('Overzicht UITZENDBURO'!$R$6:$R$150)-ROW($R$6)+1)))),$C13)),\"\")","v":""},{"$f":"IFERROR(INDEX('Overzicht UITZENDBURO'!$Q$6:$Q$150,SMALL(IF('Overzicht UITZENDBURO'!$P$6:$P$150=$A13,IF('Overzicht UITZENDBURO'!$L$6:$L$150=K$2,IF('Overzicht UITZENDBURO'!$O$6:$O$150=K$4,IF('Overzicht UITZENDBURO'!$R$6:$R$150=\"\",ROW('Overzicht UITZENDBURO'!$R$6:$R$150)-ROW($R$6)+1)))),$C13)),\"\")","v":""},{"$f":"IFERROR(INDEX('Overzicht UITZENDBURO'!$Q$6:$Q$150,SMALL(IF('Overzicht UITZENDBURO'!$P$6:$P$150=$A13,IF('Overzicht UITZENDBURO'!$L$6:$L$150=L$2,IF('Overzicht UITZENDBURO'!$O$6:$O$150=L$4,IF('Overzicht UITZENDBURO'!$R$6:$R$150=\"\",ROW('Overzicht UITZENDBURO'!$R$6:$R$150)-ROW($R$6)+1)))),$C13)),\"\")","v":""},{"$f":"IFERROR(INDEX('Overzicht UITZENDBURO'!$Q$6:$Q$150,SMALL(IF('Overzicht UITZENDBURO'!$P$6:$P$150=$A13,IF('Overzicht UITZENDBURO'!$L$6:$L$150=M$2,IF('Overzicht UITZENDBURO'!$O$6:$O$150=M$4,IF('Overzicht UITZENDBURO'!$R$6:$R$150=\"\",ROW('Overzicht UITZENDBURO'!$R$6:$R$150)-ROW($R$6)+1)))),$C13)),\"\")","v":"Tuur"},{"$f":"IFERROR(INDEX('Overzicht UITZENDBURO'!$Q$6:$Q$150,SMALL(IF('Overzicht UITZENDBURO'!$P$6:$P$150=$A13,IF('Overzicht UITZENDBURO'!$L$6:$L$150=N$2,IF('Overzicht UITZENDBURO'!$O$6:$O$150=N$4,IF('Overzicht UITZENDBURO'!$R$6:$R$150=\"\",ROW('Overzicht UITZENDBURO'!$R$6:$R$150)-ROW($R$6)+1)))),$C13)),\"\")","v":""},{"$f":"IFERROR(INDEX('Overzicht UITZENDBURO'!$Q$6:$Q$150,SMALL(IF('Overzicht UITZENDBURO'!$P$6:$P$150=$A13,IF('Overzicht UITZENDBURO'!$L$6:$L$150=O$2,IF('Overzicht UITZENDBURO'!$O$6:$O$150=O$4,IF('Overzicht UITZENDBURO'!$R$6:$R$150=\"\",ROW('Overzicht UITZENDBURO'!$R$6:$R$150)-ROW($R$6)+1)))),$C13)),\"\")","v":""},{"$f":"IFERROR(INDEX('Overzicht UITZENDBURO'!$Q$6:$Q$150,SMALL(IF('Overzicht UITZENDBURO'!$P$6:$P$150=$A13,IF('Overzicht UITZENDBURO'!$L$6:$L$150=P$2,IF('Overzicht UITZENDBURO'!$O$6:$O$150=P$4,IF('Overzicht UITZENDBURO'!$R$6:$R$150=\"\",ROW('Overzicht UITZENDBURO'!$R$6:$R$150)-ROW($R$6)+1)))),$C13)),\"\")","v":""},{"$f":"IFERROR(INDEX('Overzicht UITZENDBURO'!$Q$6:$Q$150,SMALL(IF('Overzicht UITZENDBURO'!$P$6:$P$150=$A13,IF('Overzicht UITZENDBURO'!$L$6:$L$150=Q$2,IF('Overzicht UITZENDBURO'!$O$6:$O$150=Q$4,IF('Overzicht UITZENDBURO'!$R$6:$R$150=\"\",ROW('Overzicht UITZENDBURO'!$R$6:$R$150)-ROW($R$6)+1)))),$C13)),\"\")","v":""},{"$f":"IFERROR(INDEX('Overzicht UITZENDBURO'!$Q$6:$Q$150,SMALL(IF('Overzicht UITZENDBURO'!$P$6:$P$150=$A13,IF('Overzicht UITZENDBURO'!$L$6:$L$150=R$2,IF('Overzicht UITZENDBURO'!$O$6:$O$150=R$4,IF('Overzicht UITZENDBURO'!$R$6:$R$150=\"\",ROW('Overzicht UITZENDBURO'!$R$6:$R$150)-ROW($R$6)+1)))),$C13)),\"\")","v":""},{"$f":"IFERROR(INDEX('Overzicht UITZENDBURO'!$Q$6:$Q$150,SMALL(IF('Overzicht UITZENDBURO'!$P$6:$P$150=$A13,IF('Overzicht UITZENDBURO'!$L$6:$L$150=S$2,IF('Overzicht UITZENDBURO'!$O$6:$O$150=S$4,IF('Overzicht UITZENDBURO'!$R$6:$R$150=\"\",ROW('Overzicht UITZENDBURO'!$R$6:$R$150)-ROW($R$6)+1)))),$C13)),\"\")","v":""},{"$f":"IFERROR(INDEX('Overzicht UITZENDBURO'!$Q$6:$Q$150,SMALL(IF('Overzicht UITZENDBURO'!$P$6:$P$150=$A13,IF('Overzicht UITZENDBURO'!$L$6:$L$150=T$2,IF('Overzicht UITZENDBURO'!$O$6:$O$150=T$4,IF('Overzicht UITZENDBURO'!$R$6:$R$150=\"\",ROW('Overzicht UITZENDBURO'!$R$6:$R$150)-ROW($R$6)+1)))),$C13)),\"\")","v":""},{"$f":"IFERROR(INDEX('Overzicht UITZENDBURO'!$Q$6:$Q$150,SMALL(IF('Overzicht UITZENDBURO'!$P$6:$P$150=$A13,IF('Overzicht UITZENDBURO'!$L$6:$L$150=U$2,IF('Overzicht UITZENDBURO'!$O$6:$O$150=U$4,IF('Overzicht UITZENDBURO'!$R$6:$R$150=\"\",ROW('Overzicht UITZENDBURO'!$R$6:$R$150)-ROW($R$6)+1)))),$C13)),\"\")","v":""},{"$f":"IFERROR(INDEX('Overzicht UITZENDBURO'!$Q$6:$Q$150,SMALL(IF('Overzicht UITZENDBURO'!$P$6:$P$150=$A13,IF('Overzicht UITZENDBURO'!$L$6:$L$150=V$2,IF('Overzicht UITZENDBURO'!$O$6:$O$150=V$4,IF('Overzicht UITZENDBURO'!$R$6:$R$150=\"\",ROW('Overzicht UITZENDBURO'!$R$6:$R$150)-ROW($R$6)+1)))),$C13)),\"\")","v":""},{"$f":"IFERROR(INDEX('Overzicht UITZENDBURO'!$Q$6:$Q$150,SMALL(IF('Overzicht UITZENDBURO'!$P$6:$P$150=$A13,IF('Overzicht UITZENDBURO'!$L$6:$L$150=W$2,IF('Overzicht UITZENDBURO'!$O$6:$O$150=W$4,IF('Overzicht UITZENDBURO'!$R$6:$R$150=\"\",ROW('Overzicht UITZENDBURO'!$R$6:$R$150)-ROW($R$6)+1)))),$C13)),\"\")","v":""},{"$f":"IFERROR(INDEX('Overzicht UITZENDBURO'!$Q$6:$Q$150,SMALL(IF('Overzicht UITZENDBURO'!$P$6:$P$150=$A13,IF('Overzicht UITZENDBURO'!$L$6:$L$150=X$2,IF('Overzicht UITZENDBURO'!$O$6:$O$150=X$4,IF('Overzicht UITZENDBURO'!$R$6:$R$150=\"\",ROW('Overzicht UITZENDBURO'!$R$6:$R$150)-ROW($R$6)+1)))),$C13)),\"\")","v":""}]
["SCHM",null,2,{"$f":"IFERROR(INDEX('Overzicht UITZENDBURO'!$Q$6:$Q$150,SMALL(IF('Overzicht UITZENDBURO'!$P$6:$P$150=$A14,IF('Overzicht UITZENDBURO'!$L$6:$L$150=D$2,IF('Overzicht UITZENDBURO'!$O$6:$O$150=D$4,IF('Overzicht UITZENDBURO'!$R$6:$R$150=\"\",ROW('Overzicht UITZENDBURO'!$R$6:$R$150)-ROW($R$6)+1)))),$C14)),\"\")","v":""},{"$f":"IFERROR(INDEX('Overzicht UITZENDBURO'!$Q$6:$Q$150,SMALL(IF('Overzicht UITZENDBURO'!$P$6:$P$150=$A14,IF('Overzicht UITZENDBURO'!$L$6:$L$150=E$2,IF('Overzicht UITZENDBURO'!$O$6:$O$150=E$4,IF('Overzicht UITZENDBURO'!$R$6:$R$150=\"\",ROW('Overzicht UITZENDBURO'!$R$6:$R$150)-ROW($R$6)+1)))),$C14)),\"\")","v":""},{"$f":"IFERROR(INDEX('Overzicht UITZENDBURO'!$Q$6:$Q$150,SMALL(IF('Overzicht UITZENDBURO'!$P$6:$P$150=$A14,IF('Overzicht UITZENDBURO'!$L$6:$L$150=F$2,IF('Overzicht UITZENDBURO'!$O$6:$O$150=F$4,IF('Overzicht UITZENDBURO'!$R$6:$R$150=\"\",ROW('Overzicht UITZENDBURO'!$R$6:$R$150)-ROW($R$6)+1)))),$C14)),\"\")","v":""},{"$f":"IFERROR(INDEX('Overzicht UITZENDBURO'!$Q$6:$Q$150,SMALL(IF('Overzicht UITZENDBURO'!$P$6:$P$150=$A14,IF('Overzicht UITZENDBURO'!$L$6:$L$150=G$2,IF('Overzicht UITZENDBURO'!$O$6:$O$150=G$4,IF('Overzicht UITZENDBURO'!$R$6:$R$150=\"\",ROW('Overzicht UITZENDBURO'!$R$6:$R$150)-ROW($R$6)+1)))),$C14)),\"\")","v":""},{"$f":"IFERROR(INDEX('Overzicht UITZENDBURO'!$Q$6:$Q$150,SMALL(IF('Overzicht UITZENDBURO'!$P$6:$P$150=$A14,IF('Overzicht UITZENDBURO'!$L$6:$L$150=H$2,IF('Overzicht UITZENDBURO'!$O$6:$O$150=H$4,IF('Overzicht UITZENDBURO'!$R$6:$R$150=\"\",ROW('Overzicht UITZENDBURO'!$R$6:$R$150)-ROW($R$6)+1)))),$C14)),\"\")","v":""},{"$f":"IFERROR(INDEX('Overzicht UITZENDBURO'!$Q$6:$Q$150,SMALL(IF('Overzicht UITZENDBURO'!$P$6:$P$150=$A14,IF('Overzicht UITZENDBURO'!$L$6:$L$150=I$2,IF('Overzicht UITZENDBURO'!$O$6:$O$150=I$4,IF('Overzicht UITZENDBURO'!$R$6:$R$150=\"\",ROW('Overzicht UITZENDBURO'!$R$6:$R$150)-ROW($R$6)+1)))),$C14)),\"\")","v":""},{"$f":"IFERROR(INDEX('Overzicht UITZENDBURO'!$Q$6:$Q$150,SMALL(IF('Overzicht UITZENDBURO'!$P$6:$P$150=$A14,IF('Overzicht UITZENDBURO'!$L$6:$L$150=J$2,IF('Overzicht UITZENDBURO'!$O$6:$O$150=J$4,IF('Overzicht UITZENDBURO'!$R$6:$R$150=\"\",ROW('Overzicht UITZENDBURO'!$R$6:$R$150)-ROW($R$6)+1)))),$C14)),\"\")","v":""},{"$f":"IFERROR(INDEX('Overzicht UITZENDBURO'!$Q$6:$Q$150,SMALL(IF('Overzicht UITZENDBURO'!$P$6:$P$150=$A14,IF('Overzicht UITZENDBURO'!$L$6:$L$150=K$2,IF('Overzicht UITZENDBURO'!$O$6:$O$150=K$4,IF('Overzicht UITZENDBURO'!$R$6:$R$150=\"\",ROW('Overzicht UITZENDBURO'!$R$6:$R$150)-ROW($R$6)+1)))),$C14)),\"\")","v":""},{"$f":"IFERROR(INDEX('Overzicht UITZENDBURO'!$Q$6:$Q$150,SMALL(IF('Overzicht UITZENDBURO'!$P$6:$P$150=$A14,IF('Overzicht UITZENDBURO'!$L$6:$L$150=L$2,IF('Overzicht UITZENDBURO'!$O$6:$O$150=L$4,IF('Overzicht UITZENDBURO'!$R$6:$R$150=\"\",ROW('Overzicht UITZENDBURO'!$R$6:$R$150)-ROW($R$6)+1)))),$C14)),\"\")","v":""},{"$f":"IFERROR(INDEX('Overzicht UITZENDBURO'!$Q$6:$Q$150,SMALL(IF('Overzicht UITZENDBURO'!$P$6:$P$150=$A14,IF('Overzicht UITZENDBURO'!$L$6:$L$150=M$2,IF('Overzicht UITZENDBURO'!$O$6:$O$150=M$4,IF('Overzicht UITZENDBURO'!$R$6:$R$150=\"\",ROW('Overzicht UITZENDBURO'!$R$6:$R$150)-ROW($R$6)+1)))),$C14)),\"\")","v":""},{"$f":"IFERROR(INDEX('Overzicht UITZENDBURO'!$Q$6:$Q$150,SMALL(IF('Overzicht UITZENDBURO'!$P$6:$P$150=$A14,IF('Overzicht UITZENDBURO'!$L$6:$L$150=N$2,IF('Overzicht UITZENDBURO'!$O$6:$O$150=N$4,IF('Overzicht UITZENDBURO'!$R$6:$R$150=\"\",ROW('Overzicht UITZENDBURO'!$R$6:$R$150)-ROW($R$6)+1)))),$C14)),\"\")","v":""},{"$f":"IFERROR(INDEX('Overzicht UITZENDBURO'!$Q$6:$Q$150,SMALL(IF('Overzicht UITZENDBURO'!$P$6:$P$150=$A14,IF('Overzicht UITZENDBURO'!$L$6:$L$150=O$2,IF('Overzicht UITZENDBURO'!$O$6:$O$150=O$4,IF('Overzicht UITZENDBURO'!$R$6:$R$150=\"\",ROW('Overzicht UITZENDBURO'!$R$6:$R$150)-ROW($R$6)+1)))),$C14)),\"\")","v":""},{"$f":"IFERROR(INDEX('Overzicht UITZENDBURO'!$Q$6:$Q$150,SMALL(IF('Overzicht UITZENDBURO'!$P$6:$P$150=$A14,IF('Overzicht UITZENDBURO'!$L$6:$L$150=P$2,IF('Overzicht UITZENDBURO'!$O$6:$O$150=P$4,IF('Overzicht UITZENDBURO'!$R$6:$R$150=\"\",ROW('Overzicht UITZENDBURO'!$R$6:$R$150)-ROW($R$6)+1)))),$C14)),\"\")","v":""},{"$f":"IFERROR(INDEX('Overzicht UITZENDBURO'!$Q$6:$Q$150,SMALL(IF('Overzicht UITZENDBURO'!$P$6:$P$150=$A14,IF('Overzicht UITZENDBURO'!$L$6:$L$150=Q$2,IF('Overzicht UITZENDBURO'!$O$6:$O$150=Q$4,IF('Overzicht UITZENDBURO'!$R$6:$R$150=\"\",ROW('Overzicht UITZENDBURO'!$R$6:$R$150)-ROW($R$6)+1)))),$C14)),\"\")","v":""},{"$f":"IFERROR(INDEX('Overzicht UITZENDBURO'!$Q$6:$Q$150,SMALL(IF('Overzicht UITZENDBURO'!$P$6:$P$150=$A14,IF('Overzicht UITZENDBURO'!$L$6:$L$150=R$2,IF('Overzicht UITZENDBURO'!$O$6:$O$150=R$4,IF('Overzicht UITZENDBURO'!$R$6:$R$150=\"\",ROW('Overzicht UITZENDBURO'!$R$6:$R$150)-ROW($R$6)+1)))),$C14)),\"\")","v":""},{"$f":"IFERROR(INDEX('Overzicht UITZENDBURO'!$Q$6:$Q$150,SMALL(IF('Overzicht UITZENDBURO'!$P$6:$P$150=$A14,IF('Overzicht UITZENDBURO'!$L$6:$L$150=S$2,IF('Overzicht UITZENDBURO'!$O$6:$O$150=S$4,IF('Overzicht UITZENDBURO'!$R$6:$R$150=\"\",ROW('Overzicht UITZENDBURO'!$R$6:$R$150)-ROW($R$6)+1)))),$C14)),\"\")","v":""},{"$f":"IFERROR(INDEX('Overzicht UITZENDBURO'!$Q$6:$Q$150,SMALL(IF('Overzicht UITZENDBURO'!$P$6:$P$150=$A14,IF('Overzicht UITZENDBURO'!$L$6:$L$150=T$2,IF('Overzicht UITZENDBURO'!$O$6:$O$150=T$4,IF('Overzicht UITZENDBURO'!$R$6:$R$150=\"\",ROW('Overzicht UITZENDBURO'!$R$6:$R$150)-ROW($R$6)+1)))),$C14)),\"\")","v":""},{"$f":"IFERROR(INDEX('Overzicht UITZENDBURO'!$Q$6:$Q$150,SMALL(IF('Overzicht UITZENDBURO'!$P$6:$P$150=$A14,IF('Overzicht UITZENDBURO'!$L$6:$L$150=U$2,IF('Overzicht UITZENDBURO'!$O$6:$O$150=U$4,IF('Overzicht UITZENDBURO'!$R$6:$R$150=\"\",ROW('Overzicht UITZENDBURO'!$R$6:$R$150)-ROW($R$6)+1)))),$C14)),\"\")","v":""},{"$f":"IFERROR(INDEX('Overzicht UITZENDBURO'!$Q$6:$Q$150,SMALL(IF('Overzicht UITZENDBURO'!$P$6:$P$150=$A14,IF('Overzicht UITZENDBURO'!$L$6:$L$150=V$2,IF('Overzicht UITZENDBURO'!$O$6:$O$150=V$4,IF('Overzicht UITZENDBURO'!$R$6:$R$150=\"\",ROW('Overzicht UITZENDBURO'!$R$6:$R$150)-ROW($R$6)+1)))),$C14)),\"\")","v":""},{"$f":"IFERROR(INDEX('Overzicht UITZENDBURO'!$Q$6:$Q$150,SMALL(IF('Overzicht UITZENDBURO'!$P$6:$P$150=$A14,IF('Overzicht UITZENDBURO'!$L$6:$L$150=W$2,IF('Overzicht UITZENDBURO'!$O$6:$O$150=W$4,IF('Overzicht UITZENDBURO'!$R$6:$R$150=\"\",ROW('Overzicht UITZENDBURO'!$R$6:$R$150)-ROW($R$6)+1)))),$C14)),\"\")","v":""},{"$f":"IFERROR(INDEX('Overzicht UITZENDBURO'!$Q$6:$Q$150,SMALL(IF('Overzicht UITZENDBURO'!$P$6:$P$150=$A14,IF('Overzicht UITZENDBURO'!$L$6:$L$150=X$2,IF('Overzicht UITZENDBURO'!$O$6:$O$150=X$4,IF('Overzicht UITZENDBURO'!$R$6:$R$150=\"\",ROW('Overzicht UITZENDBURO'!$R$6:$R$150)-ROW($R$6)+1)))),$C14)),\"\")","v":""}]
["SCHM",null,3,{"$f":"IFERROR(INDEX('Overzicht UITZENDBURO'!$Q$6:$Q$150,SMALL(IF('Overzicht UITZENDBURO'!$P$6:$P$150=$A15,IF('Overzicht UITZENDBURO'!$L$6:$L$150=D$2,IF('Overzicht UITZENDBURO'!$O$6:$O$150=D$4,IF('Overzicht UITZENDBURO'!$R$6:$R$150=\"\",ROW('Overzicht UITZENDBURO'!$R$6:$R$150)-ROW($R$6)+1)))),$C15)),\"\")","v":""},{"$f":"IFERROR(INDEX('Overzicht UITZENDBURO'!$Q$6:$Q$150,SMALL(IF('Overzicht UITZENDBURO'!$P$6:$P$150=$A15,IF('Overzicht UITZENDBURO'!$L$6:$L$150=E$2,IF('Overzicht UITZENDBURO'!$O$6:$O$150=E$4,IF('Overzicht UITZENDBURO'!$R$6:$R$150=\"\",ROW('Overzicht UITZENDBURO'!$R$6:$R$150)-ROW($R$6)+1)))),$C15)),\"\")","v":""},{"$f":"IFERROR(INDEX('Overzicht UITZENDBURO'!$Q$6:$Q$150,SMALL(IF('Overzicht UITZENDBURO'!$P$6:$P$150=$A15,IF('Overzicht UITZENDBURO'!$L$6:$L$150=F$2,IF('Overzicht UITZENDBURO'!$O$6:$O$150=F$4,IF('Overzicht UITZENDBURO'!$R$6:$R$150=\"\",ROW('Overzicht UITZENDBURO'!$R$6:$R$150)-ROW($R$6)+1)))),$C15)),\"\")","v":""},{"$f":"IFERROR(INDEX('Overzicht UITZENDBURO'!$Q$6:$Q$150,SMALL(IF('Overzicht UITZENDBURO'!$P$6:$P$150=$A15,IF('Overzicht UITZENDBURO'!$L$6:$L$150=G$2,IF('Overzicht UITZENDBURO'!$O$6:$O$150=G$4,IF('Overzicht UITZENDBURO'!$R$6:$R$150=\"\",ROW('Overzicht UITZENDBURO'!$R$6:$R$150)-ROW($R$6)+1)))),$C15)),\"\")","v":""},{"$f":"IFERROR(INDEX('Overzicht UITZENDBURO'!$Q$6:$Q$150,SMALL(IF('Overzicht UITZENDBURO'!$P$6:$P$150=$A15,IF('Overzicht UITZENDBURO'!$L$6:$L$150=H$2,IF('Overzicht UITZENDBURO'!$O$6:$O$150=H$4,IF('Overzicht UITZENDBURO'!$R$6:$R$150=\"\",ROW('Overzicht UITZENDBURO'!$R$6:$R$150)-ROW($R$6)+1)))),$C15)),\"\")","v":""},{"$f":"IFERROR(INDEX('Overzicht UITZENDBURO'!$Q$6:$Q$150,SMALL(IF('Overzicht UITZENDBURO'!$P$6:$P$150=$A15,IF('Overzicht UITZENDBURO'!$L$6:$L$150=I$2,IF('Overzicht UITZENDBURO'!$O$6:$O$150=I$4,IF('Overzicht UITZENDBURO'!$R$6:$R$150=\"\",ROW('Overzicht UITZENDBURO'!$R$6:$R$150)-ROW($R$6)+1)))),$C15)),\"\")","v":""},{"$f":"IFERROR(INDEX('Overzicht UITZENDBURO'!$Q$6:$Q$150,SMALL(IF('Overzicht UITZENDBURO'!$P$6:$P$150=$A15,IF('Overzicht UITZENDBURO'!$L$6:$L$150=J$2,IF('Overzicht UITZENDBURO'!$O$6:$O$150=J$4,IF('Overzicht UITZENDBURO'!$R$6:$R$150=\"\",ROW('Overzicht UITZENDBURO'!$R$6:$R$150)-ROW($R$6)+1)))),$C15)),\"\")","v":""},{"$f":"IFERROR(INDEX('Overzicht UITZENDBURO'!$Q$6:$Q$150,SMALL(IF('Overzicht UITZENDBURO'!$P$6:$P$150=$A15,IF('Overzicht UITZENDBURO'!$L$6:$L$150=K$2,IF('Overzicht UITZENDBURO'!$O$6:$O$150=K$4,IF('Overzicht UITZENDBURO'!$R$6:$R$150=\"\",ROW('Overzicht UITZENDBURO'!$R$6:$R$150)-ROW($R$6)+1)))),$C15)),\"\")","v":""},{"$f":"IFERROR(INDEX('Overzicht UITZENDBURO'!$Q$6:$Q$150,SMALL(IF('Overzicht UITZENDBURO'!$P$6:$P$150=$A15,IF('Overzicht UITZENDBURO'!$L$6:$L$150=L$2,IF('Overzicht UITZENDBURO'!$O$6:$O$150=L$4,IF('Overzicht UITZENDBURO'!$R$6:$R$150=\"\",ROW('Overzicht UITZENDBURO'!$R$6:$R$150)-ROW($R$6)+1)))),$C15)),\"\")","v":""},{"$f":"IFERROR(INDEX('Overzicht UITZENDBURO'!$Q$6:$Q$150,SMALL(IF('Overzicht UITZENDBURO'!$P$6:$P$150=$A15,IF('Overzicht UITZENDBURO'!$L$6:$L$150=M$2,IF('Overzicht UITZENDBURO'!$O$6:$O$150=M$4,IF('Overzicht UITZENDBURO'!$R$6:$R$150=\"\",ROW('Overzicht UITZENDBURO'!$R$6:$R$150)-ROW($R$6)+1)))),$C15)),\"\")","v":""},{"$f":"IFERROR(INDEX('Overzicht UITZENDBURO'!$Q$6:$Q$150,SMALL(IF('Overzicht UITZENDBURO'!$P$6:$P$150=$A15,IF('Overzicht UITZENDBURO'!$L$6:$L$150=N$2,IF('Overzicht UITZENDBURO'!$O$6:$O$150=N$4,IF('Overzicht UITZENDBURO'!$R$6:$R$150=\"\",ROW('Overzicht UITZENDBURO'!$R$6:$R$150)-ROW($R$6)+1)))),$C15)),\"\")","v":""},{"$f":"IFERROR(INDEX('Overzicht UITZENDBURO'!$Q$6:$Q$150,SMALL(IF('Overzicht UITZENDBURO'!$P$6:$P$150=$A15,IF('Overzicht UITZENDBURO'!$L$6:$L$150=O$2,IF('Overzicht UITZENDBURO'!$O$6:$O$150=O$4,IF('Overzicht UITZENDBURO'!$R$6:$R$150=\"\",ROW('Overzicht UITZENDBURO'!$R$6:$R$150)-ROW($R$6)+1)))),$C15)),\"\")","v":""},{"$f":"IFERROR(INDEX('Overzicht UITZENDBURO'!$Q$6:$Q$150,SMALL(IF('Overzicht UITZENDBURO'!$P$6:$P$150=$A15,IF('Overzicht UITZENDBURO'!$L$6:$L$150=P$2,IF('Overzicht UITZENDBURO'!$O$6:$O$150=P$4,IF('Overzicht UITZENDBURO'!$R$6:$R$150=\"\",ROW('Overzicht UITZENDBURO'!$R$6:$R$150)-ROW($R$6)+1)))),$C15)),\"\")","v":""},{"$f":"IFERROR(INDEX('Overzicht UITZENDBURO'!$Q$6:$Q$150,SMALL(IF('Overzicht UITZENDBURO'!$P$6:$P$150=$A15,IF('Overzicht UITZENDBURO'!$L$6:$L$150=Q$2,IF('Overzicht UITZENDBURO'!$O$6:$O$150=Q$4,IF('Overzicht UITZENDBURO'!$R$6:$R$150=\"\",ROW('Overzicht UITZENDBURO'!$R$6:$R$150)-ROW($R$6)+1)))),$C15)),\"\")","v":""},{"$f":"IFERROR(INDEX('Overzicht UITZENDBURO'!$Q$6:$Q$150,SMALL(IF('Overzicht UITZENDBURO'!$P$6:$P$150=$A15,IF('Overzicht UITZENDBURO'!$L$6:$L$150=R$2,IF('Overzicht UITZENDBURO'!$O$6:$O$150=R$4,IF('Overzicht UITZENDBURO'!$R$6:$R$150=\"\",ROW('Overzicht UITZENDBURO'!$R$6:$R$150)-ROW($R$6)+1)))),$C15)),\"\")","v":""},{"$f":"IFERROR(INDEX('Overzicht UITZENDBURO'!$Q$6:$Q$150,SMALL(IF('Overzicht UITZENDBURO'!$P$6:$P$150=$A15,IF('Overzicht UITZENDBURO'!$L$6:$L$150=S$2,IF('Overzicht UITZENDBURO'!$O$6:$O$150=S$4,IF('Overzicht UITZENDBURO'!$R$6:$R$150=\"\",ROW('Overzicht UITZENDBURO'!$R$6:$R$150)-ROW($R$6)+1)))),$C15)),\"\")","v":""},{"$f":"IFERROR(INDEX('Overzicht UITZENDBURO'!$Q$6:$Q$150,SMALL(IF('Overzicht UITZENDBURO'!$P$6:$P$150=$A15,IF('Overzicht UITZENDBURO'!$L$6:$L$150=T$2,IF('Overzicht UITZENDBURO'!$O$6:$O$150=T$4,IF('Overzicht UITZENDBURO'!$R$6:$R$150=\"\",ROW('Overzicht UITZENDBURO'!$R$6:$R$150)-ROW($R$6)+1)))),$C15)),\"\")","v":""},{"$f":"IFERROR(INDEX('Overzicht UITZENDBURO'!$Q$6:$Q$150,SMALL(IF('Overzicht UITZENDBURO'!$P$6:$P$150=$A15,IF('Overzicht UITZENDBURO'!$L$6:$L$150=U$2,IF('Overzicht UITZENDBURO'!$O$6:$O$150=U$4,IF('Overzicht UITZENDBURO'!$R$6:$R$150=\"\",ROW('Overzicht UITZENDBURO'!$R$6:$R$150)-ROW($R$6)+1)))),$C15)),\"\")","v":""},{"$f":"IFERROR(INDEX('Overzicht UITZENDBURO'!$Q$6:$Q$150,SMALL(IF('Overzicht UITZENDBURO'!$P$6:$P$150=$A15,IF('Overzicht UITZENDBURO'!$L$6:$L$150=V$2,IF('Overzicht UITZENDBURO'!$O$6:$O$150=V$4,IF('Overzicht UITZENDBURO'!$R$6:$R$150=\"\",ROW('Overzicht UITZENDBURO'!$R$6:$R$150)-ROW($R$6)+1)))),$C15)),\"\")","v":""},{"$f":"IFERROR(INDEX('Overzicht UITZENDBURO'!$Q$6:$Q$150,SMALL(IF('Overzicht UITZENDBURO'!$P$6:$P$150=$A15,IF('Overzicht UITZENDBURO'!$L$6:$L$150=W$2,IF('Overzicht UITZENDBURO'!$O$6:$O$150=W$4,IF('Overzicht UITZENDBURO'!$R$6:$R$150=\"\",ROW('Overzicht UITZENDBURO'!$R$6:$R$150)-ROW($R$6)+1)))),$C15)),\"\")","v":""},{"$f":"IFERROR(INDEX('Overzicht UITZENDBURO'!$Q$6:$Q$150,SMALL(IF('Overzicht UITZENDBURO'!$P$6:$P$150=$A15,IF('Overzicht UITZENDBURO'!$L$6:$L$150=X$2,IF('Overzicht UITZENDBURO'!$O$6:$O$150=X$4,IF('Overzicht UITZENDBURO'!$R$6:$R$150=\"\",ROW('Overzicht UITZENDBURO'!$R$6:$R$150)-ROW($R$6)+1)))),$C15)),\"\")","v":""}]
["SCHM",null,4,{"$f":"IFERROR(INDEX('Overzicht UITZENDBURO'!$Q$6:$Q$150,SMALL(IF('Overzicht UITZENDBURO'!$P$6:$P$150=$A16,IF('Overzicht UITZENDBURO'!$L$6:$L$150=D$2,IF('Overzicht UITZENDBURO'!$O$6:$O$150=D$4,IF('Overzicht UITZENDBURO'!$R$6:$R$150=\"\",ROW('Overzicht UITZENDBURO'!$R$6:$R$150)-ROW($R$6)+1)))),$C16)),\"\")","v":""},{"$f":"IFERROR(INDEX('Overzicht UITZENDBURO'!$Q$6:$Q$150,SMALL(IF('Overzicht UITZENDBURO'!$P$6:$P$150=$A16,IF('Overzicht UITZENDBURO'!$L$6:$L$150=E$2,IF('Overzicht UITZENDBURO'!$O$6:$O$150=E$4,IF('Overzicht UITZENDBURO'!$R$6:$R$150=\"\",ROW('Overzicht UITZENDBURO'!$R$6:$R$150)-ROW($R$6)+1)))),$C16)),\"\")","v":""},{"$f":"IFERROR(INDEX('Overzicht UITZENDBURO'!$Q$6:$Q$150,SMALL(IF('Overzicht UITZENDBURO'!$P$6:$P$150=$A16,IF('Overzicht UITZENDBURO'!$L$6:$L$150=F$2,IF('Overzicht UITZENDBURO'!$O$6:$O$150=F$4,IF('Overzicht UITZENDBURO'!$R$6:$R$150=\"\",ROW('Overzicht UITZENDBURO'!$R$6:$R$150)-ROW($R$6)+1)))),$C16)),\"\")","v":""},{"$f":"IFERROR(INDEX('Overzicht UITZENDBURO'!$Q$6:$Q$150,SMALL(IF('Overzicht UITZENDBURO'!$P$6:$P$150=$A16,IF('Overzicht UITZENDBURO'!$L$6:$L$150=G$2,IF('Overzicht UITZENDBURO'!$O$6:$O$150=G$4,IF('Overzicht UITZENDBURO'!$R$6:$R$150=\"\",ROW('Overzicht UITZENDBURO'!$R$6:$R$150)-ROW($R$6)+1)))),$C16)),\"\")","v":""},{"$f":"IFERROR(INDEX('Overzicht UITZENDBURO'!$Q$6:$Q$150,SMALL(IF('Overzicht UITZENDBURO'!$P$6:$P$150=$A16,IF('Overzicht UITZENDBURO'!$L$6:$L$150=H$2,IF('Overzicht UITZENDBURO'!$O$6:$O$150=H$4,IF('Overzicht UITZENDBURO'!$R$6:$R$150=\"\",ROW('Overzicht UITZENDBURO'!$R$6:$R$150)-ROW($R$6)+1)))),$C16)),\"\")","v":""},{"$f":"IFERROR(INDEX('Overzicht UITZENDBURO'!$Q$6:$Q$150,SMALL(IF('Overzicht UITZENDBURO'!$P$6:$P$150=$A16,IF('Overzicht UITZENDBURO'!$L$6:$L$150=I$2,IF('Overzicht UITZENDBURO'!$O$6:$O$150=I$4,IF('Overzicht UITZENDBURO'!$R$6:$R$150=\"\",ROW('Overzicht UITZENDBURO'!$R$6:$R$150)-ROW($R$6)+1)))),$C16)),\"\")","v":""},{"$f":"IFERROR(INDEX('Overzicht UITZENDBURO'!$Q$6:$Q$150,SMALL(IF('Overzicht UITZENDBURO'!$P$6:$P$150=$A16,IF('Overzicht UITZENDBURO'!$L$6:$L$150=J$2,IF('Overzicht UITZENDBURO'!$O$6:$O$150=J$4,IF('Overzicht UITZENDBURO'!$R$6:$R$150=\"\",ROW('Overzicht UITZENDBURO'!$R$6:$R$150)-ROW($R$6)+1)))),$C16)),\"\")","v":""},{"$f":"IFERROR(INDEX('Overzicht UITZENDBURO'!$Q$6:$Q$150,SMALL(IF('Overzicht UITZENDBURO'!$P$6:$P$150=$A16,IF('Overzicht UITZENDBURO'!$L$6:$L$150=K$2,IF('Overzicht UITZENDBURO'!$O$6:$O$150=K$4,IF('Overzicht UITZENDBURO'!$R$6:$R$150=\"\",ROW('Overzicht UITZENDBURO'!$R$6:$R$150)-ROW($R$6)+1)))),$C16)),\"\")","v":""},{"$f":"IFERROR(INDEX('Overzicht UITZENDBURO'!$Q$6:$Q$150,SMALL(IF('Overzicht UITZENDBURO'!$P$6:$P$150=$A16,IF('Overzicht UITZENDBURO'!$L$6:$L$150=L$2,IF('Overzicht UITZENDBURO'!$O$6:$O$150=L$4,IF('Overzicht UITZENDBURO'!$R$6:$R$150=\"\",ROW('Overzicht UITZENDBURO'!$R$6:$R$150)-ROW($R$6)+1)))),$C16)),\"\")","v":""},{"$f":"IFERROR(INDEX('Overzicht UITZENDBURO'!$Q$6:$Q$150,SMALL(IF('Overzicht UITZENDBURO'!$P$6:$P$150=$A16,IF('Overzicht UITZENDBURO'!$L$6:$L$150=M$2,IF('Overzicht UITZENDBURO'!$O$6:$O$150=M$4,IF('Overzicht UITZENDBURO'!$R$6:$R$150=\"\",ROW('Overzicht UITZENDBURO'!$R$6:$R$150)-ROW($R$6)+1)))),$C16)),\"\")","v":""},{"$f":"IFERROR(INDEX('Overzicht UITZENDBURO'!$Q$6:$Q$150,SMALL(IF('Overzicht UITZENDBURO'!$P$6:$P$150=$A16,IF('Overzicht UITZENDBURO'!$L$6:$L$150=N$2,IF('Overzicht UITZENDBURO'!$O$6:$O$150=N$4,IF('Overzicht UITZENDBURO'!$R$6:$R$150=\"\",ROW('Overzicht UITZENDBURO'!$R$6:$R$150)-ROW($R$6)+1)))),$C16)),\"\")","v":""},{"$f":"IFERROR(INDEX('Overzicht UITZENDBURO'!$Q$6:$Q$150,SMALL(IF('Overzicht UITZENDBURO'!$P$6:$P$150=$A16,IF('Overzicht UITZENDBURO'!$L$6:$L$150=O$2,IF('Overzicht UITZENDBURO'!$O$6:$O$150=O$4,IF('Overzicht UITZENDBURO'!$R$6:$R$150=\"\",ROW('Overzicht UITZENDBURO'!$R$6:$R$150)-ROW($R$6)+1)))),$C16)),\"\")","v":""},{"$f":"IFERROR(INDEX('Overzicht UITZENDBURO'!$Q$6:$Q$150,SMALL(IF('Overzicht UITZENDBURO'!$P$6:$P$150=$A16,IF('Overzicht UITZENDBURO'!$L$6:$L$150=P$2,IF('Overzicht UITZENDBURO'!$O$6:$O$150=P$4,IF('Overzicht UITZENDBURO'!$R$6:$R$150=\"\",ROW('Overzicht UITZENDBURO'!$R$6:$R$150)-ROW($R$6)+1)))),$C16)),\"\")","v":""},{"$f":"IFERROR(INDEX('Overzicht UITZENDBURO'!$Q$6:$Q$150,SMALL(IF('Overzicht UITZENDBURO'!$P$6:$P$150=$A16,IF('Overzicht UITZENDBURO'!$L$6:$L$150=Q$2,IF('Overzicht UITZENDBURO'!$O$6:$O$150=Q$4,IF('Overzicht UITZENDBURO'!$R$6:$R$150=\"\",ROW('Overzicht UITZENDBURO'!$R$6:$R$150)-ROW($R$6)+1)))),$C16)),\"\")","v":""},{"$f":"IFERROR(INDEX('Overzicht UITZENDBURO'!$Q$6:$Q$150,SMALL(IF('Overzicht UITZENDBURO'!$P$6:$P$150=$A16,IF('Overzicht UITZENDBURO'!$L$6:$L$150=R$2,IF('Overzicht UITZENDBURO'!$O$6:$O$150=R$4,IF('Overzicht UITZENDBURO'!$R$6:$R$150=\"\",ROW('Overzicht UITZENDBURO'!$R$6:$R$150)-ROW($R$6)+1)))),$C16)),\"\")","v":""},{"$f":"IFERROR(INDEX('Overzicht UITZENDBURO'!$Q$6:$Q$150,SMALL(IF('Overzicht UITZENDBURO'!$P$6:$P$150=$A16,IF('Overzicht UITZENDBURO'!$L$6:$L$150=S$2,IF('Overzicht UITZENDBURO'!$O$6:$O$150=S$4,IF('Overzicht UITZENDBURO'!$R$6:$R$150=\"\",ROW('Overzicht UITZENDBURO'!$R$6:$R$150)-ROW($R$6)+1)))),$C16)),\"\")","v":""},{"$f":"IFERROR(INDEX('Overzicht UITZENDBURO'!$Q$6:$Q$150,SMALL(IF('Overzicht UITZENDBURO'!$P$6:$P$150=$A16,IF('Overzicht UITZENDBURO'!$L$6:$L$150=T$2,IF('Overzicht UITZENDBURO'!$O$6:$O$150=T$4,IF('Overzicht UITZENDBURO'!$R$6:$R$150=\"\",ROW('Overzicht UITZENDBURO'!$R$6:$R$150)-ROW($R$6)+1)))),$C16)),\"\")","v":""},{"$f":"IFERROR(INDEX('Overzicht UITZENDBURO'!$Q$6:$Q$150,SMALL(IF('Overzicht UITZENDBURO'!$P$6:$P$150=$A16,IF('Overzicht UITZENDBURO'!$L$6:$L$150=U$2,IF('Overzicht UITZENDBURO'!$O$6:$O$150=U$4,IF('Overzicht UITZENDBURO'!$R$6:$R$150=\"\",ROW('Overzicht UITZENDBURO'!$R$6:$R$150)-ROW($R$6)+1)))),$C16)),\"\")","v":""},{"$f":"IFERROR(INDEX('Overzicht UITZENDBURO'!$Q$6:$Q$150,SMALL(IF('Overzicht UITZENDBURO'!$P$6:$P$150=$A16,IF('Overzicht UITZENDBURO'!$L$6:$L$150=V$2,IF('Overzicht UITZENDBURO'!$O$6:$O$150=V$4,IF('Overzicht UITZENDBURO'!$R$6:$R$150=\"\",ROW('Overzicht UITZENDBURO'!$R$6:$R$150)-ROW($R$6)+1)))),$C16)),\"\")","v":""},{"$f":"IFERROR(INDEX('Overzicht UITZENDBURO'!$Q$6:$Q$150,SMALL(IF('Overzicht UITZENDBURO'!$P$6:$P$150=$A16,IF('Overzicht UITZENDBURO'!$L$6:$L$150=W$2,IF('Overzicht UITZENDBURO'!$O$6:$O$150=W$4,IF('Overzicht UITZENDBURO'!$R$6:$R$150=\"\",ROW('Overzicht UITZENDBURO'!$R$6:$R$150)-ROW($R$6)+1)))),$C16)),\"\")","v":""},{"$f":"IFERROR(INDEX('Overzicht UITZENDBURO'!$Q$6:$Q$150,SMALL(IF('Overzicht UITZENDBURO'!$P$6:$P$150=$A16,IF('Overzicht UITZENDBURO'!$L$6:$L$150=X$2,IF('Overzicht UITZENDBURO'!$O$6:$O$150=X$4,IF('Overzicht UITZENDBURO'!$R$6:$R$150=\"\",ROW('Overzicht UITZENDBURO'!$R$6:$R$150)-ROW($R$6)+1)))),$C16)),\"\")","v":""}]
["SCHM",null,5,{"$f":"IFERROR(INDEX('Overzicht UITZENDBURO'!$Q$6:$Q$150,SMALL(IF('Overzicht UITZENDBURO'!$P$6:$P$150=$A17,IF('Overzicht UITZENDBURO'!$L$6:$L$150=D$2,IF('Overzicht UITZENDBURO'!$O$6:$O$150=D$4,IF('Overzicht UITZENDBURO'!$R$6:$R$150=\"\",ROW('Overzicht UITZENDBURO'!$R$6:$R$150)-ROW($R$6)+1)))),$C17)),\"\")","v":""},{"$f":"IFERROR(INDEX('Overzicht UITZENDBURO'!$Q$6:$Q$150,SMALL(IF('Overzicht UITZENDBURO'!$P$6:$P$150=$A17,IF('Overzicht UITZENDBURO'!$L$6:$L$150=E$2,IF('Overzicht UITZENDBURO'!$O$6:$O$150=E$4,IF('Overzicht UITZENDBURO'!$R$6:$R$150=\"\",ROW('Overzicht UITZENDBURO'!$R$6:$R$150)-ROW($R$6)+1)))),$C17)),\"\")","v":""},{"$f":"IFERROR(INDEX('Overzicht UITZENDBURO'!$Q$6:$Q$150,SMALL(IF('Overzicht UITZENDBURO'!$P$6:$P$150=$A17,IF('Overzicht UITZENDBURO'!$L$6:$L$150=F$2,IF('Overzicht UITZENDBURO'!$O$6:$O$150=F$4,IF('Overzicht UITZENDBURO'!$R$6:$R$150=\"\",ROW('Overzicht UITZENDBURO'!$R$6:$R$150)-ROW($R$6)+1)))),$C17)),\"\")","v":""},{"$f":"IFERROR(INDEX('Overzicht UITZENDBURO'!$Q$6:$Q$150,SMALL(IF('Overzicht UITZENDBURO'!$P$6:$P$150=$A17,IF('Overzicht UITZENDBURO'!$L$6:$L$150=G$2,IF('Overzicht UITZENDBURO'!$O$6:$O$150=G$4,IF('Overzicht UITZENDBURO'!$R$6:$R$150=\"\",ROW('Overzicht UITZENDBURO'!$R$6:$R$150)-ROW($R$6)+1)))),$C17)),\"\")","v":""},{"$f":"IFERROR(INDEX('Overzicht UITZENDBURO'!$Q$6:$Q$150,SMALL(IF('Overzicht UITZENDBURO'!$P$6:$P$150=$A17,IF('Overzicht UITZENDBURO'!$L$6:$L$150=H$2,IF('Overzicht UITZENDBURO'!$O$6:$O$150=H$4,IF('Overzicht UITZENDBURO'!$R$6:$R$150=\"\",ROW('Overzicht UITZENDBURO'!$R$6:$R$150)-ROW($R$6)+1)))),$C17)),\"\")","v":""},{"$f":"IFERROR(INDEX('Overzicht UITZENDBURO'!$Q$6:$Q$150,SMALL(IF('Overzicht UITZENDBURO'!$P$6:$P$150=$A17,IF('Overzicht UITZENDBURO'!$L$6:$L$150=I$2,IF('Overzicht UITZENDBURO'!$O$6:$O$150=I$4,IF('Overzicht UITZENDBURO'!$R$6:$R$150=\"\",ROW('Overzicht UITZENDBURO'!$R$6:$R$150)-ROW($R$6)+1)))),$C17)),\"\")","v":""},{"$f":"IFERROR(INDEX('Overzicht UITZENDBURO'!$Q$6:$Q$150,SMALL(IF('Overzicht UITZENDBURO'!$P$6:$P$150=$A17,IF('Overzicht UITZENDBURO'!$L$6:$L$150=J$2,IF('Overzicht UITZENDBURO'!$O$6:$O$150=J$4,IF('Overzicht UITZENDBURO'!$R$6:$R$150=\"\",ROW('Overzicht UITZENDBURO'!$R$6:$R$150)-ROW($R$6)+1)))),$C17)),\"\")","v":""},{"$f":"IFERROR(INDEX('Overzicht UITZENDBURO'!$Q$6:$Q$150,SMALL(IF('Overzicht UITZENDBURO'!$P$6:$P$150=$A17,IF('Overzicht UITZENDBURO'!$L$6:$L$150=K$2,IF('Overzicht UITZENDBURO'!$O$6:$O$150=K$4,IF('Overzicht UITZENDBURO'!$R$6:$R$150=\"\",ROW('Overzicht UITZENDBURO'!$R$6:$R$150)-ROW($R$6)+1)))),$C17)),\"\")","v":""},{"$f":"IFERROR(INDEX('Overzicht UITZENDBURO'!$Q$6:$Q$150,SMALL(IF('Overzicht UITZENDBURO'!$P$6:$P$150=$A17,IF('Overzicht UITZENDBURO'!$L$6:$L$150=L$2,IF('Overzicht UITZENDBURO'!$O$6:$O$150=L$4,IF('Overzicht UITZENDBURO'!$R$6:$R$150=\"\",ROW('Overzicht UITZENDBURO'!$R$6:$R$150)-ROW($R$6)+1)))),$C17)),\"\")","v":""},{"$f":"IFERROR(INDEX('Overzicht UITZENDBURO'!$Q$6:$Q$150,SMALL(IF('Overzicht UITZENDBURO'!$P$6:$P$150=$A17,IF('Overzicht UITZENDBURO'!$L$6:$L$150=M$2,IF('Overzicht UITZENDBURO'!$O$6:$O$150=M$4,IF('Overzicht UITZENDBURO'!$R$6:$R$150=\"\",ROW('Overzicht UITZENDBURO'!$R$6:$R$150)-ROW($R$6)+1)))),$C17)),\"\")","v":""},{"$f":"IFERROR(INDEX('Overzicht UITZENDBURO'!$Q$6:$Q$150,SMALL(IF('Overzicht UITZENDBURO'!$P$6:$P$150=$A17,IF('Overzicht UITZENDBURO'!$L$6:$L$150=N$2,IF('Overzicht UITZENDBURO'!$O$6:$O$150=N$4,IF('Overzicht UITZENDBURO'!$R$6:$R$150=\"\",ROW('Overzicht UITZENDBURO'!$R$6:$R$150)-ROW($R$6)+1)))),$C17)),\"\")","v":""},{"$f":"IFERROR(INDEX('Overzicht UITZENDBURO'!$Q$6:$Q$150,SMALL(IF('Overzicht UITZENDBURO'!$P$6:$P$150=$A17,IF('Overzicht UITZENDBURO'!$L$6:$L$150=O$2,IF('Overzicht UITZENDBURO'!$O$6:$O$150=O$4,IF('Overzicht UITZENDBURO'!$R$6:$R$150=\"\",ROW('Overzicht UITZENDBURO'!$R$6:$R$150)-ROW($R$6)+1)))),$C17)),\"\")","v":""},{"$f":"IFERROR(INDEX('Overzicht UITZENDBURO'!$Q$6:$Q$150,SMALL(IF('Overzicht UITZENDBURO'!$P$6:$P$150=$A17,IF('Overzicht UITZENDBURO'!$L$6:$L$150=P$2,IF('Overzicht UITZENDBURO'!$O$6:$O$150=P$4,IF('Overzicht UITZENDBURO'!$R$6:$R$150=\"\",ROW('Overzicht UITZENDBURO'!$R$6:$R$150)-ROW($R$6)+1)))),$C17)),\"\")","v":""},{"$f":"IFERROR(INDEX('Overzicht UITZENDBURO'!$Q$6:$Q$150,SMALL(IF('Overzicht UITZENDBURO'!$P$6:$P$150=$A17,IF('Overzicht UITZENDBURO'!$L$6:$L$150=Q$2,IF('Overzicht UITZENDBURO'!$O$6:$O$150=Q$4,IF('Overzicht UITZENDBURO'!$R$6:$R$150=\"\",ROW('Overzicht UITZENDBURO'!$R$6:$R$150)-ROW($R$6)+1)))),$C17)),\"\")","v":""},{"$f":"IFERROR(INDEX('Overzicht UITZENDBURO'!$Q$6:$Q$150,SMALL(IF('Overzicht UITZENDBURO'!$P$6:$P$150=$A17,IF('Overzicht UITZENDBURO'!$L$6:$L$150=R$2,IF('Overzicht UITZENDBURO'!$O$6:$O$150=R$4,IF('Overzicht UITZENDBURO'!$R$6:$R$150=\"\",ROW('Overzicht UITZENDBURO'!$R$6:$R$150)-ROW($R$6)+1)))),$C17)),\"\")","v":""},{"$f":"IFERROR(INDEX('Overzicht UITZENDBURO'!$Q$6:$Q$150,SMALL(IF('Overzicht UITZENDBURO'!$P$6:$P$150=$A17,IF('Overzicht UITZENDBURO'!$L$6:$L$150=S$2,IF('Overzicht UITZENDBURO'!$O$6:$O$150=S$4,IF('Overzicht UITZENDBURO'!$R$6:$R$150=\"\",ROW('Overzicht UITZENDBURO'!$R$6:$R$150)-ROW($R$6)+1)))),$C17)),\"\")","v":""},{"$f":"IFERROR(INDEX('Overzicht UITZENDBURO'!$Q$6:$Q$150,SMALL(IF('Overzicht UITZENDBURO'!$P$6:$P$150=$A17,IF('Overzicht UITZENDBURO'!$L$6:$L$150=T$2,IF('Overzicht UITZENDBURO'!$O$6:$O$150=T$4,IF('Overzicht UITZENDBURO'!$R$6:$R$150=\"\",ROW('Overzicht UITZENDBURO'!$R$6:$R$150)-ROW($R$6)+1)))),$C17)),\"\")","v":""},{"$f":"IFERROR(INDEX('Overzicht UITZENDBURO'!$Q$6:$Q$150,SMALL(IF('Overzicht UITZENDBURO'!$P$6:$P$150=$A17,IF('Overzicht UITZENDBURO'!$L$6:$L$150=U$2,IF('Overzicht UITZENDBURO'!$O$6:$O$150=U$4,IF('Overzicht UITZENDBURO'!$R$6:$R$150=\"\",ROW('Overzicht UITZENDBURO'!$R$6:$R$150)-ROW($R$6)+1)))),$C17)),\"\")","v":""},{"$f":"IFERROR(INDEX('Overzicht UITZENDBURO'!$Q$6:$Q$150,SMALL(IF('Overzicht UITZENDBURO'!$P$6:$P$150=$A17,IF('Overzicht UITZENDBURO'!$L$6:$L$150=V$2,IF('Overzicht UITZENDBURO'!$O$6:$O$150=V$4,IF('Overzicht UITZENDBURO'!$R$6:$R$150=\"\",ROW('Overzicht UITZENDBURO'!$R$6:$R$150)-ROW($R$6)+1)))),$C17)),\"\")","v":""},{"$f":"IFERROR(INDEX('Overzicht UITZENDBURO'!$Q$6:$Q$150,SMALL(IF('Overzicht UITZENDBURO'!$P$6:$P$150=$A17,IF('Overzicht UITZENDBURO'!$L$6:$L$150=W$2,IF('Overzicht UITZENDBURO'!$O$6:$O$150=W$4,IF('Overzicht UITZENDBURO'!$R$6:$R$150=\"\",ROW('Overzicht UITZENDBURO'!$R$6:$R$150)-ROW($R$6)+1)))),$C17)),\"\")","v":""},{"$f":"IFERROR(INDEX('Overzicht UITZENDBURO'!$Q$6:$Q$150,SMALL(IF('Overzicht UITZENDBURO'!$P$6:$P$150=$A17,IF('Overzicht UITZENDBURO'!$L$6:$L$150=X$2,IF('Overzicht UITZENDBURO'!$O$6:$O$150=X$4,IF('Overzicht UITZENDBURO'!$R$6:$R$150=\"\",ROW('Overzicht UITZENDBURO'!$R$6:$R$150)-ROW($R$6)+1)))),$C17)),\"\")","v":""}]
["LCH",null,1,{"$f":"IFERROR(INDEX('Overzicht UITZENDBURO'!$Q$6:$Q$150,SMALL(IF('Overzicht UITZENDBURO'!$P$6:$P$150=$A18,IF('Overzicht UITZENDBURO'!$L$6:$L$150=D$2,IF('Overzicht UITZENDBURO'!$O$6:$O$150=D$4,IF('Overzicht UITZENDBURO'!$R$6:$R$150=\"\",ROW('Overzicht UITZENDBURO'!$R$6:$R$150)-ROW($R$6)+1)))),$C18)),\"\")","v":""},{"$f":"IFERROR(INDEX('Overzicht UITZENDBURO'!$Q$6:$Q$150,SMALL(IF('Overzicht UITZENDBURO'!$P$6:$P$150=$A18,IF('Overzicht UITZENDBURO'!$L$6:$L$150=E$2,IF('Overzicht UITZENDBURO'!$O$6:$O$150=E$4,IF('Overzicht UITZENDBURO'!$R$6:$R$150=\"\",ROW('Overzicht UITZENDBURO'!$R$6:$R$150)-ROW($R$6)+1)))),$C18)),\"\")","v":""},{"$f":"IFERROR(INDEX('Overzicht UITZENDBURO'!$Q$6:$Q$150,SMALL(IF('Overzicht UITZENDBURO'!$P$6:$P$150=$A18,IF('Overzicht UITZENDBURO'!$L$6:$L$150=F$2,IF('Overzicht UITZENDBURO'!$O$6:$O$150=F$4,IF('Overzicht UITZENDBURO'!$R$6:$R$150=\"\",ROW('Overzicht UITZENDBURO'!$R$6:$R$150)-ROW($R$6)+1)))),$C18)),\"\")","v":"Roy"},{"$f":"IFERROR(INDEX('Overzicht UITZENDBURO'!$Q$6:$Q$150,SMALL(IF('Overzicht UITZENDBURO'!$P$6:$P$150=$A18,IF('Overzicht UITZENDBURO'!$L$6:$L$150=G$2,IF('Overzicht UITZENDBURO'!$O$6:$O$150=G$4,IF('Overzicht UITZENDBURO'!$R$6:$R$150=\"\",ROW('Overzicht UITZENDBURO'!$R$6:$R$150)-ROW($R$6)+1)))),$C18)),\"\")","v":""},{"$f":"IFERROR(INDEX('Overzicht UITZENDBURO'!$Q$6:$Q$150,SMALL(IF('Overzicht UITZENDBURO'!$P$6:$P$150=$A18,IF('Overzicht UITZENDBURO'!$L$6:$L$150=H$2,IF('Overzicht UITZENDBURO'!$O$6:$O$150=H$4,IF('Overzicht UITZENDBURO'!$R$6:$R$150=\"\",ROW('Overzicht UITZENDBURO'!$R$6:$R$150)-ROW($R$6)+1)))),$C18)),\"\")","v":""},{"$f":"IFERROR(INDEX('Overzicht UITZENDBURO'!$Q$6:$Q$150,SMALL(IF('Overzicht UITZENDBURO'!$P$6:$P$150=$A18,IF('Overzicht UITZENDBURO'!$L$6:$L$150=I$2,IF('Overzicht UITZENDBURO'!$O$6:$O$150=I$4,IF('Overzicht UITZENDBURO'!$R$6:$R$150=\"\",ROW('Overzicht UITZENDBURO'!$R$6:$R$150)-ROW($R$6)+1)))),$C18)),\"\")","v":""},{"$f":"IFERROR(INDEX('Overzicht UITZENDBURO'!$Q$6:$Q$150,SMALL(IF('Overzicht UITZENDBURO'!$P$6:$P$150=$A18,IF('Overzicht UITZENDBURO'!$L$6:$L$150=J$2,IF('Overzicht UITZENDBURO'!$O$6:$O$150=J$4,IF('Overzicht UITZENDBURO'!$R$6:$R$150=\"\",ROW('Overzicht UITZENDBURO'!$R$6:$R$150)-ROW($R$6)+1)))),$C18)),\"\")","v":""},{"$f":"IFERROR(INDEX('Overzicht UITZENDBURO'!$Q$6:$Q$150,SMALL(IF('Overzicht UITZENDBURO'!$P$6:$P$150=$A18,IF('Overzicht UITZENDBURO'!$L$6:$L$150=K$2,IF('Overzicht UITZENDBURO'!$O$6:$O$150=K$4,IF('Overzicht UITZENDBURO'!$R$6:$R$150=\"\",ROW('Overzicht UITZENDBURO'!$R$6:$R$150)-ROW($R$6)+1)))),$C18)),\"\")","v":""},{"$f":"IFERROR(INDEX('Overzicht UITZENDBURO'!$Q$6:$Q$150,SMALL(IF('Overzicht UITZENDBURO'!$P$6:$P$150=$A18,IF('Overzicht UITZENDBURO'!$L$6:$L$150=L$2,IF('Overzicht UITZENDBURO'!$O$6:$O$150=L$4,IF('Overzicht UITZENDBURO'!$R$6:$R$150=\"\",ROW('Overzicht UITZENDBURO'!$R$6:$R$150)-ROW($R$6)+1)))),$C18)),\"\")","v":""},{"$f":"IFERROR(INDEX('Overzicht UITZENDBURO'!$Q$6:$Q$150,SMALL(IF('Overzicht UITZENDBURO'!$P$6:$P$150=$A18,IF('Overzicht UITZENDBURO'!$L$6:$L$150=M$2,IF('Overzicht UITZENDBURO'!$O$6:$O$150=M$4,IF('Overzicht UITZENDBURO'!$R$6:$R$150=\"\",ROW('Overzicht UITZENDBURO'!$R$6:$R$150)-ROW($R$6)+1)))),$C18)),\"\")","v":"Klaasjan"},{"$f":"IFERROR(INDEX('Overzicht UITZENDBURO'!$Q$6:$Q$150,SMALL(IF('Overzicht UITZENDBURO'!$P$6:$P$150=$A18,IF('Overzicht UITZENDBURO'!$L$6:$L$150=N$2,IF('Overzicht UITZENDBURO'!$O$6:$O$150=N$4,IF('Overzicht UITZENDBURO'!$R$6:$R$150=\"\",ROW('Overzicht UITZENDBURO'!$R$6:$R$150)-ROW($R$6)+1)))),$C18)),\"\")","v":""},{"$f":"IFERROR(INDEX('Overzicht UITZENDBURO'!$Q$6:$Q$150,SMALL(IF('Overzicht UITZENDBURO'!$P$6:$P$150=$A18,IF('Overzicht UITZENDBURO'!$L$6:$L$150=O$2,IF('Overzicht UITZENDBURO'!$O$6:$O$150=O$4,IF('Overzicht UITZENDBURO'!$R$6:$R$150=\"\",ROW('Overzicht UITZENDBURO'!$R$6:$R$150)-ROW($R$6)+1)))),$C18)),\"\")","v":""},{"$f":"IFERROR(INDEX('Overzicht UITZENDBURO'!$Q$6:$Q$150,SMALL(IF('Overzicht UITZENDBURO'!$P$6:$P$150=$A18,IF('Overzicht UITZENDBURO'!$L$6:$L$150=P$2,IF('Overzicht UITZENDBURO'!$O$6:$O$150=P$4,IF('Overzicht UITZENDBURO'!$R$6:$R$150=\"\",ROW('Overzicht UITZENDBURO'!$R$6:$R$150)-ROW($R$6)+1)))),$C18)),\"\")","v":""},{"$f":"IFERROR(INDEX('Overzicht UITZENDBURO'!$Q$6:$Q$150,SMALL(IF('Overzicht UITZENDBURO'!$P$6:$P$150=$A18,IF('Overzicht UITZENDBURO'!$L$6:$L$150=Q$2,IF('Overzicht UITZENDBURO'!$O$6:$O$150=Q$4,IF('Overzicht UITZENDBURO'!$R$6:$R$150=\"\",ROW('Overzicht UITZENDBURO'!$R$6:$R$150)-ROW($R$6)+1)))),$C18)),\"\")","v":""},{"$f":"IFERROR(INDEX('Overzicht UITZENDBURO'!$Q$6:$Q$150,SMALL(IF('Overzicht UITZENDBURO'!$P$6:$P$150=$A18,IF('Overzicht UITZENDBURO'!$L$6:$L$150=R$2,IF('Overzicht UITZENDBURO'!$O$6:$O$150=R$4,IF('Overzicht UITZENDBURO'!$R$6:$R$150=\"\",ROW('Overzicht UITZENDBURO'!$R$6:$R$150)-ROW($R$6)+1)))),$C18)),\"\")","v":""},{"$f":"IFERROR(INDEX('Overzicht UITZENDBURO'!$Q$6:$Q$150,SMALL(IF('Overzicht UITZENDBURO'!$P$6:$P$150=$A18,IF('Overzicht UITZENDBURO'!$L$6:$L$150=S$2,IF('Overzicht UITZENDBURO'!$O$6:$O$150=S$4,IF('Overzicht UITZENDBURO'!$R$6:$R$150=\"\",ROW('Overzicht UITZENDBURO'!$R$6:$R$150)-ROW($R$6)+1)))),$C18)),\"\")","v":""},{"$f":"IFERROR(INDEX('Overzicht UITZENDBURO'!$Q$6:$Q$150,SMALL(IF('Overzicht UITZENDBURO'!$P$6:$P$150=$A18,IF('Overzicht UITZENDBURO'!$L$6:$L$150=T$2,IF('Overzicht UITZENDBURO'!$O$6:$O$150=T$4,IF('Overzicht UITZENDBURO'!$R$6:$R$150=\"\",ROW('Overzicht UITZENDBURO'!$R$6:$R$150)-ROW($R$6)+1)))),$C18)),\"\")","v":""},{"$f":"IFERROR(INDEX('Overzicht UITZENDBURO'!$Q$6:$Q$150,SMALL(IF('Overzicht UITZENDBURO'!$P$6:$P$150=$A18,IF('Overzicht UITZENDBURO'!$L$6:$L$150=U$2,IF('Overzicht UITZENDBURO'!$O$6:$O$150=U$4,IF('Overzicht UITZENDBURO'!$R$6:$R$150=\"\",ROW('Overzicht UITZENDBURO'!$R$6:$R$150)-ROW($R$6)+1)))),$C18)),\"\")","v":""},{"$f":"IFERROR(INDEX('Overzicht UITZENDBURO'!$Q$6:$Q$150,SMALL(IF('Overzicht UITZENDBURO'!$P$6:$P$150=$A18,IF('Overzicht UITZENDBURO'!$L$6:$L$150=V$2,IF('Overzicht UITZENDBURO'!$O$6:$O$150=V$4,IF('Overzicht UITZENDBURO'!$R$6:$R$150=\"\",ROW('Overzicht UITZENDBURO'!$R$6:$R$150)-ROW($R$6)+1)))),$C18)),\"\")","v":""},{"$f":"IFERROR(INDEX('Overzicht UITZENDBURO'!$Q$6:$Q$150,SMALL(IF('Overzicht UITZENDBURO'!$P$6:$P$150=$A18,IF('Overzicht UITZENDBURO'!$L$6:$L$150=W$2,IF('Overzicht UITZENDBURO'!$O$6:$O$150=W$4,IF('Overzicht UITZENDBURO'!$R$6:$R$150=\"\",ROW('Overzicht UITZENDBURO'!$R$6:$R$150)-ROW($R$6)+1)))),$C18)),\"\")","v":""},{"$f":"IFERROR(INDEX('Overzicht UITZENDBURO'!$Q$6:$Q$150,SMALL(IF('Overzicht UITZENDBURO'!$P$6:$P$150=$A18,IF('Overzicht UITZENDBURO'!$L$6:$L$150=X$2,IF('Overzicht UITZENDBURO'!$O$6:$O$150=X$4,IF('Overzicht UITZENDBURO'!$R$6:$R$150=\"\",ROW('Overzicht UITZENDBURO'!$R$6:$R$150)-ROW($R$6)+1)))),$C18)),\"\")","v":""}]
["LCH",null,2,{"$f":"IFERROR(INDEX('Overzicht UITZENDBURO'!$Q$6:$Q$150,SMALL(IF('Overzicht UITZENDBURO'!$P$6:$P$150=$A19,IF('Overzicht UITZENDBURO'!$L$6:$L$150=D$2,IF('Overzicht UITZENDBURO'!$O$6:$O$150=D$4,IF('Overzicht UITZENDBURO'!$R$6:$R$150=\"\",ROW('Overzicht UITZENDBURO'!$R$6:$R$150)-ROW($R$6)+1)))),$C19)),\"\")","v":""},{"$f":"IFERROR(INDEX('Overzicht UITZENDBURO'!$Q$6:$Q$150,SMALL(IF('Overzicht UITZENDBURO'!$P$6:$P$150=$A19,IF('Overzicht UITZENDBURO'!$L$6:$L$150=E$2,IF('Overzicht UITZENDBURO'!$O$6:$O$150=E$4,IF('Overzicht UITZENDBURO'!$R$6:$R$150=\"\",ROW('Overzicht UITZENDBURO'!$R$6:$R$150)-ROW($R$6)+1)))),$C19)),\"\")","v":""},{"$f":"IFERROR(INDEX('Overzicht UITZENDBURO'!$Q$6:$Q$150,SMALL(IF('Overzicht UITZENDBURO'!$P$6:$P$150=$A19,IF('Overzicht UITZENDBURO'!$L$6:$L$150=F$2,IF('Overzicht UITZENDBURO'!$O$6:$O$150=F$4,IF('Overzicht UITZENDBURO'!$R$6:$R$150=\"\",ROW('Overzicht UITZENDBURO'!$R$6:$R$150)-ROW($R$6)+1)))),$C19)),\"\")","v":""},{"$f":"IFERROR(INDEX('Overzicht UITZENDBURO'!$Q$6:$Q$150,SMALL(IF('Overzicht UITZENDBURO'!$P$6:$P$150=$A19,IF('Overzicht UITZENDBURO'!$L$6:$L$150=G$2,IF('Overzicht UITZENDBURO'!$O$6:$O$150=G$4,IF('Overzicht UITZENDBURO'!$R$6:$R$150=\"\",ROW('Overzicht UITZENDBURO'!$R$6:$R$150)-ROW($R$6)+1)))),$C19)),\"\")","v":""},{"$f":"IFERROR(INDEX('Overzicht UITZENDBURO'!$Q$6:$Q$150,SMALL(IF('Overzicht UITZENDBURO'!$P$6:$P$150=$A19,IF('Overzicht UITZENDBURO'!$L$6:$L$150=H$2,IF('Overzicht UITZENDBURO'!$O$6:$O$150=H$4,IF('Overzicht UITZENDBURO'!$R$6:$R$150=\"\",ROW('Overzicht UITZENDBURO'!$R$6:$R$150)-ROW($R$6)+1)))),$C19)),\"\")","v":""},{"$f":"IFERROR(INDEX('Overzicht UITZENDBURO'!$Q$6:$Q$150,SMALL(IF('Overzicht UITZENDBURO'!$P$6:$P$150=$A19,IF('Overzicht UITZENDBURO'!$L$6:$L$150=I$2,IF('Overzicht UITZENDBURO'!$O$6:$O$150=I$4,IF('Overzicht UITZENDBURO'!$R$6:$R$150=\"\",ROW('Overzicht UITZENDBURO'!$R$6:$R$150)-ROW($R$6)+1)))),$C19)),\"\")","v":""},{"$f":"IFERROR(INDEX('Overzicht UITZENDBURO'!$Q$6:$Q$150,SMALL(IF('Overzicht UITZENDBURO'!$P$6:$P$150=$A19,IF('Overzicht UITZENDBURO'!$L$6:$L$150=J$2,IF('Overzicht UITZENDBURO'!$O$6:$O$150=J$4,IF('Overzicht UITZENDBURO'!$R$6:$R$150=\"\",ROW('Overzicht UITZENDBURO'!$R$6:$R$150)-ROW($R$6)+1)))),$C19)),\"\")","v":""},{"$f":"IFERROR(INDEX('Overzicht UITZENDBURO'!$Q$6:$Q$150,SMALL(IF('Overzicht UITZENDBURO'!$P$6:$P$150=$A19,IF('Overzicht UITZENDBURO'!$L$6:$L$150=K$2,IF('Overzicht UITZENDBURO'!$O$6:$O$150=K$4,IF('Overzicht UITZENDBURO'!$R$6:$R$150=\"\",ROW('Overzicht UITZENDBURO'!$R$6:$R$150)-ROW($R$6)+1)))),$C19)),\"\")","v":""},{"$f":"IFERROR(INDEX('Overzicht UITZENDBURO'!$Q$6:$Q$150,SMALL(IF('Overzicht UITZENDBURO'!$P$6:$P$150=$A19,IF('Overzicht UITZENDBURO'!$L$6:$L$150=L$2,IF('Overzicht UITZENDBURO'!$O$6:$O$150=L$4,IF('Overzicht UITZENDBURO'!$R$6:$R$150=\"\",ROW('Overzicht UITZENDBURO'!$R$6:$R$150)-ROW($R$6)+1)))),$C19)),\"\")","v":""},{"$f":"IFERROR(INDEX('Overzicht UITZENDBURO'!$Q$6:$Q$150,SMALL(IF('Overzicht UITZENDBURO'!$P$6:$P$150=$A19,IF('Overzicht UITZENDBURO'!$L$6:$L$150=M$2,IF('Overzicht UITZENDBURO'!$O$6:$O$150=M$4,IF('Overzicht UITZENDBURO'!$R$6:$R$150=\"\",ROW('Overzicht UITZENDBURO'!$R$6:$R$150)-ROW($R$6)+1)))),$C19)),\"\")","v":"Pieter"},{"$f":"IFERROR(INDEX('Overzicht UITZENDBURO'!$Q$6:$Q$150,SMALL(IF('Overzicht UITZENDBURO'!$P$6:$P$150=$A19,IF('Overzicht UITZENDBURO'!$L$6:$L$150=N$2,IF('Overzicht UITZENDBURO'!$O$6:$O$150=N$4,IF('Overzicht UITZENDBURO'!$R$6:$R$150=\"\",ROW('Overzicht UITZENDBURO'!$R$6:$R$150)-ROW($R$6)+1)))),$C19)),\"\")","v":""},{"$f":"IFERROR(INDEX('Overzicht UITZENDBURO'!$Q$6:$Q$150,SMALL(IF('Overzicht UITZENDBURO'!$P$6:$P$150=$A19,IF('Overzicht UITZENDBURO'!$L$6:$L$150=O$2,IF('Overzicht UITZENDBURO'!$O$6:$O$150=O$4,IF('Overzicht UITZENDBURO'!$R$6:$R$150=\"\",ROW('Overzicht UITZENDBURO'!$R$6:$R$150)-ROW($R$6)+1)))),$C19)),\"\")","v":""},{"$f":"IFERROR(INDEX('Overzicht UITZENDBURO'!$Q$6:$Q$150,SMALL(IF('Overzicht UITZENDBURO'!$P$6:$P$150=$A19,IF('Overzicht UITZENDBURO'!$L$6:$L$150=P$2,IF('Overzicht UITZENDBURO'!$O$6:$O$150=P$4,IF('Overzicht UITZENDBURO'!$R$6:$R$150=\"\",ROW('Overzicht UITZENDBURO'!$R$6:$R$150)-ROW($R$6)+1)))),$C19)),\"\")","v":""},{"$f":"IFERROR(INDEX('Overzicht UITZENDBURO'!$Q$6:$Q$150,SMALL(IF('Overzicht UITZENDBURO'!$P$6:$P$150=$A19,IF('Overzicht UITZENDBURO'!$L$6:$L$150=Q$2,IF('Overzicht UITZENDBURO'!$O$6:$O$150=Q$4,IF('Overzicht UITZENDBURO'!$R$6:$R$150=\"\",ROW('Overzicht UITZENDBURO'!$R$6:$R$150)-ROW($R$6)+1)))),$C19)),\"\")","v":""},{"$f":"IFERROR(INDEX('Overzicht UITZENDBURO'!$Q$6:$Q$150,SMALL(IF('Overzicht UITZENDBURO'!$P$6:$P$150=$A19,IF('Overzicht UITZENDBURO'!$L$6:$L$150=R$2,IF('Overzicht UITZENDBURO'!$O$6:$O$150=R$4,IF('Overzicht UITZENDBURO'!$R$6:$R$150=\"\",ROW('Overzicht UITZENDBURO'!$R$6:$R$150)-ROW($R$6)+1)))),$C19)),\"\")","v":""},{"$f":"IFERROR(INDEX('Overzicht UITZENDBURO'!$Q$6:$Q$150,SMALL(IF('Overzicht UITZENDBURO'!$P$6:$P$150=$A19,IF('Overzicht UITZENDBURO'!$L$6:$L$150=S$2,IF('Overzicht UITZENDBURO'!$O$6:$O$150=S$4,IF('Overzicht UITZENDBURO'!$R$6:$R$150=\"\",ROW('Overzicht UITZENDBURO'!$R$6:$R$150)-ROW($R$6)+1)))),$C19)),\"\")","v":""},{"$f":"IFERROR(INDEX('Overzicht UITZENDBURO'!$Q$6:$Q$150,SMALL(IF('Overzicht UITZENDBURO'!$P$6:$P$150=$A19,IF('Overzicht UITZENDBURO'!$L$6:$L$150=T$2,IF('Overzicht UITZENDBURO'!$O$6:$O$150=T$4,IF('Overzicht UITZENDBURO'!$R$6:$R$150=\"\",ROW('Overzicht UITZENDBURO'!$R$6:$R$150)-ROW($R$6)+1)))),$C19)),\"\")","v":""},{"$f":"IFERROR(INDEX('Overzicht UITZENDBURO'!$Q$6:$Q$150,SMALL(IF('Overzicht UITZENDBURO'!$P$6:$P$150=$A19,IF('Overzicht UITZENDBURO'!$L$6:$L$150=U$2,IF('Overzicht UITZENDBURO'!$O$6:$O$150=U$4,IF('Overzicht UITZENDBURO'!$R$6:$R$150=\"\",ROW('Overzicht UITZENDBURO'!$R$6:$R$150)-ROW($R$6)+1)))),$C19)),\"\")","v":""},{"$f":"IFERROR(INDEX('Overzicht UITZENDBURO'!$Q$6:$Q$150,SMALL(IF('Overzicht UITZENDBURO'!$P$6:$P$150=$A19,IF('Overzicht UITZENDBURO'!$L$6:$L$150=V$2,IF('Overzicht UITZENDBURO'!$O$6:$O$150=V$4,IF('Overzicht UITZENDBURO'!$R$6:$R$150=\"\",ROW('Overzicht UITZENDBURO'!$R$6:$R$150)-ROW($R$6)+1)))),$C19)),\"\")","v":""},{"$f":"IFERROR(INDEX('Overzicht UITZENDBURO'!$Q$6:$Q$150,SMALL(IF('Overzicht UITZENDBURO'!$P$6:$P$150=$A19,IF('Overzicht UITZENDBURO'!$L$6:$L$150=W$2,IF('Overzicht UITZENDBURO'!$O$6:$O$150=W$4,IF('Overzicht UITZENDBURO'!$R$6:$R$150=\"\",ROW('Overzicht UITZENDBURO'!$R$6:$R$150)-ROW($R$6)+1)))),$C19)),\"\")","v":""},{"$f":"IFERROR(INDEX('Overzicht UITZENDBURO'!$Q$6:$Q$150,SMALL(IF('Overzicht UITZENDBURO'!$P$6:$P$150=$A19,IF('Overzicht UITZENDBURO'!$L$6:$L$150=X$2,IF('Overzicht UITZENDBURO'!$O$6:$O$150=X$4,IF('Overzicht UITZENDBURO'!$R$6:$R$150=\"\",ROW('Overzicht UITZENDBURO'!$R$6:$R$150)-ROW($R$6)+1)))),$C19)),\"\")","v":""}]
["LCH",null,3,{"$f":"IFERROR(INDEX('Overzicht UITZENDBURO'!$Q$6:$Q$150,SMALL(IF('Overzicht UITZENDBURO'!$P$6:$P$150=$A20,IF('Overzicht UITZENDBURO'!$L$6:$L$150=D$2,IF('Overzicht UITZENDBURO'!$O$6:$O$150=D$4,IF('Overzicht UITZENDBURO'!$R$6:$R$150=\"\",ROW('Overzicht UITZENDBURO'!$R$6:$R$150)-ROW($R$6)+1)))),$C20)),\"\")","v":""},{"$f":"IFERROR(INDEX('Overzicht UITZENDBURO'!$Q$6:$Q$150,SMALL(IF('Overzicht UITZENDBURO'!$P$6:$P$150=$A20,IF('Overzicht UITZENDBURO'!$L$6:$L$150=E$2,IF('Overzicht UITZENDBURO'!$O$6:$O$150=E$4,IF('Overzicht UITZENDBURO'!$R$6:$R$150=\"\",ROW('Overzicht UITZENDBURO'!$R$6:$R$150)-ROW($R$6)+1)))),$C20)),\"\")","v":""},{"$f":"IFERROR(INDEX('Overzicht UITZENDBURO'!$Q$6:$Q$150,SMALL(IF('Overzicht UITZENDBURO'!$P$6:$P$150=$A20,IF('Overzicht UITZENDBURO'!$L$6:$L$150=F$2,IF('Overzicht UITZENDBURO'!$O$6:$O$150=F$4,IF('Overzicht UITZENDBURO'!$R$6:$R$150=\"\",ROW('Overzicht UITZENDBURO'!$R$6:$R$150)-ROW($R$6)+1)))),$C20)),\"\")","v":""},{"$f":"IFERROR(INDEX('Overzicht UITZENDBURO'!$Q$6:$Q$150,SMALL(IF('Overzicht UITZENDBURO'!$P$6:$P$150=$A20,IF('Overzicht UITZENDBURO'!$L$6:$L$150=G$2,IF('Overzicht UITZENDBURO'!$O$6:$O$150=G$4,IF('Overzicht UITZENDBURO'!$R$6:$R$150=\"\",ROW('Overzicht UITZENDBURO'!$R$6:$R$150)-ROW($R$6)+1)))),$C20)),\"\")","v":""},{"$f":"IFERROR(INDEX('Overzicht UITZENDBURO'!$Q$6:$Q$150,SMALL(IF('Overzicht UITZENDBURO'!$P$6:$P$150=$A20,IF('Overzicht UITZENDBURO'!$L$6:$L$150=H$2,IF('Overzicht UITZENDBURO'!$O$6:$O$150=H$4,IF('Overzicht UITZENDBURO'!$R$6:$R$150=\"\",ROW('Overzicht UITZENDBURO'!$R$6:$R$150)-ROW($R$6)+1)))),$C20)),\"\")","v":""},{"$f":"IFERROR(INDEX('Overzicht UITZENDBURO'!$Q$6:$Q$150,SMALL(IF('Overzicht UITZENDBURO'!$P$6:$P$150=$A20,IF('Overzicht UITZENDBURO'!$L$6:$L$150=I$2,IF('Overzicht UITZENDBURO'!$O$6:$O$150=I$4,IF('Overzicht UITZENDBURO'!$R$6:$R$150=\"\",ROW('Overzicht UITZENDBURO'!$R$6:$R$150)-ROW($R$6)+1)))),$C20)),\"\")","v":""},{"$f":"IFERROR(INDEX('Overzicht UITZENDBURO'!$Q$6:$Q$150,SMALL(IF('Overzicht UITZENDBURO'!$P$6:$P$150=$A20,IF('Overzicht UITZENDBURO'!$L$6:$L$150=J$2,IF('Overzicht UITZENDBURO'!$O$6:$O$150=J$4,IF('Overzicht UITZENDBURO'!$R$6:$R$150=\"\",ROW('Overzicht UITZENDBURO'!$R$6:$R$150)-ROW($R$6)+1)))),$C20)),\"\")","v":""},{"$f":"IFERROR(INDEX('Overzicht UITZENDBURO'!$Q$6:$Q$150,SMALL(IF('Overzicht UITZENDBURO'!$P$6:$P$150=$A20,IF('Overzicht UITZENDBURO'!$L$6:$L$150=K$2,IF('Overzicht UITZENDBURO'!$O$6:$O$150=K$4,IF('Overzicht UITZENDBURO'!$R$6:$R$150=\"\",ROW('Overzicht UITZENDBURO'!$R$6:$R$150)-ROW($R$6)+1)))),$C20)),\"\")","v":""},{"$f":"IFERROR(INDEX('Overzicht UITZENDBURO'!$Q$6:$Q$150,SMALL(IF('Overzicht UITZENDBURO'!$P$6:$P$150=$A20,IF('Overzicht UITZENDBURO'!$L$6:$L$150=L$2,IF('Overzicht UITZENDBURO'!$O$6:$O$150=L$4,IF('Overzicht UITZENDBURO'!$R$6:$R$150=\"\",ROW('Overzicht UITZENDBURO'!$R$6:$R$150)-ROW($R$6)+1)))),$C20)),\"\")","v":""},{"$f":"IFERROR(INDEX('Overzicht UITZENDBURO'!$Q$6:$Q$150,SMALL(IF('Overzicht UITZENDBURO'!$P$6:$P$150=$A20,IF('Overzicht UITZENDBURO'!$L$6:$L$150=M$2,IF('Overzicht UITZENDBURO'!$O$6:$O$150=M$4,IF('Overzicht UITZENDBURO'!$R$6:$R$150=\"\",ROW('Overzicht UITZENDBURO'!$R$6:$R$150)-ROW($R$6)+1)))),$C20)),\"\")","v":""},{"$f":"IFERROR(INDEX('Overzicht UITZENDBURO'!$Q$6:$Q$150,SMALL(IF('Overzicht UITZENDBURO'!$P$6:$P$150=$A20,IF('Overzicht UITZENDBURO'!$L$6:$L$150=N$2,IF('Overzicht UITZENDBURO'!$O$6:$O$150=N$4,IF('Overzicht UITZENDBURO'!$R$6:$R$150=\"\",ROW('Overzicht UITZENDBURO'!$R$6:$R$150)-ROW($R$6)+1)))),$C20)),\"\")","v":""},{"$f":"IFERROR(INDEX('Overzicht UITZENDBURO'!$Q$6:$Q$150,SMALL(IF('Overzicht UITZENDBURO'!$P$6:$P$150=$A20,IF('Overzicht UITZENDBURO'!$L$6:$L$150=O$2,IF('Overzicht UITZENDBURO'!$O$6:$O$150=O$4,IF('Overzicht UITZENDBURO'!$R$6:$R$150=\"\",ROW('Overzicht UITZENDBURO'!$R$6:$R$150)-ROW($R$6)+1)))),$C20)),\"\")","v":""},{"$f":"IFERROR(INDEX('Overzicht UITZENDBURO'!$Q$6:$Q$150,SMALL(IF('Overzicht UITZENDBURO'!$P$6:$P$150=$A20,IF('Overzicht UITZENDBURO'!$L$6:$L$150=P$2,IF('Overzicht UITZENDBURO'!$O$6:$O$150=P$4,IF('Overzicht UITZENDBURO'!$R$6:$R$150=\"\",ROW('Overzicht UITZENDBURO'!$R$6:$R$150)-ROW($R$6)+1)))),$C20)),\"\")","v":""},{"$f":"IFERROR(INDEX('Overzicht UITZENDBURO'!$Q$6:$Q$150,SMALL(IF('Overzicht UITZENDBURO'!$P$6:$P$150=$A20,IF('Overzicht UITZENDBURO'!$L$6:$L$150=Q$2,IF('Overzicht UITZENDBURO'!$O$6:$O$150=Q$4,IF('Overzicht UITZENDBURO'!$R$6:$R$150=\"\",ROW('Overzicht UITZENDBURO'!$R$6:$R$150)-ROW($R$6)+1)))),$C20)),\"\")","v":""},{"$f":"IFERROR(INDEX('Overzicht UITZENDBURO'!$Q$6:$Q$150,SMALL(IF('Overzicht UITZENDBURO'!$P$6:$P$150=$A20,IF('Overzicht UITZENDBURO'!$L$6:$L$150=R$2,IF('Overzicht UITZENDBURO'!$O$6:$O$150=R$4,IF('Overzicht UITZENDBURO'!$R$6:$R$150=\"\",ROW('Overzicht UITZENDBURO'!$R$6:$R$150)-ROW($R$6)+1)))),$C20)),\"\")","v":""},{"$f":"IFERROR(INDEX('Overzicht UITZENDBURO'!$Q$6:$Q$150,SMALL(IF('Overzicht UITZENDBURO'!$P$6:$P$150=$A20,IF('Overzicht UITZENDBURO'!$L$6:$L$150=S$2,IF('Overzicht UITZENDBURO'!$O$6:$O$150=S$4,IF('Overzicht UITZENDBURO'!$R$6:$R$150=\"\",ROW('Overzicht UITZENDBURO'!$R$6:$R$150)-ROW($R$6)+1)))),$C20)),\"\")","v":""},{"$f":"IFERROR(INDEX('Overzicht UITZENDBURO'!$Q$6:$Q$150,SMALL(IF('Overzicht UITZENDBURO'!$P$6:$P$150=$A20,IF('Overzicht UITZENDBURO'!$L$6:$L$150=T$2,IF('Overzicht UITZENDBURO'!$O$6:$O$150=T$4,IF('Overzicht UITZENDBURO'!$R$6:$R$150=\"\",ROW('Overzicht UITZENDBURO'!$R$6:$R$150)-ROW($R$6)+1)))),$C20)),\"\")","v":""},{"$f":"IFERROR(INDEX('Overzicht UITZENDBURO'!$Q$6:$Q$150,SMALL(IF('Overzicht UITZENDBURO'!$P$6:$P$150=$A20,IF('Overzicht UITZENDBURO'!$L$6:$L$150=U$2,IF('Overzicht UITZENDBURO'!$O$6:$O$150=U$4,IF('Overzicht UITZENDBURO'!$R$6:$R$150=\"\",ROW('Overzicht UITZENDBURO'!$R$6:$R$150)-ROW($R$6)+1)))),$C20)),\"\")","v":""},{"$f":"IFERROR(INDEX('Overzicht UITZENDBURO'!$Q$6:$Q$150,SMALL(IF('Overzicht UITZENDBURO'!$P$6:$P$150=$A20,IF('Overzicht UITZENDBURO'!$L$6:$L$150=V$2,IF('Overzicht UITZENDBURO'!$O$6:$O$150=V$4,IF('Overzicht UITZENDBURO'!$R$6:$R$150=\"\",ROW('Overzicht UITZENDBURO'!$R$6:$R$150)-ROW($R$6)+1)))),$C20)),\"\")","v":""},{"$f":"IFERROR(INDEX('Overzicht UITZENDBURO'!$Q$6:$Q$150,SMALL(IF('Overzicht UITZENDBURO'!$P$6:$P$150=$A20,IF('Overzicht UITZENDBURO'!$L$6:$L$150=W$2,IF('Overzicht UITZENDBURO'!$O$6:$O$150=W$4,IF('Overzicht UITZENDBURO'!$R$6:$R$150=\"\",ROW('Overzicht UITZENDBURO'!$R$6:$R$150)-ROW($R$6)+1)))),$C20)),\"\")","v":""},{"$f":"IFERROR(INDEX('Overzicht UITZENDBURO'!$Q$6:$Q$150,SMALL(IF('Overzicht UITZENDBURO'!$P$6:$P$150=$A20,IF('Overzicht UITZENDBURO'!$L$6:$L$150=X$2,IF('Overzicht UITZENDBURO'!$O$6:$O$150=X$4,IF('Overzicht UITZENDBURO'!$R$6:$R$150=\"\",ROW('Overzicht UITZENDBURO'!$R$6:$R$150)-ROW($R$6)+1)))),$C20)),\"\")","v":""}]
["LCH",null,4,{"$f":"IFERROR(INDEX('Overzicht UITZENDBURO'!$Q$6:$Q$150,SMALL(IF('Overzicht UITZENDBURO'!$P$6:$P$150=$A21,IF('Overzicht UITZENDBURO'!$L$6:$L$150=D$2,IF('Overzicht UITZENDBURO'!$O$6:$O$150=D$4,IF('Overzicht UITZENDBURO'!$R$6:$R$150=\"\",ROW('Overzicht UITZENDBURO'!$R$6:$R$150)-ROW($R$6)+1)))),$C21)),\"\")","v":""},{"$f":"IFERROR(INDEX('Overzicht UITZENDBURO'!$Q$6:$Q$150,SMALL(IF('Overzicht UITZENDBURO'!$P$6:$P$150=$A21,IF('Overzicht UITZENDBURO'!$L$6:$L$150=E$2,IF('Overzicht UITZENDBURO'!$O$6:$O$150=E$4,IF('Overzicht UITZENDBURO'!$R$6:$R$150=\"\",ROW('Overzicht UITZENDBURO'!$R$6:$R$150)-ROW($R$6)+1)))),$C21)),\"\")","v":""},{"$f":"IFERROR(INDEX('Overzicht UITZENDBURO'!$Q$6:$Q$150,SMALL(IF('Overzicht UITZENDBURO'!$P$6:$P$150=$A21,IF('Overzicht UITZENDBURO'!$L$6:$L$150=F$2,IF('Overzicht UITZENDBURO'!$O$6:$O$150=F$4,IF('Overzicht UITZENDBURO'!$R$6:$R$150=\"\",ROW('Overzicht UITZENDBURO'!$R$6:$R$150)-ROW($R$6)+1)))),$C21)),\"\")","v":""},{"$f":"IFERROR(INDEX('Overzicht UITZENDBURO'!$Q$6:$Q$150,SMALL(IF('Overzicht UITZENDBURO'!$P$6:$P$150=$A21,IF('Overzicht UITZENDBURO'!$L$6:$L$150=G$2,IF('Overzicht UITZENDBURO'!$O$6:$O$150=G$4,IF('Overzicht UITZENDBURO'!$R$6:$R$150=\"\",ROW('Overzicht UITZENDBURO'!$R$6:$R$150)-ROW($R$6)+1)))),$C21)),\"\")","v":""},{"$f":"IFERROR(INDEX('Overzicht UITZENDBURO'!$Q$6:$Q$150,SMALL(IF('Overzicht UITZENDBURO'!$P$6:$P$150=$A21,IF('Overzicht UITZENDBURO'!$L$6:$L$150=H$2,IF('Overzicht UITZENDBURO'!$O$6:$O$150=H$4,IF('Overzicht UITZENDBURO'!$R$6:$R$150=\"\",ROW('Overzicht UITZENDBURO'!$R$6:$R$150)-ROW($R$6)+1)))),$C21)),\"\")","v":""},{"$f":"IFERROR(INDEX('Overzicht UITZENDBURO'!$Q$6:$Q$150,SMALL(IF('Overzicht UITZENDBURO'!$P$6:$P$150=$A21,IF('Overzicht UITZENDBURO'!$L$6:$L$150=I$2,IF('Overzicht UITZENDBURO'!$O$6:$O$150=I$4,IF('Overzicht UITZENDBURO'!$R$6:$R$150=\"\",ROW('Overzicht UITZENDBURO'!$R$6:$R$150)-ROW($R$6)+1)))),$C21)),\"\")","v":""},{"$f":"IFERROR(INDEX('Overzicht UITZENDBURO'!$Q$6:$Q$150,SMALL(IF('Overzicht UITZENDBURO'!$P$6:$P$150=$A21,IF('Overzicht UITZENDBURO'!$L$6:$L$150=J$2,IF('Overzicht UITZENDBURO'!$O$6:$O$150=J$4,IF('Overzicht UITZENDBURO'!$R$6:$R$150=\"\",ROW('Overzicht UITZENDBURO'!$R$6:$R$150)-ROW($R$6)+1)))),$C21)),\"\")","v":""},{"$f":"IFERROR(INDEX('Overzicht UITZENDBURO'!$Q$6:$Q$150,SMALL(IF('Overzicht UITZENDBURO'!$P$6:$P$150=$A21,IF('Overzicht UITZENDBURO'!$L$6:$L$150=K$2,IF('Overzicht UITZENDBURO'!$O$6:$O$150=K$4,IF('Overzicht UITZENDBURO'!$R$6:$R$150=\"\",ROW('Overzicht UITZENDBURO'!$R$6:$R$150)-ROW($R$6)+1)))),$C21)),\"\")","v":""},{"$f":"IFERROR(INDEX('Overzicht UITZENDBURO'!$Q$6:$Q$150,SMALL(IF('Overzicht UITZENDBURO'!$P$6:$P$150=$A21,IF('Overzicht UITZENDBURO'!$L$6:$L$150=L$2,IF('Overzicht UITZENDBURO'!$O$6:$O$150=L$4,IF('Overzicht UITZENDBURO'!$R$6:$R$150=\"\",ROW('Overzicht UITZENDBURO'!$R$6:$R$150)-ROW($R$6)+1)))),$C21)),\"\")","v":""},{"$f":"IFERROR(INDEX('Overzicht UITZENDBURO'!$Q$6:$Q$150,SMALL(IF('Overzicht UITZENDBURO'!$P$6:$P$150=$A21,IF('Overzicht UITZENDBURO'!$L$6:$L$150=M$2,IF('Overzicht UITZENDBURO'!$O$6:$O$150=M$4,IF('Overzicht UITZENDBURO'!$R$6:$R$150=\"\",ROW('Overzicht UITZENDBURO'!$R$6:$R$150)-ROW($R$6)+1)))),$C21)),\"\")","v":""},{"$f":"IFERROR(INDEX('Overzicht UITZENDBURO'!$Q$6:$Q$150,SMALL(IF('Overzicht UITZENDBURO'!$P$6:$P$150=$A21,IF('Overzicht UITZENDBURO'!$L$6:$L$150=N$2,IF('Overzicht UITZENDBURO'!$O$6:$O$150=N$4,IF('Overzicht UITZENDBURO'!$R$6:$R$150=\"\",ROW('Overzicht UITZENDBURO'!$R$6:$R$150)-ROW($R$6)+1)))),$C21)),\"\")","v":""},{"$f":"IFERROR(INDEX('Overzicht UITZENDBURO'!$Q$6:$Q$150,SMALL(IF('Overzicht UITZENDBURO'!$P$6:$P$150=$A21,IF('Overzicht UITZENDBURO'!$L$6:$L$150=O$2,IF('Overzicht UITZENDBURO'!$O$6:$O$150=O$4,IF('Overzicht UITZENDBURO'!$R$6:$R$150=\"\",ROW('Overzicht UITZENDBURO'!$R$6:$R$150)-ROW($R$6)+1)))),$C21)),\"\")","v":""},{"$f":"IFERROR(INDEX('Overzicht UITZENDBURO'!$Q$6:$Q$150,SMALL(IF('Overzicht UITZENDBURO'!$P$6:$P$150=$A21,IF('Overzicht UITZENDBURO'!$L$6:$L$150=P$2,IF('Overzicht UITZENDBURO'!$O$6:$O$150=P$4,IF('Overzicht UITZENDBURO'!$R$6:$R$150=\"\",ROW('Overzicht UITZENDBURO'!$R$6:$R$150)-ROW($R$6)+1)))),$C21)),\"\")","v":""},{"$f":"IFERROR(INDEX('Overzicht UITZENDBURO'!$Q$6:$Q$150,SMALL(IF('Overzicht UITZENDBURO'!$P$6:$P$150=$A21,IF('Overzicht UITZENDBURO'!$L$6:$L$150=Q$2,IF('Overzicht UITZENDBURO'!$O$6:$O$150=Q$4,IF('Overzicht UITZENDBURO'!$R$6:$R$150=\"\",ROW('Overzicht UITZENDBURO'!$R$6:$R$150)-ROW($R$6)+1)))),$C21)),\"\")","v":""},{"$f":"IFERROR(INDEX('Overzicht UITZENDBURO'!$Q$6:$Q$150,SMALL(IF('Overzicht UITZENDBURO'!$P$6:$P$150=$A21,IF('Overzicht UITZENDBURO'!$L$6:$L$150=R$2,IF('Overzicht UITZENDBURO'!$O$6:$O$150=R$4,IF('Overzicht UITZENDBURO'!$R$6:$R$150=\"\",ROW('Overzicht UITZENDBURO'!$R$6:$R$150)-ROW($R$6)+1)))),$C21)),\"\")","v":""},{"$f":"IFERROR(INDEX('Overzicht UITZENDBURO'!$Q$6:$Q$150,SMALL(IF('Overzicht UITZENDBURO'!$P$6:$P$150=$A21,IF('Overzicht UITZENDBURO'!$L$6:$L$150=S$2,IF('Overzicht UITZENDBURO'!$O$6:$O$150=S$4,IF('Overzicht UITZENDBURO'!$R$6:$R$150=\"\",ROW('Overzicht UITZENDBURO'!$R$6:$R$150)-ROW($R$6)+1)))),$C21)),\"\")","v":""},{"$f":"IFERROR(INDEX('Overzicht UITZENDBURO'!$Q$6:$Q$150,SMALL(IF('Overzicht UITZENDBURO'!$P$6:$P$150=$A21,IF('Overzicht UITZENDBURO'!$L$6:$L$150=T$2,IF('Overzicht UITZENDBURO'!$O$6:$O$150=T$4,IF('Overzicht UITZENDBURO'!$R$6:$R$150=\"\",ROW('Overzicht UITZENDBURO'!$R$6:$R$150)-ROW($R$6)+1)))),$C21)),\"\")","v":""},{"$f":"IFERROR(INDEX('Overzicht UITZENDBURO'!$Q$6:$Q$150,SMALL(IF('Overzicht UITZENDBURO'!$P$6:$P$150=$A21,IF('Overzicht UITZENDBURO'!$L$6:$L$150=U$2,IF('Overzicht UITZENDBURO'!$O$6:$O$150=U$4,IF('Overzicht UITZENDBURO'!$R$6:$R$150=\"\",ROW('Overzicht UITZENDBURO'!$R$6:$R$150)-ROW($R$6)+1)))),$C21)),\"\")","v":""},{"$f":"IFERROR(INDEX('Overzicht UITZENDBURO'!$Q$6:$Q$150,SMALL(IF('Overzicht UITZENDBURO'!$P$6:$P$150=$A21,IF('Overzicht UITZENDBURO'!$L$6:$L$150=V$2,IF('Overzicht UITZENDBURO'!$O$6:$O$150=V$4,IF('Overzicht UITZENDBURO'!$R$6:$R$150=\"\",ROW('Overzicht UITZENDBURO'!$R$6:$R$150)-ROW($R$6)+1)))),$C21)),\"\")","v":""},{"$f":"IFERROR(INDEX('Overzicht UITZENDBURO'!$Q$6:$Q$150,SMALL(IF('Overzicht UITZENDBURO'!$P$6:$P$150=$A21,IF('Overzicht UITZENDBURO'!$L$6:$L$150=W$2,IF('Overzicht UITZENDBURO'!$O$6:$O$150=W$4,IF('Overzicht UITZENDBURO'!$R$6:$R$150=\"\",ROW('Overzicht UITZENDBURO'!$R$6:$R$150)-ROW($R$6)+1)))),$C21)),\"\")","v":""},{"$f":"IFERROR(INDEX('Overzicht UITZENDBURO'!$Q$6:$Q$150,SMALL(IF('Overzicht UITZENDBURO'!$P$6:$P$150=$A21,IF('Overzicht UITZENDBURO'!$L$6:$L$150=X$2,IF('Overzicht UITZENDBURO'!$O$6:$O$150=X$4,IF('Overzicht UITZENDBURO'!$R$6:$R$150=\"\",ROW('Overzicht UITZENDBURO'!$R$6:$R$150)-ROW($R$6)+1)))),$C21)),\"\")","v":""}]
["LCR",null,1,{"$f":"IFERROR(INDEX('Overzicht UITZENDBURO'!$Q$6:$Q$150,SMALL(IF('Overzicht UITZENDBURO'!$P$6:$P$150=$A22,IF('Overzicht UITZENDBURO'!$L$6:$L$150=D$2,IF('Overzicht UITZENDBURO'!$O$6:$O$150=D$4,IF('Overzicht UITZENDBURO'!$R$6:$R$150=\"\",ROW('Overzicht UITZENDBURO'!$R$6:$R$150)-ROW($R$6)+1)))),$C22)),\"\")","v":"Willem"},{"$f":"IFERROR(INDEX('Overzicht UITZENDBURO'!$Q$6:$Q$150,SMALL(IF('Overzicht UITZENDBURO'!$P$6:$P$150=$A22,IF('Overzicht UITZENDBURO'!$L$6:$L$150=E$2,IF('Overzicht UITZENDBURO'!$O$6:$O$150=E$4,IF('Overzicht UITZENDBURO'!$R$6:$R$150=\"\",ROW('Overzicht UITZENDBURO'!$R$6:$R$150)-ROW($R$6)+1)))),$C22)),\"\")","v":"Piet"},{"$f":"IFERROR(INDEX('Overzicht UITZENDBURO'!$Q$6:$Q$150,SMALL(IF('Overzicht UITZENDBURO'!$P$6:$P$150=$A22,IF('Overzicht UITZENDBURO'!$L$6:$L$150=F$2,IF('Overzicht UITZENDBURO'!$O$6:$O$150=F$4,IF('Overzicht UITZENDBURO'!$R$6:$R$150=\"\",ROW('Overzicht UITZENDBURO'!$R$6:$R$150)-ROW($R$6)+1)))),$C22)),\"\")","v":""},{"$f":"IFERROR(INDEX('Overzicht UITZENDBURO'!$Q$6:$Q$150,SMALL(IF('Overzicht UITZENDBURO'!$P$6:$P$150=$A22,IF('Overzicht UITZENDBURO'!$L$6:$L$150=G$2,IF('Overzicht UITZENDBURO'!$O$6:$O$150=G$4,IF('Overzicht UITZENDBURO'!$R$6:$R$150=\"\",ROW('Overzicht UITZENDBURO'!$R$6:$R$150)-ROW($R$6)+1)))),$C22)),\"\")","v":""},{"$f":"IFERROR(INDEX('Overzicht UITZENDBURO'!$Q$6:$Q$150,SMALL(IF('Overzicht UITZENDBURO'!$P$6:$P$150=$A22,IF('Overzicht UITZENDBURO'!$L$6:$L$150=H$2,IF('Overzicht UITZENDBURO'!$O$6:$O$150=H$4,IF('Overzicht UITZENDBURO'!$R$6:$R$150=\"\",ROW('Overzicht UITZENDBURO'!$R$6:$R$150)-ROW($R$6)+1)))),$C22)),\"\")","v":"Joop"},{"$f":"IFERROR(INDEX('Overzicht UITZENDBURO'!$Q$6:$Q$150,SMALL(IF('Overzicht UITZENDBURO'!$P$6:$P$150=$A22,IF('Overzicht UITZENDBURO'!$L$6:$L$150=I$2,IF('Overzicht UITZENDBURO'!$O$6:$O$150=I$4,IF('Overzicht UITZENDBURO'!$R$6:$R$150=\"\",ROW('Overzicht UITZENDBURO'!$R$6:$R$150)-ROW($R$6)+1)))),$C22)),\"\")","v":""},{"$f":"IFERROR(INDEX('Overzicht UITZENDBURO'!$Q$6:$Q$150,SMALL(IF('Overzicht UITZENDBURO'!$P$6:$P$150=$A22,IF('Overzicht UITZENDBURO'!$L$6:$L$150=J$2,IF('Overzicht UITZENDBURO'!$O$6:$O$150=J$4,IF('Overzicht UITZENDBURO'!$R$6:$R$150=\"\",ROW('Overzicht UITZENDBURO'!$R$6:$R$150)-ROW($R$6)+1)))),$C22)),\"\")","v":"Udo"},{"$f":"IFERROR(INDEX('Overzicht UITZENDBURO'!$Q$6:$Q$150,SMALL(IF('Overzicht UITZENDBURO'!$P$6:$P$150=$A22,IF('Overzicht UITZENDBURO'!$L$6:$L$150=K$2,IF('Overzicht UITZENDBURO'!$O$6:$O$150=K$4,IF('Overzicht UITZENDBURO'!$R$6:$R$150=\"\",ROW('Overzicht UITZENDBURO'!$R$6:$R$150)-ROW($R$6)+1)))),$C22)),\"\")","v":""},{"$f":"IFERROR(INDEX('Overzicht UITZENDBURO'!$Q$6:$Q$150,SMALL(IF('Overzicht UITZENDBURO'!$P$6:$P$150=$A22,IF('Overzicht UITZENDBURO'!$L$6:$L$150=L$2,IF('Overzicht UITZENDBURO'!$O$6:$O$150=L$4,IF('Overzicht UITZENDBURO'!$R$6:$R$150=\"\",ROW('Overzicht UITZENDBURO'!$R$6:$R$150)-ROW($R$6)+1)))),$C22)),\"\")","v":""},{"$f":"IFERROR(INDEX('Overzicht UITZENDBURO'!$Q$6:$Q$150,SMALL(IF('Overzicht UITZENDBURO'!$P$6:$P$150=$A22,IF('Overzicht UITZENDBURO'!$L$6:$L$150=M$2,IF('Overzicht UITZENDBURO'!$O$6:$O$150=M$4,IF('Overzicht UITZENDBURO'!$R$6:$R$150=\"\",ROW('Overzicht UITZENDBURO'!$R$6:$R$150)-ROW($R$6)+1)))),$C22)),\"\")","v":""},{"$f":"IFERROR(INDEX('Overzicht UITZENDBURO'!$Q$6:$Q$150,SMALL(IF('Overzicht UITZENDBURO'!$P$6:$P$150=$A22,IF('Overzicht UITZENDBURO'!$L$6:$L$150=N$2,IF('Overzicht UITZENDBURO'!$O$6:$O$150=N$4,IF('Overzicht UITZENDBURO'!$R$6:$R$150=\"\",ROW('Overzicht UITZENDBURO'!$R$6:$R$150)-ROW($R$6)+1)))),$C22)),\"\")","v":""},{"$f":"IFERROR(INDEX('Overzicht UITZENDBURO'!$Q$6:$Q$150,SMALL(IF('Overzicht UITZENDBURO'!$P$6:$P$150=$A22,IF('Overzicht UITZENDBURO'!$L$6:$L$150=O$2,IF('Overzicht UITZENDBURO'!$O$6:$O$150=O$4,IF('Overzicht UITZENDBURO'!$R$6:$R$150=\"\",ROW('Overzicht UITZENDBURO'!$R$6:$R$150)-ROW($R$6)+1)))),$C22)),\"\")","v":""},{"$f":"IFERROR(INDEX('Overzicht UITZENDBURO'!$Q$6:$Q$150,SMALL(IF('Overzicht UITZENDBURO'!$P$6:$P$150=$A22,IF('Overzicht UITZENDBURO'!$L$6:$L$150=P$2,IF('Overzicht UITZENDBURO'!$O$6:$O$150=P$4,IF('Overzicht UITZENDBURO'!$R$6:$R$150=\"\",ROW('Overzicht UITZENDBURO'!$R$6:$R$150)-ROW($R$6)+1)))),$C22)),\"\")","v":""},{"$f":"IFERROR(INDEX('Overzicht UITZENDBURO'!$Q$6:$Q$150,SMALL(IF('Overzicht UITZENDBURO'!$P$6:$P$150=$A22,IF('Overzicht UITZENDBURO'!$L$6:$L$150=Q$2,IF('Overzicht UITZENDBURO'!$O$6:$O$150=Q$4,IF('Overzicht UITZENDBURO'!$R$6:$R$150=\"\",ROW('Overzicht UITZENDBURO'!$R$6:$R$150)-ROW($R$6)+1)))),$C22)),\"\")","v":""},{"$f":"IFERROR(INDEX('Overzicht UITZENDBURO'!$Q$6:$Q$150,SMALL(IF('Overzicht UITZENDBURO'!$P$6:$P$150=$A22,IF('Overzicht UITZENDBURO'!$L$6:$L$150=R$2,IF('Overzicht UITZENDBURO'!$O$6:$O$150=R$4,IF('Overzicht UITZENDBURO'!$R$6:$R$150=\"\",ROW('Overzicht UITZENDBURO'!$R$6:$R$150)-ROW($R$6)+1)))),$C22)),\"\")","v":""},{"$f":"IFERROR(INDEX('Overzicht UITZENDBURO'!$Q$6:$Q$150,SMALL(IF('Overzicht UITZENDBURO'!$P$6:$P$150=$A22,IF('Overzicht UITZENDBURO'!$L$6:$L$150=S$2,IF('Overzicht UITZENDBURO'!$O$6:$O$150=S$4,IF('Overzicht UITZENDBURO'!$R$6:$R$150=\"\",ROW('Overzicht UITZENDBURO'!$R$6:$R$150)-ROW($R$6)+1)))),$C22)),\"\")","v":""},{"$f":"IFERROR(INDEX('Overzicht UITZENDBURO'!$Q$6:$Q$150,SMALL(IF('Overzicht UITZENDBURO'!$P$6:$P$150=$A22,IF('Overzicht UITZENDBURO'!$L$6:$L$150=T$2,IF('Overzicht UITZENDBURO'!$O$6:$O$150=T$4,IF('Overzicht UITZENDBURO'!$R$6:$R$150=\"\",ROW('Overzicht UITZENDBURO'!$R$6:$R$150)-ROW($R$6)+1)))),$C22)),\"\")","v":""},{"$f":"IFERROR(INDEX('Overzicht UITZENDBURO'!$Q$6:$Q$150,SMALL(IF('Overzicht UITZENDBURO'!$P$6:$P$150=$A22,IF('Overzicht UITZENDBURO'!$L$6:$L$150=U$2,IF('Overzicht UITZENDBURO'!$O$6:$O$150=U$4,IF('Overzicht UITZENDBURO'!$R$6:$R$150=\"\",ROW('Overzicht UITZENDBURO'!$R$6:$R$150)-ROW($R$6)+1)))),$C22)),\"\")","v":""},{"$f":"IFERROR(INDEX('Overzicht UITZENDBURO'!$Q$6:$Q$150,SMALL(IF('Overzicht UITZENDBURO'!$P$6:$P$150=$A22,IF('Overzicht UITZENDBURO'!$L$6:$L$150=V$2,IF('Overzicht UITZENDBURO'!$O$6:$O$150=V$4,IF('Overzicht UITZENDBURO'!$R$6:$R$150=\"\",ROW('Overzicht UITZENDBURO'!$R$6:$R$150)-ROW($R$6)+1)))),$C22)),\"\")","v":""},{"$f":"IFERROR(INDEX('Overzicht UITZENDBURO'!$Q$6:$Q$150,SMALL(IF('Overzicht UITZENDBURO'!$P$6:$P$150=$A22,IF('Overzicht UITZENDBURO'!$L$6:$L$150=W$2,IF('Overzicht UITZENDBURO'!$O$6:$O$150=W$4,IF('Overzicht UITZENDBURO'!$R$6:$R$150=\"\",ROW('Overzicht UITZENDBURO'!$R$6:$R$150)-ROW($R$6)+1)))),$C22)),\"\")","v":""},{"$f":"IFERROR(INDEX('Overzicht UITZENDBURO'!$Q$6:$Q$150,SMALL(IF('Overzicht UITZENDBURO'!$P$6:$P$150=$A22,IF('Overzicht UITZENDBURO'!$L$6:$L$150=X$2,IF('Overzicht UITZENDBURO'!$O$6:$O$150=X$4,IF('Overzicht UITZENDBURO'!$R$6:$R$150=\"\",ROW('Overzicht UITZENDBURO'!$R$6:$R$150)-ROW($R$6)+1)))),$C22)),\"\")","v":""}]
["LCR",null,2,{"$f":"IFERROR(INDEX('Overzicht UITZENDBURO'!$Q$6:$Q$150,SMALL(IF('Overzicht UITZENDBURO'!$P$6:$P$150=$A23,IF('Overzicht UITZENDBURO'!$L$6:$L$150=D$2,IF('Overzicht UITZENDBURO'!$O$6:$O$150=D$4,IF('Overzicht UITZENDBURO'!$R$6:$R$150=\"\",ROW('Overzicht UITZENDBURO'!$R$6:$R$150)-ROW($R$6)+1)))),$C23)),\"\")","v":""},{"$f":"IFERROR(INDEX('Overzicht UITZENDBURO'!$Q$6:$Q$150,SMALL(IF('Overzicht UITZENDBURO'!$P$6:$P$150=$A23,IF('Overzicht UITZENDBURO'!$L$6:$L$150=E$2,IF('Overzicht UITZENDBURO'!$O$6:$O$150=E$4,IF('Overzicht UITZENDBURO'!$R$6:$R$150=\"\",ROW('Overzicht UITZENDBURO'!$R$6:$R$150)-ROW($R$6)+1)))),$C23)),\"\")","v":""},{"$f":"IFERROR(INDEX('Overzicht UITZENDBURO'!$Q$6:$Q$150,SMALL(IF('Overzicht UITZENDBURO'!$P$6:$P$150=$A23,IF('Overzicht UITZENDBURO'!$L$6:$L$150=F$2,IF('Overzicht UITZENDBURO'!$O$6:$O$150=F$4,IF('Overzicht UITZENDBURO'!$R$6:$R$150=\"\",ROW('Overzicht UITZENDBURO'!$R$6:$R$150)-ROW($R$6)+1)))),$C23)),\"\")","v":""},{"$f":"IFERROR(INDEX('Overzicht UITZENDBURO'!$Q$6:$Q$150,SMALL(IF('Overzicht UITZENDBURO'!$P$6:$P$150=$A23,IF('Overzicht UITZENDBURO'!$L$6:$L$150=G$2,IF('Overzicht UITZENDBURO'!$O$6:$O$150=G$4,IF('Overzicht UITZENDBURO'!$R$6:$R$150=\"\",ROW('Overzicht UITZENDBURO'!$R$6:$R$150)-ROW($R$6)+1)))),$C23)),\"\")","v":""},{"$f":"IFERROR(INDEX('Overzicht UITZENDBURO'!$Q$6:$Q$150,SMALL(IF('Overzicht UITZENDBURO'!$P$6:$P$150=$A23,IF('Overzicht UITZENDBURO'!$L$6:$L$150=H$2,IF('Overzicht UITZENDBURO'!$O$6:$O$150=H$4,IF('Overzicht UITZENDBURO'!$R$6:$R$150=\"\",ROW('Overzicht UITZENDBURO'!$R$6:$R$150)-ROW($R$6)+1)))),$C23)),\"\")","v":""},{"$f":"IFERROR(INDEX('Overzicht UITZENDBURO'!$Q$6:$Q$150,SMALL(IF('Overzicht UITZENDBURO'!$P$6:$P$150=$A23,IF('Overzicht UITZENDBURO'!$L$6:$L$150=I$2,IF('Overzicht UITZENDBURO'!$O$6:$O$150=I$4,IF('Overzicht UITZENDBURO'!$R$6:$R$150=\"\",ROW('Overzicht UITZENDBURO'!$R$6:$R$150)-ROW($R$6)+1)))),$C23)),\"\")","v":""},{"$f":"IFERROR(INDEX('Overzicht UITZENDBURO'!$Q$6:$Q$150,SMALL(IF('Overzicht UITZENDBURO'!$P$6:$P$150=$A23,IF('Overzicht UITZENDBURO'!$L$6:$L$150=J$2,IF('Overzicht UITZENDBURO'!$O$6:$O$150=J$4,IF('Overzicht UITZENDBURO'!$R$6:$R$150=\"\",ROW('Overzicht UITZENDBURO'!$R$6:$R$150)-ROW($R$6)+1)))),$C23)),\"\")","v":""},{"$f":"IFERROR(INDEX('Overzicht UITZENDBURO'!$Q$6:$Q$150,SMALL(IF('Overzicht UITZENDBURO'!$P$6:$P$150=$A23,IF('Overzicht UITZENDBURO'!$L$6:$L$150=K$2,IF('Overzicht UITZENDBURO'!$O$6:$O$150=K$4,IF('Overzicht UITZENDBURO'!$R$6:$R$150=\"\",ROW('Overzicht UITZENDBURO'!$R$6:$R$150)-ROW($R$6)+1)))),$C23)),\"\")","v":""},{"$f":"IFERROR(INDEX('Overzicht UITZENDBURO'!$Q$6:$Q$150,SMALL(IF('Overzicht UITZENDBURO'!$P$6:$P$150=$A23,IF('Overzicht UITZENDBURO'!$L$6:$L$150=L$2,IF('Overzicht UITZENDBURO'!$O$6:$O$150=L$4,IF('Overzicht UITZENDBURO'!$R$6:$R$150=\"\",ROW('Overzicht UITZENDBURO'!$R$6:$R$150)-ROW($R$6)+1)))),$C23)),\"\")","v":""},{"$f":"IFERROR(INDEX('Overzicht UITZENDBURO'!$Q$6:$Q$150,SMALL(IF('Overzicht UITZENDBURO'!$P$6:$P$150=$A23,IF('Overzicht UITZENDBURO'!$L$6:$L$150=M$2,IF('Overzicht UITZENDBURO'!$O$6:$O$150=M$4,IF('Overzicht UITZENDBURO'!$R$6:$R$150=\"\",ROW('Overzicht UITZENDBURO'!$R$6:$R$150)-ROW($R$6)+1)))),$C23)),\"\")","v":""},{"$f":"IFERROR(INDEX('Overzicht UITZENDBURO'!$Q$6:$Q$150,SMALL(IF('Overzicht UITZENDBURO'!$P$6:$P$150=$A23,IF('Overzicht UITZENDBURO'!$L$6:$L$150=N$2,IF('Overzicht UITZENDBURO'!$O$6:$O$150=N$4,IF('Overzicht UITZENDBURO'!$R$6:$R$150=\"\",ROW('Overzicht UITZENDBURO'!$R$6:$R$150)-ROW($R$6)+1)))),$C23)),\"\")","v":""},{"$f":"IFERROR(INDEX('Overzicht UITZENDBURO'!$Q$6:$Q$150,SMALL(IF('Overzicht UITZENDBURO'!$P$6:$P$150=$A23,IF('Overzicht UITZENDBURO'!$L$6:$L$150=O$2,IF('Overzicht UITZENDBURO'!$O$6:$O$150=O$4,IF('Overzicht UITZENDBURO'!$R$6:$R$150=\"\",ROW('Overzicht UITZENDBURO'!$R$6:$R$150)-ROW($R$6)+1)))),$C23)),\"\")","v":""},{"$f":"IFERROR(INDEX('Overzicht UITZENDBURO'!$Q$6:$Q$150,SMALL(IF('Overzicht UITZENDBURO'!$P$6:$P$150=$A23,IF('Overzicht UITZENDBURO'!$L$6:$L$150=P$2,IF('Overzicht UITZENDBURO'!$O$6:$O$150=P$4,IF('Overzicht UITZENDBURO'!$R$6:$R$150=\"\",ROW('Overzicht UITZENDBURO'!$R$6:$R$150)-ROW($R$6)+1)))),$C23)),\"\")","v":""},{"$f":"IFERROR(INDEX('Overzicht UITZENDBURO'!$Q$6:$Q$150,SMALL(IF('Overzicht UITZENDBURO'!$P$6:$P$150=$A23,IF('Overzicht UITZENDBURO'!$L$6:$L$150=Q$2,IF('Overzicht UITZENDBURO'!$O$6:$O$150=Q$4,IF('Overzicht UITZENDBURO'!$R$6:$R$150=\"\",ROW('Overzicht UITZENDBURO'!$R$6:$R$150)-ROW($R$6)+1)))),$C23)),\"\")","v":""},{"$f":"IFERROR(INDEX('Overzicht UITZENDBURO'!$Q$6:$Q$150,SMALL(IF('Overzicht UITZENDBURO'!$P$6:$P$150=$A23,IF('Overzicht UITZENDBURO'!$L$6:$L$150=R$2,IF('Overzicht UITZENDBURO'!$O$6:$O$150=R$4,IF('Overzicht UITZENDBURO'!$R$6:$R$150=\"\",ROW('Overzicht UITZENDBURO'!$R$6:$R$150)-ROW($R$6)+1)))),$C23)),\"\")","v":""},{"$f":"IFERROR(INDEX('Overzicht UITZENDBURO'!$Q$6:$Q$150,SMALL(IF('Overzicht UITZENDBURO'!$P$6:$P$150=$A23,IF('Overzicht UITZENDBURO'!$L$6:$L$150=S$2,IF('Overzicht UITZENDBURO'!$O$6:$O$150=S$4,IF('Overzicht UITZENDBURO'!$R$6:$R$150=\"\",ROW('Overzicht UITZENDBURO'!$R$6:$R$150)-ROW($R$6)+1)))),$C23)),\"\")","v":""},{"$f":"IFERROR(INDEX('Overzicht UITZENDBURO'!$Q$6:$Q$150,SMALL(IF('Overzicht UITZENDBURO'!$P$6:$P$150=$A23,IF('Overzicht UITZENDBURO'!$L$6:$L$150=T$2,IF('Overzicht UITZENDBURO'!$O$6:$O$150=T$4,IF('Overzicht UITZENDBURO'!$R$6:$R$150=\"\",ROW('Overzicht UITZENDBURO'!$R$6:$R$150)-ROW($R$6)+1)))),$C23)),\"\")","v":""},{"$f":"IFERROR(INDEX('Overzicht UITZENDBURO'!$Q$6:$Q$150,SMALL(IF('Overzicht UITZENDBURO'!$P$6:$P$150=$A23,IF('Overzicht UITZENDBURO'!$L$6:$L$150=U$2,IF('Overzicht UITZENDBURO'!$O$6:$O$150=U$4,IF('Overzicht UITZENDBURO'!$R$6:$R$150=\"\",ROW('Overzicht UITZENDBURO'!$R$6:$R$150)-ROW($R$6)+1)))),$C23)),\"\")","v":""},{"$f":"IFERROR(INDEX('Overzicht UITZENDBURO'!$Q$6:$Q$150,SMALL(IF('Overzicht UITZENDBURO'!$P$6:$P$150=$A23,IF('Overzicht UITZENDBURO'!$L$6:$L$150=V$2,IF('Overzicht UITZENDBURO'!$O$6:$O$150=V$4,IF('Overzicht UITZENDBURO'!$R$6:$R$150=\"\",ROW('Overzicht UITZENDBURO'!$R$6:$R$150)-ROW($R$6)+1)))),$C23)),\"\")","v":""},{"$f":"IFERROR(INDEX('Overzicht UITZENDBURO'!$Q$6:$Q$150,SMALL(IF('Overzicht UITZENDBURO'!$P$6:$P$150=$A23,IF('Overzicht UITZENDBURO'!$L$6:$L$150=W$2,IF('Overzicht UITZENDBURO'!$O$6:$O$150=W$4,IF('Overzicht UITZENDBURO'!$R$6:$R$150=\"\",ROW('Overzicht UITZENDBURO'!$R$6:$R$150)-ROW($R$6)+1)))),$C23)),\"\")","v":""},{"$f":"IFERROR(INDEX('Overzicht UITZENDBURO'!$Q$6:$Q$150,SMALL(IF('Overzicht UITZENDBURO'!$P$6:$P$150=$A23,IF('Overzicht UITZENDBURO'!$L$6:$L$150=X$2,IF('Overzicht UITZENDBURO'!$O$6:$O$150=X$4,IF('Overzicht UITZENDBURO'!$R$6:$R$150=\"\",ROW('Overzicht UITZENDBURO'!$R$6:$R$150)-ROW($R$6)+1)))),$C23)),\"\")","v":""}]
["LCR",null,3,{"$f":"IFERROR(INDEX('Overzicht UITZENDBURO'!$Q$6:$Q$150,SMALL(IF('Overzicht UITZENDBURO'!$P$6:$P$150=$A24,IF('Overzicht UITZENDBURO'!$L$6:$L$150=D$2,IF('Overzicht UITZENDBURO'!$O$6:$O$150=D$4,IF('Overzicht UITZENDBURO'!$R$6:$R$150=\"\",ROW('Overzicht UITZENDBURO'!$R$6:$R$150)-ROW($R$6)+1)))),$C24)),\"\")","v":""},{"$f":"IFERROR(INDEX('Overzicht UITZENDBURO'!$Q$6:$Q$150,SMALL(IF('Overzicht UITZENDBURO'!$P$6:$P$150=$A24,IF('Overzicht UITZENDBURO'!$L$6:$L$150=E$2,IF('Overzicht UITZENDBURO'!$O$6:$O$150=E$4,IF('Overzicht UITZENDBURO'!$R$6:$R$150=\"\",ROW('Overzicht UITZENDBURO'!$R$6:$R$150)-ROW($R$6)+1)))),$C24)),\"\")","v":""},{"$f":"IFERROR(INDEX('Overzicht UITZENDBURO'!$Q$6:$Q$150,SMALL(IF('Overzicht UITZENDBURO'!$P$6:$P$150=$A24,IF('Overzicht UITZENDBURO'!$L$6:$L$150=F$2,IF('Overzicht UITZENDBURO'!$O$6:$O$150=F$4,IF('Overzicht UITZENDBURO'!$R$6:$R$150=\"\",ROW('Overzicht UITZENDBURO'!$R$6:$R$150)-ROW($R$6)+1)))),$C24)),\"\")","v":""},{"$f":"IFERROR(INDEX('Overzicht UITZENDBURO'!$Q$6:$Q$150,SMALL(IF('Overzicht UITZENDBURO'!$P$6:$P$150=$A24,IF('Overzicht UITZENDBURO'!$L$6:$L$150=G$2,IF('Overzicht UITZENDBURO'!$O$6:$O$150=G$4,IF('Overzicht UITZENDBURO'!$R$6:$R$150=\"\",ROW('Overzicht UITZENDBURO'!$R$6:$R$150)-ROW($R$6)+1)))),$C24)),\"\")","v":""},{"$f":"IFERROR(INDEX('Overzicht UITZENDBURO'!$Q$6:$Q$150,SMALL(IF('Overzicht UITZENDBURO'!$P$6:$P$150=$A24,IF('Overzicht UITZENDBURO'!$L$6:$L$150=H$2,IF('Overzicht UITZENDBURO'!$O$6:$O$150=H$4,IF('Overzicht UITZENDBURO'!$R$6:$R$150=\"\",ROW('Overzicht UITZENDBURO'!$R$6:$R$150)-ROW($R$6)+1)))),$C24)),\"\")","v":""},{"$f":"IFERROR(INDEX('Overzicht UITZENDBURO'!$Q$6:$Q$150,SMALL(IF('Overzicht UITZENDBURO'!$P$6:$P$150=$A24,IF('Overzicht UITZENDBURO'!$L$6:$L$150=I$2,IF('Overzicht UITZENDBURO'!$O$6:$O$150=I$4,IF('Overzicht UITZENDBURO'!$R$6:$R$150=\"\",ROW('Overzicht UITZENDBURO'!$R$6:$R$150)-ROW($R$6)+1)))),$C24)),\"\")","v":""},{"$f":"IFERROR(INDEX('Overzicht UITZENDBURO'!$Q$6:$Q$150,SMALL(IF('Overzicht UITZENDBURO'!$P$6:$P$150=$A24,IF('Overzicht UITZENDBURO'!$L$6:$L$150=J$2,IF('Overzicht UITZENDBURO'!$O$6:$O$150=J$4,IF('Overzicht UITZENDBURO'!$R$6:$R$150=\"\",ROW('Overzicht UITZENDBURO'!$R$6:$R$150)-ROW($R$6)+1)))),$C24)),\"\")","v":""},{"$f":"IFERROR(INDEX('Overzicht UITZENDBURO'!$Q$6:$Q$150,SMALL(IF('Overzicht UITZENDBURO'!$P$6:$P$150=$A24,IF('Overzicht UITZENDBURO'!$L$6:$L$150=K$2,IF('Overzicht UITZENDBURO'!$O$6:$O$150=K$4,IF('Overzicht UITZENDBURO'!$R$6:$R$150=\"\",ROW('Overzicht UITZENDBURO'!$R$6:$R$150)-ROW($R$6)+1)))),$C24)),\"\")","v":""},{"$f":"IFERROR(INDEX('Overzicht UITZENDBURO'!$Q$6:$Q$150,SMALL(IF('Overzicht UITZENDBURO'!$P$6:$P$150=$A24,IF('Overzicht UITZENDBURO'!$L$6:$L$150=L$2,IF('Overzicht UITZENDBURO'!$O$6:$O$150=L$4,IF('Overzicht UITZENDBURO'!$R$6:$R$150=\"\",ROW('Overzicht UITZENDBURO'!$R$6:$R$150)-ROW($R$6)+1)))),$C24)),\"\")","v":""},{"$f":"IFERROR(INDEX('Overzicht UITZENDBURO'!$Q$6:$Q$150,SMALL(IF('Overzicht UITZENDBURO'!$P$6:$P$150=$A24,IF('Overzicht UITZENDBURO'!$L$6:$L$150=M$2,IF('Overzicht UITZENDBURO'!$O$6:$O$150=M$4,IF('Overzicht UITZENDBURO'!$R$6:$R$150=\"\",ROW('Overzicht UITZENDBURO'!$R$6:$R$150)-ROW($R$6)+1)))),$C24)),\"\")","v":""},{"$f":"IFERROR(INDEX('Overzicht UITZENDBURO'!$Q$6:$Q$150,SMALL(IF('Overzicht UITZENDBURO'!$P$6:$P$150=$A24,IF('Overzicht UITZENDBURO'!$L$6:$L$150=N$2,IF('Overzicht UITZENDBURO'!$O$6:$O$150=N$4,IF('Overzicht UITZENDBURO'!$R$6:$R$150=\"\",ROW('Overzicht UITZENDBURO'!$R$6:$R$150)-ROW($R$6)+1)))),$C24)),\"\")","v":""},{"$f":"IFERROR(INDEX('Overzicht UITZENDBURO'!$Q$6:$Q$150,SMALL(IF('Overzicht UITZENDBURO'!$P$6:$P$150=$A24,IF('Overzicht UITZENDBURO'!$L$6:$L$150=O$2,IF('Overzicht UITZENDBURO'!$O$6:$O$150=O$4,IF('Overzicht UITZENDBURO'!$R$6:$R$150=\"\",ROW('Overzicht UITZENDBURO'!$R$6:$R$150)-ROW($R$6)+1)))),$C24)),\"\")","v":""},{"$f":"IFERROR(INDEX('Overzicht UITZENDBURO'!$Q$6:$Q$150,SMALL(IF('Overzicht UITZENDBURO'!$P$6:$P$150=$A24,IF('Overzicht UITZENDBURO'!$L$6:$L$150=P$2,IF('Overzicht UITZENDBURO'!$O$6:$O$150=P$4,IF('Overzicht UITZENDBURO'!$R$6:$R$150=\"\",ROW('Overzicht UITZENDBURO'!$R$6:$R$150)-ROW($R$6)+1)))),$C24)),\"\")","v":""},{"$f":"IFERROR(INDEX('Overzicht UITZENDBURO'!$Q$6:$Q$150,SMALL(IF('Overzicht UITZENDBURO'!$P$6:$P$150=$A24,IF('Overzicht UITZENDBURO'!$L$6:$L$150=Q$2,IF('Overzicht UITZENDBURO'!$O$6:$O$150=Q$4,IF('Overzicht UITZENDBURO'!$R$6:$R$150=\"\",ROW('Overzicht UITZENDBURO'!$R$6:$R$150)-ROW($R$6)+1)))),$C24)),\"\")","v":""},{"$f":"IFERROR(INDEX('Overzicht UITZENDBURO'!$Q$6:$Q$150,SMALL(IF('Overzicht UITZENDBURO'!$P$6:$P$150=$A24,IF('Overzicht UITZENDBURO'!$L$6:$L$150=R$2,IF('Overzicht UITZENDBURO'!$O$6:$O$150=R$4,IF('Overzicht UITZENDBURO'!$R$6:$R$150=\"\",ROW('Overzicht UITZENDBURO'!$R$6:$R$150)-ROW($R$6)+1)))),$C24)),\"\")","v":""},{"$f":"IFERROR(INDEX('Overzicht UITZENDBURO'!$Q$6:$Q$150,SMALL(IF('Overzicht UITZENDBURO'!$P$6:$P$150=$A24,IF('Overzicht UITZENDBURO'!$L$6:$L$150=S$2,IF('Overzicht UITZENDBURO'!$O$6:$O$150=S$4,IF('Overzicht UITZENDBURO'!$R$6:$R$150=\"\",ROW('Overzicht UITZENDBURO'!$R$6:$R$150)-ROW($R$6)+1)))),$C24)),\"\")","v":""},{"$f":"IFERROR(INDEX('Overzicht UITZENDBURO'!$Q$6:$Q$150,SMALL(IF('Overzicht UITZENDBURO'!$P$6:$P$150=$A24,IF('Overzicht UITZENDBURO'!$L$6:$L$150=T$2,IF('Overzicht UITZENDBURO'!$O$6:$O$150=T$4,IF('Overzicht UITZENDBURO'!$R$6:$R$150=\"\",ROW('Overzicht UITZENDBURO'!$R$6:$R$150)-ROW($R$6)+1)))),$C24)),\"\")","v":""},{"$f":"IFERROR(INDEX('Overzicht UITZENDBURO'!$Q$6:$Q$150,SMALL(IF('Overzicht UITZENDBURO'!$P$6:$P$150=$A24,IF('Overzicht UITZENDBURO'!$L$6:$L$150=U$2,IF('Overzicht UITZENDBURO'!$O$6:$O$150=U$4,IF('Overzicht UITZENDBURO'!$R$6:$R$150=\"\",ROW('Overzicht UITZENDBURO'!$R$6:$R$150)-ROW($R$6)+1)))),$C24)),\"\")","v":""},{"$f":"IFERROR(INDEX('Overzicht UITZENDBURO'!$Q$6:$Q$150,SMALL(IF('Overzicht UITZENDBURO'!$P$6:$P$150=$A24,IF('Overzicht UITZENDBURO'!$L$6:$L$150=V$2,IF('Overzicht UITZENDBURO'!$O$6:$O$150=V$4,IF('Overzicht UITZENDBURO'!$R$6:$R$150=\"\",ROW('Overzicht UITZENDBURO'!$R$6:$R$150)-ROW($R$6)+1)))),$C24)),\"\")","v":""},{"$f":"IFERROR(INDEX('Overzicht UITZENDBURO'!$Q$6:$Q$150,SMALL(IF('Overzicht UITZENDBURO'!$P$6:$P$150=$A24,IF('Overzicht UITZENDBURO'!$L$6:$L$150=W$2,IF('Overzicht UITZENDBURO'!$O$6:$O$150=W$4,IF('Overzicht UITZENDBURO'!$R$6:$R$150=\"\",ROW('Overzicht UITZENDBURO'!$R$6:$R$150)-ROW($R$6)+1)))),$C24)),\"\")","v":""},{"$f":"IFERROR(INDEX('Overzicht UITZENDBURO'!$Q$6:$Q$150,SMALL(IF('Overzicht UITZENDBURO'!$P$6:$P$150=$A24,IF('Overzicht UITZENDBURO'!$L$6:$L$150=X$2,IF('Overzicht UITZENDBURO'!$O$6:$O$150=X$4,IF('Overzicht UITZENDBURO'!$R$6:$R$150=\"\",ROW('Overzicht UITZENDBURO'!$R$6:$R$150)-ROW($R$6)+1)))),$C24)),\"\")","v":""}]
["LCR",null,4,{"$f":"IFERROR(INDEX('Overzicht UITZENDBURO'!$Q$6:$Q$150,SMALL(IF('Overzicht UITZENDBURO'!$P$6:$P$150=$A25,IF('Overzicht UITZENDBURO'!$L$6:$L$150=D$2,IF('Overzicht UITZENDBURO'!$O$6:$O$150=D$4,IF('Overzicht UITZENDBURO'!$R$6:$R$150=\"\",ROW('Overzicht UITZENDBURO'!$R$6:$R$150)-ROW($R$6)+1)))),$C25)),\"\")","v":""},{"$f":"IFERROR(INDEX('Overzicht UITZENDBURO'!$Q$6:$Q$150,SMALL(IF('Overzicht UITZENDBURO'!$P$6:$P$150=$A25,IF('Overzicht UITZENDBURO'!$L$6:$L$150=E$2,IF('Overzicht UITZENDBURO'!$O$6:$O$150=E$4,IF('Overzicht UITZENDBURO'!$R$6:$R$150=\"\",ROW('Overzicht UITZENDBURO'!$R$6:$R$150)-ROW($R$6)+1)))),$C25)),\"\")","v":""},{"$f":"IFERROR(INDEX('Overzicht UITZENDBURO'!$Q$6:$Q$150,SMALL(IF('Overzicht UITZENDBURO'!$P$6:$P$150=$A25,IF('Overzicht UITZENDBURO'!$L$6:$L$150=F$2,IF('Overzicht UITZENDBURO'!$O$6:$O$150=F$4,IF('Overzicht UITZENDBURO'!$R$6:$R$150=\"\",ROW('Overzicht UITZENDBURO'!$R$6:$R$150)-ROW($R$6)+1)))),$C25)),\"\")","v":""},{"$f":"IFERROR(INDEX('Overzicht UITZENDBURO'!$Q$6:$Q$150,SMALL(IF('Overzicht UITZENDBURO'!$P$6:$P$150=$A25,IF('Overzicht UITZENDBURO'!$L$6:$L$150=G$2,IF('Overzicht UITZENDBURO'!$O$6:$O$150=G$4,IF('Overzicht UITZENDBURO'!$R$6:$R$150=\"\",ROW('Overzicht UITZENDBURO'!$R$6:$R$150)-ROW($R$6)+1)))),$C25)),\"\")","v":""},{"$f":"IFERROR(INDEX('Overzicht UITZENDBURO'!$Q$6:$Q$150,SMALL(IF('Overzicht UITZENDBURO'!$P$6:$P$150=$A25,IF('Overzicht UITZENDBURO'!$L$6:$L$150=H$2,IF('Overzicht UITZENDBURO'!$O$6:$O$150=H$4,IF('Overzicht UITZENDBURO'!$R$6:$R$150=\"\",ROW('Overzicht UITZENDBURO'!$R$6:$R$150)-ROW($R$6)+1)))),$C25)),\"\")","v":""},{"$f":"IFERROR(INDEX('Overzicht UITZENDBURO'!$Q$6:$Q$150,SMALL(IF('Overzicht UITZENDBURO'!$P$6:$P$150=$A25,IF('Overzicht UITZENDBURO'!$L$6:$L$150=I$2,IF('Overzicht UITZENDBURO'!$O$6:$O$150=I$4,IF('Overzicht UITZENDBURO'!$R$6:$R$150=\"\",ROW('Overzicht UITZENDBURO'!$R$6:$R$150)-ROW($R$6)+1)))),$C25)),\"\")","v":""},{"$f":"IFERROR(INDEX('Overzicht UITZENDBURO'!$Q$6:$Q$150,SMALL(IF('Overzicht UITZENDBURO'!$P$6:$P$150=$A25,IF('Overzicht UITZENDBURO'!$L$6:$L$150=J$2,IF('Overzicht UITZENDBURO'!$O$6:$O$150=J$4,IF('Overzicht UITZENDBURO'!$R$6:$R$150=\"\",ROW('Overzicht UITZENDBURO'!$R$6:$R$150)-ROW($R$6)+1)))),$C25)),\"\")","v":""},{"$f":"IFERROR(INDEX('Overzicht UITZENDBURO'!$Q$6:$Q$150,SMALL(IF('Overzicht UITZENDBURO'!$P$6:$P$150=$A25,IF('Overzicht UITZENDBURO'!$L$6:$L$150=K$2,IF('Overzicht UITZENDBURO'!$O$6:$O$150=K$4,IF('Overzicht UITZENDBURO'!$R$6:$R$150=\"\",ROW('Overzicht UITZENDBURO'!$R$6:$R$150)-ROW($R$6)+1)))),$C25)),\"\")","v":""},{"$f":"IFERROR(INDEX('Overzicht UITZENDBURO'!$Q$6:$Q$150,SMALL(IF('Overzicht UITZENDBURO'!$P$6:$P$150=$A25,IF('Overzicht UITZENDBURO'!$L$6:$L$150=L$2,IF('Overzicht UITZENDBURO'!$O$6:$O$150=L$4,IF('Overzicht UITZENDBURO'!$R$6:$R$150=\"\",ROW('Overzicht UITZENDBURO'!$R$6:$R$150)-ROW($R$6)+1)))),$C25)),\"\")","v":""},{"$f":"IFERROR(INDEX('Overzicht UITZENDBURO'!$Q$6:$Q$150,SMALL(IF('Overzicht UITZENDBURO'!$P$6:$P$150=$A25,IF('Overzicht UITZENDBURO'!$L$6:$L$150=M$2,IF('Overzicht UITZENDBURO'!$O$6:$O$150=M$4,IF('Overzicht UITZENDBURO'!$R$6:$R$150=\"\",ROW('Overzicht UITZENDBURO'!$R$6:$R$150)-ROW($R$6)+1)))),$C25)),\"\")","v":""},{"$f":"IFERROR(INDEX('Overzicht UITZENDBURO'!$Q$6:$Q$150,SMALL(IF('Overzicht UITZENDBURO'!$P$6:$P$150=$A25,IF('Overzicht UITZENDBURO'!$L$6:$L$150=N$2,IF('Overzicht UITZENDBURO'!$O$6:$O$150=N$4,IF('Overzicht UITZENDBURO'!$R$6:$R$150=\"\",ROW('Overzicht UITZENDBURO'!$R$6:$R$150)-ROW($R$6)+1)))),$C25)),\"\")","v":""},{"$f":"IFERROR(INDEX('Overzicht UITZENDBURO'!$Q$6:$Q$150,SMALL(IF('Overzicht UITZENDBURO'!$P$6:$P$150=$A25,IF('Overzicht UITZENDBURO'!$L$6:$L$150=O$2,IF('Overzicht UITZENDBURO'!$O$6:$O$150=O$4,IF('Overzicht UITZENDBURO'!$R$6:$R$150=\"\",ROW('Overzicht UITZENDBURO'!$R$6:$R$150)-ROW($R$6)+1)))),$C25)),\"\")","v":""},{"$f":"IFERROR(INDEX('Overzicht UITZENDBURO'!$Q$6:$Q$150,SMALL(IF('Overzicht UITZENDBURO'!$P$6:$P$150=$A25,IF('Overzicht UITZENDBURO'!$L$6:$L$150=P$2,IF('Overzicht UITZENDBURO'!$O$6:$O$150=P$4,IF('Overzicht UITZENDBURO'!$R$6:$R$150=\"\",ROW('Overzicht UITZENDBURO'!$R$6:$R$150)-ROW($R$6)+1)))),$C25)),\"\")","v":""},{"$f":"IFERROR(INDEX('Overzicht UITZENDBURO'!$Q$6:$Q$150,SMALL(IF('Overzicht UITZENDBURO'!$P$6:$P$150=$A25,IF('Overzicht UITZENDBURO'!$L$6:$L$150=Q$2,IF('Overzicht UITZENDBURO'!$O$6:$O$150=Q$4,IF('Overzicht UITZENDBURO'!$R$6:$R$150=\"\",ROW('Overzicht UITZENDBURO'!$R$6:$R$150)-ROW($R$6)+1)))),$C25)),\"\")","v":""},{"$f":"IFERROR(INDEX('Overzicht UITZENDBURO'!$Q$6:$Q$150,SMALL(IF('Overzicht UITZENDBURO'!$P$6:$P$150=$A25,IF('Overzicht UITZENDBURO'!$L$6:$L$150=R$2,IF('Overzicht UITZENDBURO'!$O$6:$O$150=R$4,IF('Overzicht UITZENDBURO'!$R$6:$R$150=\"\",ROW('Overzicht UITZENDBURO'!$R$6:$R$150)-ROW($R$6)+1)))),$C25)),\"\")","v":""},{"$f":"IFERROR(INDEX('Overzicht UITZENDBURO'!$Q$6:$Q$150,SMALL(IF('Overzicht UITZENDBURO'!$P$6:$P$150=$A25,IF('Overzicht UITZENDBURO'!$L$6:$L$150=S$2,IF('Overzicht UITZENDBURO'!$O$6:$O$150=S$4,IF('Overzicht UITZENDBURO'!$R$6:$R$150=\"\",ROW('Overzicht UITZENDBURO'!$R$6:$R$150)-ROW($R$6)+1)))),$C25)),\"\")","v":""},{"$f":"IFERROR(INDEX('Overzicht UITZENDBURO'!$Q$6:$Q$150,SMALL(IF('Overzicht UITZENDBURO'!$P$6:$P$150=$A25,IF('Overzicht UITZENDBURO'!$L$6:$L$150=T$2,IF('Overzicht UITZENDBURO'!$O$6:$O$150=T$4,IF('Overzicht UITZENDBURO'!$R$6:$R$150=\"\",ROW('Overzicht UITZENDBURO'!$R$6:$R$150)-ROW($R$6)+1)))),$C25)),\"\")","v":""},{"$f":"IFERROR(INDEX('Overzicht UITZENDBURO'!$Q$6:$Q$150,SMALL(IF('Overzicht UITZENDBURO'!$P$6:$P$150=$A25,IF('Overzicht UITZENDBURO'!$L$6:$L$150=U$2,IF('Overzicht UITZENDBURO'!$O$6:$O$150=U$4,IF('Overzicht UITZENDBURO'!$R$6:$R$150=\"\",ROW('Overzicht UITZENDBURO'!$R$6:$R$150)-ROW($R$6)+1)))),$C25)),\"\")","v":""},{"$f":"IFERROR(INDEX('Overzicht UITZENDBURO'!$Q$6:$Q$150,SMALL(IF('Overzicht UITZENDBURO'!$P$6:$P$150=$A25,IF('Overzicht UITZENDBURO'!$L$6:$L$150=V$2,IF('Overzicht UITZENDBURO'!$O$6:$O$150=V$4,IF('Overzicht UITZENDBURO'!$R$6:$R$150=\"\",ROW('Overzicht UITZENDBURO'!$R$6:$R$150)-ROW($R$6)+1)))),$C25)),\"\")","v":""},{"$f":"IFERROR(INDEX('Overzicht UITZENDBURO'!$Q$6:$Q$150,SMALL(IF('Overzicht UITZENDBURO'!$P$6:$P$150=$A25,IF('Overzicht UITZENDBURO'!$L$6:$L$150=W$2,IF('Overzicht UITZENDBURO'!$O$6:$O$150=W$4,IF('Overzicht UITZENDBURO'!$R$6:$R$150=\"\",ROW('Overzicht UITZENDBURO'!$R$6:$R$150)-ROW($R$6)+1)))),$C25)),\"\")","v":""},{"$f":"IFERROR(INDEX('Overzicht UITZENDBURO'!$Q$6:$Q$150,SMALL(IF('Overzicht UITZENDBURO'!$P$6:$P$150=$A25,IF('Overzicht UITZENDBURO'!$L$6:$L$150=X$2,IF('Overzicht UITZENDBURO'!$O$6:$O$150=X$4,IF('Overzicht UITZENDBURO'!$R$6:$R$150=\"\",ROW('Overzicht UITZENDBURO'!$R$6:$R$150)-ROW($R$6)+1)))),$C25)),\"\")","v":""}]
["ABB",null,1,{"$f":"IFERROR(INDEX('Overzicht UITZENDBURO'!$Q$6:$Q$150,SMALL(IF('Overzicht UITZENDBURO'!$P$6:$P$150=$A26,IF('Overzicht UITZENDBURO'!$L$6:$L$150=D$2,IF('Overzicht UITZENDBURO'!$O$6:$O$150=D$4,IF('Overzicht UITZENDBURO'!$R$6:$R$150=\"\",ROW('Overzicht UITZENDBURO'!$R$6:$R$150)-ROW($R$6)+1)))),$C26)),\"\")","v":""},{"$f":"IFERROR(INDEX('Overzicht UITZENDBURO'!$Q$6:$Q$150,SMALL(IF('Overzicht UITZENDBURO'!$P$6:$P$150=$A26,IF('Overzicht UITZENDBURO'!$L$6:$L$150=E$2,IF('Overzicht UITZENDBURO'!$O$6:$O$150=E$4,IF('Overzicht UITZENDBURO'!$R$6:$R$150=\"\",ROW('Overzicht UITZENDBURO'!$R$6:$R$150)-ROW($R$6)+1)))),$C26)),\"\")","v":""},{"$f":"IFERROR(INDEX('Overzicht UITZENDBURO'!$Q$6:$Q$150,SMALL(IF('Overzicht UITZENDBURO'!$P$6:$P$150=$A26,IF('Overzicht UITZENDBURO'!$L$6:$L$150=F$2,IF('Overzicht UITZENDBURO'!$O$6:$O$150=F$4,IF('Overzicht UITZENDBURO'!$R$6:$R$150=\"\",ROW('Overzicht UITZENDBURO'!$R$6:$R$150)-ROW($R$6)+1)))),$C26)),\"\")","v":""},{"$f":"IFERROR(INDEX('Overzicht UITZENDBURO'!$Q$6:$Q$150,SMALL(IF('Overzicht UITZENDBURO'!$P$6:$P$150=$A26,IF('Overzicht UITZENDBURO'!$L$6:$L$150=G$2,IF('Overzicht UITZENDBURO'!$O$6:$O$150=G$4,IF('Overzicht UITZENDBURO'!$R$6:$R$150=\"\",ROW('Overzicht UITZENDBURO'!$R$6:$R$150)-ROW($R$6)+1)))),$C26)),\"\")","v":"Marjan"},{"$f":"IFERROR(INDEX('Overzicht UITZENDBURO'!$Q$6:$Q$150,SMALL(IF('Overzicht UITZENDBURO'!$P$6:$P$150=$A26,IF('Overzicht UITZENDBURO'!$L$6:$L$150=H$2,IF('Overzicht UITZENDBURO'!$O$6:$O$150=H$4,IF('Overzicht UITZENDBURO'!$R$6:$R$150=\"\",ROW('Overzicht UITZENDBURO'!$R$6:$R$150)-ROW($R$6)+1)))),$C26)),\"\")","v":"Sanne"},{"$f":"IFERROR(INDEX('Overzicht UITZENDBURO'!$Q$6:$Q$150,SMALL(IF('Overzicht UITZENDBURO'!$P$6:$P$150=$A26,IF('Overzicht UITZENDBURO'!$L$6:$L$150=I$2,IF('Overzicht UITZENDBURO'!$O$6:$O$150=I$4,IF('Overzicht UITZENDBURO'!$R$6:$R$150=\"\",ROW('Overzicht UITZENDBURO'!$R$6:$R$150)-ROW($R$6)+1)))),$C26)),\"\")","v":""},{"$f":"IFERROR(INDEX('Overzicht UITZENDBURO'!$Q$6:$Q$150,SMALL(IF('Overzicht UITZENDBURO'!$P$6:$P$150=$A26,IF('Overzicht UITZENDBURO'!$L$6:$L$150=J$2,IF('Overzicht UITZENDBURO'!$O$6:$O$150=J$4,IF('Overzicht UITZENDBURO'!$R$6:$R$150=\"\",ROW('Overzicht UITZENDBURO'!$R$6:$R$150)-ROW($R$6)+1)))),$C26)),\"\")","v":"jules"},{"$f":"IFERROR(INDEX('Overzicht UITZENDBURO'!$Q$6:$Q$150,SMALL(IF('Overzicht UITZENDBURO'!$P$6:$P$150=$A26,IF('Overzicht UITZENDBURO'!$L$6:$L$150=K$2,IF('Overzicht UITZENDBURO'!$O$6:$O$150=K$4,IF('Overzicht UITZENDBURO'!$R$6:$R$150=\"\",ROW('Overzicht UITZENDBURO'!$R$6:$R$150)-ROW($R$6)+1)))),$C26)),\"\")","v":""},{"$f":"IFERROR(INDEX('Overzicht UITZENDBURO'!$Q$6:$Q$150,SMALL(IF('Overzicht UITZENDBURO'!$P$6:$P$150=$A26,IF('Overzicht UITZENDBURO'!$L$6:$L$150=L$2,IF('Overzicht UITZENDBURO'!$O$6:$O$150=L$4,IF('Overzicht UITZENDBURO'!$R$6:$R$150=\"\",ROW('Overzicht UITZENDBURO'!$R$6:$R$150)-ROW($R$6)+1)))),$C26)),\"\")","v":""},{"$f":"IFERROR(INDEX('Overzicht UITZENDBURO'!$Q$6:$Q$150,SMALL(IF('Overzicht UITZENDBURO'!$P$6:$P$150=$A26,IF('Overzicht UITZENDBURO'!$L$6:$L$150=M$2,IF('Overzicht UITZENDBURO'!$O$6:$O$150=M$4,IF('Overzicht UITZENDBURO'!$R$6:$R$150=\"\",ROW('Overzicht UITZENDBURO'!$R$6:$R$150)-ROW($R$6)+1)))),$C26)),\"\")","v":"Fien"},{"$f":"IFERROR(INDEX('Overzicht UITZENDBURO'!$Q$6:$Q$150,SMALL(IF('Overzicht UITZENDBURO'!$P$6:$P$150=$A26,IF('Overzicht UITZENDBURO'!$L$6:$L$150=N$2,IF('Overzicht UITZENDBURO'!$O$6:$O$150=N$4,IF('Overzicht UITZENDBURO'!$R$6:$R$150=\"\",ROW('Overzicht UITZENDBURO'!$R$6:$R$150)-ROW($R$6)+1)))),$C26)),\"\")","v":""},{"$f":"IFERROR(INDEX('Overzicht UITZENDBURO'!$Q$6:$Q$150,SMALL(IF('Overzicht UITZENDBURO'!$P$6:$P$150=$A26,IF('Overzicht UITZENDBURO'!$L$6:$L$150=O$2,IF('Overzicht UITZENDBURO'!$O$6:$O$150=O$4,IF('Overzicht UITZENDBURO'!$R$6:$R$150=\"\",ROW('Overzicht UITZENDBURO'!$R$6:$R$150)-ROW($R$6)+1)))),$C26)),\"\")","v":""},{"$f":"IFERROR(INDEX('Overzicht UITZENDBURO'!$Q$6:$Q$150,SMALL(IF('Overzicht UITZENDBURO'!$P$6:$P$150=$A26,IF('Overzicht UITZENDBURO'!$L$6:$L$150=P$2,IF('Overzicht UITZENDBURO'!$O$6:$O$150=P$4,IF('Overzicht UITZENDBURO'!$R$6:$R$150=\"\",ROW('Overzicht UITZENDBURO'!$R$6:$R$150)-ROW($R$6)+1)))),$C26)),\"\")","v":""},{"$f":"IFERROR(INDEX('Overzicht UITZENDBURO'!$Q$6:$Q$150,SMALL(IF('Overzicht UITZENDBURO'!$P$6:$P$150=$A26,IF('Overzicht UITZENDBURO'!$L$6:$L$150=Q$2,IF('Overzicht UITZENDBURO'!$O$6:$O$150=Q$4,IF('Overzicht UITZENDBURO'!$R$6:$R$150=\"\",ROW('Overzicht UITZENDBURO'!$R$6:$R$150)-ROW($R$6)+1)))),$C26)),\"\")","v":""},{"$f":"IFERROR(INDEX('Overzicht UITZENDBURO'!$Q$6:$Q$150,SMALL(IF('Overzicht UITZENDBURO'!$P$6:$P$150=$A26,IF('Overzicht UITZENDBURO'!$L$6:$L$150=R$2,IF('Overzicht UITZENDBURO'!$O$6:$O$150=R$4,IF('Overzicht UITZENDBURO'!$R$6:$R$150=\"\",ROW('Overzicht UITZENDBURO'!$R$6:$R$150)-ROW($R$6)+1)))),$C26)),\"\")","v":""},{"$f":"IFERROR(INDEX('Overzicht UITZENDBURO'!$Q$6:$Q$150,SMALL(IF('Overzicht UITZENDBURO'!$P$6:$P$150=$A26,IF('Overzicht UITZENDBURO'!$L$6:$L$150=S$2,IF('Overzicht UITZENDBURO'!$O$6:$O$150=S$4,IF('Overzicht UITZENDBURO'!$R$6:$R$150=\"\",ROW('Overzicht UITZENDBURO'!$R$6:$R$150)-ROW($R$6)+1)))),$C26)),\"\")","v":""},{"$f":"IFERROR(INDEX('Overzicht UITZENDBURO'!$Q$6:$Q$150,SMALL(IF('Overzicht UITZENDBURO'!$P$6:$P$150=$A26,IF('Overzicht UITZENDBURO'!$L$6:$L$150=T$2,IF('Overzicht UITZENDBURO'!$O$6:$O$150=T$4,IF('Overzicht UITZENDBURO'!$R$6:$R$150=\"\",ROW('Overzicht UITZENDBURO'!$R$6:$R$150)-ROW($R$6)+1)))),$C26)),\"\")","v":""},{"$f":"IFERROR(INDEX('Overzicht UITZENDBURO'!$Q$6:$Q$150,SMALL(IF('Overzicht UITZENDBURO'!$P$6:$P$150=$A26,IF('Overzicht UITZENDBURO'!$L$6:$L$150=U$2,IF('Overzicht UITZENDBURO'!$O$6:$O$150=U$4,IF('Overzicht UITZENDBURO'!$R$6:$R$150=\"\",ROW('Overzicht UITZENDBURO'!$R$6:$R$150)-ROW($R$6)+1)))),$C26)),\"\")","v":""},{"$f":"IFERROR(INDEX('Overzicht UITZENDBURO'!$Q$6:$Q$150,SMALL(IF('Overzicht UITZENDBURO'!$P$6:$P$150=$A26,IF('Overzicht UITZENDBURO'!$L$6:$L$150=V$2,IF('Overzicht UITZENDBURO'!$O$6:$O$150=V$4,IF('Overzicht UITZENDBURO'!$R$6:$R$150=\"\",ROW('Overzicht UITZENDBURO'!$R$6:$R$150)-ROW($R$6)+1)))),$C26)),\"\")","v":""},{"$f":"IFERROR(INDEX('Overzicht UITZENDBURO'!$Q$6:$Q$150,SMALL(IF('Overzicht UITZENDBURO'!$P$6:$P$150=$A26,IF('Overzicht UITZENDBURO'!$L$6:$L$150=W$2,IF('Overzicht UITZENDBURO'!$O$6:$O$150=W$4,IF('Overzicht UITZENDBURO'!$R$6:$R$150=\"\",ROW('Overzicht UITZENDBURO'!$R$6:$R$150)-ROW($R$6)+1)))),$C26)),\"\")","v":""},{"$f":"IFERROR(INDEX('Overzicht UITZENDBURO'!$Q$6:$Q$150,SMALL(IF('Overzicht UITZENDBURO'!$P$6:$P$150=$A26,IF('Overzicht UITZENDBURO'!$L$6:$L$150=X$2,IF('Overzicht UITZENDBURO'!$O$6:$O$150=X$4,IF('Overzicht UITZENDBURO'!$R$6:$R$150=\"\",ROW('Overzicht UITZENDBURO'!$R$6:$R$150)-ROW($R$6)+1)))),$C26)),\"\")","v":""}]
["ABB",null,2,{"$f":"IFERROR(INDEX('Overzicht UITZENDBURO'!$Q$6:$Q$150,SMALL(IF('Overzicht UITZENDBURO'!$P$6:$P$150=$A27,IF('Overzicht UITZENDBURO'!$L$6:$L$150=D$2,IF('Overzicht UITZENDBURO'!$O$6:$O$150=D$4,IF('Overzicht UITZENDBURO'!$R$6:$R$150=\"\",ROW('Overzicht UITZENDBURO'!$R$6:$R$150)-ROW($R$6)+1)))),$C27)),\"\")","v":""},{"$f":"IFERROR(INDEX('Overzicht UITZENDBURO'!$Q$6:$Q$150,SMALL(IF('Overzicht UITZENDBURO'!$P$6:$P$150=$A27,IF('Overzicht UITZENDBURO'!$L$6:$L$150=E$2,IF('Overzicht UITZENDBURO'!$O$6:$O$150=E$4,IF('Overzicht UITZENDBURO'!$R$6:$R$150=\"\",ROW('Overzicht UITZENDBURO'!$R$6:$R$150)-ROW($R$6)+1)))),$C27)),\"\")","v":""},{"$f":"IFERROR(INDEX('Overzicht UITZENDBURO'!$Q$6:$Q$150,SMALL(IF('Overzicht UITZENDBURO'!$P$6:$P$150=$A27,IF('Overzicht UITZENDBURO'!$L$6:$L$150=F$2,IF('Overzicht UITZENDBURO'!$O$6:$O$150=F$4,IF('Overzicht UITZENDBURO'!$R$6:$R$150=\"\",ROW('Overzicht UITZENDBURO'!$R$6:$R$150)-ROW($R$6)+1)))),$C27)),\"\")","v":""},{"$f":"IFERROR(INDEX('Overzicht UITZENDBURO'!$Q$6:$Q$150,SMALL(IF('Overzicht UITZENDBURO'!$P$6:$P$150=$A27,IF('Overzicht UITZENDBURO'!$L$6:$L$150=G$2,IF('Overzicht UITZENDBURO'!$O$6:$O$150=G$4,IF('Overzicht UITZENDBURO'!$R$6:$R$150=\"\",ROW('Overzicht UITZENDBURO'!$R$6:$R$150)-ROW($R$6)+1)))),$C27)),\"\")","v":""},{"$f":"IFERROR(INDEX('Overzicht UITZENDBURO'!$Q$6:$Q$150,SMALL(IF('Overzicht UITZENDBURO'!$P$6:$P$150=$A27,IF('Overzicht UITZENDBURO'!$L$6:$L$150=H$2,IF('Overzicht UITZENDBURO'!$O$6:$O$150=H$4,IF('Overzicht UITZENDBURO'!$R$6:$R$150=\"\",ROW('Overzicht UITZENDBURO'!$R$6:$R$150)-ROW($R$6)+1)))),$C27)),\"\")","v":""},{"$f":"IFERROR(INDEX('Overzicht UITZENDBURO'!$Q$6:$Q$150,SMALL(IF('Overzicht UITZENDBURO'!$P$6:$P$150=$A27,IF('Overzicht UITZENDBURO'!$L$6:$L$150=I$2,IF('Overzicht UITZENDBURO'!$O$6:$O$150=I$4,IF('Overzicht UITZENDBURO'!$R$6:$R$150=\"\",ROW('Overzicht UITZENDBURO'!$R$6:$R$150)-ROW($R$6)+1)))),$C27)),\"\")","v":""},{"$f":"IFERROR(INDEX('Overzicht UITZENDBURO'!$Q$6:$Q$150,SMALL(IF('Overzicht UITZENDBURO'!$P$6:$P$150=$A27,IF('Overzicht UITZENDBURO'!$L$6:$L$150=J$2,IF('Overzicht UITZENDBURO'!$O$6:$O$150=J$4,IF('Overzicht UITZENDBURO'!$R$6:$R$150=\"\",ROW('Overzicht UITZENDBURO'!$R$6:$R$150)-ROW($R$6)+1)))),$C27)),\"\")","v":"jannie"},{"$f":"IFERROR(INDEX('Overzicht UITZENDBURO'!$Q$6:$Q$150,SMALL(IF('Overzicht UITZENDBURO'!$P$6:$P$150=$A27,IF('Overzicht UITZENDBURO'!$L$6:$L$150=K$2,IF('Overzicht UITZENDBURO'!$O$6:$O$150=K$4,IF('Overzicht UITZENDBURO'!$R$6:$R$150=\"\",ROW('Overzicht UITZENDBURO'!$R$6:$R$150)-ROW($R$6)+1)))),$C27)),\"\")","v":""},{"$f":"IFERROR(INDEX('Overzicht UITZENDBURO'!$Q$6:$Q$150,SMALL(IF('Overzicht UITZENDBURO'!$P$6:$P$150=$A27,IF('Overzicht UITZENDBURO'!$L$6:$L$150=L$2,IF('Overzicht UITZENDBURO'!$O$6:$O$150=L$4,IF('Overzicht UITZENDBURO'!$R$6:$R$150=\"\",ROW('Overzicht UITZENDBURO'!$R$6:$R$150)-ROW($R$6)+1)))),$C27)),\"\")","v":""},{"$f":"IFERROR(INDEX('Overzicht UITZENDBURO'!$Q$6:$Q$150,SMALL(IF('Overzicht UITZENDBURO'!$P$6:$P$150=$A27,IF('Overzicht UITZENDBURO'!$L$6:$L$150=M$2,IF('Overzicht UITZENDBURO'!$O$6:$O$150=M$4,IF('Overzicht UITZENDBURO'!$R$6:$R$150=\"\",ROW('Overzicht UITZENDBURO'!$R$6:$R$150)-ROW($R$6)+1)))),$C27)),\"\")","v":""},{"$f":"IFERROR(INDEX('Overzicht UITZENDBURO'!$Q$6:$Q$150,SMALL(IF('Overzicht UITZENDBURO'!$P$6:$P$150=$A27,IF('Overzicht UITZENDBURO'!$L$6:$L$150=N$2,IF('Overzicht UITZENDBURO'!$O$6:$O$150=N$4,IF('Overzicht UITZENDBURO'!$R$6:$R$150=\"\",ROW('Overzicht UITZENDBURO'!$R$6:$R$150)-ROW($R$6)+1)))),$C27)),\"\")","v":""},{"$f":"IFERROR(INDEX('Overzicht UITZENDBURO'!$Q$6:$Q$150,SMALL(IF('Overzicht UITZENDBURO'!$P$6:$P$150=$A27,IF('Overzicht UITZENDBURO'!$L$6:$L$150=O$2,IF('Overzicht UITZENDBURO'!$O$6:$O$150=O$4,IF('Overzicht UITZENDBURO'!$R$6:$R$150=\"\",ROW('Overzicht UITZENDBURO'!$R$6:$R$150)-ROW($R$6)+1)))),$C27)),\"\")","v":""},{"$f":"IFERROR(INDEX('Overzicht UITZENDBURO'!$Q$6:$Q$150,SMALL(IF('Overzicht UITZENDBURO'!$P$6:$P$150=$A27,IF('Overzicht UITZENDBURO'!$L$6:$L$150=P$2,IF('Overzicht UITZENDBURO'!$O$6:$O$150=P$4,IF('Overzicht UITZENDBURO'!$R$6:$R$150=\"\",ROW('Overzicht UITZENDBURO'!$R$6:$R$150)-ROW($R$6)+1)))),$C27)),\"\")","v":""},{"$f":"IFERROR(INDEX('Overzicht UITZENDBURO'!$Q$6:$Q$150,SMALL(IF('Overzicht UITZENDBURO'!$P$6:$P$150=$A27,IF('Overzicht UITZENDBURO'!$L$6:$L$150=Q$2,IF('Overzicht UITZENDBURO'!$O$6:$O$150=Q$4,IF('Overzicht UITZENDBURO'!$R$6:$R$150=\"\",ROW('Overzicht UITZENDBURO'!$R$6:$R$150)-ROW($R$6)+1)))),$C27)),\"\")","v":""},{"$f":"IFERROR(INDEX('Overzicht UITZENDBURO'!$Q$6:$Q$150,SMALL(IF('Overzicht UITZENDBURO'!$P$6:$P$150=$A27,IF('Overzicht UITZENDBURO'!$L$6:$L$150=R$2,IF('Overzicht UITZENDBURO'!$O$6:$O$150=R$4,IF('Overzicht UITZENDBURO'!$R$6:$R$150=\"\",ROW('Overzicht UITZENDBURO'!$R$6:$R$150)-ROW($R$6)+1)))),$C27)),\"\")","v":""},{"$f":"IFERROR(INDEX('Overzicht UITZENDBURO'!$Q$6:$Q$150,SMALL(IF('Overzicht UITZENDBURO'!$P$6:$P$150=$A27,IF('Overzicht UITZENDBURO'!$L$6:$L$150=S$2,IF('Overzicht UITZENDBURO'!$O$6:$O$150=S$4,IF('Overzicht UITZENDBURO'!$R$6:$R$150=\"\",ROW('Overzicht UITZENDBURO'!$R$6:$R$150)-ROW($R$6)+1)))),$C27)),\"\")","v":""},{"$f":"IFERROR(INDEX('Overzicht UITZENDBURO'!$Q$6:$Q$150,SMALL(IF('Overzicht UITZENDBURO'!$P$6:$P$150=$A27,IF('Overzicht UITZENDBURO'!$L$6:$L$150=T$2,IF('Overzicht UITZENDBURO'!$O$6:$O$150=T$4,IF('Overzicht UITZENDBURO'!$R$6:$R$150=\"\",ROW('Overzicht UITZENDBURO'!$R$6:$R$150)-ROW($R$6)+1)))),$C27)),\"\")","v":""},{"$f":"IFERROR(INDEX('Overzicht UITZENDBURO'!$Q$6:$Q$150,SMALL(IF('Overzicht UITZENDBURO'!$P$6:$P$150=$A27,IF('Overzicht UITZENDBURO'!$L$6:$L$150=U$2,IF('Overzicht UITZENDBURO'!$O$6:$O$150=U$4,IF('Overzicht UITZENDBURO'!$R$6:$R$150=\"\",ROW('Overzicht UITZENDBURO'!$R$6:$R$150)-ROW($R$6)+1)))),$C27)),\"\")","v":""},{"$f":"IFERROR(INDEX('Overzicht UITZENDBURO'!$Q$6:$Q$150,SMALL(IF('Overzicht UITZENDBURO'!$P$6:$P$150=$A27,IF('Overzicht UITZENDBURO'!$L$6:$L$150=V$2,IF('Overzicht UITZENDBURO'!$O$6:$O$150=V$4,IF('Overzicht UITZENDBURO'!$R$6:$R$150=\"\",ROW('Overzicht UITZENDBURO'!$R$6:$R$150)-ROW($R$6)+1)))),$C27)),\"\")","v":""},{"$f":"IFERROR(INDEX('Overzicht UITZENDBURO'!$Q$6:$Q$150,SMALL(IF('Overzicht UITZENDBURO'!$P$6:$P$150=$A27,IF('Overzicht UITZENDBURO'!$L$6:$L$150=W$2,IF('Overzicht UITZENDBURO'!$O$6:$O$150=W$4,IF('Overzicht UITZENDBURO'!$R$6:$R$150=\"\",ROW('Overzicht UITZENDBURO'!$R$6:$R$150)-ROW($R$6)+1)))),$C27)),\"\")","v":""},{"$f":"IFERROR(INDEX('Overzicht UITZENDBURO'!$Q$6:$Q$150,SMALL(IF('Overzicht UITZENDBURO'!$P$6:$P$150=$A27,IF('Overzicht UITZENDBURO'!$L$6:$L$150=X$2,IF('Overzicht UITZENDBURO'!$O$6:$O$150=X$4,IF('Overzicht UITZENDBURO'!$R$6:$R$150=\"\",ROW('Overzicht UITZENDBURO'!$R$6:$R$150)-ROW($R$6)+1)))),$C27)),\"\")","v":""}]
["ABB",null,3,{"$f":"IFERROR(INDEX('Overzicht UITZENDBURO'!$Q$6:$Q$150,SMALL(IF('Overzicht UITZENDBURO'!$P$6:$P$150=$A28,IF('Overzicht UITZENDBURO'!$L$6:$L$150=D$2,IF('Overzicht UITZENDBURO'!$O$6:$O$150=D$4,IF('Overzicht UITZENDBURO'!$R$6:$R$150=\"\",ROW('Overzicht UITZENDBURO'!$R$6:$R$150)-ROW($R$6)+1)))),$C28)),\"\")","v":""},{"$f":"IFERROR(INDEX('Overzicht UITZENDBURO'!$Q$6:$Q$150,SMALL(IF('Overzicht UITZENDBURO'!$P$6:$P$150=$A28,IF('Overzicht UITZENDBURO'!$L$6:$L$150=E$2,IF('Overzicht UITZENDBURO'!$O$6:$O$150=E$4,IF('Overzicht UITZENDBURO'!$R$6:$R$150=\"\",ROW('Overzicht UITZENDBURO'!$R$6:$R$150)-ROW($R$6)+1)))),$C28)),\"\")","v":""},{"$f":"IFERROR(INDEX('Overzicht UITZENDBURO'!$Q$6:$Q$150,SMALL(IF('Overzicht UITZENDBURO'!$P$6:$P$150=$A28,IF('Overzicht UITZENDBURO'!$L$6:$L$150=F$2,IF('Overzicht UITZENDBURO'!$O$6:$O$150=F$4,IF('Overzicht UITZENDBURO'!$R$6:$R$150=\"\",ROW('Overzicht UITZENDBURO'!$R$6:$R$150)-ROW($R$6)+1)))),$C28)),\"\")","v":""},{"$f":"IFERROR(INDEX('Overzicht UITZENDBURO'!$Q$6:$Q$150,SMALL(IF('Overzicht UITZENDBURO'!$P$6:$P$150=$A28,IF('Overzicht UITZENDBURO'!$L$6:$L$150=G$2,IF('Overzicht UITZENDBURO'!$O$6:$O$150=G$4,IF('Overzicht UITZENDBURO'!$R$6:$R$150=\"\",ROW('Overzicht UITZENDBURO'!$R$6:$R$150)-ROW($R$6)+1)))),$C28)),\"\")","v":""},{"$f":"IFERROR(INDEX('Overzicht UITZENDBURO'!$Q$6:$Q$150,SMALL(IF('Overzicht UITZENDBURO'!$P$6:$P$150=$A28,IF('Overzicht UITZENDBURO'!$L$6:$L$150=H$2,IF('Overzicht UITZENDBURO'!$O$6:$O$150=H$4,IF('Overzicht UITZENDBURO'!$R$6:$R$150=\"\",ROW('Overzicht UITZENDBURO'!$R$6:$R$150)-ROW($R$6)+1)))),$C28)),\"\")","v":""},{"$f":"IFERROR(INDEX('Overzicht UITZENDBURO'!$Q$6:$Q$150,SMALL(IF('Overzicht UITZENDBURO'!$P$6:$P$150=$A28,IF('Overzicht UITZENDBURO'!$L$6:$L$150=I$2,IF('Overzicht UITZENDBURO'!$O$6:$O$150=I$4,IF('Overzicht UITZENDBURO'!$R$6:$R$150=\"\",ROW('Overzicht UITZENDBURO'!$R$6:$R$150)-ROW($R$6)+1)))),$C28)),\"\")","v":""},{"$f":"IFERROR(INDEX('Overzicht UITZENDBURO'!$Q$6:$Q$150,SMALL(IF('Overzicht UITZENDBURO'!$P$6:$P$150=$A28,IF('Overzicht UITZENDBURO'!$L$6:$L$150=J$2,IF('Overzicht UITZENDBURO'!$O$6:$O$150=J$4,IF('Overzicht UITZENDBURO'!$R$6:$R$150=\"\",ROW('Overzicht UITZENDBURO'!$R$6:$R$150)-ROW($R$6)+1)))),$C28)),\"\")","v":""},{"$f":"IFERROR(INDEX('Overzicht UITZENDBURO'!$Q$6:$Q$150,SMALL(IF('Overzicht UITZENDBURO'!$P$6:$P$150=$A28,IF('Overzicht UITZENDBURO'!$L$6:$L$150=K$2,IF('Overzicht UITZENDBURO'!$O$6:$O$150=K$4,IF('Overzicht UITZENDBURO'!$R$6:$R$150=\"\",ROW('Overzicht UITZENDBURO'!$R$6:$R$150)-ROW($R$6)+1)))),$C28)),\"\")","v":""},{"$f":"IFERROR(INDEX('Overzicht UITZENDBURO'!$Q$6:$Q$150,SMALL(IF('Overzicht UITZENDBURO'!$P$6:$P$150=$A28,IF('Overzicht UITZENDBURO'!$L$6:$L$150=L$2,IF('Overzicht UITZENDBURO'!$O$6:$O$150=L$4,IF('Overzicht UITZENDBURO'!$R$6:$R$150=\"\",ROW('Overzicht UITZENDBURO'!$R$6:$R$150)-ROW($R$6)+1)))),$C28)),\"\")","v":""},{"$f":"IFERROR(INDEX('Overzicht UITZENDBURO'!$Q$6:$Q$150,SMALL(IF('Overzicht UITZENDBURO'!$P$6:$P$150=$A28,IF('Overzicht UITZENDBURO'!$L$6:$L$150=M$2,IF('Overzicht UITZENDBURO'!$O$6:$O$150=M$4,IF('Overzicht UITZENDBURO'!$R$6:$R$150=\"\",ROW('Overzicht UITZENDBURO'!$R$6:$R$150)-ROW($R$6)+1)))),$C28)),\"\")","v":""},{"$f":"IFERROR(INDEX('Overzicht UITZENDBURO'!$Q$6:$Q$150,SMALL(IF('Overzicht UITZENDBURO'!$P$6:$P$150=$A28,IF('Overzicht UITZENDBURO'!$L$6:$L$150=N$2,IF('Overzicht UITZENDBURO'!$O$6:$O$150=N$4,IF('Overzicht UITZENDBURO'!$R$6:$R$150=\"\",ROW('Overzicht UITZENDBURO'!$R$6:$R$150)-ROW($R$6)+1)))),$C28)),\"\")","v":""},{"$f":"IFERROR(INDEX('Overzicht UITZENDBURO'!$Q$6:$Q$150,SMALL(IF('Overzicht UITZENDBURO'!$P$6:$P$150=$A28,IF('Overzicht UITZENDBURO'!$L$6:$L$150=O$2,IF('Overzicht UITZENDBURO'!$O$6:$O$150=O$4,IF('Overzicht UITZENDBURO'!$R$6:$R$150=\"\",ROW('Overzicht UITZENDBURO'!$R$6:$R$150)-ROW($R$6)+1)))),$C28)),\"\")","v":""},{"$f":"IFERROR(INDEX('Overzicht UITZENDBURO'!$Q$6:$Q$150,SMALL(IF('Overzicht UITZENDBURO'!$P$6:$P$150=$A28,IF('Overzicht UITZENDBURO'!$L$6:$L$150=P$2,IF('Overzicht UITZENDBURO'!$O$6:$O$150=P$4,IF('Overzicht UITZENDBURO'!$R$6:$R$150=\"\",ROW('Overzicht UITZENDBURO'!$R$6:$R$150)-ROW($R$6)+1)))),$C28)),\"\")","v":""},{"$f":"IFERROR(INDEX('Overzicht UITZENDBURO'!$Q$6:$Q$150,SMALL(IF('Overzicht UITZENDBURO'!$P$6:$P$150=$A28,IF('Overzicht UITZENDBURO'!$L$6:$L$150=Q$2,IF('Overzicht UITZENDBURO'!$O$6:$O$150=Q$4,IF('Overzicht UITZENDBURO'!$R$6:$R$150=\"\",ROW('Overzicht UITZENDBURO'!$R$6:$R$150)-ROW($R$6)+1)))),$C28)),\"\")","v":""},{"$f":"IFERROR(INDEX('Overzicht UITZENDBURO'!$Q$6:$Q$150,SMALL(IF('Overzicht UITZENDBURO'!$P$6:$P$150=$A28,IF('Overzicht UITZENDBURO'!$L$6:$L$150=R$2,IF('Overzicht UITZENDBURO'!$O$6:$O$150=R$4,IF('Overzicht UITZENDBURO'!$R$6:$R$150=\"\",ROW('Overzicht UITZENDBURO'!$R$6:$R$150)-ROW($R$6)+1)))),$C28)),\"\")","v":""},{"$f":"IFERROR(INDEX('Overzicht UITZENDBURO'!$Q$6:$Q$150,SMALL(IF('Overzicht UITZENDBURO'!$P$6:$P$150=$A28,IF('Overzicht UITZENDBURO'!$L$6:$L$150=S$2,IF('Overzicht UITZENDBURO'!$O$6:$O$150=S$4,IF('Overzicht UITZENDBURO'!$R$6:$R$150=\"\",ROW('Overzicht UITZENDBURO'!$R$6:$R$150)-ROW($R$6)+1)))),$C28)),\"\")","v":""},{"$f":"IFERROR(INDEX('Overzicht UITZENDBURO'!$Q$6:$Q$150,SMALL(IF('Overzicht UITZENDBURO'!$P$6:$P$150=$A28,IF('Overzicht UITZENDBURO'!$L$6:$L$150=T$2,IF('Overzicht UITZENDBURO'!$O$6:$O$150=T$4,IF('Overzicht UITZENDBURO'!$R$6:$R$150=\"\",ROW('Overzicht UITZENDBURO'!$R$6:$R$150)-ROW($R$6)+1)))),$C28)),\"\")","v":""},{"$f":"IFERROR(INDEX('Overzicht UITZENDBURO'!$Q$6:$Q$150,SMALL(IF('Overzicht UITZENDBURO'!$P$6:$P$150=$A28,IF('Overzicht UITZENDBURO'!$L$6:$L$150=U$2,IF('Overzicht UITZENDBURO'!$O$6:$O$150=U$4,IF('Overzicht UITZENDBURO'!$R$6:$R$150=\"\",ROW('Overzicht UITZENDBURO'!$R$6:$R$150)-ROW($R$6)+1)))),$C28)),\"\")","v":""},{"$f":"IFERROR(INDEX('Overzicht UITZENDBURO'!$Q$6:$Q$150,SMALL(IF('Overzicht UITZENDBURO'!$P$6:$P$150=$A28,IF('Overzicht UITZENDBURO'!$L$6:$L$150=V$2,IF('Overzicht UITZENDBURO'!$O$6:$O$150=V$4,IF('Overzicht UITZENDBURO'!$R$6:$R$150=\"\",ROW('Overzicht UITZENDBURO'!$R$6:$R$150)-ROW($R$6)+1)))),$C28)),\"\")","v":""},{"$f":"IFERROR(INDEX('Overzicht UITZENDBURO'!$Q$6:$Q$150,SMALL(IF('Overzicht UITZENDBURO'!$P$6:$P$150=$A28,IF('Overzicht UITZENDBURO'!$L$6:$L$150=W$2,IF('Overzicht UITZENDBURO'!$O$6:$O$150=W$4,IF('Overzicht UITZENDBURO'!$R$6:$R$150=\"\",ROW('Overzicht UITZENDBURO'!$R$6:$R$150)-ROW($R$6)+1)))),$C28)),\"\")","v":""},{"$f":"IFERROR(INDEX('Overzicht UITZENDBURO'!$Q$6:$Q$150,SMALL(IF('Overzicht UITZENDBURO'!$P$6:$P$150=$A28,IF('Overzicht UITZENDBURO'!$L$6:$L$150=X$2,IF('Overzicht UITZENDBURO'!$O$6:$O$150=X$4,IF('Overzicht UITZENDBURO'!$R$6:$R$150=\"\",ROW('Overzicht UITZENDBURO'!$R$6:$R$150)-ROW($R$6)+1)))),$C28)),\"\")","v":""}]
["ABB",null,4,{"$f":"IFERROR(INDEX('Overzicht UITZENDBURO'!$Q$6:$Q$150,SMALL(IF('Overzicht UITZENDBURO'!$P$6:$P$150=$A29,IF('Overzicht UITZENDBURO'!$L$6:$L$150=D$2,IF('Overzicht UITZENDBURO'!$O$6:$O$150=D$4,IF('Overzicht UITZENDBURO'!$R$6:$R$150=\"\",ROW('Overzicht UITZENDBURO'!$R$6:$R$150)-ROW($R$6)+1)))),$C29)),\"\")","v":""},{"$f":"IFERROR(INDEX('Overzicht UITZENDBURO'!$Q$6:$Q$150,SMALL(IF('Overzicht UITZENDBURO'!$P$6:$P$150=$A29,IF('Overzicht UITZENDBURO'!$L$6:$L$150=E$2,IF('Overzicht UITZENDBURO'!$O$6:$O$150=E$4,IF('Overzicht UITZENDBURO'!$R$6:$R$150=\"\",ROW('Overzicht UITZENDBURO'!$R$6:$R$150)-ROW($R$6)+1)))),$C29)),\"\")","v":""},{"$f":"IFERROR(INDEX('Overzicht UITZENDBURO'!$Q$6:$Q$150,SMALL(IF('Overzicht UITZENDBURO'!$P$6:$P$150=$A29,IF('Overzicht UITZENDBURO'!$L$6:$L$150=F$2,IF('Overzicht UITZENDBURO'!$O$6:$O$150=F$4,IF('Overzicht UITZENDBURO'!$R$6:$R$150=\"\",ROW('Overzicht UITZENDBURO'!$R$6:$R$150)-ROW($R$6)+1)))),$C29)),\"\")","v":""},{"$f":"IFERROR(INDEX('Overzicht UITZENDBURO'!$Q$6:$Q$150,SMALL(IF('Overzicht UITZENDBURO'!$P$6:$P$150=$A29,IF('Overzicht UITZENDBURO'!$L$6:$L$150=G$2,IF('Overzicht UITZENDBURO'!$O$6:$O$150=G$4,IF('Overzicht UITZENDBURO'!$R$6:$R$150=\"\",ROW('Overzicht UITZENDBURO'!$R$6:$R$150)-ROW($R$6)+1)))),$C29)),\"\")","v":""},{"$f":"IFERROR(INDEX('Overzicht UITZENDBURO'!$Q$6:$Q$150,SMALL(IF('Overzicht UITZENDBURO'!$P$6:$P$150=$A29,IF('Overzicht UITZENDBURO'!$L$6:$L$150=H$2,IF('Overzicht UITZENDBURO'!$O$6:$O$150=H$4,IF('Overzicht UITZENDBURO'!$R$6:$R$150=\"\",ROW('Overzicht UITZENDBURO'!$R$6:$R$150)-ROW($R$6)+1)))),$C29)),\"\")","v":""},{"$f":"IFERROR(INDEX('Overzicht UITZENDBURO'!$Q$6:$Q$150,SMALL(IF('Overzicht UITZENDBURO'!$P$6:$P$150=$A29,IF('Overzicht UITZENDBURO'!$L$6:$L$150=I$2,IF('Overzicht UITZENDBURO'!$O$6:$O$150=I$4,IF('Overzicht UITZENDBURO'!$R$6:$R$150=\"\",ROW('Overzicht UITZENDBURO'!$R$6:$R$150)-ROW($R$6)+1)))),$C29)),\"\")","v":""},{"$f":"IFERROR(INDEX('Overzicht UITZENDBURO'!$Q$6:$Q$150,SMALL(IF('Overzicht UITZENDBURO'!$P$6:$P$150=$A29,IF('Overzicht UITZENDBURO'!$L$6:$L$150=J$2,IF('Overzicht UITZENDBURO'!$O$6:$O$150=J$4,IF('Overzicht UITZENDBURO'!$R$6:$R$150=\"\",ROW('Overzicht UITZENDBURO'!$R$6:$R$150)-ROW($R$6)+1)))),$C29)),\"\")","v":""},{"$f":"IFERROR(INDEX('Overzicht UITZENDBURO'!$Q$6:$Q$150,SMALL(IF('Overzicht UITZENDBURO'!$P$6:$P$150=$A29,IF('Overzicht UITZENDBURO'!$L$6:$L$150=K$2,IF('Overzicht UITZENDBURO'!$O$6:$O$150=K$4,IF('Overzicht UITZENDBURO'!$R$6:$R$150=\"\",ROW('Overzicht UITZENDBURO'!$R$6:$R$150)-ROW($R$6)+1)))),$C29)),\"\")","v":""},{"$f":"IFERROR(INDEX('Overzicht UITZENDBURO'!$Q$6:$Q$150,SMALL(IF('Overzicht UITZENDBURO'!$P$6:$P$150=$A29,IF('Overzicht UITZENDBURO'!$L$6:$L$150=L$2,IF('Overzicht UITZENDBURO'!$O$6:$O$150=L$4,IF('Overzicht UITZENDBURO'!$R$6:$R$150=\"\",ROW('Overzicht UITZENDBURO'!$R$6:$R$150)-ROW($R$6)+1)))),$C29)),\"\")","v":""},{"$f":"IFERROR(INDEX('Overzicht UITZENDBURO'!$Q$6:$Q$150,SMALL(IF('Overzicht UITZENDBURO'!$P$6:$P$150=$A29,IF('Overzicht UITZENDBURO'!$L$6:$L$150=M$2,IF('Overzicht UITZENDBURO'!$O$6:$O$150=M$4,IF('Overzicht UITZENDBURO'!$R$6:$R$150=\"\",ROW('Overzicht UITZENDBURO'!$R$6:$R$150)-ROW($R$6)+1)))),$C29)),\"\")","v":""},{"$f":"IFERROR(INDEX('Overzicht UITZENDBURO'!$Q$6:$Q$150,SMALL(IF('Overzicht UITZENDBURO'!$P$6:$P$150=$A29,IF('Overzicht UITZENDBURO'!$L$6:$L$150=N$2,IF('Overzicht UITZENDBURO'!$O$6:$O$150=N$4,IF('Overzicht UITZENDBURO'!$R$6:$R$150=\"\",ROW('Overzicht UITZENDBURO'!$R$6:$R$150)-ROW($R$6)+1)))),$C29)),\"\")","v":""},{"$f":"IFERROR(INDEX('Overzicht UITZENDBURO'!$Q$6:$Q$150,SMALL(IF('Overzicht UITZENDBURO'!$P$6:$P$150=$A29,IF('Overzicht UITZENDBURO'!$L$6:$L$150=O$2,IF('Overzicht UITZENDBURO'!$O$6:$O$150=O$4,IF('Overzicht UITZENDBURO'!$R$6:$R$150=\"\",ROW('Overzicht UITZENDBURO'!$R$6:$R$150)-ROW($R$6)+1)))),$C29)),\"\")","v":""},{"$f":"IFERROR(INDEX('Overzicht UITZENDBURO'!$Q$6:$Q$150,SMALL(IF('Overzicht UITZENDBURO'!$P$6:$P$150=$A29,IF('Overzicht UITZENDBURO'!$L$6:$L$150=P$2,IF('Overzicht UITZENDBURO'!$O$6:$O$150=P$4,IF('Overzicht UITZENDBURO'!$R$6:$R$150=\"\",ROW('Overzicht UITZENDBURO'!$R$6:$R$150)-ROW($R$6)+1)))),$C29)),\"\")","v":""},{"$f":"IFERROR(INDEX('Overzicht UITZENDBURO'!$Q$6:$Q$150,SMALL(IF('Overzicht UITZENDBURO'!$P$6:$P$150=$A29,IF('Overzicht UITZENDBURO'!$L$6:$L$150=Q$2,IF('Overzicht UITZENDBURO'!$O$6:$O$150=Q$4,IF('Overzicht UITZENDBURO'!$R$6:$R$150=\"\",ROW('Overzicht UITZENDBURO'!$R$6:$R$150)-ROW($R$6)+1)))),$C29)),\"\")","v":""},{"$f":"IFERROR(INDEX('Overzicht UITZENDBURO'!$Q$6:$Q$150,SMALL(IF('Overzicht UITZENDBURO'!$P$6:$P$150=$A29,IF('Overzicht UITZENDBURO'!$L$6:$L$150=R$2,IF('Overzicht UITZENDBURO'!$O$6:$O$150=R$4,IF('Overzicht UITZENDBURO'!$R$6:$R$150=\"\",ROW('Overzicht UITZENDBURO'!$R$6:$R$150)-ROW($R$6)+1)))),$C29)),\"\")","v":""},{"$f":"IFERROR(INDEX('Overzicht UITZENDBURO'!$Q$6:$Q$150,SMALL(IF('Overzicht UITZENDBURO'!$P$6:$P$150=$A29,IF('Overzicht UITZENDBURO'!$L$6:$L$150=S$2,IF('Overzicht UITZENDBURO'!$O$6:$O$150=S$4,IF('Overzicht UITZENDBURO'!$R$6:$R$150=\"\",ROW('Overzicht UITZENDBURO'!$R$6:$R$150)-ROW($R$6)+1)))),$C29)),\"\")","v":""},{"$f":"IFERROR(INDEX('Overzicht UITZENDBURO'!$Q$6:$Q$150,SMALL(IF('Overzicht UITZENDBURO'!$P$6:$P$150=$A29,IF('Overzicht UITZENDBURO'!$L$6:$L$150=T$2,IF('Overzicht UITZENDBURO'!$O$6:$O$150=T$4,IF('Overzicht UITZENDBURO'!$R$6:$R$150=\"\",ROW('Overzicht UITZENDBURO'!$R$6:$R$150)-ROW($R$6)+1)))),$C29)),\"\")","v":""},{"$f":"IFERROR(INDEX('Overzicht UITZENDBURO'!$Q$6:$Q$150,SMALL(IF('Overzicht UITZENDBURO'!$P$6:$P$150=$A29,IF('Overzicht UITZENDBURO'!$L$6:$L$150=U$2,IF('Overzicht UITZENDBURO'!$O$6:$O$150=U$4,IF('Overzicht UITZENDBURO'!$R$6:$R$150=\"\",ROW('Overzicht UITZENDBURO'!$R$6:$R$150)-ROW($R$6)+1)))),$C29)),\"\")","v":""},{"$f":"IFERROR(INDEX('Overzicht UITZENDBURO'!$Q$6:$Q$150,SMALL(IF('Overzicht UITZENDBURO'!$P$6:$P$150=$A29,IF('Overzicht UITZENDBURO'!$L$6:$L$150=V$2,IF('Overzicht UITZENDBURO'!$O$6:$O$150=V$4,IF('Overzicht UITZENDBURO'!$R$6:$R$150=\"\",ROW('Overzicht UITZENDBURO'!$R$6:$R$150)-ROW($R$6)+1)))),$C29)),\"\")","v":""},{"$f":"IFERROR(INDEX('Overzicht UITZENDBURO'!$Q$6:$Q$150,SMALL(IF('Overzicht UITZENDBURO'!$P$6:$P$150=$A29,IF('Overzicht UITZENDBURO'!$L$6:$L$150=W$2,IF('Overzicht UITZENDBURO'!$O$6:$O$150=W$4,IF('Overzicht UITZENDBURO'!$R$6:$R$150=\"\",ROW('Overzicht UITZENDBURO'!$R$6:$R$150)-ROW($R$6)+1)))),$C29)),\"\")","v":""},{"$f":"IFERROR(INDEX('Overzicht UITZENDBURO'!$Q$6:$Q$150,SMALL(IF('Overzicht UITZENDBURO'!$P$6:$P$150=$A29,IF('Overzicht UITZENDBURO'!$L$6:$L$150=X$2,IF('Overzicht UITZENDBURO'!$O$6:$O$150=X$4,IF('Overzicht UITZENDBURO'!$R$6:$R$150=\"\",ROW('Overzicht UITZENDBURO'!$R$6:$R$150)-ROW($R$6)+1)))),$C29)),\"\")","v":""}]
["MEP",null,1,{"$f":"IFERROR(INDEX('Overzicht UITZENDBURO'!$Q$6:$Q$150,SMALL(IF('Overzicht UITZENDBURO'!$P$6:$P$150=$A30,IF('Overzicht UITZENDBURO'!$L$6:$L$150=D$2,IF('Overzicht UITZENDBURO'!$O$6:$O$150=D$4,IF('Overzicht UITZENDBURO'!$R$6:$R$150=\"\",ROW('Overzicht UITZENDBURO'!$R$6:$R$150)-ROW($R$6)+1)))),$C30)),\"\")","v":""},{"$f":"IFERROR(INDEX('Overzicht UITZENDBURO'!$Q$6:$Q$150,SMALL(IF('Overzicht UITZENDBURO'!$P$6:$P$150=$A30,IF('Overzicht UITZENDBURO'!$L$6:$L$150=E$2,IF('Overzicht UITZENDBURO'!$O$6:$O$150=E$4,IF('Overzicht UITZENDBURO'!$R$6:$R$150=\"\",ROW('Overzicht UITZENDBURO'!$R$6:$R$150)-ROW($R$6)+1)))),$C30)),\"\")","v":"Jan"},{"$f":"IFERROR(INDEX('Overzicht UITZENDBURO'!$Q$6:$Q$150,SMALL(IF('Overzicht UITZENDBURO'!$P$6:$P$150=$A30,IF('Overzicht UITZENDBURO'!$L$6:$L$150=F$2,IF('Overzicht UITZENDBURO'!$O$6:$O$150=F$4,IF('Overzicht UITZENDBURO'!$R$6:$R$150=\"\",ROW('Overzicht UITZENDBURO'!$R$6:$R$150)-ROW($R$6)+1)))),$C30)),\"\")","v":""},{"$f":"IFERROR(INDEX('Overzicht UITZENDBURO'!$Q$6:$Q$150,SMALL(IF('Overzicht UITZENDBURO'!$P$6:$P$150=$A30,IF('Overzicht UITZENDBURO'!$L$6:$L$150=G$2,IF('Overzicht UITZENDBURO'!$O$6:$O$150=G$4,IF('Overzicht UITZENDBURO'!$R$6:$R$150=\"\",ROW('Overzicht UITZENDBURO'!$R$6:$R$150)-ROW($R$6)+1)))),$C30)),\"\")","v":""},{"$f":"IFERROR(INDEX('Overzicht UITZENDBURO'!$Q$6:$Q$150,SMALL(IF('Overzicht UITZENDBURO'!$P$6:$P$150=$A30,IF('Overzicht UITZENDBURO'!$L$6:$L$150=H$2,IF('Overzicht UITZENDBURO'!$O$6:$O$150=H$4,IF('Overzicht UITZENDBURO'!$R$6:$R$150=\"\",ROW('Overzicht UITZENDBURO'!$R$6:$R$150)-ROW($R$6)+1)))),$C30)),\"\")","v":""},{"$f":"IFERROR(INDEX('Overzicht UITZENDBURO'!$Q$6:$Q$150,SMALL(IF('Overzicht UITZENDBURO'!$P$6:$P$150=$A30,IF('Overzicht UITZENDBURO'!$L$6:$L$150=I$2,IF('Overzicht UITZENDBURO'!$O$6:$O$150=I$4,IF('Overzicht UITZENDBURO'!$R$6:$R$150=\"\",ROW('Overzicht UITZENDBURO'!$R$6:$R$150)-ROW($R$6)+1)))),$C30)),\"\")","v":"Pieter"},{"$f":"IFERROR(INDEX('Overzicht UITZENDBURO'!$Q$6:$Q$150,SMALL(IF('Overzicht UITZENDBURO'!$P$6:$P$150=$A30,IF('Overzicht UITZENDBURO'!$L$6:$L$150=J$2,IF('Overzicht UITZENDBURO'!$O$6:$O$150=J$4,IF('Overzicht UITZENDBURO'!$R$6:$R$150=\"\",ROW('Overzicht UITZENDBURO'!$R$6:$R$150)-ROW($R$6)+1)))),$C30)),\"\")","v":""},{"$f":"IFERROR(INDEX('Overzicht UITZENDBURO'!$Q$6:$Q$150,SMALL(IF('Overzicht UITZENDBURO'!$P$6:$P$150=$A30,IF('Overzicht UITZENDBURO'!$L$6:$L$150=K$2,IF('Overzicht UITZENDBURO'!$O$6:$O$150=K$4,IF('Overzicht UITZENDBURO'!$R$6:$R$150=\"\",ROW('Overzicht UITZENDBURO'!$R$6:$R$150)-ROW($R$6)+1)))),$C30)),\"\")","v":""},{"$f":"IFERROR(INDEX('Overzicht UITZENDBURO'!$Q$6:$Q$150,SMALL(IF('Overzicht UITZENDBURO'!$P$6:$P$150=$A30,IF('Overzicht UITZENDBURO'!$L$6:$L$150=L$2,IF('Overzicht UITZENDBURO'!$O$6:$O$150=L$4,IF('Overzicht UITZENDBURO'!$R$6:$R$150=\"\",ROW('Overzicht UITZENDBURO'!$R$6:$R$150)-ROW($R$6)+1)))),$C30)),\"\")","v":""},{"$f":"IFERROR(INDEX('Overzicht UITZENDBURO'!$Q$6:$Q$150,SMALL(IF('Overzicht UITZENDBURO'!$P$6:$P$150=$A30,IF('Overzicht UITZENDBURO'!$L$6:$L$150=M$2,IF('Overzicht UITZENDBURO'!$O$6:$O$150=M$4,IF('Overzicht UITZENDBURO'!$R$6:$R$150=\"\",ROW('Overzicht UITZENDBURO'!$R$6:$R$150)-ROW($R$6)+1)))),$C30)),\"\")","v":""},{"$f":"IFERROR(INDEX('Overzicht UITZENDBURO'!$Q$6:$Q$150,SMALL(IF('Overzicht UITZENDBURO'!$P$6:$P$150=$A30,IF('Overzicht UITZENDBURO'!$L$6:$L$150=N$2,IF('Overzicht UITZENDBURO'!$O$6:$O$150=N$4,IF('Overzicht UITZENDBURO'!$R$6:$R$150=\"\",ROW('Overzicht UITZENDBURO'!$R$6:$R$150)-ROW($R$6)+1)))),$C30)),\"\")","v":""},{"$f":"IFERROR(INDEX('Overzicht UITZENDBURO'!$Q$6:$Q$150,SMALL(IF('Overzicht UITZENDBURO'!$P$6:$P$150=$A30,IF('Overzicht UITZENDBURO'!$L$6:$L$150=O$2,IF('Overzicht UITZENDBURO'!$O$6:$O$150=O$4,IF('Overzicht UITZENDBURO'!$R$6:$R$150=\"\",ROW('Overzicht UITZENDBURO'!$R$6:$R$150)-ROW($R$6)+1)))),$C30)),\"\")","v":""},{"$f":"IFERROR(INDEX('Overzicht UITZENDBURO'!$Q$6:$Q$150,SMALL(IF('Overzicht UITZENDBURO'!$P$6:$P$150=$A30,IF('Overzicht UITZENDBURO'!$L$6:$L$150=P$2,IF('Overzicht UITZENDBURO'!$O$6:$O$150=P$4,IF('Overzicht UITZENDBURO'!$R$6:$R$150=\"\",ROW('Overzicht UITZENDBURO'!$R$6:$R$150)-ROW($R$6)+1)))),$C30)),\"\")","v":""},{"$f":"IFERROR(INDEX('Overzicht UITZENDBURO'!$Q$6:$Q$150,SMALL(IF('Overzicht UITZENDBURO'!$P$6:$P$150=$A30,IF('Overzicht UITZENDBURO'!$L$6:$L$150=Q$2,IF('Overzicht UITZENDBURO'!$O$6:$O$150=Q$4,IF('Overzicht UITZENDBURO'!$R$6:$R$150=\"\",ROW('Overzicht UITZENDBURO'!$R$6:$R$150)-ROW($R$6)+1)))),$C30)),\"\")","v":""},{"$f":"IFERROR(INDEX('Overzicht UITZENDBURO'!$Q$6:$Q$150,SMALL(IF('Overzicht UITZENDBURO'!$P$6:$P$150=$A30,IF('Overzicht UITZENDBURO'!$L$6:$L$150=R$2,IF('Overzicht UITZENDBURO'!$O$6:$O$150=R$4,IF('Overzicht UITZENDBURO'!$R$6:$R$150=\"\",ROW('Overzicht UITZENDBURO'!$R$6:$R$150)-ROW($R$6)+1)))),$C30)),\"\")","v":""},{"$f":"IFERROR(INDEX('Overzicht UITZENDBURO'!$Q$6:$Q$150,SMALL(IF('Overzicht UITZENDBURO'!$P$6:$P$150=$A30,IF('Overzicht UITZENDBURO'!$L$6:$L$150=S$2,IF('Overzicht UITZENDBURO'!$O$6:$O$150=S$4,IF('Overzicht UITZENDBURO'!$R$6:$R$150=\"\",ROW('Overzicht UITZENDBURO'!$R$6:$R$150)-ROW($R$6)+1)))),$C30)),\"\")","v":""},{"$f":"IFERROR(INDEX('Overzicht UITZENDBURO'!$Q$6:$Q$150,SMALL(IF('Overzicht UITZENDBURO'!$P$6:$P$150=$A30,IF('Overzicht UITZENDBURO'!$L$6:$L$150=T$2,IF('Overzicht UITZENDBURO'!$O$6:$O$150=T$4,IF('Overzicht UITZENDBURO'!$R$6:$R$150=\"\",ROW('Overzicht UITZENDBURO'!$R$6:$R$150)-ROW($R$6)+1)))),$C30)),\"\")","v":""},{"$f":"IFERROR(INDEX('Overzicht UITZENDBURO'!$Q$6:$Q$150,SMALL(IF('Overzicht UITZENDBURO'!$P$6:$P$150=$A30,IF('Overzicht UITZENDBURO'!$L$6:$L$150=U$2,IF('Overzicht UITZENDBURO'!$O$6:$O$150=U$4,IF('Overzicht UITZENDBURO'!$R$6:$R$150=\"\",ROW('Overzicht UITZENDBURO'!$R$6:$R$150)-ROW($R$6)+1)))),$C30)),\"\")","v":""},{"$f":"IFERROR(INDEX('Overzicht UITZENDBURO'!$Q$6:$Q$150,SMALL(IF('Overzicht UITZENDBURO'!$P$6:$P$150=$A30,IF('Overzicht UITZENDBURO'!$L$6:$L$150=V$2,IF('Overzicht UITZENDBURO'!$O$6:$O$150=V$4,IF('Overzicht UITZENDBURO'!$R$6:$R$150=\"\",ROW('Overzicht UITZENDBURO'!$R$6:$R$150)-ROW($R$6)+1)))),$C30)),\"\")","v":""},{"$f":"IFERROR(INDEX('Overzicht UITZENDBURO'!$Q$6:$Q$150,SMALL(IF('Overzicht UITZENDBURO'!$P$6:$P$150=$A30,IF('Overzicht UITZENDBURO'!$L$6:$L$150=W$2,IF('Overzicht UITZENDBURO'!$O$6:$O$150=W$4,IF('Overzicht UITZENDBURO'!$R$6:$R$150=\"\",ROW('Overzicht UITZENDBURO'!$R$6:$R$150)-ROW($R$6)+1)))),$C30)),\"\")","v":""},{"$f":"IFERROR(INDEX('Overzicht UITZENDBURO'!$Q$6:$Q$150,SMALL(IF('Overzicht UITZENDBURO'!$P$6:$P$150=$A30,IF('Overzicht UITZENDBURO'!$L$6:$L$150=X$2,IF('Overzicht UITZENDBURO'!$O$6:$O$150=X$4,IF('Overzicht UITZENDBURO'!$R$6:$R$150=\"\",ROW('Overzicht UITZENDBURO'!$R$6:$R$150)-ROW($R$6)+1)))),$C30)),\"\")","v":""}]
["MEP",null,2,{"$f":"IFERROR(INDEX('Overzicht UITZENDBURO'!$Q$6:$Q$150,SMALL(IF('Overzicht UITZENDBURO'!$P$6:$P$150=$A31,IF('Overzicht UITZENDBURO'!$L$6:$L$150=D$2,IF('Overzicht UITZENDBURO'!$O$6:$O$150=D$4,IF('Overzicht UITZENDBURO'!$R$6:$R$150=\"\",ROW('Overzicht UITZENDBURO'!$R$6:$R$150)-ROW($R$6)+1)))),$C31)),\"\")","v":""},{"$f":"IFERROR(INDEX('Overzicht UITZENDBURO'!$Q$6:$Q$150,SMALL(IF('Overzicht UITZENDBURO'!$P$6:$P$150=$A31,IF('Overzicht UITZENDBURO'!$L$6:$L$150=E$2,IF('Overzicht UITZENDBURO'!$O$6:$O$150=E$4,IF('Overzicht UITZENDBURO'!$R$6:$R$150=\"\",ROW('Overzicht UITZENDBURO'!$R$6:$R$150)-ROW($R$6)+1)))),$C31)),\"\")","v":""},{"$f":"IFERROR(INDEX('Overzicht UITZENDBURO'!$Q$6:$Q$150,SMALL(IF('Overzicht UITZENDBURO'!$P$6:$P$150=$A31,IF('Overzicht UITZENDBURO'!$L$6:$L$150=F$2,IF('Overzicht UITZENDBURO'!$O$6:$O$150=F$4,IF('Overzicht UITZENDBURO'!$R$6:$R$150=\"\",ROW('Overzicht UITZENDBURO'!$R$6:$R$150)-ROW($R$6)+1)))),$C31)),\"\")","v":""},{"$f":"IFERROR(INDEX('Overzicht UITZENDBURO'!$Q$6:$Q$150,SMALL(IF('Overzicht UITZENDBURO'!$P$6:$P$150=$A31,IF('Overzicht UITZENDBURO'!$L$6:$L$150=G$2,IF('Overzicht UITZENDBURO'!$O$6:$O$150=G$4,IF('Overzicht UITZENDBURO'!$R$6:$R$150=\"\",ROW('Overzicht UITZENDBURO'!$R$6:$R$150)-ROW($R$6)+1)))),$C31)),\"\")","v":""},{"$f":"IFERROR(INDEX('Overzicht UITZENDBURO'!$Q$6:$Q$150,SMALL(IF('Overzicht UITZENDBURO'!$P$6:$P$150=$A31,IF('Overzicht UITZENDBURO'!$L$6:$L$150=H$2,IF('Overzicht UITZENDBURO'!$O$6:$O$150=H$4,IF('Overzicht UITZENDBURO'!$R$6:$R$150=\"\",ROW('Overzicht UITZENDBURO'!$R$6:$R$150)-ROW($R$6)+1)))),$C31)),\"\")","v":""},{"$f":"IFERROR(INDEX('Overzicht UITZENDBURO'!$Q$6:$Q$150,SMALL(IF('Overzicht UITZENDBURO'!$P$6:$P$150=$A31,IF('Overzicht UITZENDBURO'!$L$6:$L$150=I$2,IF('Overzicht UITZENDBURO'!$O$6:$O$150=I$4,IF('Overzicht UITZENDBURO'!$R$6:$R$150=\"\",ROW('Overzicht UITZENDBURO'!$R$6:$R$150)-ROW($R$6)+1)))),$C31)),\"\")","v":"Mohamed"},{"$f":"IFERROR(INDEX('Overzicht UITZENDBURO'!$Q$6:$Q$150,SMALL(IF('Overzicht UITZENDBURO'!$P$6:$P$150=$A31,IF('Overzicht UITZENDBURO'!$L$6:$L$150=J$2,IF('Overzicht UITZENDBURO'!$O$6:$O$150=J$4,IF('Overzicht UITZENDBURO'!$R$6:$R$150=\"\",ROW('Overzicht UITZENDBURO'!$R$6:$R$150)-ROW($R$6)+1)))),$C31)),\"\")","v":""},{"$f":"IFERROR(INDEX('Overzicht UITZENDBURO'!$Q$6:$Q$150,SMALL(IF('Overzicht UITZENDBURO'!$P$6:$P$150=$A31,IF('Overzicht UITZENDBURO'!$L$6:$L$150=K$2,IF('Overzicht UITZENDBURO'!$O$6:$O$150=K$4,IF('Overzicht UITZENDBURO'!$R$6:$R$150=\"\",ROW('Overzicht UITZENDBURO'!$R$6:$R$150)-ROW($R$6)+1)))),$C31)),\"\")","v":""},{"$f":"IFERROR(INDEX('Overzicht UITZENDBURO'!$Q$6:$Q$150,SMALL(IF('Overzicht UITZENDBURO'!$P$6:$P$150=$A31,IF('Overzicht UITZENDBURO'!$L$6:$L$150=L$2,IF('Overzicht UITZENDBURO'!$O$6:$O$150=L$4,IF('Overzicht UITZENDBURO'!$R$6:$R$150=\"\",ROW('Overzicht UITZENDBURO'!$R$6:$R$150)-ROW($R$6)+1)))),$C31)),\"\")","v":""},{"$f":"IFERROR(INDEX('Overzicht UITZENDBURO'!$Q$6:$Q$150,SMALL(IF('Overzicht UITZENDBURO'!$P$6:$P$150=$A31,IF('Overzicht UITZENDBURO'!$L$6:$L$150=M$2,IF('Overzicht UITZENDBURO'!$O$6:$O$150=M$4,IF('Overzicht UITZENDBURO'!$R$6:$R$150=\"\",ROW('Overzicht UITZENDBURO'!$R$6:$R$150)-ROW($R$6)+1)))),$C31)),\"\")","v":""},{"$f":"IFERROR(INDEX('Overzicht UITZENDBURO'!$Q$6:$Q$150,SMALL(IF('Overzicht UITZENDBURO'!$P$6:$P$150=$A31,IF('Overzicht UITZENDBURO'!$L$6:$L$150=N$2,IF('Overzicht UITZENDBURO'!$O$6:$O$150=N$4,IF('Overzicht UITZENDBURO'!$R$6:$R$150=\"\",ROW('Overzicht UITZENDBURO'!$R$6:$R$150)-ROW($R$6)+1)))),$C31)),\"\")","v":""},{"$f":"IFERROR(INDEX('Overzicht UITZENDBURO'!$Q$6:$Q$150,SMALL(IF('Overzicht UITZENDBURO'!$P$6:$P$150=$A31,IF('Overzicht UITZENDBURO'!$L$6:$L$150=O$2,IF('Overzicht UITZENDBURO'!$O$6:$O$150=O$4,IF('Overzicht UITZENDBURO'!$R$6:$R$150=\"\",ROW('Overzicht UITZENDBURO'!$R$6:$R$150)-ROW($R$6)+1)))),$C31)),\"\")","v":""},{"$f":"IFERROR(INDEX('Overzicht UITZENDBURO'!$Q$6:$Q$150,SMALL(IF('Overzicht UITZENDBURO'!$P$6:$P$150=$A31,IF('Overzicht UITZENDBURO'!$L$6:$L$150=P$2,IF('Overzicht UITZENDBURO'!$O$6:$O$150=P$4,IF('Overzicht UITZENDBURO'!$R$6:$R$150=\"\",ROW('Overzicht UITZENDBURO'!$R$6:$R$150)-ROW($R$6)+1)))),$C31)),\"\")","v":""},{"$f":"IFERROR(INDEX('Overzicht UITZENDBURO'!$Q$6:$Q$150,SMALL(IF('Overzicht UITZENDBURO'!$P$6:$P$150=$A31,IF('Overzicht UITZENDBURO'!$L$6:$L$150=Q$2,IF('Overzicht UITZENDBURO'!$O$6:$O$150=Q$4,IF('Overzicht UITZENDBURO'!$R$6:$R$150=\"\",ROW('Overzicht UITZENDBURO'!$R$6:$R$150)-ROW($R$6)+1)))),$C31)),\"\")","v":""},{"$f":"IFERROR(INDEX('Overzicht UITZENDBURO'!$Q$6:$Q$150,SMALL(IF('Overzicht UITZENDBURO'!$P$6:$P$150=$A31,IF('Overzicht UITZENDBURO'!$L$6:$L$150=R$2,IF('Overzicht UITZENDBURO'!$O$6:$O$150=R$4,IF('Overzicht UITZENDBURO'!$R$6:$R$150=\"\",ROW('Overzicht UITZENDBURO'!$R$6:$R$150)-ROW($R$6)+1)))),$C31)),\"\")","v":""},{"$f":"IFERROR(INDEX('Overzicht UITZENDBURO'!$Q$6:$Q$150,SMALL(IF('Overzicht UITZENDBURO'!$P$6:$P$150=$A31,IF('Overzicht UITZENDBURO'!$L$6:$L$150=S$2,IF('Overzicht UITZENDBURO'!$O$6:$O$150=S$4,IF('Overzicht UITZENDBURO'!$R$6:$R$150=\"\",ROW('Overzicht UITZENDBURO'!$R$6:$R$150)-ROW($R$6)+1)))),$C31)),\"\")","v":""},{"$f":"IFERROR(INDEX('Overzicht UITZENDBURO'!$Q$6:$Q$150,SMALL(IF('Overzicht UITZENDBURO'!$P$6:$P$150=$A31,IF('Overzicht UITZENDBURO'!$L$6:$L$150=T$2,IF('Overzicht UITZENDBURO'!$O$6:$O$150=T$4,IF('Overzicht UITZENDBURO'!$R$6:$R$150=\"\",ROW('Overzicht UITZENDBURO'!$R$6:$R$150)-ROW($R$6)+1)))),$C31)),\"\")","v":""},{"$f":"IFERROR(INDEX('Overzicht UITZENDBURO'!$Q$6:$Q$150,SMALL(IF('Overzicht UITZENDBURO'!$P$6:$P$150=$A31,IF('Overzicht UITZENDBURO'!$L$6:$L$150=U$2,IF('Overzicht UITZENDBURO'!$O$6:$O$150=U$4,IF('Overzicht UITZENDBURO'!$R$6:$R$150=\"\",ROW('Overzicht UITZENDBURO'!$R$6:$R$150)-ROW($R$6)+1)))),$C31)),\"\")","v":""},{"$f":"IFERROR(INDEX('Overzicht UITZENDBURO'!$Q$6:$Q$150,SMALL(IF('Overzicht UITZENDBURO'!$P$6:$P$150=$A31,IF('Overzicht UITZENDBURO'!$L$6:$L$150=V$2,IF('Overzicht UITZENDBURO'!$O$6:$O$150=V$4,IF('Overzicht UITZENDBURO'!$R$6:$R$150=\"\",ROW('Overzicht UITZENDBURO'!$R$6:$R$150)-ROW($R$6)+1)))),$C31)),\"\")","v":""},{"$f":"IFERROR(INDEX('Overzicht UITZENDBURO'!$Q$6:$Q$150,SMALL(IF('Overzicht UITZENDBURO'!$P$6:$P$150=$A31,IF('Overzicht UITZENDBURO'!$L$6:$L$150=W$2,IF('Overzicht UITZENDBURO'!$O$6:$O$150=W$4,IF('Overzicht UITZENDBURO'!$R$6:$R$150=\"\",ROW('Overzicht UITZENDBURO'!$R$6:$R$150)-ROW($R$6)+1)))),$C31)),\"\")","v":""},{"$f":"IFERROR(INDEX('Overzicht UITZENDBURO'!$Q$6:$Q$150,SMALL(IF('Overzicht UITZENDBURO'!$P$6:$P$150=$A31,IF('Overzicht UITZENDBURO'!$L$6:$L$150=X$2,IF('Overzicht UITZENDBURO'!$O$6:$O$150=X$4,IF('Overzicht UITZENDBURO'!$R$6:$R$150=\"\",ROW('Overzicht UITZENDBURO'!$R$6:$R$150)-ROW($R$6)+1)))),$C31)),\"\")","v":""}]
["MEP",null,3,{"$f":"IFERROR(INDEX('Overzicht UITZENDBURO'!$Q$6:$Q$150,SMALL(IF('Overzicht UITZENDBURO'!$P$6:$P$150=$A32,IF('Overzicht UITZENDBURO'!$L$6:$L$150=D$2,IF('Overzicht UITZENDBURO'!$O$6:$O$150=D$4,IF('Overzicht UITZENDBURO'!$R$6:$R$150=\"\",ROW('Overzicht UITZENDBURO'!$R$6:$R$150)-ROW($R$6)+1)))),$C32)),\"\")","v":""},{"$f":"IFERROR(INDEX('Overzicht UITZENDBURO'!$Q$6:$Q$150,SMALL(IF('Overzicht UITZENDBURO'!$P$6:$P$150=$A32,IF('Overzicht UITZENDBURO'!$L$6:$L$150=E$2,IF('Overzicht UITZENDBURO'!$O$6:$O$150=E$4,IF('Overzicht UITZENDBURO'!$R$6:$R$150=\"\",ROW('Overzicht UITZENDBURO'!$R$6:$R$150)-ROW($R$6)+1)))),$C32)),\"\")","v":""},{"$f":"IFERROR(INDEX('Overzicht UITZENDBURO'!$Q$6:$Q$150,SMALL(IF('Overzicht UITZENDBURO'!$P$6:$P$150=$A32,IF('Overzicht UITZENDBURO'!$L$6:$L$150=F$2,IF('Overzicht UITZENDBURO'!$O$6:$O$150=F$4,IF('Overzicht UITZENDBURO'!$R$6:$R$150=\"\",ROW('Overzicht UITZENDBURO'!$R$6:$R$150)-ROW($R$6)+1)))),$C32)),\"\")","v":""},{"$f":"IFERROR(INDEX('Overzicht UITZENDBURO'!$Q$6:$Q$150,SMALL(IF('Overzicht UITZENDBURO'!$P$6:$P$150=$A32,IF('Overzicht UITZENDBURO'!$L$6:$L$150=G$2,IF('Overzicht UITZENDBURO'!$O$6:$O$150=G$4,IF('Overzicht UITZENDBURO'!$R$6:$R$150=\"\",ROW('Overzicht UITZENDBURO'!$R$6:$R$150)-ROW($R$6)+1)))),$C32)),\"\")","v":""},{"$f":"IFERROR(INDEX('Overzicht UITZENDBURO'!$Q$6:$Q$150,SMALL(IF('Overzicht UITZENDBURO'!$P$6:$P$150=$A32,IF('Overzicht UITZENDBURO'!$L$6:$L$150=H$2,IF('Overzicht UITZENDBURO'!$O$6:$O$150=H$4,IF('Overzicht UITZENDBURO'!$R$6:$R$150=\"\",ROW('Overzicht UITZENDBURO'!$R$6:$R$150)-ROW($R$6)+1)))),$C32)),\"\")","v":""},{"$f":"IFERROR(INDEX('Overzicht UITZENDBURO'!$Q$6:$Q$150,SMALL(IF('Overzicht UITZENDBURO'!$P$6:$P$150=$A32,IF('Overzicht UITZENDBURO'!$L$6:$L$150=I$2,IF('Overzicht UITZENDBURO'!$O$6:$O$150=I$4,IF('Overzicht UITZENDBURO'!$R$6:$R$150=\"\",ROW('Overzicht UITZENDBURO'!$R$6:$R$150)-ROW($R$6)+1)))),$C32)),\"\")","v":""},{"$f":"IFERROR(INDEX('Overzicht UITZENDBURO'!$Q$6:$Q$150,SMALL(IF('Overzicht UITZENDBURO'!$P$6:$P$150=$A32,IF('Overzicht UITZENDBURO'!$L$6:$L$150=J$2,IF('Overzicht UITZENDBURO'!$O$6:$O$150=J$4,IF('Overzicht UITZENDBURO'!$R$6:$R$150=\"\",ROW('Overzicht UITZENDBURO'!$R$6:$R$150)-ROW($R$6)+1)))),$C32)),\"\")","v":""},{"$f":"IFERROR(INDEX('Overzicht UITZENDBURO'!$Q$6:$Q$150,SMALL(IF('Overzicht UITZENDBURO'!$P$6:$P$150=$A32,IF('Overzicht UITZENDBURO'!$L$6:$L$150=K$2,IF('Overzicht UITZENDBURO'!$O$6:$O$150=K$4,IF('Overzicht UITZENDBURO'!$R$6:$R$150=\"\",ROW('Overzicht UITZENDBURO'!$R$6:$R$150)-ROW($R$6)+1)))),$C32)),\"\")","v":""},{"$f":"IFERROR(INDEX('Overzicht UITZENDBURO'!$Q$6:$Q$150,SMALL(IF('Overzicht UITZENDBURO'!$P$6:$P$150=$A32,IF('Overzicht UITZENDBURO'!$L$6:$L$150=L$2,IF('Overzicht UITZENDBURO'!$O$6:$O$150=L$4,IF('Overzicht UITZENDBURO'!$R$6:$R$150=\"\",ROW('Overzicht UITZENDBURO'!$R$6:$R$150)-ROW($R$6)+1)))),$C32)),\"\")","v":""},{"$f":"IFERROR(INDEX('Overzicht UITZENDBURO'!$Q$6:$Q$150,SMALL(IF('Overzicht UITZENDBURO'!$P$6:$P$150=$A32,IF('Overzicht UITZENDBURO'!$L$6:$L$150=M$2,IF('Overzicht UITZENDBURO'!$O$6:$O$150=M$4,IF('Overzicht UITZENDBURO'!$R$6:$R$150=\"\",ROW('Overzicht UITZENDBURO'!$R$6:$R$150)-ROW($R$6)+1)))),$C32)),\"\")","v":""},{"$f":"IFERROR(INDEX('Overzicht UITZENDBURO'!$Q$6:$Q$150,SMALL(IF('Overzicht UITZENDBURO'!$P$6:$P$150=$A32,IF('Overzicht UITZENDBURO'!$L$6:$L$150=N$2,IF('Overzicht UITZENDBURO'!$O$6:$O$150=N$4,IF('Overzicht UITZENDBURO'!$R$6:$R$150=\"\",ROW('Overzicht UITZENDBURO'!$R$6:$R$150)-ROW($R$6)+1)))),$C32)),\"\")","v":""},{"$f":"IFERROR(INDEX('Overzicht UITZENDBURO'!$Q$6:$Q$150,SMALL(IF('Overzicht UITZENDBURO'!$P$6:$P$150=$A32,IF('Overzicht UITZENDBURO'!$L$6:$L$150=O$2,IF('Overzicht UITZENDBURO'!$O$6:$O$150=O$4,IF('Overzicht UITZENDBURO'!$R$6:$R$150=\"\",ROW('Overzicht UITZENDBURO'!$R$6:$R$150)-ROW($R$6)+1)))),$C32)),\"\")","v":""},{"$f":"IFERROR(INDEX('Overzicht UITZENDBURO'!$Q$6:$Q$150,SMALL(IF('Overzicht UITZENDBURO'!$P$6:$P$150=$A32,IF('Overzicht UITZENDBURO'!$L$6:$L$150=P$2,IF('Overzicht UITZENDBURO'!$O$6:$O$150=P$4,IF('Overzicht UITZENDBURO'!$R$6:$R$150=\"\",ROW('Overzicht UITZENDBURO'!$R$6:$R$150)-ROW($R$6)+1)))),$C32)),\"\")","v":""},{"$f":"IFERROR(INDEX('Overzicht UITZENDBURO'!$Q$6:$Q$150,SMALL(IF('Overzicht UITZENDBURO'!$P$6:$P$150=$A32,IF('Overzicht UITZENDBURO'!$L$6:$L$150=Q$2,IF('Overzicht UITZENDBURO'!$O$6:$O$150=Q$4,IF('Overzicht UITZENDBURO'!$R$6:$R$150=\"\",ROW('Overzicht UITZENDBURO'!$R$6:$R$150)-ROW($R$6)+1)))),$C32)),\"\")","v":""},{"$f":"IFERROR(INDEX('Overzicht UITZENDBURO'!$Q$6:$Q$150,SMALL(IF('Overzicht UITZENDBURO'!$P$6:$P$150=$A32,IF('Overzicht UITZENDBURO'!$L$6:$L$150=R$2,IF('Overzicht UITZENDBURO'!$O$6:$O$150=R$4,IF('Overzicht UITZENDBURO'!$R$6:$R$150=\"\",ROW('Overzicht UITZENDBURO'!$R$6:$R$150)-ROW($R$6)+1)))),$C32)),\"\")","v":""},{"$f":"IFERROR(INDEX('Overzicht UITZENDBURO'!$Q$6:$Q$150,SMALL(IF('Overzicht UITZENDBURO'!$P$6:$P$150=$A32,IF('Overzicht UITZENDBURO'!$L$6:$L$150=S$2,IF('Overzicht UITZENDBURO'!$O$6:$O$150=S$4,IF('Overzicht UITZENDBURO'!$R$6:$R$150=\"\",ROW('Overzicht UITZENDBURO'!$R$6:$R$150)-ROW($R$6)+1)))),$C32)),\"\")","v":""},{"$f":"IFERROR(INDEX('Overzicht UITZENDBURO'!$Q$6:$Q$150,SMALL(IF('Overzicht UITZENDBURO'!$P$6:$P$150=$A32,IF('Overzicht UITZENDBURO'!$L$6:$L$150=T$2,IF('Overzicht UITZENDBURO'!$O$6:$O$150=T$4,IF('Overzicht UITZENDBURO'!$R$6:$R$150=\"\",ROW('Overzicht UITZENDBURO'!$R$6:$R$150)-ROW($R$6)+1)))),$C32)),\"\")","v":""},{"$f":"IFERROR(INDEX('Overzicht UITZENDBURO'!$Q$6:$Q$150,SMALL(IF('Overzicht UITZENDBURO'!$P$6:$P$150=$A32,IF('Overzicht UITZENDBURO'!$L$6:$L$150=U$2,IF('Overzicht UITZENDBURO'!$O$6:$O$150=U$4,IF('Overzicht UITZENDBURO'!$R$6:$R$150=\"\",ROW('Overzicht UITZENDBURO'!$R$6:$R$150)-ROW($R$6)+1)))),$C32)),\"\")","v":""},{"$f":"IFERROR(INDEX('Overzicht UITZENDBURO'!$Q$6:$Q$150,SMALL(IF('Overzicht UITZENDBURO'!$P$6:$P$150=$A32,IF('Overzicht UITZENDBURO'!$L$6:$L$150=V$2,IF('Overzicht UITZENDBURO'!$O$6:$O$150=V$4,IF('Overzicht UITZENDBURO'!$R$6:$R$150=\"\",ROW('Overzicht UITZENDBURO'!$R$6:$R$150)-ROW($R$6)+1)))),$C32)),\"\")","v":""},{"$f":"IFERROR(INDEX('Overzicht UITZENDBURO'!$Q$6:$Q$150,SMALL(IF('Overzicht UITZENDBURO'!$P$6:$P$150=$A32,IF('Overzicht UITZENDBURO'!$L$6:$L$150=W$2,IF('Overzicht UITZENDBURO'!$O$6:$O$150=W$4,IF('Overzicht UITZENDBURO'!$R$6:$R$150=\"\",ROW('Overzicht UITZENDBURO'!$R$6:$R$150)-ROW($R$6)+1)))),$C32)),\"\")","v":""},{"$f":"IFERROR(INDEX('Overzicht UITZENDBURO'!$Q$6:$Q$150,SMALL(IF('Overzicht UITZENDBURO'!$P$6:$P$150=$A32,IF('Overzicht UITZENDBURO'!$L$6:$L$150=X$2,IF('Overzicht UITZENDBURO'!$O$6:$O$150=X$4,IF('Overzicht UITZENDBURO'!$R$6:$R$150=\"\",ROW('Overzicht UITZENDBURO'!$R$6:$R$150)-ROW($R$6)+1)))),$C32)),\"\")","v":""}]
["MEP",null,4,{"$f":"IFERROR(INDEX('Overzicht UITZENDBURO'!$Q$6:$Q$150,SMALL(IF('Overzicht UITZENDBURO'!$P$6:$P$150=$A33,IF('Overzicht UITZENDBURO'!$L$6:$L$150=D$2,IF('Overzicht UITZENDBURO'!$O$6:$O$150=D$4,IF('Overzicht UITZENDBURO'!$R$6:$R$150=\"\",ROW('Overzicht UITZENDBURO'!$R$6:$R$150)-ROW($R$6)+1)))),$C33)),\"\")","v":""},{"$f":"IFERROR(INDEX('Overzicht UITZENDBURO'!$Q$6:$Q$150,SMALL(IF('Overzicht UITZENDBURO'!$P$6:$P$150=$A33,IF('Overzicht UITZENDBURO'!$L$6:$L$150=E$2,IF('Overzicht UITZENDBURO'!$O$6:$O$150=E$4,IF('Overzicht UITZENDBURO'!$R$6:$R$150=\"\",ROW('Overzicht UITZENDBURO'!$R$6:$R$150)-ROW($R$6)+1)))),$C33)),\"\")","v":""},{"$f":"IFERROR(INDEX('Overzicht UITZENDBURO'!$Q$6:$Q$150,SMALL(IF('Overzicht UITZENDBURO'!$P$6:$P$150=$A33,IF('Overzicht UITZENDBURO'!$L$6:$L$150=F$2,IF('Overzicht UITZENDBURO'!$O$6:$O$150=F$4,IF('Overzicht UITZENDBURO'!$R$6:$R$150=\"\",ROW('Overzicht UITZENDBURO'!$R$6:$R$150)-ROW($R$6)+1)))),$C33)),\"\")","v":""},{"$f":"IFERROR(INDEX('Overzicht UITZENDBURO'!$Q$6:$Q$150,SMALL(IF('Overzicht UITZENDBURO'!$P$6:$P$150=$A33,IF('Overzicht UITZENDBURO'!$L$6:$L$150=G$2,IF('Overzicht UITZENDBURO'!$O$6:$O$150=G$4,IF('Overzicht UITZENDBURO'!$R$6:$R$150=\"\",ROW('Overzicht UITZENDBURO'!$R$6:$R$150)-ROW($R$6)+1)))),$C33)),\"\")","v":""},{"$f":"IFERROR(INDEX('Overzicht UITZENDBURO'!$Q$6:$Q$150,SMALL(IF('Overzicht UITZENDBURO'!$P$6:$P$150=$A33,IF('Overzicht UITZENDBURO'!$L$6:$L$150=H$2,IF('Overzicht UITZENDBURO'!$O$6:$O$150=H$4,IF('Overzicht UITZENDBURO'!$R$6:$R$150=\"\",ROW('Overzicht UITZENDBURO'!$R$6:$R$150)-ROW($R$6)+1)))),$C33)),\"\")","v":""},{"$f":"IFERROR(INDEX('Overzicht UITZENDBURO'!$Q$6:$Q$150,SMALL(IF('Overzicht UITZENDBURO'!$P$6:$P$150=$A33,IF('Overzicht UITZENDBURO'!$L$6:$L$150=I$2,IF('Overzicht UITZENDBURO'!$O$6:$O$150=I$4,IF('Overzicht UITZENDBURO'!$R$6:$R$150=\"\",ROW('Overzicht UITZENDBURO'!$R$6:$R$150)-ROW($R$6)+1)))),$C33)),\"\")","v":""},{"$f":"IFERROR(INDEX('Overzicht UITZENDBURO'!$Q$6:$Q$150,SMALL(IF('Overzicht UITZENDBURO'!$P$6:$P$150=$A33,IF('Overzicht UITZENDBURO'!$L$6:$L$150=J$2,IF('Overzicht UITZENDBURO'!$O$6:$O$150=J$4,IF('Overzicht UITZENDBURO'!$R$6:$R$150=\"\",ROW('Overzicht UITZENDBURO'!$R$6:$R$150)-ROW($R$6)+1)))),$C33)),\"\")","v":""},{"$f":"IFERROR(INDEX('Overzicht UITZENDBURO'!$Q$6:$Q$150,SMALL(IF('Overzicht UITZENDBURO'!$P$6:$P$150=$A33,IF('Overzicht UITZENDBURO'!$L$6:$L$150=K$2,IF('Overzicht UITZENDBURO'!$O$6:$O$150=K$4,IF('Overzicht UITZENDBURO'!$R$6:$R$150=\"\",ROW('Overzicht UITZENDBURO'!$R$6:$R$150)-ROW($R$6)+1)))),$C33)),\"\")","v":""},{"$f":"IFERROR(INDEX('Overzicht UITZENDBURO'!$Q$6:$Q$150,SMALL(IF('Overzicht UITZENDBURO'!$P$6:$P$150=$A33,IF('Overzicht UITZENDBURO'!$L$6:$L$150=L$2,IF('Overzicht UITZENDBURO'!$O$6:$O$150=L$4,IF('Overzicht UITZENDBURO'!$R$6:$R$150=\"\",ROW('Overzicht UITZENDBURO'!$R$6:$R$150)-ROW($R$6)+1)))),$C33)),\"\")","v":""},{"$f":"IFERROR(INDEX('Overzicht UITZENDBURO'!$Q$6:$Q$150,SMALL(IF('Overzicht UITZENDBURO'!$P$6:$P$150=$A33,IF('Overzicht UITZENDBURO'!$L$6:$L$150=M$2,IF('Overzicht UITZENDBURO'!$O$6:$O$150=M$4,IF('Overzicht UITZENDBURO'!$R$6:$R$150=\"\",ROW('Overzicht UITZENDBURO'!$R$6:$R$150)-ROW($R$6)+1)))),$C33)),\"\")","v":""},{"$f":"IFERROR(INDEX('Overzicht UITZENDBURO'!$Q$6:$Q$150,SMALL(IF('Overzicht UITZENDBURO'!$P$6:$P$150=$A33,IF('Overzicht UITZENDBURO'!$L$6:$L$150=N$2,IF('Overzicht UITZENDBURO'!$O$6:$O$150=N$4,IF('Overzicht UITZENDBURO'!$R$6:$R$150=\"\",ROW('Overzicht UITZENDBURO'!$R$6:$R$150)-ROW($R$6)+1)))),$C33)),\"\")","v":""},{"$f":"IFERROR(INDEX('Overzicht UITZENDBURO'!$Q$6:$Q$150,SMALL(IF('Overzicht UITZENDBURO'!$P$6:$P$150=$A33,IF('Overzicht UITZENDBURO'!$L$6:$L$150=O$2,IF('Overzicht UITZENDBURO'!$O$6:$O$150=O$4,IF('Overzicht UITZENDBURO'!$R$6:$R$150=\"\",ROW('Overzicht UITZENDBURO'!$R$6:$R$150)-ROW($R$6)+1)))),$C33)),\"\")","v":""},{"$f":"IFERROR(INDEX('Overzicht UITZENDBURO'!$Q$6:$Q$150,SMALL(IF('Overzicht UITZENDBURO'!$P$6:$P$150=$A33,IF('Overzicht UITZENDBURO'!$L$6:$L$150=P$2,IF('Overzicht UITZENDBURO'!$O$6:$O$150=P$4,IF('Overzicht UITZENDBURO'!$R$6:$R$150=\"\",ROW('Overzicht UITZENDBURO'!$R$6:$R$150)-ROW($R$6)+1)))),$C33)),\"\")","v":""},{"$f":"IFERROR(INDEX('Overzicht UITZENDBURO'!$Q$6:$Q$150,SMALL(IF('Overzicht UITZENDBURO'!$P$6:$P$150=$A33,IF('Overzicht UITZENDBURO'!$L$6:$L$150=Q$2,IF('Overzicht UITZENDBURO'!$O$6:$O$150=Q$4,IF('Overzicht UITZENDBURO'!$R$6:$R$150=\"\",ROW('Overzicht UITZENDBURO'!$R$6:$R$150)-ROW($R$6)+1)))),$C33)),\"\")","v":""},{"$f":"IFERROR(INDEX('Overzicht UITZENDBURO'!$Q$6:$Q$150,SMALL(IF('Overzicht UITZENDBURO'!$P$6:$P$150=$A33,IF('Overzicht UITZENDBURO'!$L$6:$L$150=R$2,IF('Overzicht UITZENDBURO'!$O$6:$O$150=R$4,IF('Overzicht UITZENDBURO'!$R$6:$R$150=\"\",ROW('Overzicht UITZENDBURO'!$R$6:$R$150)-ROW($R$6)+1)))),$C33)),\"\")","v":""},{"$f":"IFERROR(INDEX('Overzicht UITZENDBURO'!$Q$6:$Q$150,SMALL(IF('Overzicht UITZENDBURO'!$P$6:$P$150=$A33,IF('Overzicht UITZENDBURO'!$L$6:$L$150=S$2,IF('Overzicht UITZENDBURO'!$O$6:$O$150=S$4,IF('Overzicht UITZENDBURO'!$R$6:$R$150=\"\",ROW('Overzicht UITZENDBURO'!$R$6:$R$150)-ROW($R$6)+1)))),$C33)),\"\")","v":""},{"$f":"IFERROR(INDEX('Overzicht UITZENDBURO'!$Q$6:$Q$150,SMALL(IF('Overzicht UITZENDBURO'!$P$6:$P$150=$A33,IF('Overzicht UITZENDBURO'!$L$6:$L$150=T$2,IF('Overzicht UITZENDBURO'!$O$6:$O$150=T$4,IF('Overzicht UITZENDBURO'!$R$6:$R$150=\"\",ROW('Overzicht UITZENDBURO'!$R$6:$R$150)-ROW($R$6)+1)))),$C33)),\"\")","v":""},{"$f":"IFERROR(INDEX('Overzicht UITZENDBURO'!$Q$6:$Q$150,SMALL(IF('Overzicht UITZENDBURO'!$P$6:$P$150=$A33,IF('Overzicht UITZENDBURO'!$L$6:$L$150=U$2,IF('Overzicht UITZENDBURO'!$O$6:$O$150=U$4,IF('Overzicht UITZENDBURO'!$R$6:$R$150=\"\",ROW('Overzicht UITZENDBURO'!$R$6:$R$150)-ROW($R$6)+1)))),$C33)),\"\")","v":""},{"$f":"IFERROR(INDEX('Overzicht UITZENDBURO'!$Q$6:$Q$150,SMALL(IF('Overzicht UITZENDBURO'!$P$6:$P$150=$A33,IF('Overzicht UITZENDBURO'!$L$6:$L$150=V$2,IF('Overzicht UITZENDBURO'!$O$6:$O$150=V$4,IF('Overzicht UITZENDBURO'!$R$6:$R$150=\"\",ROW('Overzicht UITZENDBURO'!$R$6:$R$150)-ROW($R$6)+1)))),$C33)),\"\")","v":""},{"$f":"IFERROR(INDEX('Overzicht UITZENDBURO'!$Q$6:$Q$150,SMALL(IF('Overzicht UITZENDBURO'!$P$6:$P$150=$A33,IF('Overzicht UITZENDBURO'!$L$6:$L$150=W$2,IF('Overzicht UITZENDBURO'!$O$6:$O$150=W$4,IF('Overzicht UITZENDBURO'!$R$6:$R$150=\"\",ROW('Overzicht UITZENDBURO'!$R$6:$R$150)-ROW($R$6)+1)))),$C33)),\"\")","v":""},{"$f":"IFERROR(INDEX('Overzicht UITZENDBURO'!$Q$6:$Q$150,SMALL(IF('Overzicht UITZENDBURO'!$P$6:$P$150=$A33,IF('Overzicht UITZENDBURO'!$L$6:$L$150=X$2,IF('Overzicht UITZENDBURO'!$O$6:$O$150=X$4,IF('Overzicht UITZENDBURO'!$R$6:$R$150=\"\",ROW('Overzicht UITZENDBURO'!$R$6:$R$150)-ROW($R$6)+1)))),$C33)),\"\")","v":""}]
["MEP",null,5,{"$f":"IFERROR(INDEX('Overzicht UITZENDBURO'!$Q$6:$Q$150,SMALL(IF('Overzicht UITZENDBURO'!$P$6:$P$150=$A34,IF('Overzicht UITZENDBURO'!$L$6:$L$150=D$2,IF('Overzicht UITZENDBURO'!$O$6:$O$150=D$4,IF('Overzicht UITZENDBURO'!$R$6:$R$150=\"\",ROW('Overzicht UITZENDBURO'!$R$6:$R$150)-ROW($R$6)+1)))),$C34)),\"\")","v":""},{"$f":"IFERROR(INDEX('Overzicht UITZENDBURO'!$Q$6:$Q$150,SMALL(IF('Overzicht UITZENDBURO'!$P$6:$P$150=$A34,IF('Overzicht UITZENDBURO'!$L$6:$L$150=E$2,IF('Overzicht UITZENDBURO'!$O$6:$O$150=E$4,IF('Overzicht UITZENDBURO'!$R$6:$R$150=\"\",ROW('Overzicht UITZENDBURO'!$R$6:$R$150)-ROW($R$6)+1)))),$C34)),\"\")","v":""},{"$f":"IFERROR(INDEX('Overzicht UITZENDBURO'!$Q$6:$Q$150,SMALL(IF('Overzicht UITZENDBURO'!$P$6:$P$150=$A34,IF('Overzicht UITZENDBURO'!$L$6:$L$150=F$2,IF('Overzicht UITZENDBURO'!$O$6:$O$150=F$4,IF('Overzicht UITZENDBURO'!$R$6:$R$150=\"\",ROW('Overzicht UITZENDBURO'!$R$6:$R$150)-ROW($R$6)+1)))),$C34)),\"\")","v":""},{"$f":"IFERROR(INDEX('Overzicht UITZENDBURO'!$Q$6:$Q$150,SMALL(IF('Overzicht UITZENDBURO'!$P$6:$P$150=$A34,IF('Overzicht UITZENDBURO'!$L$6:$L$150=G$2,IF('Overzicht UITZENDBURO'!$O$6:$O$150=G$4,IF('Overzicht UITZENDBURO'!$R$6:$R$150=\"\",ROW('Overzicht UITZENDBURO'!$R$6:$R$150)-ROW($R$6)+1)))),$C34)),\"\")","v":""},{"$f":"IFERROR(INDEX('Overzicht UITZENDBURO'!$Q$6:$Q$150,SMALL(IF('Overzicht UITZENDBURO'!$P$6:$P$150=$A34,IF('Overzicht UITZENDBURO'!$L$6:$L$150=H$2,IF('Overzicht UITZENDBURO'!$O$6:$O$150=H$4,IF('Overzicht UITZENDBURO'!$R$6:$R$150=\"\",ROW('Overzicht UITZENDBURO'!$R$6:$R$150)-ROW($R$6)+1)))),$C34)),\"\")","v":""},{"$f":"IFERROR(INDEX('Overzicht UITZENDBURO'!$Q$6:$Q$150,SMALL(IF('Overzicht UITZENDBURO'!$P$6:$P$150=$A34,IF('Overzicht UITZENDBURO'!$L$6:$L$150=I$2,IF('Overzicht UITZENDBURO'!$O$6:$O$150=I$4,IF('Overzicht UITZENDBURO'!$R$6:$R$150=\"\",ROW('Overzicht UITZENDBURO'!$R$6:$R$150)-ROW($R$6)+1)))),$C34)),\"\")","v":""},{"$f":"IFERROR(INDEX('Overzicht UITZENDBURO'!$Q$6:$Q$150,SMALL(IF('Overzicht UITZENDBURO'!$P$6:$P$150=$A34,IF('Overzicht UITZENDBURO'!$L$6:$L$150=J$2,IF('Overzicht UITZENDBURO'!$O$6:$O$150=J$4,IF('Overzicht UITZENDBURO'!$R$6:$R$150=\"\",ROW('Overzicht UITZENDBURO'!$R$6:$R$150)-ROW($R$6)+1)))),$C34)),\"\")","v":""},{"$f":"IFERROR(INDEX('Overzicht UITZENDBURO'!$Q$6:$Q$150,SMALL(IF('Overzicht UITZENDBURO'!$P$6:$P$150=$A34,IF('Overzicht UITZENDBURO'!$L$6:$L$150=K$2,IF('Overzicht UITZENDBURO'!$O$6:$O$150=K$4,IF('Overzicht UITZENDBURO'!$R$6:$R$150=\"\",ROW('Overzicht UITZENDBURO'!$R$6:$R$150)-ROW($R$6)+1)))),$C34)),\"\")","v":""},{"$f":"IFERROR(INDEX('Overzicht UITZENDBURO'!$Q$6:$Q$150,SMALL(IF('Overzicht UITZENDBURO'!$P$6:$P$150=$A34,IF('Overzicht UITZENDBURO'!$L$6:$L$150=L$2,IF('Overzicht UITZENDBURO'!$O$6:$O$150=L$4,IF('Overzicht UITZENDBURO'!$R$6:$R$150=\"\",ROW('Overzicht UITZENDBURO'!$R$6:$R$150)-ROW($R$6)+1)))),$C34)),\"\")","v":""},{"$f":"IFERROR(INDEX('Overzicht UITZENDBURO'!$Q$6:$Q$150,SMALL(IF('Overzicht UITZENDBURO'!$P$6:$P$150=$A34,IF('Overzicht UITZENDBURO'!$L$6:$L$150=M$2,IF('Overzicht UITZENDBURO'!$O$6:$O$150=M$4,IF('Overzicht UITZENDBURO'!$R$6:$R$150=\"\",ROW('Overzicht UITZENDBURO'!$R$6:$R$150)-ROW($R$6)+1)))),$C34)),\"\")","v":""},{"$f":"IFERROR(INDEX('Overzicht UITZENDBURO'!$Q$6:$Q$150,SMALL(IF('Overzicht UITZENDBURO'!$P$6:$P$150=$A34,IF('Overzicht UITZENDBURO'!$L$6:$L$150=N$2,IF('Overzicht UITZENDBURO'!$O$6:$O$150=N$4,IF('Overzicht UITZENDBURO'!$R$6:$R$150=\"\",ROW('Overzicht UITZENDBURO'!$R$6:$R$150)-ROW($R$6)+1)))),$C34)),\"\")","v":""},{"$f":"IFERROR(INDEX('Overzicht UITZENDBURO'!$Q$6:$Q$150,SMALL(IF('Overzicht UITZENDBURO'!$P$6:$P$150=$A34,IF('Overzicht UITZENDBURO'!$L$6:$L$150=O$2,IF('Overzicht UITZENDBURO'!$O$6:$O$150=O$4,IF('Overzicht UITZENDBURO'!$R$6:$R$150=\"\",ROW('Overzicht UITZENDBURO'!$R$6:$R$150)-ROW($R$6)+1)))),$C34)),\"\")","v":""},{"$f":"IFERROR(INDEX('Overzicht UITZENDBURO'!$Q$6:$Q$150,SMALL(IF('Overzicht UITZENDBURO'!$P$6:$P$150=$A34,IF('Overzicht UITZENDBURO'!$L$6:$L$150=P$2,IF('Overzicht UITZENDBURO'!$O$6:$O$150=P$4,IF('Overzicht UITZENDBURO'!$R$6:$R$150=\"\",ROW('Overzicht UITZENDBURO'!$R$6:$R$150)-ROW($R$6)+1)))),$C34)),\"\")","v":""},{"$f":"IFERROR(INDEX('Overzicht UITZENDBURO'!$Q$6:$Q$150,SMALL(IF('Overzicht UITZENDBURO'!$P$6:$P$150=$A34,IF('Overzicht UITZENDBURO'!$L$6:$L$150=Q$2,IF('Overzicht UITZENDBURO'!$O$6:$O$150=Q$4,IF('Overzicht UITZENDBURO'!$R$6:$R$150=\"\",ROW('Overzicht UITZENDBURO'!$R$6:$R$150)-ROW($R$6)+1)))),$C34)),\"\")","v":""},{"$f":"IFERROR(INDEX('Overzicht UITZENDBURO'!$Q$6:$Q$150,SMALL(IF('Overzicht UITZENDBURO'!$P$6:$P$150=$A34,IF('Overzicht UITZENDBURO'!$L$6:$L$150=R$2,IF('Overzicht UITZENDBURO'!$O$6:$O$150=R$4,IF('Overzicht UITZENDBURO'!$R$6:$R$150=\"\",ROW('Overzicht UITZENDBURO'!$R$6:$R$150)-ROW($R$6)+1)))),$C34)),\"\")","v":""},{"$f":"IFERROR(INDEX('Overzicht UITZENDBURO'!$Q$6:$Q$150,SMALL(IF('Overzicht UITZENDBURO'!$P$6:$P$150=$A34,IF('Overzicht UITZENDBURO'!$L$6:$L$150=S$2,IF('Overzicht UITZENDBURO'!$O$6:$O$150=S$4,IF('Overzicht UITZENDBURO'!$R$6:$R$150=\"\",ROW('Overzicht UITZENDBURO'!$R$6:$R$150)-ROW($R$6)+1)))),$C34)),\"\")","v":""},{"$f":"IFERROR(INDEX('Overzicht UITZENDBURO'!$Q$6:$Q$150,SMALL(IF('Overzicht UITZENDBURO'!$P$6:$P$150=$A34,IF('Overzicht UITZENDBURO'!$L$6:$L$150=T$2,IF('Overzicht UITZENDBURO'!$O$6:$O$150=T$4,IF('Overzicht UITZENDBURO'!$R$6:$R$150=\"\",ROW('Overzicht UITZENDBURO'!$R$6:$R$150)-ROW($R$6)+1)))),$C34)),\"\")","v":""},{"$f":"IFERROR(INDEX('Overzicht UITZENDBURO'!$Q$6:$Q$150,SMALL(IF('Overzicht UITZENDBURO'!$P$6:$P$150=$A34,IF('Overzicht UITZENDBURO'!$L$6:$L$150=U$2,IF('Overzicht UITZENDBURO'!$O$6:$O$150=U$4,IF('Overzicht UITZENDBURO'!$R$6:$R$150=\"\",ROW('Overzicht UITZENDBURO'!$R$6:$R$150)-ROW($R$6)+1)))),$C34)),\"\")","v":""},{"$f":"IFERROR(INDEX('Overzicht UITZENDBURO'!$Q$6:$Q$150,SMALL(IF('Overzicht UITZENDBURO'!$P$6:$P$150=$A34,IF('Overzicht UITZENDBURO'!$L$6:$L$150=V$2,IF('Overzicht UITZENDBURO'!$O$6:$O$150=V$4,IF('Overzicht UITZENDBURO'!$R$6:$R$150=\"\",ROW('Overzicht UITZENDBURO'!$R$6:$R$150)-ROW($R$6)+1)))),$C34)),\"\")","v":""},{"$f":"IFERROR(INDEX('Overzicht UITZENDBURO'!$Q$6:$Q$150,SMALL(IF('Overzicht UITZENDBURO'!$P$6:$P$150=$A34,IF('Overzicht UITZENDBURO'!$L$6:$L$150=W$2,IF('Overzicht UITZENDBURO'!$O$6:$O$150=W$4,IF('Overzicht UITZENDBURO'!$R$6:$R$150=\"\",ROW('Overzicht UITZENDBURO'!$R$6:$R$150)-ROW($R$6)+1)))),$C34)),\"\")","v":""},{"$f":"IFERROR(INDEX('Overzicht UITZENDBURO'!$Q$6:$Q$150,SMALL(IF('Overzicht UITZENDBURO'!$P$6:$P$150=$A34,IF('Overzicht UITZENDBURO'!$L$6:$L$150=X$2,IF('Overzicht UITZENDBURO'!$O$6:$O$150=X$4,IF('Overzicht UITZENDBURO'!$R$6:$R$150=\"\",ROW('Overzicht UITZENDBURO'!$R$6:$R$150)-ROW($R$6)+1)))),$C34)),\"\")","v":""}]
["MEP",null,6,{"$f":"IFERROR(INDEX('Overzicht UITZENDBURO'!$Q$6:$Q$150,SMALL(IF('Overzicht UITZENDBURO'!$P$6:$P$150=$A35,IF('Overzicht UITZENDBURO'!$L$6:$L$150=D$2,IF('Overzicht UITZENDBURO'!$O$6:$O$150=D$4,IF('Overzicht UITZENDBURO'!$R$6:$R$150=\"\",ROW('Overzicht UITZENDBURO'!$R$6:$R$150)-ROW($R$6)+1)))),$C35)),\"\")","v":""},{"$f":"IFERROR(INDEX('Overzicht UITZENDBURO'!$Q$6:$Q$150,SMALL(IF('Overzicht UITZENDBURO'!$P$6:$P$150=$A35,IF('Overzicht UITZENDBURO'!$L$6:$L$150=E$2,IF('Overzicht UITZENDBURO'!$O$6:$O$150=E$4,IF('Overzicht UITZENDBURO'!$R$6:$R$150=\"\",ROW('Overzicht UITZENDBURO'!$R$6:$R$150)-ROW($R$6)+1)))),$C35)),\"\")","v":""},{"$f":"IFERROR(INDEX('Overzicht UITZENDBURO'!$Q$6:$Q$150,SMALL(IF('Overzicht UITZENDBURO'!$P$6:$P$150=$A35,IF('Overzicht UITZENDBURO'!$L$6:$L$150=F$2,IF('Overzicht UITZENDBURO'!$O$6:$O$150=F$4,IF('Overzicht UITZENDBURO'!$R$6:$R$150=\"\",ROW('Overzicht UITZENDBURO'!$R$6:$R$150)-ROW($R$6)+1)))),$C35)),\"\")","v":""},{"$f":"IFERROR(INDEX('Overzicht UITZENDBURO'!$Q$6:$Q$150,SMALL(IF('Overzicht UITZENDBURO'!$P$6:$P$150=$A35,IF('Overzicht UITZENDBURO'!$L$6:$L$150=G$2,IF('Overzicht UITZENDBURO'!$O$6:$O$150=G$4,IF('Overzicht UITZENDBURO'!$R$6:$R$150=\"\",ROW('Overzicht UITZENDBURO'!$R$6:$R$150)-ROW($R$6)+1)))),$C35)),\"\")","v":""},{"$f":"IFERROR(INDEX('Overzicht UITZENDBURO'!$Q$6:$Q$150,SMALL(IF('Overzicht UITZENDBURO'!$P$6:$P$150=$A35,IF('Overzicht UITZENDBURO'!$L$6:$L$150=H$2,IF('Overzicht UITZENDBURO'!$O$6:$O$150=H$4,IF('Overzicht UITZENDBURO'!$R$6:$R$150=\"\",ROW('Overzicht UITZENDBURO'!$R$6:$R$150)-ROW($R$6)+1)))),$C35)),\"\")","v":""},{"$f":"IFERROR(INDEX('Overzicht UITZENDBURO'!$Q$6:$Q$150,SMALL(IF('Overzicht UITZENDBURO'!$P$6:$P$150=$A35,IF('Overzicht UITZENDBURO'!$L$6:$L$150=I$2,IF('Overzicht UITZENDBURO'!$O$6:$O$150=I$4,IF('Overzicht UITZENDBURO'!$R$6:$R$150=\"\",ROW('Overzicht UITZENDBURO'!$R$6:$R$150)-ROW($R$6)+1)))),$C35)),\"\")","v":""},{"$f":"IFERROR(INDEX('Overzicht UITZENDBURO'!$Q$6:$Q$150,SMALL(IF('Overzicht UITZENDBURO'!$P$6:$P$150=$A35,IF('Overzicht UITZENDBURO'!$L$6:$L$150=J$2,IF('Overzicht UITZENDBURO'!$O$6:$O$150=J$4,IF('Overzicht UITZENDBURO'!$R$6:$R$150=\"\",ROW('Overzicht UITZENDBURO'!$R$6:$R$150)-ROW($R$6)+1)))),$C35)),\"\")","v":""},{"$f":"IFERROR(INDEX('Overzicht UITZENDBURO'!$Q$6:$Q$150,SMALL(IF('Overzicht UITZENDBURO'!$P$6:$P$150=$A35,IF('Overzicht UITZENDBURO'!$L$6:$L$150=K$2,IF('Overzicht UITZENDBURO'!$O$6:$O$150=K$4,IF('Overzicht UITZENDBURO'!$R$6:$R$150=\"\",ROW('Overzicht UITZENDBURO'!$R$6:$R$150)-ROW($R$6)+1)))),$C35)),\"\")","v":""},{"$f":"IFERROR(INDEX('Overzicht UITZENDBURO'!$Q$6:$Q$150,SMALL(IF('Overzicht UITZENDBURO'!$P$6:$P$150=$A35,IF('Overzicht UITZENDBURO'!$L$6:$L$150=L$2,IF('Overzicht UITZENDBURO'!$O$6:$O$150=L$4,IF('Overzicht UITZENDBURO'!$R$6:$R$150=\"\",ROW('Overzicht UITZENDBURO'!$R$6:$R$150)-ROW($R$6)+1)))),$C35)),\"\")","v":""},{"$f":"IFERROR(INDEX('Overzicht UITZENDBURO'!$Q$6:$Q$150,SMALL(IF('Overzicht UITZENDBURO'!$P$6:$P$150=$A35,IF('Overzicht UITZENDBURO'!$L$6:$L$150=M$2,IF('Overzicht UITZENDBURO'!$O$6:$O$150=M$4,IF('Overzicht UITZENDBURO'!$R$6:$R$150=\"\",ROW('Overzicht UITZENDBURO'!$R$6:$R$150)-ROW($R$6)+1)))),$C35)),\"\")","v":""},{"$f":"IFERROR(INDEX('Overzicht UITZENDBURO'!$Q$6:$Q$150,SMALL(IF('Overzicht UITZENDBURO'!$P$6:$P$150=$A35,IF('Overzicht UITZENDBURO'!$L$6:$L$150=N$2,IF('Overzicht UITZENDBURO'!$O$6:$O$150=N$4,IF('Overzicht UITZENDBURO'!$R$6:$R$150=\"\",ROW('Overzicht UITZENDBURO'!$R$6:$R$150)-ROW($R$6)+1)))),$C35)),\"\")","v":""},{"$f":"IFERROR(INDEX('Overzicht UITZENDBURO'!$Q$6:$Q$150,SMALL(IF('Overzicht UITZENDBURO'!$P$6:$P$150=$A35,IF('Overzicht UITZENDBURO'!$L$6:$L$150=O$2,IF('Overzicht UITZENDBURO'!$O$6:$O$150=O$4,IF('Overzicht UITZENDBURO'!$R$6:$R$150=\"\",ROW('Overzicht UITZENDBURO'!$R$6:$R$150)-ROW($R$6)+1)))),$C35)),\"\")","v":""},{"$f":"IFERROR(INDEX('Overzicht UITZENDBURO'!$Q$6:$Q$150,SMALL(IF('Overzicht UITZENDBURO'!$P$6:$P$150=$A35,IF('Overzicht UITZENDBURO'!$L$6:$L$150=P$2,IF('Overzicht UITZENDBURO'!$O$6:$O$150=P$4,IF('Overzicht UITZENDBURO'!$R$6:$R$150=\"\",ROW('Overzicht UITZENDBURO'!$R$6:$R$150)-ROW($R$6)+1)))),$C35)),\"\")","v":""},{"$f":"IFERROR(INDEX('Overzicht UITZENDBURO'!$Q$6:$Q$150,SMALL(IF('Overzicht UITZENDBURO'!$P$6:$P$150=$A35,IF('Overzicht UITZENDBURO'!$L$6:$L$150=Q$2,IF('Overzicht UITZENDBURO'!$O$6:$O$150=Q$4,IF('Overzicht UITZENDBURO'!$R$6:$R$150=\"\",ROW('Overzicht UITZENDBURO'!$R$6:$R$150)-ROW($R$6)+1)))),$C35)),\"\")","v":""},{"$f":"IFERROR(INDEX('Overzicht UITZENDBURO'!$Q$6:$Q$150,SMALL(IF('Overzicht UITZENDBURO'!$P$6:$P$150=$A35,IF('Overzicht UITZENDBURO'!$L$6:$L$150=R$2,IF('Overzicht UITZENDBURO'!$O$6:$O$150=R$4,IF('Overzicht UITZENDBURO'!$R$6:$R$150=\"\",ROW('Overzicht UITZENDBURO'!$R$6:$R$150)-ROW($R$6)+1)))),$C35)),\"\")","v":""},{"$f":"IFERROR(INDEX('Overzicht UITZENDBURO'!$Q$6:$Q$150,SMALL(IF('Overzicht UITZENDBURO'!$P$6:$P$150=$A35,IF('Overzicht UITZENDBURO'!$L$6:$L$150=S$2,IF('Overzicht UITZENDBURO'!$O$6:$O$150=S$4,IF('Overzicht UITZENDBURO'!$R$6:$R$150=\"\",ROW('Overzicht UITZENDBURO'!$R$6:$R$150)-ROW($R$6)+1)))),$C35)),\"\")","v":""},{"$f":"IFERROR(INDEX('Overzicht UITZENDBURO'!$Q$6:$Q$150,SMALL(IF('Overzicht UITZENDBURO'!$P$6:$P$150=$A35,IF('Overzicht UITZENDBURO'!$L$6:$L$150=T$2,IF('Overzicht UITZENDBURO'!$O$6:$O$150=T$4,IF('Overzicht UITZENDBURO'!$R$6:$R$150=\"\",ROW('Overzicht UITZENDBURO'!$R$6:$R$150)-ROW($R$6)+1)))),$C35)),\"\")","v":""},{"$f":"IFERROR(INDEX('Overzicht UITZENDBURO'!$Q$6:$Q$150,SMALL(IF('Overzicht UITZENDBURO'!$P$6:$P$150=$A35,IF('Overzicht UITZENDBURO'!$L$6:$L$150=U$2,IF('Overzicht UITZENDBURO'!$O$6:$O$150=U$4,IF('Overzicht UITZENDBURO'!$R$6:$R$150=\"\",ROW('Overzicht UITZENDBURO'!$R$6:$R$150)-ROW($R$6)+1)))),$C35)),\"\")","v":""},{"$f":"IFERROR(INDEX('Overzicht UITZENDBURO'!$Q$6:$Q$150,SMALL(IF('Overzicht UITZENDBURO'!$P$6:$P$150=$A35,IF('Overzicht UITZENDBURO'!$L$6:$L$150=V$2,IF('Overzicht UITZENDBURO'!$O$6:$O$150=V$4,IF('Overzicht UITZENDBURO'!$R$6:$R$150=\"\",ROW('Overzicht UITZENDBURO'!$R$6:$R$150)-ROW($R$6)+1)))),$C35)),\"\")","v":""},{"$f":"IFERROR(INDEX('Overzicht UITZENDBURO'!$Q$6:$Q$150,SMALL(IF('Overzicht UITZENDBURO'!$P$6:$P$150=$A35,IF('Overzicht UITZENDBURO'!$L$6:$L$150=W$2,IF('Overzicht UITZENDBURO'!$O$6:$O$150=W$4,IF('Overzicht UITZENDBURO'!$R$6:$R$150=\"\",ROW('Overzicht UITZENDBURO'!$R$6:$R$150)-ROW($R$6)+1)))),$C35)),\"\")","v":""},{"$f":"IFERROR(INDEX('Overzicht UITZENDBURO'!$Q$6:$Q$150,SMALL(IF('Overzicht UITZENDBURO'!$P$6:$P$150=$A35,IF('Overzicht UITZENDBURO'!$L$6:$L$150=X$2,IF('Overzicht UITZENDBURO'!$O$6:$O$150=X$4,IF('Overzicht UITZENDBURO'!$R$6:$R$150=\"\",ROW('Overzicht UITZENDBURO'!$R$6:$R$150)-ROW($R$6)+1)))),$C35)),\"\")","v":""}]

{"sheet":"Overzicht UITZENDBURO","index":1,"n_rows":150,"n_cols":18,"rows_kept":150,"cut":false,"hidden":false,"merged":[]}
[null,null,null,null,null,null,null,null,null,null,"Datum","Datum","Start","Einde","Post","Afdeling","Afdeling","Naam"]
[null,null,null,null,null,null,null,null,null,null,">43828","<43836",null,null,null,"<>HEFT","<>EMB"]
[null,"Data van uitzendburo bijvoegen"]
[null,null,null,null,null,null,null,"Enkele afdelingen b.v. EMB en HEFT   haal ik er uit door een filter. Dit is van een andere afdeling"]
[null,"Datum","Start","Einde","Post","Afdeling","Naam",null,null,null,null,"Datum","Start","Einde","Post","Afdeling","Naam","Verlof"]
[null,"2019-12-30","06:00:00","14:00:00","Vroeg","AF","Klaas",null,null,null,null,"2019-12-30","06:00:00","14:00:00","Vroeg","AF","Klaas",{"$f":"IFERROR(IF(MATCH(WEEKNUM(L6)&P6&Q6,WEEKPLANNING!$B$3&WEEKPLANNING!$A$5:$A$36&WEEKPLANNING!$B$5:$B$36,0)>0,\"V\",0),\"\")","v":""}]
[null,"2019-12-30","14:00:00","22:30:00","Laat","MEP","Jan",null,null,null,null,"2019-12-30","14:00:00","22:30:00","Laat","MEP","Jan",{"$f":"IFERROR(IF(MATCH(WEEKNUM(L7)&P7&Q7,WEEKPLANNING!$B$3&WEEKPLANNING!$A$5:$A$36&WEEKPLANNING!$B$5:$B$36,0)>0,\"V\",0),\"\")","v":""}]
[null,"2019-12-30","14:00:00","22:30:00","Laat","LCR","Piet",null,null,null,null,"2019-12-30","14:00:00","22:30:00","Laat","LCR","Piet",{"$f":"IFERROR(IF(MATCH(WEEKNUM(L8)&P8&Q8,WEEKPLANNING!$B$3&WEEKPLANNING!$A$5:$A$36&WEEKPLANNING!$B$5:$B$36,0)>0,\"V\",0),\"\")","v":""}]
[null,"2019-12-30","06:00:00","14:00:00","Vroeg","LCR","Willem",null,null,null,null,"2019-12-30","06:00:00","14:00:00","Vroeg","LCR","Willem",{"$f":"IFERROR(IF(MATCH(WEEKNUM(L9)&P9&Q9,WEEKPLANNING!$B$3&WEEKPLANNING!$A$5:$A$36&WEEKPLANNING!$B$5:$B$36,0)>0,\"V\",0),\"\")","v":""}]
[null,"2019-12-30","06:00:00","14:00:00","Vroeg","HEFT","Wilhelm",null,null,null,null,"2019-12-30","22:30:00","06:00:00","Nacht","LCH","Roy",{"$f":"IFERROR(IF(MATCH(WEEKNUM(L10)&P10&Q10,WEEKPLANNING!$B$3&WEEKPLANNING!$A$5:$A$36&WEEKPLANNING!$B$5:$B$36,0)>0,\"V\",0),\"\")","v":""}]
[null,"2019-12-30","22:30:00","06:00:00","Nacht","LCH","Roy",null,null,null,null,"2019-12-30","14:00:00","22:30:00","Laat","AF","Klaas",{"$f":"IFERROR(IF(MATCH(WEEKNUM(L11)&P11&Q11,WEEKPLANNING!$B$3&WEEKPLANNING!$A$5:$A$36&WEEKPLANNING!$B$5:$B$36,0)>0,\"V\",0),\"\")","v":""}]
[null,"2019-12-30","14:00:00","22:30:00","Laat","AF","Klaas",null,null,null,null,"2019-12-31","06:00:00","14:00:00","Vroeg","ABB","Marjan",{"$f":"IFERROR(IF(MATCH(WEEKNUM(L12)&P12&Q12,WEEKPLANNING!$B$3&WEEKPLANNING!$A$5:$A$36&WEEKPLANNING!$B$5:$B$36,0)>0,\"V\",0),\"\")","v":""}]
[null,"2019-12-30","14:00:00","22:30:00","Laat","HEFT","JOP",null,null,null,null,"2019-12-31","22:30:00","06:00:00","Nacht","SCHM","Willemein",{"$f":"IFERROR(IF(MATCH(WEEKNUM(L13)&P13&Q13,WEEKPLANNING!$B$3&WEEKPLANNING!$A$5:$A$36&WEEKPLANNING!$B$5:$B$36,0)>0,\"V\",0),\"\")","v":""}]
[null,"2019-12-31","06:00:00","14:00:00","Vroeg","ABB","Marjan",null,null,null,null,"2019-12-31","14:00:00","22:30:00","Laat","ABB","Sanne",{"$f":"IFERROR(IF(MATCH(WEEKNUM(L14)&P14&Q14,WEEKPLANNING!$B$3&WEEKPLANNING!$A$5:$A$36&WEEKPLANNING!$B$5:$B$36,0)>0,\"V\",0),\"\")","v":""}]
[null,"2019-12-31","22:30:00","06:00:00","Nacht","SCHM","Willemein",null,null,null,null,"2019-12-31","06:00:00","14:00:00","Vroeg","AF","Peter",{"$f":"IFERROR(IF(MATCH(WEEKNUM(L15)&P15&Q15,WEEKPLANNING!$B$3&WEEKPLANNING!$A$5:$A$36&WEEKPLANNING!$B$5:$B$36,0)>0,\"V\",0),\"\")","v":""}]
[null,"2019-12-31","14:00:00","22:30:00","Laat","ABB","Sanne",null,null,null,null,"2019-12-31","22:30:00","06:00:00","Nacht","MEP","Pieter",{"$f":"IFERROR(IF(MATCH(WEEKNUM(L16)&P16&Q16,WEEKPLANNING!$B$3&WEEKPLANNING!$A$5:$A$36&WEEKPLANNING!$B$5:$B$36,0)>0,\"V\",0),\"\")","v":""}]
[null,"2019-12-31","06:00:00","14:00:00","Vroeg","AF","Peter",null,null,null,null,"2019-12-31","22:30:00","06:00:00","Nacht","MEP","Mohamed",{"$f":"IFERROR(IF(MATCH(WEEKNUM(L17)&P17&Q17,WEEKPLANNING!$B$3&WEEKPLANNING!$A$5:$A$36&WEEKPLANNING!$B$5:$B$36,0)>0,\"V\",0),\"\")","v":""}]
[null,"2019-12-31","22:30:00","06:00:00","Nacht","MEP","Pieter",null,null,null,null,"2019-12-31","14:00:00","22:30:00","Laat","LCR","Joop",{"$f":"IFERROR(IF(MATCH(WEEKNUM(L18)&P18&Q18,WEEKPLANNING!$B$3&WEEKPLANNING!$A$5:$A$36&WEEKPLANNING!$B$5:$B$36,0)>0,\"V\",0),\"\")","v":""}]
[null,"2019-12-31","22:30:00","06:00:00","Nacht","MEP","Mohamed",null,null,null,null,"2020-01-01","06:00:00","14:00:00","Vroeg","LCR","Udo",{"$f":"IFERROR(IF(MATCH(WEEKNUM(L19)&P19&Q19,WEEKPLANNING!$B$3&WEEKPLANNING!$A$5:$A$36&WEEKPLANNING!$B$5:$B$36,0)>0,\"V\",0),\"\")","v":""}]
[null,"2019-12-31","14:00:00","22:30:00","Laat","LCR","Joop",null,null,null,null,"2020-01-02","06:00:00","14:00:00","Vroeg","LCH","Klaasjan",{"$f":"IFERROR(IF(MATCH(WEEKNUM(L20)&P20&Q20,WEEKPLANNING!$B$3&WEEKPLANNING!$A$5:$A$36&WEEKPLANNING!$B$5:$B$36,0)>0,\"V\",0),\"\")","v":""}]
[null,"2020-01-01","06:00:00","14:00:00","Vroeg","LCR","Udo",null,null,null,null,"2020-01-01","06:00:00","14:00:00","Vroeg","AF","Jos",{"$f":"IFERROR(IF(MATCH(WEEKNUM(L21)&P21&Q21,WEEKPLANNING!$B$3&WEEKPLANNING!$A$5:$A$36&WEEKPLANNING!$B$5:$B$36,0)>0,\"V\",0),\"\")","v":""}]
[null,"2020-01-02","06:00:00","14:00:00","Vroeg","LCH","Klaasjan",null,null,null,null,"2020-01-01","06:00:00","14:00:00","Vroeg","ABB","jules",{"$f":"IFERROR(IF(MATCH(WEEKNUM(L22)&P22&Q22,WEEKPLANNING!$B$3&WEEKPLANNING!$A$5:$A$36&WEEKPLANNING!$B$5:$B$36,0)>0,\"V\",0),\"\")","v":""}]
[null,"2020-01-01","06:00:00","14:00:00","Vroeg","AF","Jos",null,null,null,null,"2020-01-02","06:00:00","14:00:00","Vroeg","SCHM","Tuur",{"$f":"IFERROR(IF(MATCH(WEEKNUM(L23)&P23&Q23,WEEKPLANNING!$B$3&WEEKPLANNING!$A$5:$A$36&WEEKPLANNING!$B$5:$B$36,0)>0,\"V\",0),\"\")","v":""}]
[null,"2020-01-01","06:00:00","14:00:00","Vroeg","ABB","jules",null,null,null,null,"2020-01-02","06:00:00","14:00:00","Vroeg","ABB","Fien",{"$f":"IFERROR(IF(MATCH(WEEKNUM(L24)&P24&Q24,WEEKPLANNING!$B$3&WEEKPLANNING!$A$5:$A$36&WEEKPLANNING!$B$5:$B$36,0)>0,\"V\",0),\"\")","v":""}]
[null,"2020-01-02","06:00:00","14:00:00","Vroeg","SCHM","Tuur",null,null,null,null,"2020-01-02","06:00:00","14:00:00","Vroeg","AF","Ida",{"$f":"IFERROR(IF(MATCH(WEEKNUM(L25)&P25&Q25,WEEKPLANNING!$B$3&WEEKPLANNING!$A$5:$A$36&WEEKPLANNING!$B$5:$B$36,0)>0,\"V\",0),\"\")","v":""}]
[null,"2020-01-02","06:00:00","14:00:00","Vroeg","EMB","Lot",null,null,null,null,"2020-01-02","06:00:00","14:00:00","Vroeg","AF","Flore",{"$f":"IFERROR(IF(MATCH(WEEKNUM(L26)&P26&Q26,WEEKPLANNING!$B$3&WEEKPLANNING!$A$5:$A$36&WEEKPLANNING!$B$5:$B$36,0)>0,\"V\",0),\"\")","v":"V"}]
[null,"2020-01-02","06:00:00","14:00:00","Vroeg","ABB","Fien",null,null,null,null,"2020-01-02","06:00:00","14:00:00","Vroeg","AF","Fons",{"$f":"IFERROR(IF(MATCH(WEEKNUM(L27)&P27&Q27,WEEKPLANNING!$B$3&WEEKPLANNING!$A$5:$A$36&WEEKPLANNING!$B$5:$B$36,0)>0,\"V\",0),\"\")","v":""}]
[null,"2020-01-02","06:00:00","14:00:00","Vroeg","AF","Ida",null,null,null,null,"2020-01-02","06:00:00","14:00:00","Vroeg","LCH","Pieter",{"$f":"IFERROR(IF(MATCH(WEEKNUM(L28)&P28&Q28,WEEKPLANNING!$B$3&WEEKPLANNING!$A$5:$A$36&WEEKPLANNING!$B$5:$B$36,0)>0,\"V\",0),\"\")","v":""}]
[null,"2020-01-02","06:00:00","14:00:00","Vroeg","AF","Flore",null,null,null,null,"2020-01-01","06:00:00","14:00:00","Vroeg","ABB","jannie",{"$f":"IFERROR(IF(MATCH(WEEKNUM(L29)&P29&Q29,WEEKPLANNING!$B$3&WEEKPLANNING!$A$5:$A$36&WEEKPLANNING!$B$5:$B$36,0)>0,\"V\",0),\"\")","v":""}]
[null,"2020-01-02","06:00:00","14:00:00","Vroeg","AF","Fons",null,null,null,null,null,null,null,null,null,null,{"$f":"IFERROR(IF(MATCH(WEEKNUM(L30)&P30&Q30,WEEKPLANNING!$B$3&WEEKPLANNING!$A$5:$A$36&WEEKPLANNING!$B$5:$B$36,0)>0,\"V\",0),\"\")","v":""}]
[null,"2019-12-31","14:00:00","22:30:00","Laat","EMB","Joop",null,null,null,null,null,null,null,null,null,null,{"$f":"IFERROR(IF(MATCH(WEEKNUM(L31)&P31&Q31,WEEKPLANNING!$B$3&WEEKPLANNING!$A$5:$A$36&WEEKPLANNING!$B$5:$B$36,0)>0,\"V\",0),\"\")","v":""}]
[null,"2020-01-01","06:00:00","14:00:00","Vroeg","EMB","Udo",null,null,null,null,null,null,null,null,null,null,{"$f":"IFERROR(IF(MATCH(WEEKNUM(L32)&P32&Q32,WEEKPLANNING!$B$3&WEEKPLANNING!$A$5:$A$36&WEEKPLANNING!$B$5:$B$36,0)>0,\"V\",0),\"\")","v":""}]
[null,"2020-01-02","06:00:00","14:00:00","Vroeg","LCH","Pieter",null,null,null,null,null,null,null,null,null,null,{"$f":"IFERROR(IF(MATCH(WEEKNUM(L33)&P33&Q33,WEEKPLANNING!$B$3&WEEKPLANNING!$A$5:$A$36&WEEKPLANNING!$B$5:$B$36,0)>0,\"V\",0),\"\")","v":""}]
[null,"2020-01-01","06:00:00","14:00:00","Vroeg","EMB","Josau",null,null,null,null,null,null,null,null,null,null,{"$f":"IFERROR(IF(MATCH(WEEKNUM(L34)&P34&Q34,WEEKPLANNING!$B$3&WEEKPLANNING!$A$5:$A$36&WEEKPLANNING!$B$5:$B$36,0)>0,\"V\",0),\"\")","v":""}]
[null,"2020-01-01","06:00:00","14:00:00","Vroeg","ABB","jannie",null,null,null,null,null,null,null,null,null,null,{"$f":"IFERROR(IF(MATCH(WEEKNUM(L35)&P35&Q35,WEEKPLANNING!$B$3&WEEKPLANNING!$A$5:$A$36&WEEKPLANNING!$B$5:$B$36,0)>0,\"V\",0),\"\")","v":""}]
[null,"2020-01-02","06:00:00","14:00:00","Vroeg","EMB","evron",null,null,null,null,null,null,null,null,null,null,{"$f":"IFERROR(IF(MATCH(WEEKNUM(L36)&P36&Q36,WEEKPLANNING!$B$3&WEEKPLANNING!$A$5:$A$36&WEEKPLANNING!$B$5:$B$36,0)>0,\"V\",0),\"\")","v":""}]
[null,null,null,null,null,null,null,null,null,null,null,null,null,null,null,null,null,{"$f":"IFERROR(IF(MATCH(WEEKNUM(L37)&P37&Q37,WEEKPLANNING!$B$3&WEEKPLANNING!$A$5:$A$36&WEEKPLANNING!$B$5:$B$36,0)>0,\"V\",0),\"\")","v":""}]
[null,null,null,null,null,null,null,null,null,null,null,null,null,null,null,null,null,{"$f":"IFERROR(IF(MATCH(WEEKNUM(L38)&P38&Q38,WEEKPLANNING!$B$3&WEEKPLANNING!$A$5:$A$36&WEEKPLANNING!$B$5:$B$36,0)>0,\"V\",0),\"\")","v":""}]
[null,null,null,null,null,null,null,null,null,null,null,null,null,null,null,null,null,{"$f":"IFERROR(IF(MATCH(WEEKNUM(L39)&P39&Q39,WEEKPLANNING!$B$3&WEEKPLANNING!$A$5:$A$36&WEEKPLANNING!$B$5:$B$36,0)>0,\"V\",0),\"\")","v":""}]
[null,null,null,null,null,null,null,null,null,null,null,null,null,null,null,null,null,{"$f":"IFERROR(IF(MATCH(WEEKNUM(L40)&P40&Q40,WEEKPLANNING!$B$3&WEEKPLANNING!$A$5:$A$36&WEEKPLANNING!$B$5:$B$36,0)>0,\"V\",0),\"\")","v":""}]
[null,null,null,null,null,null,null,null,null,null,null,null,null,null,null,null,null,{"$f":"IFERROR(IF(MATCH(WEEKNUM(L41)&P41&Q41,WEEKPLANNING!$B$3&WEEKPLANNING!$A$5:$A$36&WEEKPLANNING!$B$5:$B$36,0)>0,\"V\",0),\"\")","v":""}]
[null,null,null,null,null,null,null,null,null,null,null,null,null,null,null,null,null,{"$f":"IFERROR(IF(MATCH(WEEKNUM(L42)&P42&Q42,WEEKPLANNING!$B$3&WEEKPLANNING!$A$5:$A$36&WEEKPLANNING!$B$5:$B$36,0)>0,\"V\",0),\"\")","v":""}]
[null,null,null,null,null,null,null,null,null,null,null,null,null,null,null,null,null,{"$f":"IFERROR(IF(MATCH(WEEKNUM(L43)&P43&Q43,WEEKPLANNING!$B$3&WEEKPLANNING!$A$5:$A$36&WEEKPLANNING!$B$5:$B$36,0)>0,\"V\",0),\"\")","v":""}]
[null,null,null,null,null,null,null,null,null,null,null,null,null,null,null,null,null,{"$f":"IFERROR(IF(MATCH(WEEKNUM(L44)&P44&Q44,WEEKPLANNING!$B$3&WEEKPLANNING!$A$5:$A$36&WEEKPLANNING!$B$5:$B$36,0)>0,\"V\",0),\"\")","v":""}]
[null,null,null,null,null,null,null,null,null,null,null,null,null,null,null,null,null,{"$f":"IFERROR(IF(MATCH(WEEKNUM(L45)&P45&Q45,WEEKPLANNING!$B$3&WEEKPLANNING!$A$5:$A$36&WEEKPLANNING!$B$5:$B$36,0)>0,\"V\",0),\"\")","v":""}]
[null,null,null,null,null,null,null,null,null,null,null,null,null,null,null,null,null,{"$f":"IFERROR(IF(MATCH(WEEKNUM(L46)&P46&Q46,WEEKPLANNING!$B$3&WEEKPLANNING!$A$5:$A$36&WEEKPLANNING!$B$5:$B$36,0)>0,\"V\",0),\"\")","v":""}]
[null,null,null,null,null,null,null,null,null,null,null,null,null,null,null,null,null,{"$f":"IFERROR(IF(MATCH(WEEKNUM(L47)&P47&Q47,WEEKPLANNING!$B$3&WEEKPLANNING!$A$5:$A$36&WEEKPLANNING!$B$5:$B$36,0)>0,\"V\",0),\"\")","v":""}]
[null,null,null,null,null,null,null,null,null,null,null,null,null,null,null,null,null,{"$f":"IFERROR(IF(MATCH(WEEKNUM(L48)&P48&Q48,WEEKPLANNING!$B$3&WEEKPLANNING!$A$5:$A$36&WEEKPLANNING!$B$5:$B$36,0)>0,\"V\",0),\"\")","v":""}]
[null,null,null,null,null,null,null,null,null,null,null,null,null,null,null,null,null,{"$f":"IFERROR(IF(MATCH(WEEKNUM(L49)&P49&Q49,WEEKPLANNING!$B$3&WEEKPLANNING!$A$5:$A$36&WEEKPLANNING!$B$5:$B$36,0)>0,\"V\",0),\"\")","v":""}]
[null,null,null,null,null,null,null,null,null,null,null,null,null,null,null,null,null,{"$f":"IFERROR(IF(MATCH(WEEKNUM(L50)&P50&Q50,WEEKPLANNING!$B$3&WEEKPLANNING!$A$5:$A$36&WEEKPLANNING!$B$5:$B$36,0)>0,\"V\",0),\"\")","v":""}]
[null,null,null,null,null,null,null,null,null,null,null,null,null,null,null,null,null,{"$f":"IFERROR(IF(MATCH(WEEKNUM(L51)&P51&Q51,WEEKPLANNING!$B$3&WEEKPLANNING!$A$5:$A$36&WEEKPLANNING!$B$5:$B$36,0)>0,\"V\",0),\"\")","v":""}]
[null,null,null,null,null,null,null,null,null,null,null,null,null,null,null,null,null,{"$f":"IFERROR(IF(MATCH(WEEKNUM(L52)&P52&Q52,WEEKPLANNING!$B$3&WEEKPLANNING!$A$5:$A$36&WEEKPLANNING!$B$5:$B$36,0)>0,\"V\",0),\"\")","v":""}]
[null,null,null,null,null,null,null,null,null,null,null,null,null,null,null,null,null,{"$f":"IFERROR(IF(MATCH(WEEKNUM(L53)&P53&Q53,WEEKPLANNING!$B$3&WEEKPLANNING!$A$5:$A$36&WEEKPLANNING!$B$5:$B$36,0)>0,\"V\",0),\"\")","v":""}]
[null,null,null,null,null,null,null,null,null,null,null,null,null,null,null,null,null,{"$f":"IFERROR(IF(MATCH(WEEKNUM(L54)&P54&Q54,WEEKPLANNING!$B$3&WEEKPLANNING!$A$5:$A$36&WEEKPLANNING!$B$5:$B$36,0)>0,\"V\",0),\"\")","v":""}]
[null,null,null,null,null,null,null,null,null,null,null,null,null,null,null,null,null,{"$f":"IFERROR(IF(MATCH(WEEKNUM(L55)&P55&Q55,WEEKPLANNING!$B$3&WEEKPLANNING!$A$5:$A$36&WEEKPLANNING!$B$5:$B$36,0)>0,\"V\",0),\"\")","v":""}]
[null,null,null,null,null,null,null,null,null,null,null,null,null,null,null,null,null,{"$f":"IFERROR(IF(MATCH(WEEKNUM(L56)&P56&Q56,WEEKPLANNING!$B$3&WEEKPLANNING!$A$5:$A$36&WEEKPLANNING!$B$5:$B$36,0)>0,\"V\",0),\"\")","v":""}]
[null,null,null,null,null,null,null,null,null,null,null,null,null,null,null,null,null,{"$f":"IFERROR(IF(MATCH(WEEKNUM(L57)&P57&Q57,WEEKPLANNING!$B$3&WEEKPLANNING!$A$5:$A$36&WEEKPLANNING!$B$5:$B$36,0)>0,\"V\",0),\"\")","v":""}]
[null,null,null,null,null,null,null,null,null,null,null,null,null,null,null,null,null,{"$f":"IFERROR(IF(MATCH(WEEKNUM(L58)&P58&Q58,WEEKPLANNING!$B$3&WEEKPLANNING!$A$5:$A$36&WEEKPLANNING!$B$5:$B$36,0)>0,\"V\",0),\"\")","v":""}]
[null,null,null,null,null,null,null,null,null,null,null,null,null,null,null,null,null,{"$f":"IFERROR(IF(MATCH(WEEKNUM(L59)&P59&Q59,WEEKPLANNING!$B$3&WEEKPLANNING!$A$5:$A$36&WEEKPLANNING!$B$5:$B$36,0)>0,\"V\",0),\"\")","v":""}]
[null,null,null,null,null,null,null,null,null,null,null,null,null,null,null,null,null,{"$f":"IFERROR(IF(MATCH(WEEKNUM(L60)&P60&Q60,WEEKPLANNING!$B$3&WEEKPLANNING!$A$5:$A$36&WEEKPLANNING!$B$5:$B$36,0)>0,\"V\",0),\"\")","v":""}]
[null,null,null,null,null,null,null,null,null,null,null,null,null,null,null,null,null,{"$f":"IFERROR(IF(MATCH(WEEKNUM(L61)&P61&Q61,WEEKPLANNING!$B$3&WEEKPLANNING!$A$5:$A$36&WEEKPLANNING!$B$5:$B$36,0)>0,\"V\",0),\"\")","v":""}]
[null,null,null,null,null,null,null,null,null,null,null,null,null,null,null,null,null,{"$f":"IFERROR(IF(MATCH(WEEKNUM(L62)&P62&Q62,WEEKPLANNING!$B$3&WEEKPLANNING!$A$5:$A$36&WEEKPLANNING!$B$5:$B$36,0)>0,\"V\",0),\"\")","v":""}]
[null,null,null,null,null,null,null,null,null,null,null,null,null,null,null,null,null,{"$f":"IFERROR(IF(MATCH(WEEKNUM(L63)&P63&Q63,WEEKPLANNING!$B$3&WEEKPLANNING!$A$5:$A$36&WEEKPLANNING!$B$5:$B$36,0)>0,\"V\",0),\"\")","v":""}]
[null,null,null,null,null,null,null,null,null,null,null,null,null,null,null,null,null,{"$f":"IFERROR(IF(MATCH(WEEKNUM(L64)&P64&Q64,WEEKPLANNING!$B$3&WEEKPLANNING!$A$5:$A$36&WEEKPLANNING!$B$5:$B$36,0)>0,\"V\",0),\"\")","v":""}]
[null,null,null,null,null,null,null,null,null,null,null,null,null,null,null,null,null,{"$f":"IFERROR(IF(MATCH(WEEKNUM(L65)&P65&Q65,WEEKPLANNING!$B$3&WEEKPLANNING!$A$5:$A$36&WEEKPLANNING!$B$5:$B$36,0)>0,\"V\",0),\"\")","v":""}]
[null,null,null,null,null,null,null,null,null,null,null,null,null,null,null,null,null,{"$f":"IFERROR(IF(MATCH(WEEKNUM(L66)&P66&Q66,WEEKPLANNING!$B$3&WEEKPLANNING!$A$5:$A$36&WEEKPLANNING!$B$5:$B$36,0)>0,\"V\",0),\"\")","v":""}]
[null,null,null,null,null,null,null,null,null,null,null,null,null,null,null,null,null,{"$f":"IFERROR(IF(MATCH(WEEKNUM(L67)&P67&Q67,WEEKPLANNING!$B$3&WEEKPLANNING!$A$5:$A$36&WEEKPLANNING!$B$5:$B$36,0)>0,\"V\",0),\"\")","v":""}]
[null,null,null,null,null,null,null,null,null,null,null,null,null,null,null,null,null,{"$f":"IFERROR(IF(MATCH(WEEKNUM(L68)&P68&Q68,WEEKPLANNING!$B$3&WEEKPLANNING!$A$5:$A$36&WEEKPLANNING!$B$5:$B$36,0)>0,\"V\",0),\"\")","v":""}]
[null,null,null,null,null,null,null,null,null,null,null,null,null,null,null,null,null,{"$f":"IFERROR(IF(MATCH(WEEKNUM(L69)&P69&Q69,WEEKPLANNING!$B$3&WEEKPLANNING!$A$5:$A$36&WEEKPLANNING!$B$5:$B$36,0)>0,\"V\",0),\"\")","v":""}]
[null,null,null,null,null,null,null,null,null,null,null,null,null,null,null,null,null,{"$f":"IFERROR(IF(MATCH(WEEKNUM(L70)&P70&Q70,WEEKPLANNING!$B$3&WEEKPLANNING!$A$5:$A$36&WEEKPLANNING!$B$5:$B$36,0)>0,\"V\",0),\"\")","v":""}]
[null,null,null,null,null,null,null,null,null,null,null,null,null,null,null,null,null,{"$f":"IFERROR(IF(MATCH(WEEKNUM(L71)&P71&Q71,WEEKPLANNING!$B$3&WEEKPLANNING!$A$5:$A$36&WEEKPLANNING!$B$5:$B$36,0)>0,\"V\",0),\"\")","v":""}]
[null,null,null,null,null,null,null,null,null,null,null,null,null,null,null,null,null,{"$f":"IFERROR(IF(MATCH(WEEKNUM(L72)&P72&Q72,WEEKPLANNING!$B$3&WEEKPLANNING!$A$5:$A$36&WEEKPLANNING!$B$5:$B$36,0)>0,\"V\",0),\"\")","v":""}]
[null,null,null,null,null,null,null,null,null,null,null,null,null,null,null,null,null,{"$f":"IFERROR(IF(MATCH(WEEKNUM(L73)&P73&Q73,WEEKPLANNING!$B$3&WEEKPLANNING!$A$5:$A$36&WEEKPLANNING!$B$5:$B$36,0)>0,\"V\",0),\"\")","v":""}]
[null,null,null,null,null,null,null,null,null,null,null,null,null,null,null,null,null,{"$f":"IFERROR(IF(MATCH(WEEKNUM(L74)&P74&Q74,WEEKPLANNING!$B$3&WEEKPLANNING!$A$5:$A$36&WEEKPLANNING!$B$5:$B$36,0)>0,\"V\",0),\"\")","v":""}]
[null,null,null,null,null,null,null,null,null,null,null,null,null,null,null,null,null,{"$f":"IFERROR(IF(MATCH(WEEKNUM(L75)&P75&Q75,WEEKPLANNING!$B$3&WEEKPLANNING!$A$5:$A$36&WEEKPLANNING!$B$5:$B$36,0)>0,\"V\",0),\"\")","v":""}]
[null,null,null,null,null,null,null,null,null,null,null,null,null,null,null,null,null,{"$f":"IFERROR(IF(MATCH(WEEKNUM(L76)&P76&Q76,WEEKPLANNING!$B$3&WEEKPLANNING!$A$5:$A$36&WEEKPLANNING!$B$5:$B$36,0)>0,\"V\",0),\"\")","v":""}]
[null,null,null,null,null,null,null,null,null,null,null,null,null,null,null,null,null,{"$f":"IFERROR(IF(MATCH(WEEKNUM(L77)&P77&Q77,WEEKPLANNING!$B$3&WEEKPLANNING!$A$5:$A$36&WEEKPLANNING!$B$5:$B$36,0)>0,\"V\",0),\"\")","v":""}]
[null,null,null,null,null,null,null,null,null,null,null,null,null,null,null,null,null,{"$f":"IFERROR(IF(MATCH(WEEKNUM(L78)&P78&Q78,WEEKPLANNING!$B$3&WEEKPLANNING!$A$5:$A$36&WEEKPLANNING!$B$5:$B$36,0)>0,\"V\",0),\"\")","v":""}]
[null,null,null,null,null,null,null,null,null,null,null,null,null,null,null,null,null,{"$f":"IFERROR(IF(MATCH(WEEKNUM(L79)&P79&Q79,WEEKPLANNING!$B$3&WEEKPLANNING!$A$5:$A$36&WEEKPLANNING!$B$5:$B$36,0)>0,\"V\",0),\"\")","v":""}]
[null,null,null,null,null,null,null,null,null,null,null,null,null,null,null,null,null,{"$f":"IFERROR(IF(MATCH(WEEKNUM(L80)&P80&Q80,WEEKPLANNING!$B$3&WEEKPLANNING!$A$5:$A$36&WEEKPLANNING!$B$5:$B$36,0)>0,\"V\",0),\"\")","v":""}]
[null,null,null,null,null,null,null,null,null,null,null,null,null,null,null,null,null,{"$f":"IFERROR(IF(MATCH(WEEKNUM(L81)&P81&Q81,WEEKPLANNING!$B$3&WEEKPLANNING!$A$5:$A$36&WEEKPLANNING!$B$5:$B$36,0)>0,\"V\",0),\"\")","v":""}]
[null,null,null,null,null,null,null,null,null,null,null,null,null,null,null,null,null,{"$f":"IFERROR(IF(MATCH(WEEKNUM(L82)&P82&Q82,WEEKPLANNING!$B$3&WEEKPLANNING!$A$5:$A$36&WEEKPLANNING!$B$5:$B$36,0)>0,\"V\",0),\"\")","v":""}]
[null,null,null,null,null,null,null,null,null,null,null,null,null,null,null,null,null,{"$f":"IFERROR(IF(MATCH(WEEKNUM(L83)&P83&Q83,WEEKPLANNING!$B$3&WEEKPLANNING!$A$5:$A$36&WEEKPLANNING!$B$5:$B$36,0)>0,\"V\",0),\"\")","v":""}]
[null,null,null,null,null,null,null,null,null,null,null,null,null,null,null,null,null,{"$f":"IFERROR(IF(MATCH(WEEKNUM(L84)&P84&Q84,WEEKPLANNING!$B$3&WEEKPLANNING!$A$5:$A$36&WEEKPLANNING!$B$5:$B$36,0)>0,\"V\",0),\"\")","v":""}]
[null,null,null,null,null,null,null,null,null,null,null,null,null,null,null,null,null,{"$f":"IFERROR(IF(MATCH(WEEKNUM(L85)&P85&Q85,WEEKPLANNING!$B$3&WEEKPLANNING!$A$5:$A$36&WEEKPLANNING!$B$5:$B$36,0)>0,\"V\",0),\"\")","v":""}]
[null,null,null,null,null,null,null,null,null,null,null,null,null,null,null,null,null,{"$f":"IFERROR(IF(MATCH(WEEKNUM(L86)&P86&Q86,WEEKPLANNING!$B$3&WEEKPLANNING!$A$5:$A$36&WEEKPLANNING!$B$5:$B$36,0)>0,\"V\",0),\"\")","v":""}]
[null,null,null,null,null,null,null,null,null,null,null,null,null,null,null,null,null,{"$f":"IFERROR(IF(MATCH(WEEKNUM(L87)&P87&Q87,WEEKPLANNING!$B$3&WEEKPLANNING!$A$5:$A$36&WEEKPLANNING!$B$5:$B$36,0)>0,\"V\",0),\"\")","v":""}]
[null,null,null,null,null,null,null,null,null,null,null,null,null,null,null,null,null,{"$f":"IFERROR(IF(MATCH(WEEKNUM(L88)&P88&Q88,WEEKPLANNING!$B$3&WEEKPLANNING!$A$5:$A$36&WEEKPLANNING!$B$5:$B$36,0)>0,\"V\",0),\"\")","v":""}]
[null,null,null,null,null,null,null,null,null,null,null,null,null,null,null,null,null,{"$f":"IFERROR(IF(MATCH(WEEKNUM(L89)&P89&Q89,WEEKPLANNING!$B$3&WEEKPLANNING!$A$5:$A$36&WEEKPLANNING!$B$5:$B$36,0)>0,\"V\",0),\"\")","v":""}]
[null,null,null,null,null,null,null,null,null,null,null,null,null,null,null,null,null,{"$f":"IFERROR(IF(MATCH(WEEKNUM(L90)&P90&Q90,WEEKPLANNING!$B$3&WEEKPLANNING!$A$5:$A$36&WEEKPLANNING!$B$5:$B$36,0)>0,\"V\",0),\"\")","v":""}]
[null,null,null,null,null,null,null,null,null,null,null,null,null,null,null,null,null,{"$f":"IFERROR(IF(MATCH(WEEKNUM(L91)&P91&Q91,WEEKPLANNING!$B$3&WEEKPLANNING!$A$5:$A$36&WEEKPLANNING!$B$5:$B$36,0)>0,\"V\",0),\"\")","v":""}]
[null,null,null,null,null,null,null,null,null,null,null,null,null,null,null,null,null,{"$f":"IFERROR(IF(MATCH(WEEKNUM(L92)&P92&Q92,WEEKPLANNING!$B$3&WEEKPLANNING!$A$5:$A$36&WEEKPLANNING!$B$5:$B$36,0)>0,\"V\",0),\"\")","v":""}]
[null,null,null,null,null,null,null,null,null,null,null,null,null,null,null,null,null,{"$f":"IFERROR(IF(MATCH(WEEKNUM(L93)&P93&Q93,WEEKPLANNING!$B$3&WEEKPLANNING!$A$5:$A$36&WEEKPLANNING!$B$5:$B$36,0)>0,\"V\",0),\"\")","v":""}]
[null,null,null,null,null,null,null,null,null,null,null,null,null,null,null,null,null,{"$f":"IFERROR(IF(MATCH(WEEKNUM(L94)&P94&Q94,WEEKPLANNING!$B$3&WEEKPLANNING!$A$5:$A$36&WEEKPLANNING!$B$5:$B$36,0)>0,\"V\",0),\"\")","v":""}]
[null,null,null,null,null,null,null,null,null,null,null,null,null,null,null,null,null,{"$f":"IFERROR(IF(MATCH(WEEKNUM(L95)&P95&Q95,WEEKPLANNING!$B$3&WEEKPLANNING!$A$5:$A$36&WEEKPLANNING!$B$5:$B$36,0)>0,\"V\",0),\"\")","v":""}]
[null,null,null,null,null,null,null,null,null,null,null,null,null,null,null,null,null,{"$f":"IFERROR(IF(MATCH(WEEKNUM(L96)&P96&Q96,WEEKPLANNING!$B$3&WEEKPLANNING!$A$5:$A$36&WEEKPLANNING!$B$5:$B$36,0)>0,\"V\",0),\"\")","v":""}]
[null,null,null,null,null,null,null,null,null,null,null,null,null,null,null,null,null,{"$f":"IFERROR(IF(MATCH(WEEKNUM(L97)&P97&Q97,WEEKPLANNING!$B$3&WEEKPLANNING!$A$5:$A$36&WEEKPLANNING!$B$5:$B$36,0)>0,\"V\",0),\"\")","v":""}]
[null,null,null,null,null,null,null,null,null,null,null,null,null,null,null,null,null,{"$f":"IFERROR(IF(MATCH(WEEKNUM(L98)&P98&Q98,WEEKPLANNING!$B$3&WEEKPLANNING!$A$5:$A$36&WEEKPLANNING!$B$5:$B$36,0)>0,\"V\",0),\"\")","v":""}]
[null,null,null,null,null,null,null,null,null,null,null,null,null,null,null,null,null,{"$f":"IFERROR(IF(MATCH(WEEKNUM(L99)&P99&Q99,WEEKPLANNING!$B$3&WEEKPLANNING!$A$5:$A$36&WEEKPLANNING!$B$5:$B$36,0)>0,\"V\",0),\"\")","v":""}]
[null,null,null,null,null,null,null,null,null,null,null,null,null,null,null,null,null,{"$f":"IFERROR(IF(MATCH(WEEKNUM(L100)&P100&Q100,WEEKPLANNING!$B$3&WEEKPLANNING!$A$5:$A$36&WEEKPLANNING!$B$5:$B$36,0)>0,\"V\",0),\"\")","v":""}]
[null,null,null,null,null,null,null,null,null,null,null,null,null,null,null,null,null,{"$f":"IFERROR(IF(MATCH(WEEKNUM(L101)&P101&Q101,WEEKPLANNING!$B$3&WEEKPLANNING!$A$5:$A$36&WEEKPLANNING!$B$5:$B$36,0)>0,\"V\",0),\"\")","v":""}]
[null,null,null,null,null,null,null,null,null,null,null,null,null,null,null,null,null,{"$f":"IFERROR(IF(MATCH(WEEKNUM(L102)&P102&Q102,WEEKPLANNING!$B$3&WEEKPLANNING!$A$5:$A$36&WEEKPLANNING!$B$5:$B$36,0)>0,\"V\",0),\"\")","v":""}]
[null,null,null,null,null,null,null,null,null,null,null,null,null,null,null,null,null,{"$f":"IFERROR(IF(MATCH(WEEKNUM(L103)&P103&Q103,WEEKPLANNING!$B$3&WEEKPLANNING!$A$5:$A$36&WEEKPLANNING!$B$5:$B$36,0)>0,\"V\",0),\"\")","v":""}]
[null,null,null,null,null,null,null,null,null,null,null,null,null,null,null,null,null,{"$f":"IFERROR(IF(MATCH(WEEKNUM(L104)&P104&Q104,WEEKPLANNING!$B$3&WEEKPLANNING!$A$5:$A$36&WEEKPLANNING!$B$5:$B$36,0)>0,\"V\",0),\"\")","v":""}]
[null,null,null,null,null,null,null,null,null,null,null,null,null,null,null,null,null,{"$f":"IFERROR(IF(MATCH(WEEKNUM(L105)&P105&Q105,WEEKPLANNING!$B$3&WEEKPLANNING!$A$5:$A$36&WEEKPLANNING!$B$5:$B$36,0)>0,\"V\",0),\"\")","v":""}]
[null,null,null,null,null,null,null,null,null,null,null,null,null,null,null,null,null,{"$f":"IFERROR(IF(MATCH(WEEKNUM(L106)&P106&Q106,WEEKPLANNING!$B$3&WEEKPLANNING!$A$5:$A$36&WEEKPLANNING!$B$5:$B$36,0)>0,\"V\",0),\"\")","v":""}]
[null,null,null,null,null,null,null,null,null,null,null,null,null,null,null,null,null,{"$f":"IFERROR(IF(MATCH(WEEKNUM(L107)&P107&Q107,WEEKPLANNING!$B$3&WEEKPLANNING!$A$5:$A$36&WEEKPLANNING!$B$5:$B$36,0)>0,\"V\",0),\"\")","v":""}]
[null,null,null,null,null,null,null,null,null,null,null,null,null,null,null,null,null,{"$f":"IFERROR(IF(MATCH(WEEKNUM(L108)&P108&Q108,WEEKPLANNING!$B$3&WEEKPLANNING!$A$5:$A$36&WEEKPLANNING!$B$5:$B$36,0)>0,\"V\",0),\"\")","v":""}]
[null,null,null,null,null,null,null,null,null,null,null,null,null,null,null,null,null,{"$f":"IFERROR(IF(MATCH(WEEKNUM(L109)&P109&Q109,WEEKPLANNING!$B$3&WEEKPLANNING!$A$5:$A$36&WEEKPLANNING!$B$5:$B$36,0)>0,\"V\",0),\"\")","v":""}]
[null,null,null,null,null,null,null,null,null,null,null,null,null,null,null,null,null,{"$f":"IFERROR(IF(MATCH(WEEKNUM(L110)&P110&Q110,WEEKPLANNING!$B$3&WEEKPLANNING!$A$5:$A$36&WEEKPLANNING!$B$5:$B$36,0)>0,\"V\",0),\"\")","v":""}]
[null,null,null,null,null,null,null,null,null,null,null,null,null,null,null,null,null,{"$f":"IFERROR(IF(MATCH(WEEKNUM(L111)&P111&Q111,WEEKPLANNING!$B$3&WEEKPLANNING!$A$5:$A$36&WEEKPLANNING!$B$5:$B$36,0)>0,\"V\",0),\"\")","v":""}]
[null,null,null,null,null,null,null,null,null,null,null,null,null,null,null,null,null,{"$f":"IFERROR(IF(MATCH(WEEKNUM(L112)&P112&Q112,WEEKPLANNING!$B$3&WEEKPLANNING!$A$5:$A$36&WEEKPLANNING!$B$5:$B$36,0)>0,\"V\",0),\"\")","v":""}]
[null,null,null,null,null,null,null,null,null,null,null,null,null,null,null,null,null,{"$f":"IFERROR(IF(MATCH(WEEKNUM(L113)&P113&Q113,WEEKPLANNING!$B$3&WEEKPLANNING!$A$5:$A$36&WEEKPLANNING!$B$5:$B$36,0)>0,\"V\",0),\"\")","v":""}]
[null,null,null,null,null,null,null,null,null,null,null,null,null,null,null,null,null,{"$f":"IFERROR(IF(MATCH(WEEKNUM(L114)&P114&Q114,WEEKPLANNING!$B$3&WEEKPLANNING!$A$5:$A$36&WEEKPLANNING!$B$5:$B$36,0)>0,\"V\",0),\"\")","v":""}]
[null,null,null,null,null,null,null,null,null,null,null,null,null,null,null,null,null,{"$f":"IFERROR(IF(MATCH(WEEKNUM(L115)&P115&Q115,WEEKPLANNING!$B$3&WEEKPLANNING!$A$5:$A$36&WEEKPLANNING!$B$5:$B$36,0)>0,\"V\",0),\"\")","v":""}]
[null,null,null,null,null,null,null,null,null,null,null,null,null,null,null,null,null,{"$f":"IFERROR(IF(MATCH(WEEKNUM(L116)&P116&Q116,WEEKPLANNING!$B$3&WEEKPLANNING!$A$5:$A$36&WEEKPLANNING!$B$5:$B$36,0)>0,\"V\",0),\"\")","v":""}]
[null,null,null,null,null,null,null,null,null,null,null,null,null,null,null,null,null,{"$f":"IFERROR(IF(MATCH(WEEKNUM(L117)&P117&Q117,WEEKPLANNING!$B$3&WEEKPLANNING!$A$5:$A$36&WEEKPLANNING!$B$5:$B$36,0)>0,\"V\",0),\"\")","v":""}]
[null,null,null,null,null,null,null,null,null,null,null,null,null,null,null,null,null,{"$f":"IFERROR(IF(MATCH(WEEKNUM(L118)&P118&Q118,WEEKPLANNING!$B$3&WEEKPLANNING!$A$5:$A$36&WEEKPLANNING!$B$5:$B$36,0)>0,\"V\",0),\"\")","v":""}]
[null,null,null,null,null,null,null,null,null,null,null,null,null,null,null,null,null,{"$f":"IFERROR(IF(MATCH(WEEKNUM(L119)&P119&Q119,WEEKPLANNING!$B$3&WEEKPLANNING!$A$5:$A$36&WEEKPLANNING!$B$5:$B$36,0)>0,\"V\",0),\"\")","v":""}]
[null,null,null,null,null,null,null,null,null,null,null,null,null,null,null,null,null,{"$f":"IFERROR(IF(MATCH(WEEKNUM(L120)&P120&Q120,WEEKPLANNING!$B$3&WEEKPLANNING!$A$5:$A$36&WEEKPLANNING!$B$5:$B$36,0)>0,\"V\",0),\"\")","v":""}]
[null,null,null,null,null,null,null,null,null,null,null,null,null,null,null,null,null,{"$f":"IFERROR(IF(MATCH(WEEKNUM(L121)&P121&Q121,WEEKPLANNING!$B$3&WEEKPLANNING!$A$5:$A$36&WEEKPLANNING!$B$5:$B$36,0)>0,\"V\",0),\"\")","v":""}]
[null,null,null,null,null,null,null,null,null,null,null,null,null,null,null,null,null,{"$f":"IFERROR(IF(MATCH(WEEKNUM(L122)&P122&Q122,WEEKPLANNING!$B$3&WEEKPLANNING!$A$5:$A$36&WEEKPLANNING!$B$5:$B$36,0)>0,\"V\",0),\"\")","v":""}]
[null,null,null,null,null,null,null,null,null,null,null,null,null,null,null,null,null,{"$f":"IFERROR(IF(MATCH(WEEKNUM(L123)&P123&Q123,WEEKPLANNING!$B$3&WEEKPLANNING!$A$5:$A$36&WEEKPLANNING!$B$5:$B$36,0)>0,\"V\",0),\"\")","v":""}]
[null,null,null,null,null,null,null,null,null,null,null,null,null,null,null,null,null,{"$f":"IFERROR(IF(MATCH(WEEKNUM(L124)&P124&Q124,WEEKPLANNING!$B$3&WEEKPLANNING!$A$5:$A$36&WEEKPLANNING!$B$5:$B$36,0)>0,\"V\",0),\"\")","v":""}]
[null,null,null,null,null,null,null,null,null,null,null,null,null,null,null,null,null,{"$f":"IFERROR(IF(MATCH(WEEKNUM(L125)&P125&Q125,WEEKPLANNING!$B$3&WEEKPLANNING!$A$5:$A$36&WEEKPLANNING!$B$5:$B$36,0)>0,\"V\",0),\"\")","v":""}]
[null,null,null,null,null,null,null,null,null,null,null,null,null,null,null,null,null,{"$f":"IFERROR(IF(MATCH(WEEKNUM(L126)&P126&Q126,WEEKPLANNING!$B$3&WEEKPLANNING!$A$5:$A$36&WEEKPLANNING!$B$5:$B$36,0)>0,\"V\",0),\"\")","v":""}]
[null,null,null,null,null,null,null,null,null,null,null,null,null,null,null,null,null,{"$f":"IFERROR(IF(MATCH(WEEKNUM(L127)&P127&Q127,WEEKPLANNING!$B$3&WEEKPLANNING!$A$5:$A$36&WEEKPLANNING!$B$5:$B$36,0)>0,\"V\",0),\"\")","v":""}]
[null,null,null,null,null,null,null,null,null,null,null,null,null,null,null,null,null,{"$f":"IFERROR(IF(MATCH(WEEKNUM(L128)&P128&Q128,WEEKPLANNING!$B$3&WEEKPLANNING!$A$5:$A$36&WEEKPLANNING!$B$5:$B$36,0)>0,\"V\",0),\"\")","v":""}]
[null,null,null,null,null,null,null,null,null,null,null,null,null,null,null,null,null,{"$f":"IFERROR(IF(MATCH(WEEKNUM(L129)&P129&Q129,WEEKPLANNING!$B$3&WEEKPLANNING!$A$5:$A$36&WEEKPLANNING!$B$5:$B$36,0)>0,\"V\",0),\"\")","v":""}]
[null,null,null,null,null,null,null,null,null,null,null,null,null,null,null,null,null,{"$f":"IFERROR(IF(MATCH(WEEKNUM(L130)&P130&Q130,WEEKPLANNING!$B$3&WEEKPLANNING!$A$5:$A$36&WEEKPLANNING!$B$5:$B$36,0)>0,\"V\",0),\"\")","v":""}]
[null,null,null,null,null,null,null,null,null,null,null,null,null,null,null,null,null,{"$f":"IFERROR(IF(MATCH(WEEKNUM(L131)&P131&Q131,WEEKPLANNING!$B$3&WEEKPLANNING!$A$5:$A$36&WEEKPLANNING!$B$5:$B$36,0)>0,\"V\",0),\"\")","v":""}]
[null,null,null,null,null,null,null,null,null,null,null,null,null,null,null,null,null,{"$f":"IFERROR(IF(MATCH(WEEKNUM(L132)&P132&Q132,WEEKPLANNING!$B$3&WEEKPLANNING!$A$5:$A$36&WEEKPLANNING!$B$5:$B$36,0)>0,\"V\",0),\"\")","v":""}]
[null,null,null,null,null,null,null,null,null,null,null,null,null,null,null,null,null,{"$f":"IFERROR(IF(MATCH(WEEKNUM(L133)&P133&Q133,WEEKPLANNING!$B$3&WEEKPLANNING!$A$5:$A$36&WEEKPLANNING!$B$5:$B$36,0)>0,\"V\",0),\"\")","v":""}]
[null,null,null,null,null,null,null,null,null,null,null,null,null,null,null,null,null,{"$f":"IFERROR(IF(MATCH(WEEKNUM(L134)&P134&Q134,WEEKPLANNING!$B$3&WEEKPLANNING!$A$5:$A$36&WEEKPLANNING!$B$5:$B$36,0)>0,\"V\",0),\"\")","v":""}]
[null,null,null,null,null,null,null,null,null,null,null,null,null,null,null,null,null,{"$f":"IFERROR(IF(MATCH(WEEKNUM(L135)&P135&Q135,WEEKPLANNING!$B$3&WEEKPLANNING!$A$5:$A$36&WEEKPLANNING!$B$5:$B$36,0)>0,\"V\",0),\"\")","v":""}]
[null,null,null,null,null,null,null,null,null,null,null,null,null,null,null,null,null,{"$f":"IFERROR(IF(MATCH(WEEKNUM(L136)&P136&Q136,WEEKPLANNING!$B$3&WEEKPLANNING!$A$5:$A$36&WEEKPLANNING!$B$5:$B$36,0)>0,\"V\",0),\"\")","v":""}]
[null,null,null,null,null,null,null,null,null,null,null,null,null,null,null,null,null,{"$f":"IFERROR(IF(MATCH(WEEKNUM(L137)&P137&Q137,WEEKPLANNING!$B$3&WEEKPLANNING!$A$5:$A$36&WEEKPLANNING!$B$5:$B$36,0)>0,\"V\",0),\"\")","v":""}]
[null,null,null,null,null,null,null,null,null,null,null,null,null,null,null,null,null,{"$f":"IFERROR(IF(MATCH(WEEKNUM(L138)&P138&Q138,WEEKPLANNING!$B$3&WEEKPLANNING!$A$5:$A$36&WEEKPLANNING!$B$5:$B$36,0)>0,\"V\",0),\"\")","v":""}]
[null,null,null,null,null,null,null,null,null,null,null,null,null,null,null,null,null,{"$f":"IFERROR(IF(MATCH(WEEKNUM(L139)&P139&Q139,WEEKPLANNING!$B$3&WEEKPLANNING!$A$5:$A$36&WEEKPLANNING!$B$5:$B$36,0)>0,\"V\",0),\"\")","v":""}]
[null,null,null,null,null,null,null,null,null,null,null,null,null,null,null,null,null,{"$f":"IFERROR(IF(MATCH(WEEKNUM(L140)&P140&Q140,WEEKPLANNING!$B$3&WEEKPLANNING!$A$5:$A$36&WEEKPLANNING!$B$5:$B$36,0)>0,\"V\",0),\"\")","v":""}]
[null,null,null,null,null,null,null,null,null,null,null,null,null,null,null,null,null,{"$f":"IFERROR(IF(MATCH(WEEKNUM(L141)&P141&Q141,WEEKPLANNING!$B$3&WEEKPLANNING!$A$5:$A$36&WEEKPLANNING!$B$5:$B$36,0)>0,\"V\",0),\"\")","v":""}]
[null,null,null,null,null,null,null,null,null,null,null,null,null,null,null,null,null,{"$f":"IFERROR(IF(MATCH(WEEKNUM(L142)&P142&Q142,WEEKPLANNING!$B$3&WEEKPLANNING!$A$5:$A$36&WEEKPLANNING!$B$5:$B$36,0)>0,\"V\",0),\"\")","v":""}]
[null,null,null,null,null,null,null,null,null,null,null,null,null,null,null,null,null,{"$f":"IFERROR(IF(MATCH(WEEKNUM(L143)&P143&Q143,WEEKPLANNING!$B$3&WEEKPLANNING!$A$5:$A$36&WEEKPLANNING!$B$5:$B$36,0)>0,\"V\",0),\"\")","v":""}]
[null,null,null,null,null,null,null,null,null,null,null,null,null,null,null,null,null,{"$f":"IFERROR(IF(MATCH(WEEKNUM(L144)&P144&Q144,WEEKPLANNING!$B$3&WEEKPLANNING!$A$5:$A$36&WEEKPLANNING!$B$5:$B$36,0)>0,\"V\",0),\"\")","v":""}]
[null,null,null,null,null,null,null,null,null,null,null,null,null,null,null,null,null,{"$f":"IFERROR(IF(MATCH(WEEKNUM(L145)&P145&Q145,WEEKPLANNING!$B$3&WEEKPLANNING!$A$5:$A$36&WEEKPLANNING!$B$5:$B$36,0)>0,\"V\",0),\"\")","v":""}]
[null,null,null,null,null,null,null,null,null,null,null,null,null,null,null,null,null,{"$f":"IFERROR(IF(MATCH(WEEKNUM(L146)&P146&Q146,WEEKPLANNING!$B$3&WEEKPLANNING!$A$5:$A$36&WEEKPLANNING!$B$5:$B$36,0)>0,\"V\",0),\"\")","v":""}]
[null,null,null,null,null,null,null,null,null,null,null,null,null,null,null,null,null,{"$f":"IFERROR(IF(MATCH(WEEKNUM(L147)&P147&Q147,WEEKPLANNING!$B$3&WEEKPLANNING!$A$5:$A$36&WEEKPLANNING!$B$5:$B$36,0)>0,\"V\",0),\"\")","v":""}]
[null,null,null,null,null,null,null,null,null,null,null,null,null,null,null,null,null,{"$f":"IFERROR(IF(MATCH(WEEKNUM(L148)&P148&Q148,WEEKPLANNING!$B$3&WEEKPLANNING!$A$5:$A$36&WEEKPLANNING!$B$5:$B$36,0)>0,\"V\",0),\"\")","v":""}]
[null,null,null,null,null,null,null,null,null,null,null,null,null,null,null,null,null,{"$f":"IFERROR(IF(MATCH(WEEKNUM(L149)&P149&Q149,WEEKPLANNING!$B$3&WEEKPLANNING!$A$5:$A$36&WEEKPLANNING!$B$5:$B$36,0)>0,\"V\",0),\"\")","v":""}]
[null,null,null,null,null,null,null,null,null,null,null,null,null,null,null,null,null,{"$f":"IFERROR(IF(MATCH(WEEKNUM(L150)&P150&Q150,WEEKPLANNING!$B$3&WEEKPLANNING!$A$5:$A$36&WEEKPLANNING!$B$5:$B$36,0)>0,\"V\",0),\"\")","v":""}]

{"sheet":"Validatie","index":2,"n_rows":53,"n_cols":5,"rows_kept":53,"cut":false,"hidden":false,"merged":[]}
[1,null,2018,null,"evron"]
[2,null,2019,null,"Fien"]
[3,null,2020,null,"Flore"]
[4,null,2021,null,"Fons"]
[5,null,2022,null,"Ida"]
[6,null,2023,null,"Jan"]
[7,null,2024,null,"jannie"]
[8,null,2025,null,"Joop"]
[9,null,null,null,"JOP"]
[10,null,null,null,"Jos"]
[11,null,null,null,"Josau"]
[12,null,null,null,"jules"]
[13,null,null,null,"Klaas"]
[14,null,null,null,"Klaasjan"]
[15,null,null,null,"Lot"]
[16,null,null,null,"Marjan"]
[17,null,null,null,"Mohamed"]
[18,null,null,null,"Peter"]
[19,null,null,null,"Piet"]
[20,null,null,null,"Pieter"]
[21,null,null,null,"Roy"]
[22,null,null,null,"Sanne"]
[23,null,null,null,"Tuur"]
[24,null,null,null,"Udo"]
[25,null,null,null,"Wilhelm"]
[26,null,null,null,"Willem"]
[27,null,null,null,"Willemein"]
[28]
[29]
[30]
[31]
[32]
[33]
[34]
[35]
[36]
[37]
[38]
[39]
[40]
[41]
[42]
[43]
[44]
[45]
[46]
[47]
[48]
[49]
[50]
[51]
[52]
[53]